Workbook

Sheet Start-Einstellung
B7: Dateneingabe zu Berechnung Futteraufnahmeniveau (FAN) | G7: FANi | J7: Tierhaltungsschule | M7: Markgrafenstraße 12
B8: Ration: | C8: TM - Aufn. kg | D8: 21 | F8: 700 | G8: =IFERROR(D8/(F8^0.75*50/1000),0) -> 3.086212034 | J8: 91746 Weidenbach | M8: 09 216 111 1111
J9: Adressfelder bitte mit eigenen Angaben überschreiben.
B10: Bitte Betriebsdaten eingeben: | G10: sidP Bedarf g/d
B12: Milchleistung kg/Tag | D12: 30 | E12: Kotverluste (OFN) | G12: =3*D8*6.25*(72/100)/(70/100) -> 405
B13: Milchprotein % | D13: 0.035 | E13: Harnverluste (OUN) | G13: =0.05*F8*6.25*(78/100) -> 170.625
B14: Milchfettgehalt % | D14: 0.04 | E14: Oberflächenverluste (SN) | G14: =0.02*(F8^0.75)*6.25/(70/100) -> 24.30163552
B15: Laktosegehalt % | D15: 0.048 | E15: sidP Bedarf Trächtigkeit | G15: =IF(OR(D16=0,D16=""),0,12.1156*EXP(0.0108*F16)/(30/100)) -> 73.14667579
B16: Zwischenkalbezeit Tage | D16: 400 | E16: Ø Tragendtage | F16: =IF(D16>0,(D16-60)/2-(D16-285),0) -> 55
B17: Bedarf je kg Milch | D17: =IF(D12>0,D18/D12,0) -> 46.53213166 | E17: Erhaltungsbedarf | G17: =IF(D8>0,SUM(G12:G15),0) -> 673.0733113
B18: sidP für Milchleistung | D18: =(D13*10)/6.38*D12*(95%)*6.25/(70/100)*100 -> 1395.96395 | E18: Gesamt-Bedarf sidP g/d | G18: =SUM(G17+D18) -> 2069.037261
B20: Ermittlung des Energiebedarfs ME MJ/d | E20: ME Mj | F20: Ca g | G20: Na g
B21: Erhaltungsbedarf | E21: =IF(F8=0,0,IF(AND(F8>0,D12>0),F8^0.75*0.64,IF(AND(F8>0,D12=0),F8^0.75*0.5))) -> 87.09706171 | F21: =IFERROR(IF(D8>0,D8/0.5,1),0) -> 42 | G21: =IFERROR(IF(D8>0,D8/0.95,1),0) -> 22.10526316
B22: Leistungsbedarf Milch | E22: =IFERROR(IF(D12>0,E24*D12,0),0) -> 144.5 | F22: =IFERROR(IF(D12>0,D12*2.5,0),0) -> 75 | G22: =IFERROR(IF(D12>0,D12*0.6,0),0) -> 18
B23: Gesamtbedarf ME MJ/d | E23: =SUM(E21:E22) -> 231.5970617 | F23: =SUM(F21:F22) -> 117 | G23: 40.10526316 | H23: Freie Software - keinerlei Gewährleistung | L23: www.triesdorf.de
B24: Bedarf je kg Milch | E24: =IF(D12>0,(38.5*D14+24.2*D13+16.5*D15)/0.66,0) -> 4.816666667 | F24: =IFERROR(IF(F22>0,F22/D12,0),0) -> 2.5 | G24: =IFERROR(IF(G22>0,G22/D12,0),0) -> 0.6
B25: je kg TM | E25: =IFERROR(IF(D8>0,E23/D8,1),0) -> 11.02843151 | F25: =IFERROR(IF(D8>0,F23/D8,1),0) -> 5.571428571 | G25: =IFERROR(IF(D8>0,G23/D8,1),0) -> 1.909774436 | L25: ths@triesdorf.de
I26: Update vom 03.07.2026

Sheet Ration
A1: Trog - Ration | F1: TM | G1: CA | H1: OM | I1: aNDFom | J1: ADFom | K1: OMDFANi | L1: GE | M1: MEFANi | N1: CP | O1: sidP FANi | P1: CL | Q1: ST | R1: bST | S1: ZU | T1: RMDFANi | U1: Ca | V1: P | W1: Na | X1: Mg | Y1: K | Z1: Cl | AA1: S | AB1: DCAB | AC1: Fe | AD1: Cu | AE1: Zn | AF1: Mn | AG1: Co | AH1: J | AI1: Se | AJ1: siDUDP | AK1: Lysin | AL1: Methionin | AM1: Passager. k | AN1: UDP g/kg | AO1: a | AP1: b | AQ1: c | AR1: lag | AS1: sidUDP FANi | AT1: pabKH | AU1: Preis | AV1: Berechnung von Basis Fan1 auf FANi -- DLG Information 01 | 25 - DLG-Merknlatt 503 - DLG-MERKBLATT 504
B2: Futtermenge in kg Trockenmasse o. Frischmasse | C2: % TM | D2: TM kg | E2: FM kg | F2: kg | G2: g | H2: g | I2: g | J2: g | K2: % | L2: MJ | M2: MJ | N2: g | O2: g | P2: g | Q2: g | R2: g | S2: g | T2: g | U2: g | V2: g | W2: g | X2: g | Y2: g | Z2: g | AA2: g | AB2: meq | AC2: mg | AD2: mg | AE2: mg | AF2: mg | AG2: mg | AH2: mg | AI2: mg | AJ2: % | AK2: g | AL2: g | AM2: % / h | AN2: g | AO2: % | AP2: % | AQ2: % / h | AR2: h | AS2: g | AT2: g | AU2: € / dt | AV2: CH4E FAN1 | AW2: CH4E FANi | AX2: Harnen. | AY2: ME FANi | AZ2: MCP g/kg | BA2: sidP aus MCP | BB2: EDGFANi % | BC2: UDPFANi | BD2: RDP g/d | BE2: sidPUDP g | BF2: sidP g/kg | BG2: RDP g/kg | BH2: MCP g/d | BI2: RMDFANi | BJ2: DOMFANi | BK2: MCP/DOM | BL2: UDP %
A3: =A25 -> 0 | F3: =IF(A3=0,0,IF(AND(D3>0,E3=0),D3,IF(AND(D3=0,E3>0),E3*C3,IF(AND(D3>=0,E3>=0),"?")))) -> 0 | G3: =IFERROR(G25*F3,0) -> 0 | H3: =IFERROR(H25*F3,0) -> 0 | I3: =IF(AND(D25="GF",E25>0),I25*F3,0) -> 0 | J3: =IFERROR(J25*F3,0) -> 0 | K3: =IF(F3="?",0,IF(F3=0,0,K25-(1.5+0.05*(K25-65))*('Start-Einstellung'!$G$8-1))) -> 0 | L3: =IFERROR(L25*F3,0) -> 0 | M3: =IFERROR((AY3*F3),0) -> 0 | N3: =IFERROR(N25*F3,0) -> 0 | O3: =IFERROR(BF3*F3,0) -> 0 | P3: =IFERROR(P25*F3,0) -> 0 | Q3: =IFERROR(Q25*F3,0) -> 0 | R3: =IFERROR(R25*F3,0) -> 0 | S3: =IFERROR(S25*F3,0) -> 0 | T3: =IF((F3="?"),0,(BD3-BH3)/6.25) -> 0 | U3: =IFERROR(U25*F3,0) -> 0 | V3: =IFERROR(V25*F3,0) -> 0 | W3: =IFERROR(W25*F3,0) -> 0 | X3: =IFERROR(X25*F3,0) -> 0 | Y3: =IFERROR(Y25*F3,0) -> 0 | Z3: =IFERROR(Z25*F3,0) -> 0 | AA3: =IFERROR(AA25*F3,0) -> 0 | AB3: =IFERROR(AB25*F3,0) -> 0 | AC3: =IFERROR(AC25*F3,0) -> 0 | AD3: =IFERROR(AD25*F3,0) -> 0 | AE3: =IFERROR(AE25*F3,0) -> 0 | AF3: =IFERROR(AF25*F3,0) -> 0 | AG3: =IFERROR(AG25*F3,0) -> 0 | AH3: =IFERROR(AH25*F3,0) -> 0 | AI3: =IFERROR(AI25*F3,0) -> 0 | AJ3: =IF(F3="?",0,IF(F3=0,0,AJ25)) -> 0 | AK3: =IFERROR(AK25*F3,0) -> 0 | AL3: =IFERROR(AL25*F3,0) -> 0 | AM3: =IF(F3="?",0,IF(F3=0,0,IF(D25="GF",(1.7286+0.8857*'Start-Einstellung'!$G$8),IF(D25="KF",(2.2357+1.2429*'Start-Einstellung'!$G$8),IF(D25="SF",(1.9607+0.9643*'Start-Einstellung'!$G$8),0))))) -> 0 | AN3: =IF(F3="?",0,IF(F3=0,0,(N25-BG3))) -> 0 | AO3: =IF(F3="?",0,IF(F3=0,0,AO25)) -> 0 | AP3: =IF(F3="?",0,IF(F3=0,0,AP25)) -> 0 | AQ3: =IF(F3="?",0,IF(F3=0,0,(AQ25/100))) -> 0 | AR3: =IF(F3="?",0,IF(F3=0,0,AR25)) -> 0 | AS3: =IFERROR(AS25*F3,0) -> 0 | AT3: =IFERROR(AT25*F3,0) -> 0 | AU3: =IFERROR((AU25/100)*E25,0) -> 0 | AV3: =IF(F3="?",0,IF(F3=0,0,(0.7+0.014*K25)*(H25/1000))) -> 0 | AW3: =IFERROR(IF(F3="?",0,IF(F3=0,0,(((AV3/(H25/1000)+0.9*('Start-Einstellung'!$G$8-1))/'Start-Einstellung'!$G$8*(H25/1000))))),0) -> 0 | AX3: =IF(F3="?",0,IF(F3=0,0,((0.0037*N25)))) -> 0 | AY3: =IF(F3="?",0,IF(F3=0,0,((L25*(K3-3.3)/100)-AX3-AW3))) -> 0 | AZ3: =BK3*BJ3/1000 -> 0 | BA3: =IFERROR((AZ3*0.78*0.85),0) -> 0 | BB3: =IF(F3="?",0,IF(F3=0,0,AO3+(AP3*AQ3)/(AQ3+AM3%)*(EXP(-AM3/100*AR3)))) -> 0 | BC3: =IF(F3="?",0,IF(F3=0,0,(N25*(1-(BB3/100))))) -> 0 | BD3: =IF(F3="?",0,IF(F3=0,0,BG3*F3)) -> 0 | BE3: =IF(F3>0,(BC3*(AJ3%)),0) -> 0 | BF3: =IFERROR((BA3+BE3),0) -> 0 | BG3: =IFERROR(N25*BB3/100,0) -> 0 | BH3: =IF(F3="?",0,IF(F3=0,0,AZ3*F3)) -> 0 | BI3: =IFERROR((BD3-BH3)/6.25,0) -> 0 | BJ3: =IFERROR((H25*K3/100),0) -> 0 | BK3: =IF(A3=0,0,IF('Start-Einstellung'!$G$8<3.4,150,IF(-11+(47.1*'Start-Einstellung'!$G$8)>180,180,(-11+(47.1*'Start-Einstellung'!$G$8))))) -> 0 | BL3: =IFERROR((BC3/N25)*100,0) -> 0
A4: 0 | F4: =IF(A4=0,0,IF(AND(D4>0,E4=0),D4,IF(AND(D4=0,E4>0),E4*C4,IF(AND(D4>=0,E4>=0),"?")))) -> 0 | G4: 0 | H4: 0 | I4: 0 | J4: 0 | K4: =IF(F4="?",0,IF(F4=0,0,K26-(1.5+0.05*(K26-65))*('Start-Einstellung'!$G$8-1))) -> 0 | L4: 0 | M4: 0 | N4: 0 | O4: =IFERROR(BF4*F4,0) -> 0 | P4: 0 | Q4: 0 | R4: 0 | S4: 0 | T4: =IF((F4="?"),0,(BD4-BH4)/6.25) -> 0 | U4: 0 | V4: 0 | W4: 0 | X4: 0 | Y4: 0 | Z4: 0 | AA4: 0 | AB4: 0 | AC4: 0 | AD4: 0 | AE4: 0 | AF4: 0 | AG4: 0 | AH4: 0 | AI4: 0 | AJ4: =IF(F4="?",0,IF(F4=0,0,AJ26)) -> 0 | AK4: 0 | AL4: 0 | AM4: =IF(F4="?",0,IF(F4=0,0,IF(D26="GF",(1.7286+0.8857*'Start-Einstellung'!$G$8),IF(D26="KF",(2.2357+1.2429*'Start-Einstellung'!$G$8),IF(D26="SF",(1.9607+0.9643*'Start-Einstellung'!$G$8),0))))) -> 0 | AN4: =IF(F4="?",0,IF(F4=0,0,(N26-BG4))) -> 0 | AO4: =IF(F4="?",0,IF(F4=0,0,AO26)) -> 0 | AP4: =IF(F4="?",0,IF(F4=0,0,AP26)) -> 0 | AQ4: =IF(F4="?",0,IF(F4=0,0,(AQ26/100))) -> 0 | AR4: =IF(F4="?",0,IF(F4=0,0,AR26)) -> 0 | AS4: 0 | AT4: 0 | AU4: =IFERROR((AU26/100)*E26,0) -> 0 | AV4: 0 | AW4: =IFERROR(IF(F4="?",0,IF(F4=0,0,(((AV4/(H26/1000)+0.9*('Start-Einstellung'!$G$8-1))/'Start-Einstellung'!$G$8*(H26/1000))))),0) -> 0 | AX4: 0 | AY4: 0 | AZ4: =BK4*BJ4/1000 -> 0 | BA4: =IFERROR((AZ4*0.78*0.85),0) -> 0 | BB4: =IF(F4="?",0,IF(F4=0,0,AO4+(AP4*AQ4)/(AQ4+AM4%)*(EXP(-AM4/100*AR4)))) -> 0 | BC4: =IF(F4="?",0,IF(F4=0,0,(N26*(1-(BB4/100))))) -> 0 | BD4: =IF(F4="?",0,IF(F4=0,0,BG4*F4)) -> 0 | BE4: =IF(F4>0,(BC4*(AJ4%)),0) -> 0 | BF4: =IFERROR((BA4+BE4),0) -> 0 | BG4: 0 | BH4: =IF(F4="?",0,IF(F4=0,0,AZ4*F4)) -> 0 | BI4: =IFERROR((BD4-BH4)/6.25,0) -> 0 | BJ4: 0 | BK4: =IF(A4=0,0,IF('Start-Einstellung'!$G$8<3.4,150,IF(-11+(47.1*'Start-Einstellung'!$G$8)>180,180,(-11+(47.1*'Start-Einstellung'!$G$8))))) -> 0 | BL4: 0
A5: 0 | F5: 0 | G5: 0 | H5: 0 | I5: 0 | J5: 0 | K5: =IF(F5="?",0,IF(F5=0,0,K27-(1.5+0.05*(K27-65))*('Start-Einstellung'!$G$8-1))) -> 0 | L5: 0 | M5: 0 | N5: 0 | O5: 0 | P5: 0 | Q5: 0 | R5: 0 | S5: 0 | T5: 0 | U5: 0 | V5: 0 | W5: 0 | X5: 0 | Y5: 0 | Z5: 0 | AA5: 0 | AB5: 0 | AC5: 0 | AD5: 0 | AE5: 0 | AF5: 0 | AG5: 0 | AH5: 0 | AI5: 0 | AJ5: 0 | AK5: 0 | AL5: 0 | AM5: =IF(F5="?",0,IF(F5=0,0,IF(D27="GF",(1.7286+0.8857*'Start-Einstellung'!$G$8),IF(D27="KF",(2.2357+1.2429*'Start-Einstellung'!$G$8),IF(D27="SF",(1.9607+0.9643*'Start-Einstellung'!$G$8),0))))) -> 0 | AN5: 0 | AO5: 0 | AP5: 0 | AQ5: 0 | AR5: 0 | AS5: 0 | AT5: 0 | AU5: 0 | AV5: 0 | AW5: =IFERROR(IF(F5="?",0,IF(F5=0,0,(((AV5/(H27/1000)+0.9*('Start-Einstellung'!$G$8-1))/'Start-Einstellung'!$G$8*(H27/1000))))),0) -> 0 | AX5: 0 | AY5: 0 | AZ5: 0 | BA5: 0 | BB5: =IF(F5="?",0,IF(F5=0,0,AO5+(AP5*AQ5)/(AQ5+AM5%)*(EXP(-AM5/100*AR5)))) -> 0 | BC5: 0 | BD5: 0 | BE5: =IF(F5>0,(BC5*(AJ5%)),0) -> 0 | BF5: 0 | BG5: 0 | BH5: 0 | BI5: 0 | BJ5: 0 | BK5: =IF(A5=0,0,IF('Start-Einstellung'!$G$8<3.4,150,IF(-11+(47.1*'Start-Einstellung'!$G$8)>180,180,(-11+(47.1*'Start-Einstellung'!$G$8))))) -> 0 | BL5: 0
A6: 0 | F6: 0 | G6: 0 | H6: 0 | I6: 0 | J6: 0 | K6: =IF(F6="?",0,IF(F6=0,0,K28-(1.5+0.05*(K28-65))*('Start-Einstellung'!$G$8-1))) -> 0 | L6: 0 | M6: 0 | N6: 0 | O6: 0 | P6: 0 | Q6: 0 | R6: 0 | S6: 0 | T6: 0 | U6: 0 | V6: 0 | W6: 0 | X6: 0 | Y6: 0 | Z6: 0 | AA6: 0 | AB6: 0 | AC6: 0 | AD6: 0 | AE6: 0 | AF6: 0 | AG6: 0 | AH6: 0 | AI6: 0 | AJ6: 0 | AK6: 0 | AL6: 0 | AM6: =IF(F6="?",0,IF(F6=0,0,IF(D28="GF",(1.7286+0.8857*'Start-Einstellung'!$G$8),IF(D28="KF",(2.2357+1.2429*'Start-Einstellung'!$G$8),IF(D28="SF",(1.9607+0.9643*'Start-Einstellung'!$G$8),0))))) -> 0 | AN6: 0 | AO6: 0 | AP6: 0 | AQ6: 0 | AR6: 0 | AS6: 0 | AT6: 0 | AU6: 0 | AV6: 0 | AW6: =IFERROR(IF(F6="?",0,IF(F6=0,0,(((AV6/(H28/1000)+0.9*('Start-Einstellung'!$G$8-1))/'Start-Einstellung'!$G$8*(H28/1000))))),0) -> 0 | AX6: 0 | AY6: 0 | AZ6: 0 | BA6: 0 | BB6: =IF(F6="?",0,IF(F6=0,0,AO6+(AP6*AQ6)/(AQ6+AM6%)*(EXP(-AM6/100*AR6)))) -> 0 | BC6: 0 | BD6: 0 | BE6: 0 | BF6: 0 | BG6: 0 | BH6: 0 | BI6: 0 | BJ6: 0 | BK6: =IF(A6=0,0,IF('Start-Einstellung'!$G$8<3.4,150,IF(-11+(47.1*'Start-Einstellung'!$G$8)>180,180,(-11+(47.1*'Start-Einstellung'!$G$8))))) -> 0 | BL6: 0
A7: 0 | F7: 0 | G7: 0 | H7: 0 | I7: 0 | J7: 0 | K7: =IF(F7="?",0,IF(F7=0,0,K29-(1.5+0.05*(K29-65))*('Start-Einstellung'!$G$8-1))) -> 0 | L7: 0 | M7: 0 | N7: 0 | O7: 0 | P7: 0 | Q7: 0 | R7: 0 | S7: 0 | T7: 0 | U7: 0 | V7: 0 | W7: 0 | X7: 0 | Y7: 0 | Z7: 0 | AA7: 0 | AB7: 0 | AC7: 0 | AD7: 0 | AE7: 0 | AF7: 0 | AG7: 0 | AH7: 0 | AI7: 0 | AJ7: 0 | AK7: 0 | AL7: 0 | AM7: =IF(F7="?",0,IF(F7=0,0,IF(D29="GF",(1.7286+0.8857*'Start-Einstellung'!$G$8),IF(D29="KF",(2.2357+1.2429*'Start-Einstellung'!$G$8),IF(D29="SF",(1.9607+0.9643*'Start-Einstellung'!$G$8),0))))) -> 0 | AN7: 0 | AO7: 0 | AP7: 0 | AQ7: 0 | AR7: 0 | AS7: 0 | AT7: 0 | AU7: 0 | AV7: 0 | AW7: =IFERROR(IF(F7="?",0,IF(F7=0,0,(((AV7/(H29/1000)+0.9*('Start-Einstellung'!$G$8-1))/'Start-Einstellung'!$G$8*(H29/1000))))),0) -> 0 | AX7: 0 | AY7: 0 | AZ7: 0 | BA7: 0 | BB7: 0 | BC7: 0 | BD7: 0 | BE7: 0 | BF7: 0 | BG7: 0 | BH7: 0 | BI7: 0 | BJ7: 0 | BK7: =IF(A7=0,0,IF('Start-Einstellung'!$G$8<3.4,150,IF(-11+(47.1*'Start-Einstellung'!$G$8)>180,180,(-11+(47.1*'Start-Einstellung'!$G$8))))) -> 0 | BL7: 0
A8: 0 | F8: 0 | G8: 0 | H8: 0 | I8: 0 | J8: 0 | K8: =IF(F8="?",0,IF(F8=0,0,K30-(1.5+0.05*(K30-65))*('Start-Einstellung'!$G$8-1))) -> 0 | L8: 0 | M8: 0 | N8: 0 | O8: 0 | P8: 0 | Q8: 0 | R8: 0 | S8: 0 | T8: 0 | U8: 0 | V8: 0 | W8: 0 | X8: 0 | Y8: 0 | Z8: 0 | AA8: 0 | AB8: 0 | AC8: 0 | AD8: 0 | AE8: 0 | AF8: 0 | AG8: 0 | AH8: 0 | AI8: 0 | AJ8: 0 | AK8: 0 | AL8: 0 | AM8: =IF(F8="?",0,IF(F8=0,0,IF(D30="GF",(1.7286+0.8857*'Start-Einstellung'!$G$8),IF(D30="KF",(2.2357+1.2429*'Start-Einstellung'!$G$8),IF(D30="SF",(1.9607+0.9643*'Start-Einstellung'!$G$8),0))))) -> 0 | AN8: 0 | AO8: 0 | AP8: 0 | AQ8: 0 | AR8: 0 | AS8: 0 | AT8: 0 | AU8: 0 | AV8: 0 | AW8: =IFERROR(IF(F8="?",0,IF(F8=0,0,(((AV8/(H30/1000)+0.9*('Start-Einstellung'!$G$8-1))/'Start-Einstellung'!$G$8*(H30/1000))))),0) -> 0 | AX8: 0 | AY8: 0 | AZ8: 0 | BA8: 0 | BB8: 0 | BC8: 0 | BD8: 0 | BE8: 0 | BF8: 0 | BG8: 0 | BH8: 0 | BI8: 0 | BJ8: 0 | BK8: =IF(A8=0,0,IF('Start-Einstellung'!$G$8<3.4,150,IF(-11+(47.1*'Start-Einstellung'!$G$8)>180,180,(-11+(47.1*'Start-Einstellung'!$G$8))))) -> 0 | BL8: 0
A9: 0 | F9: 0 | G9: 0 | H9: 0 | I9: 0 | J9: 0 | K9: =IF(F9="?",0,IF(F9=0,0,K31-(1.5+0.05*(K31-65))*('Start-Einstellung'!$G$8-1))) -> 0 | L9: 0 | M9: 0 | N9: 0 | O9: 0 | P9: 0 | Q9: 0 | R9: 0 | S9: 0 | T9: 0 | U9: 0 | V9: 0 | W9: 0 | X9: 0 | Y9: 0 | Z9: 0 | AA9: 0 | AB9: 0 | AC9: 0 | AD9: 0 | AE9: 0 | AF9: 0 | AG9: 0 | AH9: 0 | AI9: 0 | AJ9: 0 | AK9: 0 | AL9: 0 | AM9: =IF(F9="?",0,IF(F9=0,0,IF(D31="GF",(1.7286+0.8857*'Start-Einstellung'!$G$8),IF(D31="KF",(2.2357+1.2429*'Start-Einstellung'!$G$8),IF(D31="SF",(1.9607+0.9643*'Start-Einstellung'!$G$8),0))))) -> 0 | AN9: 0 | AO9: 0 | AP9: 0 | AQ9: 0 | AR9: 0 | AS9: 0 | AT9: 0 | AU9: 0 | AV9: 0 | AW9: =IFERROR(IF(F9="?",0,IF(F9=0,0,(((AV9/(H31/1000)+0.9*('Start-Einstellung'!$G$8-1))/'Start-Einstellung'!$G$8*(H31/1000))))),0) -> 0 | AX9: 0 | AY9: 0 | AZ9: 0 | BA9: 0 | BB9: 0 | BC9: 0 | BD9: 0 | BE9: 0 | BF9: 0 | BG9: 0 | BH9: 0 | BI9: 0 | BJ9: 0 | BK9: =IF(A9=0,0,IF('Start-Einstellung'!$G$8<3.4,150,IF(-11+(47.1*'Start-Einstellung'!$G$8)>180,180,(-11+(47.1*'Start-Einstellung'!$G$8))))) -> 0 | BL9: 0
A10: 0 | F10: 0 | G10: 0 | H10: 0 | I10: 0 | J10: 0 | K10: =IF(F10="?",0,IF(F10=0,0,K32-(1.5+0.05*(K32-65))*('Start-Einstellung'!$G$8-1))) -> 0 | L10: 0 | M10: 0 | N10: 0 | O10: 0 | P10: 0 | Q10: 0 | R10: 0 | S10: 0 | T10: 0 | U10: 0 | V10: 0 | W10: 0 | X10: 0 | Y10: 0 | Z10: 0 | AA10: 0 | AB10: 0 | AC10: 0 | AD10: 0 | AE10: 0 | AF10: 0 | AG10: 0 | AH10: 0 | AI10: 0 | AJ10: 0 | AK10: 0 | AL10: 0 | AM10: =IF(F10="?",0,IF(F10=0,0,IF(D32="GF",(1.7286+0.8857*'Start-Einstellung'!$G$8),IF(D32="KF",(2.2357+1.2429*'Start-Einstellung'!$G$8),IF(D32="SF",(1.9607+0.9643*'Start-Einstellung'!$G$8),0))))) -> 0 | AN10: 0 | AO10: 0 | AP10: 0 | AQ10: 0 | AR10: 0 | AS10: 0 | AT10: 0 | AU10: 0 | AV10: 0 | AW10: =IFERROR(IF(F10="?",0,IF(F10=0,0,(((AV10/(H32/1000)+0.9*('Start-Einstellung'!$G$8-1))/'Start-Einstellung'!$G$8*(H32/1000))))),0) -> 0 | AX10: 0 | AY10: 0 | AZ10: 0 | BA10: 0 | BB10: 0 | BC10: 0 | BD10: 0 | BE10: 0 | BF10: 0 | BG10: 0 | BH10: 0 | BI10: 0 | BJ10: 0 | BK10: =IF(A10=0,0,IF('Start-Einstellung'!$G$8<3.4,150,IF(-11+(47.1*'Start-Einstellung'!$G$8)>180,180,(-11+(47.1*'Start-Einstellung'!$G$8))))) -> 0 | BL10: 0
A11: 0 | F11: 0 | G11: 0 | H11: 0 | I11: 0 | J11: 0 | K11: =IF(F11="?",0,IF(F11=0,0,K33-(1.5+0.05*(K33-65))*('Start-Einstellung'!$G$8-1))) -> 0 | L11: 0 | M11: 0 | N11: 0 | O11: 0 | P11: 0 | Q11: 0 | R11: 0 | S11: 0 | T11: 0 | U11: 0 | V11: 0 | W11: 0 | X11: 0 | Y11: 0 | Z11: 0 | AA11: 0 | AB11: 0 | AC11: 0 | AD11: 0 | AE11: 0 | AF11: 0 | AG11: 0 | AH11: 0 | AI11: 0 | AJ11: 0 | AK11: 0 | AL11: 0 | AM11: =IF(F11="?",0,IF(F11=0,0,IF(D33="GF",(1.7286+0.8857*'Start-Einstellung'!$G$8),IF(D33="KF",(2.2357+1.2429*'Start-Einstellung'!$G$8),IF(D33="SF",(1.9607+0.9643*'Start-Einstellung'!$G$8),0))))) -> 0 | AN11: 0 | AO11: 0 | AP11: 0 | AQ11: 0 | AR11: 0 | AS11: 0 | AT11: 0 | AU11: 0 | AV11: 0 | AW11: =IFERROR(IF(F11="?",0,IF(F11=0,0,(((AV11/(H33/1000)+0.9*('Start-Einstellung'!$G$8-1))/'Start-Einstellung'!$G$8*(H33/1000))))),0) -> 0 | AX11: 0 | AY11: 0 | AZ11: 0 | BA11: 0 | BB11: 0 | BC11: 0 | BD11: 0 | BE11: 0 | BF11: 0 | BG11: 0 | BH11: 0 | BI11: 0 | BJ11: 0 | BK11: =IF(A11=0,0,IF('Start-Einstellung'!$G$8<3.4,150,IF(-11+(47.1*'Start-Einstellung'!$G$8)>180,180,(-11+(47.1*'Start-Einstellung'!$G$8))))) -> 0 | BL11: 0
A12: 0 | F12: 0 | G12: 0 | H12: 0 | I12: 0 | J12: 0 | K12: =IF(F12="?",0,IF(F12=0,0,K34-(1.5+0.05*(K34-65))*('Start-Einstellung'!$G$8-1))) -> 0 | L12: 0 | M12: 0 | N12: 0 | O12: 0 | P12: 0 | Q12: 0 | R12: 0 | S12: 0 | T12: 0 | U12: 0 | V12: 0 | W12: 0 | X12: 0 | Y12: 0 | Z12: 0 | AA12: 0 | AB12: 0 | AC12: 0 | AD12: 0 | AE12: 0 | AF12: 0 | AG12: 0 | AH12: 0 | AI12: 0 | AJ12: 0 | AK12: 0 | AL12: 0 | AM12: =IF(F12="?",0,IF(F12=0,0,IF(D34="GF",(1.7286+0.8857*'Start-Einstellung'!$G$8),IF(D34="KF",(2.2357+1.2429*'Start-Einstellung'!$G$8),IF(D34="SF",(1.9607+0.9643*'Start-Einstellung'!$G$8),0))))) -> 0 | AN12: 0 | AO12: 0 | AP12: 0 | AQ12: 0 | AR12: 0 | AS12: 0 | AT12: 0 | AU12: 0 | AV12: 0 | AW12: =IFERROR(IF(F12="?",0,IF(F12=0,0,(((AV12/(H34/1000)+0.9*('Start-Einstellung'!$G$8-1))/'Start-Einstellung'!$G$8*(H34/1000))))),0) -> 0 | AX12: 0 | AY12: 0 | AZ12: 0 | BA12: 0 | BB12: 0 | BC12: 0 | BD12: 0 | BE12: 0 | BF12: 0 | BG12: 0 | BH12: 0 | BI12: 0 | BJ12: 0 | BK12: =IF(A12=0,0,IF('Start-Einstellung'!$G$8<3.4,150,IF(-11+(47.1*'Start-Einstellung'!$G$8)>180,180,(-11+(47.1*'Start-Einstellung'!$G$8))))) -> 0 | BL12: 0
A13: 0 | F13: 0 | G13: 0 | H13: 0 | I13: 0 | J13: 0 | K13: =IF(F13="?",0,IF(F13=0,0,K35-(1.5+0.05*(K35-65))*('Start-Einstellung'!$G$8-1))) -> 0 | L13: 0 | M13: 0 | N13: 0 | O13: 0 | P13: 0 | Q13: 0 | R13: 0 | S13: 0 | T13: 0 | U13: 0 | V13: 0 | W13: 0 | X13: 0 | Y13: 0 | Z13: 0 | AA13: 0 | AB13: 0 | AC13: 0 | AD13: 0 | AE13: 0 | AF13: 0 | AG13: 0 | AH13: 0 | AI13: 0 | AJ13: 0 | AK13: 0 | AL13: 0 | AM13: =IF(F13="?",0,IF(F13=0,0,IF(D35="GF",(1.7286+0.8857*'Start-Einstellung'!$G$8),IF(D35="KF",(2.2357+1.2429*'Start-Einstellung'!$G$8),IF(D35="SF",(1.9607+0.9643*'Start-Einstellung'!$G$8),0))))) -> 0 | AN13: 0 | AO13: 0 | AP13: 0 | AQ13: 0 | AR13: 0 | AS13: 0 | AT13: 0 | AU13: 0 | AV13: 0 | AW13: =IFERROR(IF(F13="?",0,IF(F13=0,0,(((AV13/(H35/1000)+0.9*('Start-Einstellung'!$G$8-1))/'Start-Einstellung'!$G$8*(H35/1000))))),0) -> 0 | AX13: 0 | AY13: 0 | AZ13: 0 | BA13: 0 | BB13: 0 | BC13: 0 | BD13: 0 | BE13: 0 | BF13: 0 | BG13: 0 | BH13: 0 | BI13: 0 | BJ13: 0 | BK13: =IF(A13=0,0,IF('Start-Einstellung'!$G$8<3.4,150,IF(-11+(47.1*'Start-Einstellung'!$G$8)>180,180,(-11+(47.1*'Start-Einstellung'!$G$8))))) -> 0 | BL13: 0
A14: 0 | F14: 0 | G14: 0 | H14: 0 | I14: 0 | J14: 0 | K14: =IF(F14="?",0,IF(F14=0,0,K36-(1.5+0.05*(K36-65))*('Start-Einstellung'!$G$8-1))) -> 0 | L14: 0 | M14: 0 | N14: 0 | O14: 0 | P14: 0 | Q14: 0 | R14: 0 | S14: 0 | T14: 0 | U14: 0 | V14: 0 | W14: 0 | X14: 0 | Y14: 0 | Z14: 0 | AA14: 0 | AB14: 0 | AC14: 0 | AD14: 0 | AE14: 0 | AF14: 0 | AG14: 0 | AH14: 0 | AI14: 0 | AJ14: 0 | AK14: 0 | AL14: 0 | AM14: =IF(F14="?",0,IF(F14=0,0,IF(D36="GF",(1.7286+0.8857*'Start-Einstellung'!$G$8),IF(D36="KF",(2.2357+1.2429*'Start-Einstellung'!$G$8),IF(D36="SF",(1.9607+0.9643*'Start-Einstellung'!$G$8),0))))) -> 0 | AN14: 0 | AO14: 0 | AP14: 0 | AQ14: 0 | AR14: 0 | AS14: 0 | AT14: 0 | AU14: 0 | AV14: 0 | AW14: =IFERROR(IF(F14="?",0,IF(F14=0,0,(((AV14/(H36/1000)+0.9*('Start-Einstellung'!$G$8-1))/'Start-Einstellung'!$G$8*(H36/1000))))),0) -> 0 | AX14: 0 | AY14: 0 | AZ14: 0 | BA14: 0 | BB14: 0 | BC14: 0 | BD14: 0 | BE14: 0 | BF14: 0 | BG14: 0 | BH14: 0 | BI14: 0 | BJ14: 0 | BK14: =IF(A14=0,0,IF('Start-Einstellung'!$G$8<3.4,150,IF(-11+(47.1*'Start-Einstellung'!$G$8)>180,180,(-11+(47.1*'Start-Einstellung'!$G$8))))) -> 0 | BL14: 0
B15: Zugabe Konzentratmischung hier in kg eingeben | F15: =IFERROR(('Mischung 1'!D15*E15)/1000,0) -> 0 | G15: =IFERROR(('Mischung 1'!E15*E15),0) -> 0 | H15: =IFERROR(('Mischung 1'!F15*E15),0) -> 0 | I15: =IFERROR(('Mischung 1'!G15*E15),0) -> 0 | J15: =IFERROR(('Mischung 1'!H15*E15),0) -> 0 | L15: =IFERROR(('Mischung 1'!J15*E15),0) -> 0 | M15: =IFERROR(('Mischung 1'!K15*E15),0) -> 0 | N15: =IFERROR(('Mischung 1'!L15*E15),0) -> 0 | O15: =IFERROR(('Mischung 1'!M15*E15),0) -> 0 | P15: =IFERROR(('Mischung 1'!N15*E15),0) -> 0 | Q15: =IFERROR(('Mischung 1'!O15*E15),0) -> 0 | R15: =IFERROR(('Mischung 1'!P15*E15),0) -> 0 | S15: =IFERROR(('Mischung 1'!Q15*E15),0) -> 0 | T15: =IFERROR(('Mischung 1'!R15*E15),0) -> 0 | U15: =IFERROR(('Mischung 1'!S15*E15),0) -> 0 | V15: =IFERROR(('Mischung 1'!T15*E15),0) -> 0 | W15: =IFERROR(('Mischung 1'!U15*E15),0) -> 0 | X15: =IFERROR(('Mischung 1'!V15*E15),0) -> 0 | Y15: =IFERROR(('Mischung 1'!W15*E15),0) -> 0 | Z15: =IFERROR(('Mischung 1'!X15*E15),0) -> 0 | AA15: =IFERROR(('Mischung 1'!Y15*E15),0) -> 0 | AB15: =IFERROR(('Mischung 1'!Z15*E15),0) -> 0 | AC15: =IFERROR(('Mischung 1'!AA15*E15),0) -> 0 | AD15: =IFERROR(('Mischung 1'!AB15*E15),0) -> 0 | AE15: =IFERROR(('Mischung 1'!AC15*E15),0) -> 0 | AF15: =IFERROR(('Mischung 1'!AD15*E15),0) -> 0 | AG15: =IFERROR(('Mischung 1'!AE15*E15),0) -> 0 | AH15: =IFERROR(('Mischung 1'!AF15*E15),0) -> 0 | AI15: =IFERROR(('Mischung 1'!AG15*E15),0) -> 0 | AK15: =IFERROR(('Mischung 1'!AI15*E15),0) -> 0 | AL15: =IFERROR(('Mischung 1'!AJ15*E15),0) -> 0 | AN15: =IFERROR(N37-BG15,0) -> 0 | AS15: =IFERROR(('Mischung 1'!AQ15*E15),0) -> 0 | AT15: =IFERROR(('Mischung 1'!AR15*E15),0) -> 0 | AU15: =IFERROR(('Mischung 1'!AS15*E15),0) -> 0 | BD15: 0 | BH15: =IF(F15="?",0,IF(F15=0,0,BK15*F15)) -> 0
B16: Summe | E16: =SUM(E25:E36)+E17+E15 -> 0 | F16: =SUM(F3:F15) -> 0 | G16: =SUM(G3:G15) -> 0 | H16: =SUM(H3:H15) -> 0 | I16: =SUM(I3:I15) -> 0 | J16: =SUM(J3:J15) -> 0 | L16: =SUM(L3:L15) -> 0 | M16: 0 | N16: 0 | O16: 0 | P16: 0 | Q16: 0 | R16: 0 | S16: 0 | T16: 0 | U16: 0 | V16: 0 | W16: 0 | X16: 0 | Y16: 0 | Z16: 0 | AA16: 0 | AB16: =SUM(AB3:AB15) -> 0 | AC16: =SUM(AC3:AC15) -> 0 | AD16: 0 | AE16: 0 | AF16: 0 | AG16: 0 | AH16: 0 | AI16: 0 | AK16: 0 | AL16: 0 | AM16: 0 | AN16: 0 | AO16: 0 | AS16: =SUM(AS3:AS15) -> 0 | AT16: =SUM(AT3:AT15) -> 0 | AU16: =SUM(AU3:AU15) -> 0 | BA16: =SUM(BA3:BA15) -> 0 | BD16: =SUM(BD3:BD14) -> 0 | BH16: =SUM(BH3:BH14) -> 0 | BI16: =(BD16-BH16)/6.25 -> 0
B17: Wasserzugabe bitte eingeben | D17: =IF(F16>0,(F16/E16),0) -> 0 | G17: =IF(G16>0,G16/F16,0) -> 0 | H17: =IF(H16>0,H16/F16,0) -> 0 | I17: =IF(I16>0,I16/F16/1000,0) -> 0 | J17: =IF(J16>0,J16/F16,0) -> 0 | K17: =IF(K16>0,K16/$F$16,0) -> 0 | L17: =IF(L16>0,L16/$F$16,0) -> 0 | M17: =IF(M16>0,M16/$F$16,0) -> 0 | N17: =IF(N16>0,N16/$F$16/1000,0) -> 0 | O17: =IF(O16>0,O16/$F$16,0) -> 0 | P17: =IF(P16>0,P16/$F$16/1000,0) -> 0 | Q17: =IF(Q16>0,Q16/$F$16/1000,0) -> 0 | R17: =IF(R16>0,R16/$F$16/1000,0) -> 0 | S17: =IF(S16>0,S16/$F$16/1000,0) -> 0 | T17: =IF(T16<>0,T16/$F$16,0) -> 0 | U17: =IF(U16>0,U16/$F$16,0) -> 0 | V17: 0 | W17: 0 | X17: 0 | Y17: 0 | Z17: 0 | AA17: 0 | AB17: =IF(F16>0,((42.5*W16)+(25.6*Y16)-(28.2*Z16)-(62.4*AA16))/F16,0) -> 0 | AC17: =IFERROR(SUM(AC3:AC15)/F16,0) -> 0 | AD17: =IFERROR(SUM(AD3:AD15)/F16,0) -> 0 | AE17: =IFERROR(SUM(AE3:AE15)/F16,0) -> 0 | AF17: =IFERROR(SUM(AF3:AF15)/F16,0) -> 0 | AG17: =IFERROR(SUM(AG3:AG15)/F16,0) -> 0 | AH17: =IFERROR(SUM(AH3:AH15)/F16,0) -> 0 | AI17: =IFERROR(SUM(AI3:AI15)/F16,0) -> 0 | AK17: =IF(AK16>0,AK16/$F$16,0) -> 0 | AL17: =IF(AL16>0,AL16/$F$16,0) -> 0 | AM17: =SUM(AM15:AM15) -> 0 | AN17: =SUM(AN15:AN15) -> 0 | AS17: =IF(AS16>0,AS16/$F$16,0) -> 0 | AT17: =IF(AT16>0,AT16/$F$16/1000,0) -> 0 | AU17: =IF(AU16>0,AU16/$F$16,0) -> 0
B18: Milcherzeugungswerte / Kennzahlen | C18: =SUMIF(D25:D36,"GF",F3:F15) -> 0 | D18: =F16-C18 -> 0 | E18: =IF(C18>0,C18/F16,0) -> 0 | F18: =IF(D18>0,D18/F16,0) -> 0 | M18: =IFERROR(IF(M16>0,(M16-'Start-Einstellung'!E21)/'Start-Einstellung'!E24,0),0) -> 0 | O18: =IFERROR(IF(O16>0,(O16-'Start-Einstellung'!G17)/'Start-Einstellung'!D17,0),0) -> 0 | U18: =IFERROR(IF(U16>0,(U16-'Start-Einstellung'!F21)/'Start-Einstellung'!F24,0),0) -> 0 | V18: =IF(F16>0,(V16-1.43*F16)/1.43,0) -> 0 | W18: =IFERROR(IF(W16>0,(W16-'Start-Einstellung'!G21)/'Start-Einstellung'!G24,0),0) -> 0 | X18: =IF(F16>0,(X16-0.8*F16)/0.8,0) -> 0 | Y18: =IF(F16>0,(Y16-8.8*F16)/1.6,0) -> 0 | Z18: =IF(F16>0,(Z16-1.5*F16)/1.4,0) -> 0 | AA18: =IF(F16>0,(AA16-1.5*F16)/0.6,0) -> 0
H19: =IF(I16>0,I19/(I19+(Q19+S19-R19-2.8)/0.36)*100,0) -> 0 | I19: =I16*0.001 -> 0 | Q19: =Q16*0.001 -> 0 | R19: =R16*0.001 -> 0 | S19: =S16*0.001 -> 0
B20: Differenz + / - zu Sollwert | C20: FANi | D20: Milch | E20: KM kg | F20: =F16-F21 -> -21 | I20: SI : | K20: =IF(H19>100, 100, IF(H19<0, 100, H19)) -> 0 | M20: =M16-M21 -> -231.5970617 | O20: =O16-O21 -> -2069.037261 | U20: =U16-U21 -> -117 | V20: 0 | W20: -40.10526316 | X20: 0 | Y20: 0 | Z20: 0 | AA20: 0 | AC20: =AC17-AC21 -> -50 | AD20: =AD17-AD21 -> -10 | AE20: =AE17-AE21 -> -50 | AF20: =AF17-AF21 -> -50 | AI20: =AI17-AI21 -> -0.2 | AK20: =AK17-AK21 -> 0 | AL20: =AL17-AL21 -> 0
B21: Sollwerte aus Start-Einstellung | C21: =IFERROR(('Start-Einstellung'!G8),0) -> 3.086212034 | D21: =IFERROR(('Start-Einstellung'!D12),0) -> 30 | E21: =IFERROR(('Start-Einstellung'!F8),0) -> 700 | F21: =IFERROR(('Start-Einstellung'!D8),0) -> 21 | M21: =IFERROR(('Start-Einstellung'!E23),0) -> 231.5970617 | O21: =IFERROR(('Start-Einstellung'!G18),0) -> 2069.037261 | U21: =IF('Start-Einstellung'!D12>0,'Start-Einstellung'!F23,IF(E16=0,0,IF(AB21<=-50,F16*13,IF(AB21<=0,F16*11,IF(AB21<=100,F16*8,IF(AB21<200,F16*6,IF(AB21>=200,F16*4))))))) -> 117 | V21: =IF(F16>0,(1.43*F16)+(1.43*'Start-Einstellung'!D12),0) -> 0 | W21: =IFERROR(('Start-Einstellung'!G23),0) -> 40.10526316 | X21: =IF(F16>0,(0.8*F16)+(0.8*'Start-Einstellung'!D12),0) -> 0 | Y21: =IF(F16>0,(8.8*F16)+(1.6*'Start-Einstellung'!D12),0) -> 0 | Z21: =IF(F16>0,(1.5*F16)+(1.4*'Start-Einstellung'!D12),0) -> 0 | AA21: =IF(F16>0,(1.5*F16)+(0.6*'Start-Einstellung'!D12),0) -> 0 | AC21: 50 | AD21: 10 | AE21: 50 | AF21: 50 | AI21: 0.2 | AK21: =IFERROR(('Start-Einstellung'!#REF!),0) -> 0 | AL21: =IFERROR(('Start-Einstellung'!#REF!),0) -> 0
B23: Ausgewählte Futtermittel aus Gruber Tabelle | C23: % TM | D23: Art | E23: FM kg | F23: TM kg | G23: CA | H23: OM | I23: aNDFom | J23: ADFom | K23: OMDFAN1 | L23: GE | M23: MEFAN1 | N23: CP | O23: sidP FAN1 | P23: CL | Q23: ST | R23: bST | S23: ZU | T23: RMDFAN1 | U23: Ca | V23: P | W23: Na | X23: Mg | Y23: K | Z23: Cl | AA23: S | AB23: DCAB | AC23: Fe | AD23: Cu | AE23: Zn | AF23: Mn | AG23: Co | AH23: J | AI23: Se | AJ23: siDUDP | AK23: sidLYS FAN1 | AL23: sidMETFAN1 | AM23: Passager. k | AN23: sidP udp | AO23: a | AP23: b | AQ23: c | AR23: lag h | AS23: sidUDP FAN1 | AT23: pabKH | AU23: Preis / €
B24: Direkte Futtermittel - Nr. Eingabe möglich | F24: g/kg | G24: g/kg TM | H24: g/kg TM | I24: g/kg TM | J24: g/kg TM | K24: % OM | L24: MJ/kg TM | M24: MJ/kg TM | N24: g/kg TM | O24: g/kg TM | P24: g/kg TM | Q24: g/kg TM | R24: g / kg TM | S24: g/kg TM | T24: g N / kg TM | U24: g/kg TM | V24: g/kg TM | W24: g/kg TM | X24: g/kg TM | Y24: g/kg TM | Z24: g/kg TM | AA24: g/kg TM | AB24: meq/ kg TM | AC24: mg/kg TM | AD24: mg/kg TM | AE24: mg/kg TM | AF24: mg/kg TM | AG24: mg/kg TM | AH24: mg/kg TM | AI24: mg/kg TM | AJ24: % UDP | AK24: g/kg TM | AL24: g/kg TM | AM24: % / h | AN24: g / kg TM | AO24: % | AP24: % | AQ24: % / h | AR24: h | AS24: g/kg TM | AT24: g/kg TM | AU24: € / dt
B25: =IFERROR(VLOOKUP(A25,'Gruber Tabelle'!$A$3:$AR$386,2,0),"") ->  | C25: =IFERROR(F25/1000,0) -> 0 | D25: =IFERROR(VLOOKUP(A25,'Gruber Tabelle'!$A$3:$AR$386,28,0),"") ->  | E25: =IFERROR(F3/(C3),0) -> 0 | F25: =IFERROR(VLOOKUP(A25,'Gruber Tabelle'!$A$3:$AR$386,3,0),"") ->  | G25: =IFERROR(VLOOKUP(A25,'Gruber Tabelle'!$A$3:$AR$386,4,0),"") ->  | H25: =IFERROR(1000-G25,0) -> 0 | I25: =IFERROR(VLOOKUP(A25,'Gruber Tabelle'!$A$3:$AR$386,6,0),"") ->  | J25: =IFERROR(VLOOKUP(A25,'Gruber Tabelle'!$A$3:$AR$386,7,0),"") ->  | K25: =IFERROR(VLOOKUP(A25,'Gruber Tabelle'!$A$3:$AR$386,8,0),"") ->  | L25: =IFERROR(VLOOKUP(A25,'Gruber Tabelle'!$A$3:$AR$386,13,0),"") ->  | M25: =IFERROR(VLOOKUP(A25,'Gruber Tabelle'!$A$3:$AR$386,18,0),"") ->  | N25: =IFERROR(VLOOKUP(A25,'Gruber Tabelle'!$A$3:$AR$386,9,0),"") ->  | O25: =IFERROR(VLOOKUP(A25,'Gruber Tabelle'!$A$3:$AR$386,14,0),"") ->  | P25: =IFERROR(VLOOKUP(A25,'Gruber Tabelle'!$A$3:$AR$386,10,0),"") ->  | Q25: =IFERROR(VLOOKUP(A25,'Gruber Tabelle'!$A$3:$AR$386,11,0),"") ->  | R25: =IFERROR(VLOOKUP(A25,'Gruber Tabelle'!$A$3:$AR$386,43,0),0) -> 0 | S25: =IFERROR(VLOOKUP(A25,'Gruber Tabelle'!$A$3:$AR$386,12,0),"") ->  | T25: =IFERROR(VLOOKUP(A25,'Gruber Tabelle'!$A$3:$AR$386,17,0),"") ->  | U25: =IFERROR(VLOOKUP(A25,'Gruber Tabelle'!$A$3:$AR$386,20,0),"") ->  | V25: =IFERROR(VLOOKUP(A25,'Gruber Tabelle'!$A$3:$AR$386,21,0),"") ->  | W25: =IFERROR(VLOOKUP(A25,'Gruber Tabelle'!$A$3:$AR$386,23,0),"") ->  | X25: =IFERROR(VLOOKUP(A25,'Gruber Tabelle'!$A$3:$AR$386,22,0),"") ->  | Y25: =IFERROR(VLOOKUP(A25,'Gruber Tabelle'!$A$3:$AR$386,24,0),"") ->  | Z25: =IFERROR(VLOOKUP(A25,'Gruber Tabelle'!$A$3:$AR$386,25,0),"") ->  | AA25: =IFERROR(VLOOKUP(A25,'Gruber Tabelle'!$A$3:$AR$386,26,0),"") ->  | AB25: =IFERROR(VLOOKUP(A25,'Gruber Tabelle'!$A$3:$AP$386,27,0),"") ->  | AC25: =IFERROR(VLOOKUP(A25,'Gruber Tabelle'!$A$3:$AP$386,29,0),"") ->  | AD25: =IFERROR(VLOOKUP(A25,'Gruber Tabelle'!$A$3:$AP$386,30,0),"") ->  | AE25: =IFERROR(VLOOKUP(A25,'Gruber Tabelle'!$A$3:$AP$386,31,0),"") ->  | AF25: =IFERROR(VLOOKUP(A25,'Gruber Tabelle'!$A$3:$AP$386,32,0),"") ->  | AG25: =IFERROR(VLOOKUP(A25,'Gruber Tabelle'!$A$3:$AP$386,33,0),"") ->  | AH25: =IFERROR(VLOOKUP(A25,'Gruber Tabelle'!$A$3:$AP$386,34,0),"") ->  | AI25: =IFERROR(VLOOKUP(A25,'Gruber Tabelle'!$A$3:$AP$386,35,0),"") ->  | AJ25: =IFERROR(VLOOKUP(A25,'Gruber Tabelle'!$A$3:$AR$386,16,0),"") ->  | AK25: =IFERROR(VLOOKUP(A25,'Gruber Tabelle'!$A$3:$AR$386,41,0),"") ->  | AL25: =IFERROR(VLOOKUP(A25,'Gruber Tabelle'!$A$3:$AR$386,42,0),"") ->  | AM25: =IF(D25="GF",4.4,IF(D25="KF",6,IF(D25="SF",6,""))) ->  | AN25: =IFERROR(VLOOKUP(A25,'Gruber Tabelle'!$A$3:$AR$386,15,0),"") ->  | AO25: =IFERROR(VLOOKUP(A25,'Gruber Tabelle'!$A$3:$AR$386,37,0),"") ->  | AP25: =IFERROR(VLOOKUP(A25,'Gruber Tabelle'!$A$3:$AR$386,38,0),"") ->  | AQ25: =IFERROR(VLOOKUP(A25,'Gruber Tabelle'!$A$3:$AR$386,39,0),"") ->  | AR25: 0 | AS25: =IFERROR(VLOOKUP(A25,'Gruber Tabelle'!$A$3:$AR$386,16,0),"") ->  | AT25: =IFERROR(VLOOKUP(A25,'Gruber Tabelle'!$A$3:$AR$386,19,0),"") ->  | AU25: =IFERROR(VLOOKUP(A25,'Gruber Tabelle'!$A$3:$AP$386,36,0),"") -> 
B26: =IFERROR(VLOOKUP(A26,'Gruber Tabelle'!$A$3:$AR$386,2,0),"") ->  | C26: =IFERROR(F26/1000,0) -> 0 | D26: =IFERROR(VLOOKUP(A26,'Gruber Tabelle'!$A$3:$AR$386,28,0),"") ->  | E26: 0 | F26: =IFERROR(VLOOKUP(A26,'Gruber Tabelle'!$A$3:$AR$386,3,0),"") ->  | G26: =IFERROR(VLOOKUP(A26,'Gruber Tabelle'!$A$3:$AR$386,4,0),"") ->  | H26: =IFERROR(1000-G26,0) -> 0 | I26: =IFERROR(VLOOKUP(A26,'Gruber Tabelle'!$A$3:$AR$386,6,0),"") ->  | J26: =IFERROR(VLOOKUP(A26,'Gruber Tabelle'!$A$3:$AR$386,7,0),"") ->  | K26: =IFERROR(VLOOKUP(A26,'Gruber Tabelle'!$A$3:$AR$386,8,0),"") ->  | L26: =IFERROR(VLOOKUP(A26,'Gruber Tabelle'!$A$3:$AR$386,13,0),"") ->  | M26: =IFERROR(VLOOKUP(A26,'Gruber Tabelle'!$A$3:$AR$386,18,0),"") ->  | N26: =IFERROR(VLOOKUP(A26,'Gruber Tabelle'!$A$3:$AR$386,9,0),"") ->  | O26: =IFERROR(VLOOKUP(A26,'Gruber Tabelle'!$A$3:$AR$386,14,0),"") ->  | P26: =IFERROR(VLOOKUP(A26,'Gruber Tabelle'!$A$3:$AR$386,10,0),"") ->  | Q26: =IFERROR(VLOOKUP(A26,'Gruber Tabelle'!$A$3:$AR$386,11,0),"") ->  | R26: =IFERROR(VLOOKUP(A26,'Gruber Tabelle'!$A$3:$AR$386,43,0),0) -> 0 | S26: =IFERROR(VLOOKUP(A26,'Gruber Tabelle'!$A$3:$AR$386,12,0),"") ->  | T26: =IFERROR(VLOOKUP(A26,'Gruber Tabelle'!$A$3:$AR$386,17,0),"") ->  | U26: =IFERROR(VLOOKUP(A26,'Gruber Tabelle'!$A$3:$AR$386,20,0),"") ->  | V26: =IFERROR(VLOOKUP(A26,'Gruber Tabelle'!$A$3:$AR$386,21,0),"") ->  | W26: =IFERROR(VLOOKUP(A26,'Gruber Tabelle'!$A$3:$AR$386,23,0),"") ->  | X26: =IFERROR(VLOOKUP(A26,'Gruber Tabelle'!$A$3:$AR$386,22,0),"") ->  | Y26: =IFERROR(VLOOKUP(A26,'Gruber Tabelle'!$A$3:$AR$386,24,0),"") ->  | Z26: =IFERROR(VLOOKUP(A26,'Gruber Tabelle'!$A$3:$AR$386,25,0),"") ->  | AA26: =IFERROR(VLOOKUP(A26,'Gruber Tabelle'!$A$3:$AR$386,26,0),"") ->  | AB26: =IFERROR(VLOOKUP(A26,'Gruber Tabelle'!$A$3:$AP$386,27,0),"") ->  | AC26: =IFERROR(VLOOKUP(A26,'Gruber Tabelle'!$A$3:$AP$386,29,0),"") ->  | AD26: =IFERROR(VLOOKUP(A26,'Gruber Tabelle'!$A$3:$AP$386,30,0),"") ->  | AE26: =IFERROR(VLOOKUP(A26,'Gruber Tabelle'!$A$3:$AP$386,31,0),"") ->  | AF26: =IFERROR(VLOOKUP(A26,'Gruber Tabelle'!$A$3:$AP$386,32,0),"") ->  | AG26: =IFERROR(VLOOKUP(A26,'Gruber Tabelle'!$A$3:$AP$386,33,0),"") ->  | AH26: =IFERROR(VLOOKUP(A26,'Gruber Tabelle'!$A$3:$AP$386,34,0),"") ->  | AI26: =IFERROR(VLOOKUP(A26,'Gruber Tabelle'!$A$3:$AP$386,35,0),"") ->  | AJ26: =IFERROR(VLOOKUP(A26,'Gruber Tabelle'!$A$3:$AR$386,16,0),"") ->  | AK26: =IFERROR(VLOOKUP(A26,'Gruber Tabelle'!$A$3:$AR$386,41,0),"") ->  | AL26: =IFERROR(VLOOKUP(A26,'Gruber Tabelle'!$A$3:$AR$386,42,0),"") ->  | AN26: =IFERROR(VLOOKUP(A26,'Gruber Tabelle'!$A$3:$AR$386,15,0),"") ->  | AO26: =IFERROR(VLOOKUP(A26,'Gruber Tabelle'!$A$3:$AR$386,37,0),"") ->  | AP26: =IFERROR(VLOOKUP(A26,'Gruber Tabelle'!$A$3:$AR$386,38,0),"") ->  | AQ26: =IFERROR(VLOOKUP(A26,'Gruber Tabelle'!$A$3:$AR$386,39,0),"") ->  | AR26: =IFERROR(VLOOKUP(A26,'Gruber Tabelle'!$A$3:$AR$386,40,0),0) -> 0 | AS26: =IFERROR(VLOOKUP(A26,'Gruber Tabelle'!$A$3:$AR$386,16,0),"") ->  | AT26: =IFERROR(VLOOKUP(A26,'Gruber Tabelle'!$A$3:$AR$386,19,0),"") ->  | AU26: =IFERROR(VLOOKUP(A26,'Gruber Tabelle'!$A$3:$AP$386,36,0),"") -> 
B27: =IFERROR(VLOOKUP(A27,'Gruber Tabelle'!$A$3:$AR$386,2,0),"") ->  | C27: 0 | D27: =IFERROR(VLOOKUP(A27,'Gruber Tabelle'!$A$3:$AR$386,28,0),"") ->  | E27: 0 | F27: =IFERROR(VLOOKUP(A27,'Gruber Tabelle'!$A$3:$AR$386,3,0),"") ->  | G27: =IFERROR(VLOOKUP(A27,'Gruber Tabelle'!$A$3:$AR$386,4,0),"") ->  | H27: 0 | I27: =IFERROR(VLOOKUP(A27,'Gruber Tabelle'!$A$3:$AR$386,6,0),"") ->  | J27: =IFERROR(VLOOKUP(A27,'Gruber Tabelle'!$A$3:$AR$386,7,0),"") ->  | K27: =IFERROR(VLOOKUP(A27,'Gruber Tabelle'!$A$3:$AR$386,8,0),"") ->  | L27: =IFERROR(VLOOKUP(A27,'Gruber Tabelle'!$A$3:$AR$386,13,0),"") ->  | M27: =IFERROR(VLOOKUP(A27,'Gruber Tabelle'!$A$3:$AR$386,18,0),"") ->  | N27: =IFERROR(VLOOKUP(A27,'Gruber Tabelle'!$A$3:$AR$386,9,0),"") ->  | O27: =IFERROR(VLOOKUP(A27,'Gruber Tabelle'!$A$3:$AR$386,14,0),"") ->  | P27: =IFERROR(VLOOKUP(A27,'Gruber Tabelle'!$A$3:$AR$386,10,0),"") ->  | Q27: =IFERROR(VLOOKUP(A27,'Gruber Tabelle'!$A$3:$AR$386,11,0),"") ->  | R27: =IFERROR(VLOOKUP(A27,'Gruber Tabelle'!$A$3:$AR$386,43,0),0) -> 0 | S27: =IFERROR(VLOOKUP(A27,'Gruber Tabelle'!$A$3:$AR$386,12,0),"") ->  | T27: =IFERROR(VLOOKUP(A27,'Gruber Tabelle'!$A$3:$AR$386,17,0),"") ->  | U27: =IFERROR(VLOOKUP(A27,'Gruber Tabelle'!$A$3:$AR$386,20,0),"") ->  | V27: =IFERROR(VLOOKUP(A27,'Gruber Tabelle'!$A$3:$AR$386,21,0),"") ->  | W27: =IFERROR(VLOOKUP(A27,'Gruber Tabelle'!$A$3:$AR$386,23,0),"") ->  | X27: =IFERROR(VLOOKUP(A27,'Gruber Tabelle'!$A$3:$AR$386,22,0),"") ->  | Y27: =IFERROR(VLOOKUP(A27,'Gruber Tabelle'!$A$3:$AR$386,24,0),"") ->  | Z27: =IFERROR(VLOOKUP(A27,'Gruber Tabelle'!$A$3:$AR$386,25,0),"") ->  | AA27: =IFERROR(VLOOKUP(A27,'Gruber Tabelle'!$A$3:$AR$386,26,0),"") ->  | AB27: =IFERROR(VLOOKUP(A27,'Gruber Tabelle'!$A$3:$AP$386,27,0),"") ->  | AC27: =IFERROR(VLOOKUP(A27,'Gruber Tabelle'!$A$3:$AP$386,29,0),"") ->  | AD27: =IFERROR(VLOOKUP(A27,'Gruber Tabelle'!$A$3:$AP$386,30,0),"") ->  | AE27: =IFERROR(VLOOKUP(A27,'Gruber Tabelle'!$A$3:$AP$386,31,0),"") ->  | AF27: =IFERROR(VLOOKUP(A27,'Gruber Tabelle'!$A$3:$AP$386,32,0),"") ->  | AG27: =IFERROR(VLOOKUP(A27,'Gruber Tabelle'!$A$3:$AP$386,33,0),"") ->  | AH27: =IFERROR(VLOOKUP(A27,'Gruber Tabelle'!$A$3:$AP$386,34,0),"") ->  | AI27: =IFERROR(VLOOKUP(A27,'Gruber Tabelle'!$A$3:$AP$386,35,0),"") ->  | AJ27: =IFERROR(VLOOKUP(A27,'Gruber Tabelle'!$A$3:$AR$386,16,0),"") ->  | AK27: =IFERROR(VLOOKUP(A27,'Gruber Tabelle'!$A$3:$AR$386,41,0),"") ->  | AL27: =IFERROR(VLOOKUP(A27,'Gruber Tabelle'!$A$3:$AR$386,42,0),"") ->  | AN27: =IFERROR(VLOOKUP(A27,'Gruber Tabelle'!$A$3:$AR$386,15,0),"") ->  | AO27: =IFERROR(VLOOKUP(A27,'Gruber Tabelle'!$A$3:$AR$386,37,0),"") ->  | AP27: =IFERROR(VLOOKUP(A27,'Gruber Tabelle'!$A$3:$AR$386,38,0),"") ->  | AQ27: =IFERROR(VLOOKUP(A27,'Gruber Tabelle'!$A$3:$AR$386,39,0),"") ->  | AR27: =IFERROR(VLOOKUP(A27,'Gruber Tabelle'!$A$3:$AR$386,40,0),0) -> 0 | AS27: =IFERROR(VLOOKUP(A27,'Gruber Tabelle'!$A$3:$AR$386,16,0),"") ->  | AT27: =IFERROR(VLOOKUP(A27,'Gruber Tabelle'!$A$3:$AR$386,19,0),"") ->  | AU27: =IFERROR(VLOOKUP(A27,'Gruber Tabelle'!$A$3:$AP$386,36,0),"") -> 
B28: =IFERROR(VLOOKUP(A28,'Gruber Tabelle'!$A$3:$AR$386,2,0),"") ->  | C28: 0 | D28: =IFERROR(VLOOKUP(A28,'Gruber Tabelle'!$A$3:$AR$386,28,0),"") ->  | E28: 0 | F28: =IFERROR(VLOOKUP(A28,'Gruber Tabelle'!$A$3:$AR$386,3,0),"") ->  | G28: =IFERROR(VLOOKUP(A28,'Gruber Tabelle'!$A$3:$AR$386,4,0),"") ->  | H28: 0 | I28: =IFERROR(VLOOKUP(A28,'Gruber Tabelle'!$A$3:$AR$386,6,0),"") ->  | J28: =IFERROR(VLOOKUP(A28,'Gruber Tabelle'!$A$3:$AR$386,7,0),"") ->  | K28: =IFERROR(VLOOKUP(A28,'Gruber Tabelle'!$A$3:$AR$386,8,0),"") ->  | L28: =IFERROR(VLOOKUP(A28,'Gruber Tabelle'!$A$3:$AR$386,13,0),"") ->  | M28: =IFERROR(VLOOKUP(A28,'Gruber Tabelle'!$A$3:$AR$386,18,0),"") ->  | N28: =IFERROR(VLOOKUP(A28,'Gruber Tabelle'!$A$3:$AR$386,9,0),"") ->  | O28: =IFERROR(VLOOKUP(A28,'Gruber Tabelle'!$A$3:$AR$386,14,0),"") ->  | P28: =IFERROR(VLOOKUP(A28,'Gruber Tabelle'!$A$3:$AR$386,10,0),"") ->  | Q28: =IFERROR(VLOOKUP(A28,'Gruber Tabelle'!$A$3:$AR$386,11,0),"") ->  | R28: =IFERROR(VLOOKUP(A28,'Gruber Tabelle'!$A$3:$AR$386,43,0),0) -> 0 | S28: =IFERROR(VLOOKUP(A28,'Gruber Tabelle'!$A$3:$AR$386,12,0),"") ->  | T28: =IFERROR(VLOOKUP(A28,'Gruber Tabelle'!$A$3:$AR$386,17,0),"") ->  | U28: =IFERROR(VLOOKUP(A28,'Gruber Tabelle'!$A$3:$AR$386,20,0),"") ->  | V28: =IFERROR(VLOOKUP(A28,'Gruber Tabelle'!$A$3:$AR$386,21,0),"") ->  | W28: =IFERROR(VLOOKUP(A28,'Gruber Tabelle'!$A$3:$AR$386,23,0),"") ->  | X28: =IFERROR(VLOOKUP(A28,'Gruber Tabelle'!$A$3:$AR$386,22,0),"") ->  | Y28: =IFERROR(VLOOKUP(A28,'Gruber Tabelle'!$A$3:$AR$386,24,0),"") ->  | Z28: =IFERROR(VLOOKUP(A28,'Gruber Tabelle'!$A$3:$AR$386,25,0),"") ->  | AA28: =IFERROR(VLOOKUP(A28,'Gruber Tabelle'!$A$3:$AR$386,26,0),"") ->  | AB28: =IFERROR(VLOOKUP(A28,'Gruber Tabelle'!$A$3:$AP$386,27,0),"") ->  | AC28: =IFERROR(VLOOKUP(A28,'Gruber Tabelle'!$A$3:$AP$386,29,0),"") ->  | AD28: =IFERROR(VLOOKUP(A28,'Gruber Tabelle'!$A$3:$AP$386,30,0),"") ->  | AE28: =IFERROR(VLOOKUP(A28,'Gruber Tabelle'!$A$3:$AP$386,31,0),"") ->  | AF28: =IFERROR(VLOOKUP(A28,'Gruber Tabelle'!$A$3:$AP$386,32,0),"") ->  | AG28: =IFERROR(VLOOKUP(A28,'Gruber Tabelle'!$A$3:$AP$386,33,0),"") ->  | AH28: =IFERROR(VLOOKUP(A28,'Gruber Tabelle'!$A$3:$AP$386,34,0),"") ->  | AI28: =IFERROR(VLOOKUP(A28,'Gruber Tabelle'!$A$3:$AP$386,35,0),"") ->  | AJ28: =IFERROR(VLOOKUP(A28,'Gruber Tabelle'!$A$3:$AR$386,16,0),"") ->  | AK28: =IFERROR(VLOOKUP(A28,'Gruber Tabelle'!$A$3:$AR$386,41,0),"") ->  | AL28: =IFERROR(VLOOKUP(A28,'Gruber Tabelle'!$A$3:$AR$386,42,0),"") ->  | AN28: =IFERROR(VLOOKUP(A28,'Gruber Tabelle'!$A$3:$AR$386,15,0),"") ->  | AO28: =IFERROR(VLOOKUP(A28,'Gruber Tabelle'!$A$3:$AR$386,37,0),"") ->  | AP28: =IFERROR(VLOOKUP(A28,'Gruber Tabelle'!$A$3:$AR$386,38,0),"") ->  | AQ28: =IFERROR(VLOOKUP(A28,'Gruber Tabelle'!$A$3:$AR$386,39,0),"") ->  | AR28: =IFERROR(VLOOKUP(A28,'Gruber Tabelle'!$A$3:$AR$386,40,0),0) -> 0 | AS28: =IFERROR(VLOOKUP(A28,'Gruber Tabelle'!$A$3:$AR$386,16,0),"") ->  | AT28: =IFERROR(VLOOKUP(A28,'Gruber Tabelle'!$A$3:$AR$386,19,0),"") ->  | AU28: =IFERROR(VLOOKUP(A28,'Gruber Tabelle'!$A$3:$AP$386,36,0),"") -> 
B29: =IFERROR(VLOOKUP(A29,'Gruber Tabelle'!$A$3:$AR$386,2,0),"") ->  | C29: 0 | D29: =IFERROR(VLOOKUP(A29,'Gruber Tabelle'!$A$3:$AR$386,28,0),"") ->  | E29: 0 | F29: =IFERROR(VLOOKUP(A29,'Gruber Tabelle'!$A$3:$AR$386,3,0),"") ->  | G29: =IFERROR(VLOOKUP(A29,'Gruber Tabelle'!$A$3:$AR$386,4,0),"") ->  | H29: 0 | I29: =IFERROR(VLOOKUP(A29,'Gruber Tabelle'!$A$3:$AR$386,6,0),"") ->  | J29: =IFERROR(VLOOKUP(A29,'Gruber Tabelle'!$A$3:$AR$386,7,0),"") ->  | K29: =IFERROR(VLOOKUP(A29,'Gruber Tabelle'!$A$3:$AR$386,8,0),"") ->  | L29: =IFERROR(VLOOKUP(A29,'Gruber Tabelle'!$A$3:$AR$386,13,0),"") ->  | M29: =IFERROR(VLOOKUP(A29,'Gruber Tabelle'!$A$3:$AR$386,18,0),"") ->  | N29: =IFERROR(VLOOKUP(A29,'Gruber Tabelle'!$A$3:$AR$386,9,0),"") ->  | O29: =IFERROR(VLOOKUP(A29,'Gruber Tabelle'!$A$3:$AR$386,14,0),"") ->  | P29: =IFERROR(VLOOKUP(A29,'Gruber Tabelle'!$A$3:$AR$386,10,0),"") ->  | Q29: =IFERROR(VLOOKUP(A29,'Gruber Tabelle'!$A$3:$AR$386,11,0),"") ->  | R29: =IFERROR(VLOOKUP(A29,'Gruber Tabelle'!$A$3:$AR$386,43,0),0) -> 0 | S29: =IFERROR(VLOOKUP(A29,'Gruber Tabelle'!$A$3:$AR$386,12,0),"") ->  | T29: =IFERROR(VLOOKUP(A29,'Gruber Tabelle'!$A$3:$AR$386,17,0),"") ->  | U29: =IFERROR(VLOOKUP(A29,'Gruber Tabelle'!$A$3:$AR$386,20,0),"") ->  | V29: =IFERROR(VLOOKUP(A29,'Gruber Tabelle'!$A$3:$AR$386,21,0),"") ->  | W29: =IFERROR(VLOOKUP(A29,'Gruber Tabelle'!$A$3:$AR$386,23,0),"") ->  | X29: =IFERROR(VLOOKUP(A29,'Gruber Tabelle'!$A$3:$AR$386,22,0),"") ->  | Y29: =IFERROR(VLOOKUP(A29,'Gruber Tabelle'!$A$3:$AR$386,24,0),"") ->  | Z29: =IFERROR(VLOOKUP(A29,'Gruber Tabelle'!$A$3:$AR$386,25,0),"") ->  | AA29: =IFERROR(VLOOKUP(A29,'Gruber Tabelle'!$A$3:$AR$386,26,0),"") ->  | AB29: =IFERROR(VLOOKUP(A29,'Gruber Tabelle'!$A$3:$AP$386,27,0),"") ->  | AC29: =IFERROR(VLOOKUP(A29,'Gruber Tabelle'!$A$3:$AP$386,29,0),"") ->  | AD29: =IFERROR(VLOOKUP(A29,'Gruber Tabelle'!$A$3:$AP$386,30,0),"") ->  | AE29: =IFERROR(VLOOKUP(A29,'Gruber Tabelle'!$A$3:$AP$386,31,0),"") ->  | AF29: =IFERROR(VLOOKUP(A29,'Gruber Tabelle'!$A$3:$AP$386,32,0),"") ->  | AG29: =IFERROR(VLOOKUP(A29,'Gruber Tabelle'!$A$3:$AP$386,33,0),"") ->  | AH29: =IFERROR(VLOOKUP(A29,'Gruber Tabelle'!$A$3:$AP$386,34,0),"") ->  | AI29: =IFERROR(VLOOKUP(A29,'Gruber Tabelle'!$A$3:$AP$386,35,0),"") ->  | AJ29: =IFERROR(VLOOKUP(A29,'Gruber Tabelle'!$A$3:$AR$386,16,0),"") ->  | AK29: =IFERROR(VLOOKUP(A29,'Gruber Tabelle'!$A$3:$AR$386,41,0),"") ->  | AL29: =IFERROR(VLOOKUP(A29,'Gruber Tabelle'!$A$3:$AR$386,42,0),"") ->  | AN29: =IFERROR(VLOOKUP(A29,'Gruber Tabelle'!$A$3:$AR$386,15,0),"") ->  | AO29: =IFERROR(VLOOKUP(A29,'Gruber Tabelle'!$A$3:$AR$386,37,0),"") ->  | AP29: =IFERROR(VLOOKUP(A29,'Gruber Tabelle'!$A$3:$AR$386,38,0),"") ->  | AQ29: =IFERROR(VLOOKUP(A29,'Gruber Tabelle'!$A$3:$AR$386,39,0),"") ->  | AR29: =IFERROR(VLOOKUP(A29,'Gruber Tabelle'!$A$3:$AR$386,40,0),0) -> 0 | AS29: =IFERROR(VLOOKUP(A29,'Gruber Tabelle'!$A$3:$AR$386,16,0),"") ->  | AT29: =IFERROR(VLOOKUP(A29,'Gruber Tabelle'!$A$3:$AR$386,19,0),"") ->  | AU29: =IFERROR(VLOOKUP(A29,'Gruber Tabelle'!$A$3:$AP$386,36,0),"") -> 
B30: =IFERROR(VLOOKUP(A30,'Gruber Tabelle'!$A$3:$AR$386,2,0),"") ->  | C30: 0 | D30: =IFERROR(VLOOKUP(A30,'Gruber Tabelle'!$A$3:$AR$386,28,0),"") ->  | E30: 0 | F30: =IFERROR(VLOOKUP(A30,'Gruber Tabelle'!$A$3:$AR$386,3,0),"") ->  | G30: =IFERROR(VLOOKUP(A30,'Gruber Tabelle'!$A$3:$AR$386,4,0),"") ->  | H30: 0 | I30: =IFERROR(VLOOKUP(A30,'Gruber Tabelle'!$A$3:$AR$386,6,0),"") ->  | J30: =IFERROR(VLOOKUP(A30,'Gruber Tabelle'!$A$3:$AR$386,7,0),"") ->  | K30: =IFERROR(VLOOKUP(A30,'Gruber Tabelle'!$A$3:$AR$386,8,0),"") ->  | L30: =IFERROR(VLOOKUP(A30,'Gruber Tabelle'!$A$3:$AR$386,13,0),"") ->  | M30: =IFERROR(VLOOKUP(A30,'Gruber Tabelle'!$A$3:$AR$386,18,0),"") ->  | N30: =IFERROR(VLOOKUP(A30,'Gruber Tabelle'!$A$3:$AR$386,9,0),"") ->  | O30: =IFERROR(VLOOKUP(A30,'Gruber Tabelle'!$A$3:$AR$386,14,0),"") ->  | P30: =IFERROR(VLOOKUP(A30,'Gruber Tabelle'!$A$3:$AR$386,10,0),"") ->  | Q30: =IFERROR(VLOOKUP(A30,'Gruber Tabelle'!$A$3:$AR$386,11,0),"") ->  | R30: =IFERROR(VLOOKUP(A30,'Gruber Tabelle'!$A$3:$AR$386,43,0),0) -> 0 | S30: =IFERROR(VLOOKUP(A30,'Gruber Tabelle'!$A$3:$AR$386,12,0),"") ->  | T30: =IFERROR(VLOOKUP(A30,'Gruber Tabelle'!$A$3:$AR$386,17,0),"") ->  | U30: =IFERROR(VLOOKUP(A30,'Gruber Tabelle'!$A$3:$AR$386,20,0),"") ->  | V30: =IFERROR(VLOOKUP(A30,'Gruber Tabelle'!$A$3:$AR$386,21,0),"") ->  | W30: =IFERROR(VLOOKUP(A30,'Gruber Tabelle'!$A$3:$AR$386,23,0),"") ->  | X30: =IFERROR(VLOOKUP(A30,'Gruber Tabelle'!$A$3:$AR$386,22,0),"") ->  | Y30: =IFERROR(VLOOKUP(A30,'Gruber Tabelle'!$A$3:$AR$386,24,0),"") ->  | Z30: =IFERROR(VLOOKUP(A30,'Gruber Tabelle'!$A$3:$AR$386,25,0),"") ->  | AA30: =IFERROR(VLOOKUP(A30,'Gruber Tabelle'!$A$3:$AR$386,26,0),"") ->  | AB30: =IFERROR(VLOOKUP(A30,'Gruber Tabelle'!$A$3:$AP$386,27,0),"") ->  | AC30: =IFERROR(VLOOKUP(A30,'Gruber Tabelle'!$A$3:$AP$386,29,0),"") ->  | AD30: =IFERROR(VLOOKUP(A30,'Gruber Tabelle'!$A$3:$AP$386,30,0),"") ->  | AE30: =IFERROR(VLOOKUP(A30,'Gruber Tabelle'!$A$3:$AP$386,31,0),"") ->  | AF30: =IFERROR(VLOOKUP(A30,'Gruber Tabelle'!$A$3:$AP$386,32,0),"") ->  | AG30: =IFERROR(VLOOKUP(A30,'Gruber Tabelle'!$A$3:$AP$386,33,0),"") ->  | AH30: =IFERROR(VLOOKUP(A30,'Gruber Tabelle'!$A$3:$AP$386,34,0),"") ->  | AI30: =IFERROR(VLOOKUP(A30,'Gruber Tabelle'!$A$3:$AP$386,35,0),"") ->  | AJ30: =IFERROR(VLOOKUP(A30,'Gruber Tabelle'!$A$3:$AR$386,16,0),"") ->  | AK30: =IFERROR(VLOOKUP(A30,'Gruber Tabelle'!$A$3:$AR$386,41,0),"") ->  | AL30: =IFERROR(VLOOKUP(A30,'Gruber Tabelle'!$A$3:$AR$386,42,0),"") ->  | AN30: =IFERROR(VLOOKUP(A30,'Gruber Tabelle'!$A$3:$AR$386,15,0),"") ->  | AO30: =IFERROR(VLOOKUP(A30,'Gruber Tabelle'!$A$3:$AR$386,37,0),"") ->  | AP30: =IFERROR(VLOOKUP(A30,'Gruber Tabelle'!$A$3:$AR$386,38,0),"") ->  | AQ30: =IFERROR(VLOOKUP(A30,'Gruber Tabelle'!$A$3:$AR$386,39,0),"") ->  | AR30: =IFERROR(VLOOKUP(A30,'Gruber Tabelle'!$A$3:$AR$386,40,0),0) -> 0 | AS30: =IFERROR(VLOOKUP(A30,'Gruber Tabelle'!$A$3:$AR$386,16,0),"") ->  | AT30: =IFERROR(VLOOKUP(A30,'Gruber Tabelle'!$A$3:$AR$386,19,0),"") ->  | AU30: =IFERROR(VLOOKUP(A30,'Gruber Tabelle'!$A$3:$AP$386,36,0),"") -> 
B31: =IFERROR(VLOOKUP(A31,'Gruber Tabelle'!$A$3:$AR$386,2,0),"") ->  | C31: 0 | D31: =IFERROR(VLOOKUP(A31,'Gruber Tabelle'!$A$3:$AR$386,28,0),"") ->  | E31: 0 | F31: =IFERROR(VLOOKUP(A31,'Gruber Tabelle'!$A$3:$AR$386,3,0),"") ->  | G31: =IFERROR(VLOOKUP(A31,'Gruber Tabelle'!$A$3:$AR$386,4,0),"") ->  | H31: 0 | I31: =IFERROR(VLOOKUP(A31,'Gruber Tabelle'!$A$3:$AR$386,6,0),"") ->  | K31: =IFERROR(VLOOKUP(A31,'Gruber Tabelle'!$A$3:$AR$386,8,0),"") ->  | L31: =IFERROR(VLOOKUP(A31,'Gruber Tabelle'!$A$3:$AR$386,13,0),"") ->  | M31: =IFERROR(VLOOKUP(A31,'Gruber Tabelle'!$A$3:$AR$386,18,0),"") ->  | N31: =IFERROR(VLOOKUP(A31,'Gruber Tabelle'!$A$3:$AR$386,9,0),"") ->  | O31: =IFERROR(VLOOKUP(A31,'Gruber Tabelle'!$A$3:$AR$386,14,0),"") ->  | P31: =IFERROR(VLOOKUP(A31,'Gruber Tabelle'!$A$3:$AR$386,10,0),"") ->  | Q31: =IFERROR(VLOOKUP(A31,'Gruber Tabelle'!$A$3:$AR$386,11,0),"") ->  | R31: =IFERROR(VLOOKUP(A31,'Gruber Tabelle'!$A$3:$AR$386,43,0),0) -> 0 | S31: =IFERROR(VLOOKUP(A31,'Gruber Tabelle'!$A$3:$AR$386,12,0),"") ->  | T31: =IFERROR(VLOOKUP(A31,'Gruber Tabelle'!$A$3:$AR$386,17,0),"") ->  | U31: =IFERROR(VLOOKUP(A31,'Gruber Tabelle'!$A$3:$AR$386,20,0),"") ->  | V31: =IFERROR(VLOOKUP(A31,'Gruber Tabelle'!$A$3:$AR$386,21,0),"") ->  | W31: =IFERROR(VLOOKUP(A31,'Gruber Tabelle'!$A$3:$AR$386,23,0),"") ->  | X31: =IFERROR(VLOOKUP(A31,'Gruber Tabelle'!$A$3:$AR$386,22,0),"") ->  | Y31: =IFERROR(VLOOKUP(A31,'Gruber Tabelle'!$A$3:$AR$386,24,0),"") ->  | Z31: =IFERROR(VLOOKUP(A31,'Gruber Tabelle'!$A$3:$AR$386,25,0),"") ->  | AA31: =IFERROR(VLOOKUP(A31,'Gruber Tabelle'!$A$3:$AR$386,26,0),"") ->  | AB31: =IFERROR(VLOOKUP(A31,'Gruber Tabelle'!$A$3:$AP$386,27,0),"") ->  | AC31: =IFERROR(VLOOKUP(A31,'Gruber Tabelle'!$A$3:$AP$386,29,0),"") ->  | AD31: =IFERROR(VLOOKUP(A31,'Gruber Tabelle'!$A$3:$AP$386,30,0),"") ->  | AE31: =IFERROR(VLOOKUP(A31,'Gruber Tabelle'!$A$3:$AP$386,31,0),"") ->  | AF31: =IFERROR(VLOOKUP(A31,'Gruber Tabelle'!$A$3:$AP$386,32,0),"") ->  | AG31: =IFERROR(VLOOKUP(A31,'Gruber Tabelle'!$A$3:$AP$386,33,0),"") ->  | AH31: =IFERROR(VLOOKUP(A31,'Gruber Tabelle'!$A$3:$AP$386,34,0),"") ->  | AI31: =IFERROR(VLOOKUP(A31,'Gruber Tabelle'!$A$3:$AP$386,35,0),"") ->  | AJ31: =IFERROR(VLOOKUP(A31,'Gruber Tabelle'!$A$3:$AR$386,16,0),"") ->  | AK31: =IFERROR(VLOOKUP(A31,'Gruber Tabelle'!$A$3:$AR$386,41,0),"") ->  | AL31: =IFERROR(VLOOKUP(A31,'Gruber Tabelle'!$A$3:$AR$386,42,0),"") ->  | AN31: =IFERROR(VLOOKUP(A31,'Gruber Tabelle'!$A$3:$AR$386,15,0),"") ->  | AO31: =IFERROR(VLOOKUP(A31,'Gruber Tabelle'!$A$3:$AR$386,37,0),"") ->  | AP31: =IFERROR(VLOOKUP(A31,'Gruber Tabelle'!$A$3:$AR$386,38,0),"") ->  | AQ31: =IFERROR(VLOOKUP(A31,'Gruber Tabelle'!$A$3:$AR$386,39,0),"") ->  | AR31: =IFERROR(VLOOKUP(A31,'Gruber Tabelle'!$A$3:$AR$386,40,0),0) -> 0 | AS31: =IFERROR(VLOOKUP(A31,'Gruber Tabelle'!$A$3:$AR$386,16,0),"") ->  | AU31: =IFERROR(VLOOKUP(A31,'Gruber Tabelle'!$A$3:$AP$386,36,0),"") -> 
B32: =IFERROR(VLOOKUP(A32,'Gruber Tabelle'!$A$3:$AR$386,2,0),"") ->  | C32: 0 | D32: =IFERROR(VLOOKUP(A32,'Gruber Tabelle'!$A$3:$AR$386,28,0),"") ->  | E32: 0 | F32: =IFERROR(VLOOKUP(A32,'Gruber Tabelle'!$A$3:$AR$386,3,0),"") ->  | G32: =IFERROR(VLOOKUP(A32,'Gruber Tabelle'!$A$3:$AR$386,4,0),"") ->  | H32: 0 | I32: =IFERROR(VLOOKUP(A32,'Gruber Tabelle'!$A$3:$AR$386,6,0),"") ->  | J32: =IFERROR(VLOOKUP(A32,'Gruber Tabelle'!$A$3:$AR$386,7,0),"") ->  | K32: =IFERROR(VLOOKUP(A32,'Gruber Tabelle'!$A$3:$AR$386,8,0),"") ->  | L32: =IFERROR(VLOOKUP(A32,'Gruber Tabelle'!$A$3:$AR$386,13,0),"") ->  | M32: =IFERROR(VLOOKUP(A32,'Gruber Tabelle'!$A$3:$AR$386,18,0),"") ->  | N32: =IFERROR(VLOOKUP(A32,'Gruber Tabelle'!$A$3:$AR$386,9,0),"") ->  | O32: =IFERROR(VLOOKUP(A32,'Gruber Tabelle'!$A$3:$AR$386,14,0),"") ->  | P32: =IFERROR(VLOOKUP(A32,'Gruber Tabelle'!$A$3:$AR$386,10,0),"") ->  | Q32: =IFERROR(VLOOKUP(A32,'Gruber Tabelle'!$A$3:$AR$386,11,0),"") ->  | R32: =IFERROR(VLOOKUP(A32,'Gruber Tabelle'!$A$3:$AR$386,43,0),0) -> 0 | S32: =IFERROR(VLOOKUP(A32,'Gruber Tabelle'!$A$3:$AR$386,12,0),"") ->  | T32: =IFERROR(VLOOKUP(A32,'Gruber Tabelle'!$A$3:$AR$386,17,0),"") ->  | U32: =IFERROR(VLOOKUP(A32,'Gruber Tabelle'!$A$3:$AR$386,20,0),"") ->  | V32: =IFERROR(VLOOKUP(A32,'Gruber Tabelle'!$A$3:$AR$386,21,0),"") ->  | W32: =IFERROR(VLOOKUP(A32,'Gruber Tabelle'!$A$3:$AR$386,23,0),"") ->  | X32: =IFERROR(VLOOKUP(A32,'Gruber Tabelle'!$A$3:$AR$386,22,0),"") ->  | Y32: =IFERROR(VLOOKUP(A32,'Gruber Tabelle'!$A$3:$AR$386,24,0),"") ->  | Z32: =IFERROR(VLOOKUP(A32,'Gruber Tabelle'!$A$3:$AR$386,25,0),"") ->  | AA32: =IFERROR(VLOOKUP(A32,'Gruber Tabelle'!$A$3:$AR$386,26,0),"") ->  | AB32: =IFERROR(VLOOKUP(A32,'Gruber Tabelle'!$A$3:$AP$386,27,0),"") ->  | AC32: =IFERROR(VLOOKUP(A32,'Gruber Tabelle'!$A$3:$AP$386,29,0),"") ->  | AD32: =IFERROR(VLOOKUP(A32,'Gruber Tabelle'!$A$3:$AP$386,30,0),"") ->  | AE32: =IFERROR(VLOOKUP(A32,'Gruber Tabelle'!$A$3:$AP$386,31,0),"") ->  | AF32: =IFERROR(VLOOKUP(A32,'Gruber Tabelle'!$A$3:$AP$386,32,0),"") ->  | AG32: =IFERROR(VLOOKUP(A32,'Gruber Tabelle'!$A$3:$AP$386,33,0),"") ->  | AH32: =IFERROR(VLOOKUP(A32,'Gruber Tabelle'!$A$3:$AP$386,34,0),"") ->  | AI32: =IFERROR(VLOOKUP(A32,'Gruber Tabelle'!$A$3:$AP$386,35,0),"") ->  | AJ32: =IFERROR(VLOOKUP(A32,'Gruber Tabelle'!$A$3:$AR$386,16,0),"") ->  | AK32: =IFERROR(VLOOKUP(A32,'Gruber Tabelle'!$A$3:$AR$386,41,0),"") ->  | AL32: =IFERROR(VLOOKUP(A32,'Gruber Tabelle'!$A$3:$AR$386,42,0),"") ->  | AN32: =IFERROR(VLOOKUP(A32,'Gruber Tabelle'!$A$3:$AR$386,15,0),"") ->  | AO32: =IFERROR(VLOOKUP(A32,'Gruber Tabelle'!$A$3:$AR$386,37,0),"") ->  | AP32: =IFERROR(VLOOKUP(A32,'Gruber Tabelle'!$A$3:$AR$386,38,0),"") ->  | AQ32: =IFERROR(VLOOKUP(A32,'Gruber Tabelle'!$A$3:$AR$386,39,0),"") ->  | AR32: =IFERROR(VLOOKUP(A32,'Gruber Tabelle'!$A$3:$AR$386,40,0),0) -> 0 | AS32: =IFERROR(VLOOKUP(A32,'Gruber Tabelle'!$A$3:$AR$386,16,0),"") ->  | AT32: =IFERROR(VLOOKUP(A32,'Gruber Tabelle'!$A$3:$AR$386,19,0),"") ->  | AU32: =IFERROR(VLOOKUP(A32,'Gruber Tabelle'!$A$3:$AP$386,36,0),"") -> 
B33: =IFERROR(VLOOKUP(A33,'Gruber Tabelle'!$A$3:$AR$386,2,0),"") ->  | C33: 0 | D33: =IFERROR(VLOOKUP(A33,'Gruber Tabelle'!$A$3:$AR$386,28,0),"") ->  | E33: 0 | F33: =IFERROR(VLOOKUP(A33,'Gruber Tabelle'!$A$3:$AR$386,3,0),"") ->  | G33: =IFERROR(VLOOKUP(A33,'Gruber Tabelle'!$A$3:$AR$386,4,0),"") ->  | H33: 0 | I33: =IFERROR(VLOOKUP(A33,'Gruber Tabelle'!$A$3:$AR$386,6,0),"") ->  | J33: =IFERROR(VLOOKUP(A33,'Gruber Tabelle'!$A$3:$AR$386,7,0),"") ->  | K33: =IFERROR(VLOOKUP(A33,'Gruber Tabelle'!$A$3:$AR$386,8,0),"") ->  | L33: =IFERROR(VLOOKUP(A33,'Gruber Tabelle'!$A$3:$AR$386,13,0),"") ->  | M33: =IFERROR(VLOOKUP(A33,'Gruber Tabelle'!$A$3:$AR$386,18,0),"") ->  | N33: =IFERROR(VLOOKUP(A33,'Gruber Tabelle'!$A$3:$AR$386,9,0),"") ->  | O33: =IFERROR(VLOOKUP(A33,'Gruber Tabelle'!$A$3:$AR$386,14,0),"") ->  | P33: =IFERROR(VLOOKUP(A33,'Gruber Tabelle'!$A$3:$AR$386,10,0),"") ->  | Q33: =IFERROR(VLOOKUP(A33,'Gruber Tabelle'!$A$3:$AR$386,11,0),"") ->  | R33: =IFERROR(VLOOKUP(A33,'Gruber Tabelle'!$A$3:$AR$386,43,0),0) -> 0 | S33: =IFERROR(VLOOKUP(A33,'Gruber Tabelle'!$A$3:$AR$386,12,0),"") ->  | T33: =IFERROR(VLOOKUP(A33,'Gruber Tabelle'!$A$3:$AR$386,17,0),"") ->  | U33: =IFERROR(VLOOKUP(A33,'Gruber Tabelle'!$A$3:$AR$386,20,0),"") ->  | V33: =IFERROR(VLOOKUP(A33,'Gruber Tabelle'!$A$3:$AR$386,21,0),"") ->  | W33: =IFERROR(VLOOKUP(A33,'Gruber Tabelle'!$A$3:$AR$386,23,0),"") ->  | X33: =IFERROR(VLOOKUP(A33,'Gruber Tabelle'!$A$3:$AR$386,22,0),"") ->  | Y33: =IFERROR(VLOOKUP(A33,'Gruber Tabelle'!$A$3:$AR$386,24,0),"") ->  | Z33: =IFERROR(VLOOKUP(A33,'Gruber Tabelle'!$A$3:$AR$386,25,0),"") ->  | AA33: =IFERROR(VLOOKUP(A33,'Gruber Tabelle'!$A$3:$AR$386,26,0),"") ->  | AB33: =IFERROR(VLOOKUP(A33,'Gruber Tabelle'!$A$3:$AP$386,27,0),"") ->  | AC33: =IFERROR(VLOOKUP(A33,'Gruber Tabelle'!$A$3:$AP$386,29,0),"") ->  | AD33: =IFERROR(VLOOKUP(A33,'Gruber Tabelle'!$A$3:$AP$386,30,0),"") ->  | AE33: =IFERROR(VLOOKUP(A33,'Gruber Tabelle'!$A$3:$AP$386,31,0),"") ->  | AF33: =IFERROR(VLOOKUP(A33,'Gruber Tabelle'!$A$3:$AP$386,32,0),"") ->  | AG33: =IFERROR(VLOOKUP(A33,'Gruber Tabelle'!$A$3:$AP$386,33,0),"") ->  | AH33: =IFERROR(VLOOKUP(A33,'Gruber Tabelle'!$A$3:$AP$386,34,0),"") ->  | AI33: =IFERROR(VLOOKUP(A33,'Gruber Tabelle'!$A$3:$AP$386,35,0),"") ->  | AJ33: =IFERROR(VLOOKUP(A33,'Gruber Tabelle'!$A$3:$AR$386,16,0),"") ->  | AK33: =IFERROR(VLOOKUP(A33,'Gruber Tabelle'!$A$3:$AR$386,41,0),"") ->  | AL33: =IFERROR(VLOOKUP(A33,'Gruber Tabelle'!$A$3:$AR$386,42,0),"") ->  | AN33: =IFERROR(VLOOKUP(A33,'Gruber Tabelle'!$A$3:$AR$386,15,0),"") ->  | AO33: =IFERROR(VLOOKUP(A33,'Gruber Tabelle'!$A$3:$AR$386,37,0),"") ->  | AP33: =IFERROR(VLOOKUP(A33,'Gruber Tabelle'!$A$3:$AR$386,38,0),"") ->  | AQ33: =IFERROR(VLOOKUP(A33,'Gruber Tabelle'!$A$3:$AR$386,39,0),"") ->  | AR33: =IFERROR(VLOOKUP(A33,'Gruber Tabelle'!$A$3:$AR$386,40,0),0) -> 0 | AS33: =IFERROR(VLOOKUP(A33,'Gruber Tabelle'!$A$3:$AR$386,16,0),"") ->  | AT33: =IFERROR(VLOOKUP(A33,'Gruber Tabelle'!$A$3:$AR$386,19,0),"") ->  | AU33: =IFERROR(VLOOKUP(A33,'Gruber Tabelle'!$A$3:$AP$386,36,0),"") -> 
B34: =IFERROR(VLOOKUP(A34,'Gruber Tabelle'!$A$3:$AR$386,2,0),"") ->  | C34: 0 | D34: =IFERROR(VLOOKUP(A34,'Gruber Tabelle'!$A$3:$AR$386,28,0),"") ->  | E34: 0 | F34: =IFERROR(VLOOKUP(A34,'Gruber Tabelle'!$A$3:$AR$386,3,0),"") ->  | G34: =IFERROR(VLOOKUP(A34,'Gruber Tabelle'!$A$3:$AR$386,4,0),"") ->  | H34: 0 | I34: =IFERROR(VLOOKUP(A34,'Gruber Tabelle'!$A$3:$AR$386,6,0),"") ->  | J34: =IFERROR(VLOOKUP(A34,'Gruber Tabelle'!$A$3:$AR$386,7,0),"") ->  | K34: =IFERROR(VLOOKUP(A34,'Gruber Tabelle'!$A$3:$AR$386,8,0),"") ->  | L34: =IFERROR(VLOOKUP(A34,'Gruber Tabelle'!$A$3:$AR$386,13,0),"") ->  | M34: =IFERROR(VLOOKUP(A34,'Gruber Tabelle'!$A$3:$AR$386,18,0),"") ->  | N34: =IFERROR(VLOOKUP(A34,'Gruber Tabelle'!$A$3:$AR$386,9,0),"") ->  | O34: =IFERROR(VLOOKUP(A34,'Gruber Tabelle'!$A$3:$AR$386,14,0),"") ->  | P34: =IFERROR(VLOOKUP(A34,'Gruber Tabelle'!$A$3:$AR$386,10,0),"") ->  | Q34: =IFERROR(VLOOKUP(A34,'Gruber Tabelle'!$A$3:$AR$386,11,0),"") ->  | R34: =IFERROR(VLOOKUP(A34,'Gruber Tabelle'!$A$3:$AR$386,43,0),0) -> 0 | S34: =IFERROR(VLOOKUP(A34,'Gruber Tabelle'!$A$3:$AR$386,12,0),"") ->  | T34: =IFERROR(VLOOKUP(A34,'Gruber Tabelle'!$A$3:$AR$386,17,0),"") ->  | U34: =IFERROR(VLOOKUP(A34,'Gruber Tabelle'!$A$3:$AR$386,20,0),"") ->  | V34: =IFERROR(VLOOKUP(A34,'Gruber Tabelle'!$A$3:$AR$386,21,0),"") ->  | W34: =IFERROR(VLOOKUP(A34,'Gruber Tabelle'!$A$3:$AR$386,23,0),"") ->  | X34: =IFERROR(VLOOKUP(A34,'Gruber Tabelle'!$A$3:$AR$386,22,0),"") ->  | Y34: =IFERROR(VLOOKUP(A34,'Gruber Tabelle'!$A$3:$AR$386,24,0),"") ->  | Z34: =IFERROR(VLOOKUP(A34,'Gruber Tabelle'!$A$3:$AR$386,25,0),"") ->  | AA34: =IFERROR(VLOOKUP(A34,'Gruber Tabelle'!$A$3:$AR$386,26,0),"") ->  | AB34: =IFERROR(VLOOKUP(A34,'Gruber Tabelle'!$A$3:$AP$386,27,0),"") ->  | AC34: =IFERROR(VLOOKUP(A34,'Gruber Tabelle'!$A$3:$AP$386,29,0),"") ->  | AD34: =IFERROR(VLOOKUP(A34,'Gruber Tabelle'!$A$3:$AP$386,30,0),"") ->  | AE34: =IFERROR(VLOOKUP(A34,'Gruber Tabelle'!$A$3:$AP$386,31,0),"") ->  | AF34: =IFERROR(VLOOKUP(A34,'Gruber Tabelle'!$A$3:$AP$386,32,0),"") ->  | AG34: =IFERROR(VLOOKUP(A34,'Gruber Tabelle'!$A$3:$AP$386,33,0),"") ->  | AH34: =IFERROR(VLOOKUP(A34,'Gruber Tabelle'!$A$3:$AP$386,34,0),"") ->  | AI34: =IFERROR(VLOOKUP(A34,'Gruber Tabelle'!$A$3:$AP$386,35,0),"") ->  | AJ34: =IFERROR(VLOOKUP(A34,'Gruber Tabelle'!$A$3:$AR$386,16,0),"") ->  | AK34: =IFERROR(VLOOKUP(A34,'Gruber Tabelle'!$A$3:$AR$386,41,0),"") ->  | AL34: =IFERROR(VLOOKUP(A34,'Gruber Tabelle'!$A$3:$AR$386,42,0),"") ->  | AN34: =IFERROR(VLOOKUP(A34,'Gruber Tabelle'!$A$3:$AR$386,15,0),"") ->  | AO34: =IFERROR(VLOOKUP(A34,'Gruber Tabelle'!$A$3:$AR$386,37,0),"") ->  | AP34: =IFERROR(VLOOKUP(A34,'Gruber Tabelle'!$A$3:$AR$386,38,0),"") ->  | AQ34: =IFERROR(VLOOKUP(A34,'Gruber Tabelle'!$A$3:$AR$386,39,0),"") ->  | AR34: =IFERROR(VLOOKUP(A34,'Gruber Tabelle'!$A$3:$AR$386,40,0),0) -> 0 | AS34: =IFERROR(VLOOKUP(A34,'Gruber Tabelle'!$A$3:$AR$386,16,0),"") ->  | AT34: =IFERROR(VLOOKUP(A34,'Gruber Tabelle'!$A$3:$AR$386,19,0),"") ->  | AU34: =IFERROR(VLOOKUP(A34,'Gruber Tabelle'!$A$3:$AP$386,36,0),"") -> 
B35: =IFERROR(VLOOKUP(A35,'Gruber Tabelle'!$A$3:$AR$386,2,0),"") ->  | C35: 0 | D35: =IFERROR(VLOOKUP(A35,'Gruber Tabelle'!$A$3:$AR$386,28,0),"") ->  | E35: 0 | F35: =IFERROR(VLOOKUP(A35,'Gruber Tabelle'!$A$3:$AR$386,3,0),"") ->  | G35: =IFERROR(VLOOKUP(A35,'Gruber Tabelle'!$A$3:$AR$386,4,0),"") ->  | H35: 0 | I35: =IFERROR(VLOOKUP(A35,'Gruber Tabelle'!$A$3:$AR$386,6,0),"") ->  | J35: =IFERROR(VLOOKUP(A35,'Gruber Tabelle'!$A$3:$AR$386,7,0),"") ->  | K35: =IFERROR(VLOOKUP(A35,'Gruber Tabelle'!$A$3:$AR$386,8,0),"") ->  | L35: =IFERROR(VLOOKUP(A35,'Gruber Tabelle'!$A$3:$AR$386,13,0),"") ->  | M35: =IFERROR(VLOOKUP(A35,'Gruber Tabelle'!$A$3:$AR$386,18,0),"") ->  | N35: =IFERROR(VLOOKUP(A35,'Gruber Tabelle'!$A$3:$AR$386,9,0),"") ->  | O35: =IFERROR(VLOOKUP(A35,'Gruber Tabelle'!$A$3:$AR$386,14,0),"") ->  | P35: =IFERROR(VLOOKUP(A35,'Gruber Tabelle'!$A$3:$AR$386,10,0),"") ->  | Q35: =IFERROR(VLOOKUP(A35,'Gruber Tabelle'!$A$3:$AR$386,11,0),"") ->  | R35: =IFERROR(VLOOKUP(A35,'Gruber Tabelle'!$A$3:$AR$386,43,0),0) -> 0 | S35: =IFERROR(VLOOKUP(A35,'Gruber Tabelle'!$A$3:$AR$386,12,0),"") ->  | T35: =IFERROR(VLOOKUP(A35,'Gruber Tabelle'!$A$3:$AR$386,17,0),"") ->  | U35: =IFERROR(VLOOKUP(A35,'Gruber Tabelle'!$A$3:$AR$386,20,0),"") ->  | V35: =IFERROR(VLOOKUP(A35,'Gruber Tabelle'!$A$3:$AR$386,21,0),"") ->  | W35: =IFERROR(VLOOKUP(A35,'Gruber Tabelle'!$A$3:$AR$386,23,0),"") ->  | X35: =IFERROR(VLOOKUP(A35,'Gruber Tabelle'!$A$3:$AR$386,22,0),"") ->  | Y35: =IFERROR(VLOOKUP(A35,'Gruber Tabelle'!$A$3:$AR$386,24,0),"") ->  | Z35: =IFERROR(VLOOKUP(A35,'Gruber Tabelle'!$A$3:$AR$386,25,0),"") ->  | AA35: =IFERROR(VLOOKUP(A35,'Gruber Tabelle'!$A$3:$AR$386,26,0),"") ->  | AB35: =IFERROR(VLOOKUP(A35,'Gruber Tabelle'!$A$3:$AP$386,27,0),"") ->  | AC35: =IFERROR(VLOOKUP(A35,'Gruber Tabelle'!$A$3:$AP$386,29,0),"") ->  | AD35: =IFERROR(VLOOKUP(A35,'Gruber Tabelle'!$A$3:$AP$386,30,0),"") ->  | AE35: =IFERROR(VLOOKUP(A35,'Gruber Tabelle'!$A$3:$AP$386,31,0),"") ->  | AF35: =IFERROR(VLOOKUP(A35,'Gruber Tabelle'!$A$3:$AP$386,32,0),"") ->  | AG35: =IFERROR(VLOOKUP(A35,'Gruber Tabelle'!$A$3:$AP$386,33,0),"") ->  | AH35: =IFERROR(VLOOKUP(A35,'Gruber Tabelle'!$A$3:$AP$386,34,0),"") ->  | AI35: =IFERROR(VLOOKUP(A35,'Gruber Tabelle'!$A$3:$AP$386,35,0),"") ->  | AJ35: =IFERROR(VLOOKUP(A35,'Gruber Tabelle'!$A$3:$AR$386,16,0),"") ->  | AK35: =IFERROR(VLOOKUP(A35,'Gruber Tabelle'!$A$3:$AR$386,41,0),"") ->  | AL35: =IFERROR(VLOOKUP(A35,'Gruber Tabelle'!$A$3:$AR$386,42,0),"") ->  | AN35: =IFERROR(VLOOKUP(A35,'Gruber Tabelle'!$A$3:$AR$386,15,0),"") ->  | AO35: =IFERROR(VLOOKUP(A35,'Gruber Tabelle'!$A$3:$AR$386,37,0),"") ->  | AP35: =IFERROR(VLOOKUP(A35,'Gruber Tabelle'!$A$3:$AR$386,38,0),"") ->  | AQ35: =IFERROR(VLOOKUP(A35,'Gruber Tabelle'!$A$3:$AR$386,39,0),"") ->  | AR35: =IFERROR(VLOOKUP(A35,'Gruber Tabelle'!$A$3:$AR$386,40,0),0) -> 0 | AS35: =IFERROR(VLOOKUP(A35,'Gruber Tabelle'!$A$3:$AR$386,16,0),"") ->  | AT35: =IFERROR(VLOOKUP(A35,'Gruber Tabelle'!$A$3:$AR$386,19,0),"") ->  | AU35: =IFERROR(VLOOKUP(A35,'Gruber Tabelle'!$A$3:$AP$386,36,0),"") -> 
B36: =IFERROR(VLOOKUP(A36,'Gruber Tabelle'!$A$3:$AR$386,2,0),"") ->  | C36: 0 | D36: =IFERROR(VLOOKUP(A36,'Gruber Tabelle'!$A$3:$AR$386,28,0),"") ->  | E36: 0 | F36: =IFERROR(VLOOKUP(A36,'Gruber Tabelle'!$A$3:$AR$386,3,0),"") ->  | G36: =IFERROR(VLOOKUP(A36,'Gruber Tabelle'!$A$3:$AR$386,4,0),"") ->  | H36: 0 | I36: =IFERROR(VLOOKUP(A36,'Gruber Tabelle'!$A$3:$AR$386,6,0),"") ->  | J36: =IFERROR(VLOOKUP(A36,'Gruber Tabelle'!$A$3:$AR$386,7,0),"") ->  | K36: =IFERROR(VLOOKUP(A36,'Gruber Tabelle'!$A$3:$AR$386,8,0),"") ->  | L36: =IFERROR(VLOOKUP(A36,'Gruber Tabelle'!$A$3:$AR$386,13,0),"") ->  | M36: =IFERROR(VLOOKUP(A36,'Gruber Tabelle'!$A$3:$AR$386,18,0),"") ->  | N36: =IFERROR(VLOOKUP(A36,'Gruber Tabelle'!$A$3:$AR$386,9,0),"") ->  | O36: =IFERROR(VLOOKUP(A36,'Gruber Tabelle'!$A$3:$AR$386,14,0),"") ->  | P36: =IFERROR(VLOOKUP(A36,'Gruber Tabelle'!$A$3:$AR$386,10,0),"") ->  | Q36: =IFERROR(VLOOKUP(A36,'Gruber Tabelle'!$A$3:$AR$386,11,0),"") ->  | R36: =IFERROR(VLOOKUP(A36,'Gruber Tabelle'!$A$3:$AR$386,43,0),0) -> 0 | S36: =IFERROR(VLOOKUP(A36,'Gruber Tabelle'!$A$3:$AR$386,12,0),"") ->  | T36: =IFERROR(VLOOKUP(A36,'Gruber Tabelle'!$A$3:$AR$386,17,0),"") ->  | U36: =IFERROR(VLOOKUP(A36,'Gruber Tabelle'!$A$3:$AR$386,20,0),"") ->  | V36: =IFERROR(VLOOKUP(A36,'Gruber Tabelle'!$A$3:$AR$386,21,0),"") ->  | W36: =IFERROR(VLOOKUP(A36,'Gruber Tabelle'!$A$3:$AR$386,23,0),"") ->  | X36: =IFERROR(VLOOKUP(A36,'Gruber Tabelle'!$A$3:$AR$386,22,0),"") ->  | Y36: =IFERROR(VLOOKUP(A36,'Gruber Tabelle'!$A$3:$AR$386,24,0),"") ->  | Z36: =IFERROR(VLOOKUP(A36,'Gruber Tabelle'!$A$3:$AR$386,25,0),"") ->  | AA36: =IFERROR(VLOOKUP(A36,'Gruber Tabelle'!$A$3:$AR$386,26,0),"") ->  | AB36: =IFERROR(VLOOKUP(A36,'Gruber Tabelle'!$A$3:$AP$386,27,0),"") ->  | AC36: =IFERROR(VLOOKUP(A36,'Gruber Tabelle'!$A$3:$AP$386,29,0),"") ->  | AD36: =IFERROR(VLOOKUP(A36,'Gruber Tabelle'!$A$3:$AP$386,30,0),"") ->  | AE36: =IFERROR(VLOOKUP(A36,'Gruber Tabelle'!$A$3:$AP$386,31,0),"") ->  | AF36: =IFERROR(VLOOKUP(A36,'Gruber Tabelle'!$A$3:$AP$386,32,0),"") ->  | AG36: =IFERROR(VLOOKUP(A36,'Gruber Tabelle'!$A$3:$AP$386,33,0),"") ->  | AH36: =IFERROR(VLOOKUP(A36,'Gruber Tabelle'!$A$3:$AP$386,34,0),"") ->  | AI36: =IFERROR(VLOOKUP(A36,'Gruber Tabelle'!$A$3:$AP$386,35,0),"") ->  | AJ36: =IFERROR(VLOOKUP(A36,'Gruber Tabelle'!$A$3:$AR$386,16,0),"") ->  | AK36: =IFERROR(VLOOKUP(A36,'Gruber Tabelle'!$A$3:$AR$386,41,0),"") ->  | AL36: =IFERROR(VLOOKUP(A36,'Gruber Tabelle'!$A$3:$AR$386,42,0),"") ->  | AN36: =IFERROR(VLOOKUP(A36,'Gruber Tabelle'!$A$3:$AR$386,15,0),"") ->  | AO36: =IFERROR(VLOOKUP(A36,'Gruber Tabelle'!$A$3:$AR$386,37,0),"") ->  | AP36: =IFERROR(VLOOKUP(A36,'Gruber Tabelle'!$A$3:$AR$386,38,0),"") ->  | AQ36: =IFERROR(VLOOKUP(A36,'Gruber Tabelle'!$A$3:$AR$386,39,0),"") ->  | AR36: =IFERROR(VLOOKUP(A36,'Gruber Tabelle'!$A$3:$AR$386,40,0),0) -> 0 | AS36: =IFERROR(VLOOKUP(A36,'Gruber Tabelle'!$A$3:$AR$386,16,0),"") ->  | AT36: =IFERROR(VLOOKUP(A36,'Gruber Tabelle'!$A$3:$AR$386,19,0),"") ->  | AU36: =IFERROR(VLOOKUP(A36,'Gruber Tabelle'!$A$3:$AP$386,36,0),"") -> 

Sheet Mischung 1
A1: Mischung | D1: TM | E1: CA | F1: OM | G1: aNDFom | H1: ADFom | I1: OMDFANi | J1: GE | K1: MEFANi | L1: CP | M1: sidP FANi | N1: CL | O1: ST | P1: bST | Q1: ZU | R1: RMDFANi | S1: Ca | T1: P | U1: Na | V1: Mg | W1: K | X1: Cl | Y1: S | Z1: DCAB | AA1: Fe | AB1: Cu | AC1: Zn | AD1: Mn | AE1: Co | AF1: J | AG1: Se | AH1: siDUDP | AI1: Lysin | AJ1: Methionin | AK1: Passagerate k | AL1: sidP udp | AM1: a | AN1: b | AO1: c | AP1: lag | AQ1: sidUDP FAN1 | AR1: pabKH | AS1: Preis | AT1: Berechnung von Basis Fan1 auf FANi -- DLG Information 01 | 25 - DLG-Merknlatt 503 - DLG-MERKBLATT 504
B2: Futtermittel - Mischungsanteil in % | C2: Anteil | D2: g | E2: g | F2: g | G2: g | H2: g | I2: % OM | J2: MJ | K2: MJ | L2: g | M2: g | N2: g | O2: g | P2: g | Q2: g | R2: g | S2: g | T2: g | U2: g | V2: g | W2: g | X2: g | Y2: g | Z2: meq | AA2: mg | AB2: mg | AC2: mg | AD2: mg | AE2: mg | AF2: mg | AG2: mg | AH2: % | AI2: g | AJ2: g | AK2: % / h | AL2: g | AM2: % | AN2: % | AO2: % / h | AP2: h | AQ2: g | AR2: g | AS2: € | AT2: CH4E FAN1 | AU2: CH4E FANi | AV2: Harnenergie | AW2: ME FANi | AX2: MCP g/kg | AY2: sidP aus MCP | AZ2: EDGFANi % | BA2: UDPFANi | BB2: RDP g/d | BC2: sidPUDP g | BD2: sidP g/kg | BE2: RDP g/kg | BF2: MCP g/d | BG2: RMDFANi | BH2: DOMFANi | BI2: MCP/DOM | BJ2: UDP %
A3: =A25 -> 0 | B3: =B25 ->  | D3: =IFERROR(D25*C3,0) -> 0 | E3: =IFERROR(E25*D3/1000,0) -> 0 | F3: =IFERROR(F25*D3/1000,0) -> 0 | G3: =IF(AND(C25="GF",C3>0),G25*D3/1000,0) -> 0 | H3: =IFERROR(H25*D3/1000,0) -> 0 | I3: =IF(C3>0,I25-(1.5+0.05*(I25-65))*('Start-Einstellung'!$G$8-1),0) -> 0 | J3: =IFERROR(J25*D3/1000,0) -> 0 | K3: =IFERROR((AW3*D3/1000),0) -> 0 | L3: =IFERROR(L25*D3/1000,0) -> 0 | M3: =(D3/1000)*BD3 -> 0 | N3: =IFERROR(N25*D3/1000,0) -> 0 | O3: =IFERROR(O25*D3/1000,0) -> 0 | P3: =IFERROR(P25*D3/1000,0) -> 0 | Q3: =IFERROR(Q25*D3/1000,0) -> 0 | R3: =IFERROR((BB3-BF3)/6.25,0) -> 0 | S3: =IFERROR(S25*D3/1000,0) -> 0 | T3: =IFERROR(T25*D3/1000,0) -> 0 | U3: =IFERROR(U25*D3/1000,0) -> 0 | V3: =IFERROR(V25*D3/1000,0) -> 0 | W3: =IFERROR(W25*D3/1000,0) -> 0 | X3: =IFERROR(X25*D3/1000,0) -> 0 | Y3: =IFERROR(Y25*D3/1000,0) -> 0 | Z3: =IFERROR(Z25*D3/1000,0) -> 0 | AA3: =IFERROR(AA25*D3/1000,0) -> 0 | AB3: =IFERROR(AB25*D3/1000,0) -> 0 | AC3: =IFERROR(AC25*D3/1000,0) -> 0 | AD3: =IFERROR(AD25*D3/1000,0) -> 0 | AE3: =IFERROR(AE25*D3/1000,0) -> 0 | AF3: =IFERROR(AF25*D3/1000,0) -> 0 | AG3: =IFERROR(AG25*D3/1000,0) -> 0 | AH3: =IF(C3=0,0,AH25) -> 0 | AI3: =IFERROR(AI25*D3/1000,0) -> 0 | AJ3: =IFERROR(AJ25*D3/1000,0) -> 0 | AK3: =IF(C3=0,0,IF(C25="GF",(1.7286+0.8857*'Start-Einstellung'!$G$8),IF(C25="KF",(2.2357+1.2429*'Start-Einstellung'!$G$8),IF(C25="SF",(1.9607+0.9643*'Start-Einstellung'!$G$8),0)))) -> 0 | AL3: =IFERROR(BC3*D3/1000,0) -> 0 | AM3: =IF(C3=0,0,AM25) -> 0 | AN3: =IF(C3=0,0,AN25) -> 0 | AO3: =IF(C3>0,AO25/100,0) -> 0 | AP3: =IF(C3=0,0,AP25) -> 0 | AQ3: =IFERROR(AQ25*D3/1000,0) -> 0 | AR3: =IFERROR(AR25*D3/1000,0) -> 0 | AS3: =IF(C3=0,0,IF(C3>0,(AS25/100)*C3)) -> 0 | AT3: =IF(C3=0,0,IF(C3>0,(0.7+0.014*I25)*(F25/1000))) -> 0 | AU3: =IFERROR(IF(C3=0,0,IF(C3>0,(((AT3/(F25/1000)+0.9*('Start-Einstellung'!$G$8-1))/'Start-Einstellung'!$G$8*(F25/1000))))),0) -> 0 | AV3: =IF(C3=0,0,IF(C3>0,(0.0037*L25))) -> 0 | AW3: =IF(C3=0,0,IF(C3>0,((J25*(I3-3.3)/100)-AV3-AU3))) -> 0 | AX3: =BI3*BH3/1000 -> 0 | AY3: =IFERROR((AX3*0.78*0.85),0) -> 0 | AZ3: =IF(C3>0,AM3+(AN3*AO3)/(AO3+AK3%)*(EXP(-AK3/100*AP3)),0) -> 0 | BA3: =IF(C3=0,0,IF(C3>0,(L25*(1-(AZ3/100))))) -> 0 | BB3: =IF(C3>0,BE3*(D3/1000),0) -> 0 | BC3: =IF(C3>0,(BA3*AH3%),0) -> 0 | BD3: =IFERROR((AY3+BC3),0) -> 0 | BE3: =IFERROR(L25*AZ3/100,0) -> 0 | BF3: =IF(F3>0,AX3*(D3/1000),0) -> 0 | BG3: =IFERROR((BE3-AX3)/6.25,0) -> 0 | BH3: =IFERROR((F25*I3/100),0) -> 0 | BI3: =IF(C3=0,0,IF('Start-Einstellung'!$G$8<3.4,150,IF(-11+(47.1*'Start-Einstellung'!$G$8)>180,180,(-11+(47.1*'Start-Einstellung'!$G$8))))) -> 0 | BJ3: =IFERROR((BA3/L25)*100,0) -> 0
A4: 0 | D4: 0 | E4: =IFERROR(E26*D4/1000,0) -> 0 | F4: =IFERROR(F26*D4/1000,0) -> 0 | G4: =IF(AND(C26="GF",C4>0),G26*D4/1000,0) -> 0 | H4: =IFERROR(H26*D4/1000,0) -> 0 | I4: =IF(C4>0,I26-(1.5+0.05*(I26-65))*('Start-Einstellung'!$G$8-1),0) -> 0 | J4: =IFERROR(J26*D4/1000,0) -> 0 | K4: =IFERROR((AW4*D4/1000),0) -> 0 | L4: =IFERROR(L26*D4/1000,0) -> 0 | M4: =(D4/1000)*BD4 -> 0 | N4: =IFERROR(N26*D4/1000,0) -> 0 | O4: =IFERROR(O26*D4/1000,0) -> 0 | P4: =IFERROR(P26*D4/1000,0) -> 0 | Q4: =IFERROR(Q26*D4/1000,0) -> 0 | R4: =IFERROR((BB4-BF4)/6.25,0) -> 0 | S4: =IFERROR(S26*D4/1000,0) -> 0 | T4: =IFERROR(T26*D4/1000,0) -> 0 | U4: =IFERROR(U26*D4/1000,0) -> 0 | V4: =IFERROR(V26*D4/1000,0) -> 0 | W4: =IFERROR(W26*D4/1000,0) -> 0 | X4: =IFERROR(X26*D4/1000,0) -> 0 | Y4: =IFERROR(Y26*D4/1000,0) -> 0 | Z4: =IFERROR(Z26*D4/1000,0) -> 0 | AA4: =IFERROR(AA26*D4/1000,0) -> 0 | AB4: =IFERROR(AB26*D4/1000,0) -> 0 | AC4: =IFERROR(AC26*D4/1000,0) -> 0 | AD4: =IFERROR(AD26*D4/1000,0) -> 0 | AE4: =IFERROR(AE26*D4/1000,0) -> 0 | AF4: =IFERROR(AF26*C4,0) -> 0 | AG4: =IFERROR(AG26*D4/1000,0) -> 0 | AH4: =IF(C4=0,0,AH26) -> 0 | AI4: =IFERROR(AI26*D4/1000,0) -> 0 | AJ4: =IFERROR(AJ26*D4/1000,0) -> 0 | AK4: =IF(C4=0,0,IF(C26="GF",(1.7286+0.8857*'Start-Einstellung'!$G$8),IF(C26="KF",(2.2357+1.2429*'Start-Einstellung'!$G$8),IF(C26="SF",(1.9607+0.9643*'Start-Einstellung'!$G$8),0)))) -> 0 | AL4: =IFERROR(BC4*D4/1000,0) -> 0 | AM4: =IF(C4=0,0,AM26) -> 0 | AN4: =IF(C4=0,0,AN26) -> 0 | AO4: 0 | AP4: =IF(C4=0,0,AP26) -> 0 | AQ4: =IFERROR(AQ26*D4/1000,0) -> 0 | AR4: =IFERROR(AR26*D4/1000,0) -> 0 | AS4: 0 | AT4: 0 | AU4: =IFERROR(IF(C4=0,0,IF(C4>0,(((AT4/(F26/1000)+0.9*('Start-Einstellung'!$G$8-1))/'Start-Einstellung'!$G$8*(F26/1000))))),0) -> 0 | AV4: 0 | AW4: 0 | AX4: =BI4*BH4/1000 -> 0 | AY4: =IFERROR((AX4*0.78*0.85),0) -> 0 | AZ4: =IF(C4>0,AM4+(AN4*AO4)/(AO4+AK4%)*(EXP(-AK4/100*AP4)),0) -> 0 | BA4: 0 | BB4: =IF(C4>0,BE4*(D4/1000),0) -> 0 | BC4: =IF(C4>0,(BA4*AH4%),0) -> 0 | BD4: =IFERROR((AY4+BC4),0) -> 0 | BE4: 0 | BF4: =IF(F4>0,AX4*(D4/1000),0) -> 0 | BG4: =IFERROR((BE4-AX4)/6.25,0) -> 0 | BH4: 0 | BI4: =IF(C4=0,0,IF('Start-Einstellung'!$G$8<3.4,150,IF(-11+(47.1*'Start-Einstellung'!$G$8)>180,180,(-11+(47.1*'Start-Einstellung'!$G$8))))) -> 0 | BJ4: 0
A5: 0 | D5: 0 | E5: 0 | F5: 0 | G5: 0 | H5: 0 | I5: =IF(C5>0,I27-(1.5+0.05*(I27-65))*('Start-Einstellung'!$G$8-1),0) -> 0 | J5: 0 | K5: 0 | L5: 0 | M5: 0 | N5: 0 | O5: 0 | P5: 0 | Q5: 0 | R5: 0 | S5: 0 | T5: 0 | U5: 0 | V5: 0 | W5: 0 | X5: 0 | Y5: 0 | Z5: 0 | AA5: 0 | AB5: 0 | AC5: 0 | AD5: 0 | AE5: 0 | AF5: 0 | AG5: 0 | AH5: 0 | AI5: 0 | AJ5: 0 | AK5: =IF(C5=0,0,IF(C27="GF",(1.7286+0.8857*'Start-Einstellung'!$G$8),IF(C27="KF",(2.2357+1.2429*'Start-Einstellung'!$G$8),IF(C27="SF",(1.9607+0.9643*'Start-Einstellung'!$G$8),0)))) -> 0 | AL5: 0 | AM5: 0 | AN5: 0 | AO5: 0 | AP5: 0 | AQ5: 0 | AR5: 0 | AS5: 0 | AT5: 0 | AU5: =IFERROR(IF(C5=0,0,IF(C5>0,(((AT5/(F27/1000)+0.9*('Start-Einstellung'!$G$8-1))/'Start-Einstellung'!$G$8*(F27/1000))))),0) -> 0 | AV5: 0 | AW5: 0 | AX5: 0 | AY5: 0 | AZ5: 0 | BA5: 0 | BB5: 0 | BC5: 0 | BD5: 0 | BE5: 0 | BF5: 0 | BG5: 0 | BH5: 0 | BI5: =IF(C5=0,0,IF('Start-Einstellung'!$G$8<3.4,150,IF(-11+(47.1*'Start-Einstellung'!$G$8)>180,180,(-11+(47.1*'Start-Einstellung'!$G$8))))) -> 0 | BJ5: 0
A6: 0 | D6: 0 | E6: 0 | F6: 0 | G6: 0 | H6: 0 | I6: =IF(C6>0,I28-(1.5+0.05*(I28-65))*('Start-Einstellung'!$G$8-1),0) -> 0 | J6: 0 | K6: 0 | L6: 0 | M6: 0 | N6: 0 | O6: 0 | P6: 0 | Q6: 0 | R6: 0 | S6: 0 | T6: 0 | U6: 0 | V6: 0 | W6: 0 | X6: 0 | Y6: 0 | Z6: 0 | AA6: 0 | AB6: 0 | AC6: 0 | AD6: 0 | AE6: 0 | AF6: 0 | AG6: 0 | AH6: 0 | AI6: 0 | AJ6: 0 | AK6: =IF(C6=0,0,IF(C28="GF",(1.7286+0.8857*'Start-Einstellung'!$G$8),IF(C28="KF",(2.2357+1.2429*'Start-Einstellung'!$G$8),IF(C28="SF",(1.9607+0.9643*'Start-Einstellung'!$G$8),0)))) -> 0 | AL6: 0 | AM6: 0 | AN6: 0 | AO6: 0 | AP6: 0 | AQ6: 0 | AR6: 0 | AS6: 0 | AT6: 0 | AU6: =IFERROR(IF(C6=0,0,IF(C6>0,(((AT6/(F28/1000)+0.9*('Start-Einstellung'!$G$8-1))/'Start-Einstellung'!$G$8*(F28/1000))))),0) -> 0 | AV6: 0 | AW6: 0 | AX6: 0 | AY6: 0 | AZ6: 0 | BA6: 0 | BB6: 0 | BC6: 0 | BD6: 0 | BE6: 0 | BF6: 0 | BG6: 0 | BH6: 0 | BI6: =IF(C6=0,0,IF('Start-Einstellung'!$G$8<3.4,150,IF(-11+(47.1*'Start-Einstellung'!$G$8)>180,180,(-11+(47.1*'Start-Einstellung'!$G$8))))) -> 0 | BJ6: 0
A7: 0 | D7: 0 | E7: 0 | F7: 0 | G7: 0 | H7: 0 | I7: =IF(C7>0,I29-(1.5+0.05*(I29-65))*('Start-Einstellung'!$G$8-1),0) -> 0 | J7: 0 | K7: 0 | L7: 0 | M7: 0 | N7: 0 | O7: 0 | P7: 0 | Q7: 0 | R7: 0 | S7: 0 | T7: 0 | U7: 0 | V7: 0 | W7: 0 | X7: 0 | Y7: 0 | Z7: 0 | AA7: 0 | AB7: 0 | AC7: 0 | AD7: 0 | AE7: 0 | AF7: 0 | AG7: 0 | AH7: 0 | AI7: 0 | AJ7: 0 | AK7: =IF(C7=0,0,IF(C29="GF",(1.7286+0.8857*'Start-Einstellung'!$G$8),IF(C29="KF",(2.2357+1.2429*'Start-Einstellung'!$G$8),IF(C29="SF",(1.9607+0.9643*'Start-Einstellung'!$G$8),0)))) -> 0 | AL7: 0 | AM7: 0 | AN7: 0 | AO7: 0 | AP7: 0 | AQ7: 0 | AR7: 0 | AS7: 0 | AT7: 0 | AU7: =IFERROR(IF(C7=0,0,IF(C7>0,(((AT7/(F29/1000)+0.9*('Start-Einstellung'!$G$8-1))/'Start-Einstellung'!$G$8*(F29/1000))))),0) -> 0 | AV7: 0 | AW7: 0 | AX7: 0 | AY7: 0 | AZ7: 0 | BA7: 0 | BB7: 0 | BC7: 0 | BD7: 0 | BE7: 0 | BF7: 0 | BG7: 0 | BH7: 0 | BI7: =IF(C7=0,0,IF('Start-Einstellung'!$G$8<3.4,150,IF(-11+(47.1*'Start-Einstellung'!$G$8)>180,180,(-11+(47.1*'Start-Einstellung'!$G$8))))) -> 0 | BJ7: 0
A8: 0 | D8: 0 | E8: 0 | F8: 0 | G8: 0 | H8: 0 | I8: =IF(C8>0,I30-(1.5+0.05*(I30-65))*('Start-Einstellung'!$G$8-1),0) -> 0 | J8: 0 | K8: 0 | L8: 0 | M8: 0 | N8: 0 | O8: 0 | P8: 0 | Q8: 0 | R8: 0 | S8: 0 | T8: 0 | U8: 0 | V8: 0 | W8: 0 | X8: 0 | Y8: 0 | Z8: 0 | AA8: 0 | AB8: 0 | AC8: 0 | AD8: 0 | AE8: 0 | AF8: 0 | AG8: 0 | AH8: 0 | AI8: 0 | AJ8: 0 | AK8: =IF(C8=0,0,IF(C30="GF",(1.7286+0.8857*'Start-Einstellung'!$G$8),IF(C30="KF",(2.2357+1.2429*'Start-Einstellung'!$G$8),IF(C30="SF",(1.9607+0.9643*'Start-Einstellung'!$G$8),0)))) -> 0 | AL8: 0 | AM8: 0 | AN8: 0 | AO8: 0 | AP8: 0 | AQ8: 0 | AR8: 0 | AS8: 0 | AT8: 0 | AU8: =IFERROR(IF(C8=0,0,IF(C8>0,(((AT8/(F30/1000)+0.9*('Start-Einstellung'!$G$8-1))/'Start-Einstellung'!$G$8*(F30/1000))))),0) -> 0 | AV8: 0 | AW8: 0 | AX8: 0 | AY8: 0 | AZ8: 0 | BA8: 0 | BB8: 0 | BC8: 0 | BD8: 0 | BE8: 0 | BF8: 0 | BG8: 0 | BH8: 0 | BI8: =IF(C8=0,0,IF('Start-Einstellung'!$G$8<3.4,150,IF(-11+(47.1*'Start-Einstellung'!$G$8)>180,180,(-11+(47.1*'Start-Einstellung'!$G$8))))) -> 0 | BJ8: 0
A9: 0 | D9: 0 | E9: 0 | F9: 0 | G9: 0 | H9: 0 | I9: =IF(C9>0,I31-(1.5+0.05*(I31-65))*('Start-Einstellung'!$G$8-1),0) -> 0 | J9: 0 | K9: 0 | L9: 0 | M9: 0 | N9: 0 | O9: 0 | P9: 0 | Q9: 0 | R9: 0 | S9: 0 | T9: 0 | U9: 0 | V9: 0 | W9: 0 | X9: 0 | Y9: 0 | Z9: 0 | AA9: 0 | AB9: 0 | AC9: 0 | AD9: 0 | AE9: 0 | AF9: 0 | AG9: 0 | AH9: 0 | AI9: 0 | AJ9: 0 | AK9: =IF(C9=0,0,IF(C31="GF",(1.7286+0.8857*'Start-Einstellung'!$G$8),IF(C31="KF",(2.2357+1.2429*'Start-Einstellung'!$G$8),IF(C31="SF",(1.9607+0.9643*'Start-Einstellung'!$G$8),0)))) -> 0 | AL9: 0 | AM9: 0 | AN9: 0 | AO9: 0 | AP9: 0 | AQ9: 0 | AR9: 0 | AS9: 0 | AT9: 0 | AU9: =IFERROR(IF(C9=0,0,IF(C9>0,(((AT9/(F31/1000)+0.9*('Start-Einstellung'!$G$8-1))/'Start-Einstellung'!$G$8*(F31/1000))))),0) -> 0 | AV9: 0 | AW9: 0 | AX9: 0 | AY9: 0 | AZ9: 0 | BA9: 0 | BB9: 0 | BC9: 0 | BD9: 0 | BE9: 0 | BF9: 0 | BG9: 0 | BH9: 0 | BI9: =IF(C9=0,0,IF('Start-Einstellung'!$G$8<3.4,150,IF(-11+(47.1*'Start-Einstellung'!$G$8)>180,180,(-11+(47.1*'Start-Einstellung'!$G$8))))) -> 0 | BJ9: 0
A10: 0 | D10: 0 | E10: 0 | F10: 0 | G10: 0 | H10: 0 | I10: =IF(C10>0,I32-(1.5+0.05*(I32-65))*('Start-Einstellung'!$G$8-1),0) -> 0 | J10: 0 | K10: 0 | L10: 0 | M10: 0 | N10: 0 | O10: 0 | P10: 0 | Q10: 0 | R10: 0 | S10: 0 | T10: 0 | U10: 0 | V10: 0 | W10: 0 | X10: 0 | Y10: 0 | Z10: 0 | AA10: 0 | AB10: 0 | AC10: 0 | AD10: 0 | AE10: 0 | AF10: 0 | AG10: 0 | AH10: 0 | AI10: 0 | AJ10: 0 | AK10: =IF(C10=0,0,IF(C32="GF",(1.7286+0.8857*'Start-Einstellung'!$G$8),IF(C32="KF",(2.2357+1.2429*'Start-Einstellung'!$G$8),IF(C32="SF",(1.9607+0.9643*'Start-Einstellung'!$G$8),0)))) -> 0 | AL10: 0 | AM10: 0 | AN10: 0 | AO10: 0 | AP10: 0 | AQ10: 0 | AR10: 0 | AS10: 0 | AT10: 0 | AU10: =IFERROR(IF(C10=0,0,IF(C10>0,(((AT10/(F32/1000)+0.9*('Start-Einstellung'!$G$8-1))/'Start-Einstellung'!$G$8*(F32/1000))))),0) -> 0 | AV10: 0 | AW10: 0 | AX10: 0 | AY10: 0 | AZ10: 0 | BA10: 0 | BB10: 0 | BC10: 0 | BD10: 0 | BE10: 0 | BF10: 0 | BG10: 0 | BH10: 0 | BI10: =IF(C10=0,0,IF('Start-Einstellung'!$G$8<3.4,150,IF(-11+(47.1*'Start-Einstellung'!$G$8)>180,180,(-11+(47.1*'Start-Einstellung'!$G$8))))) -> 0 | BJ10: 0
A11: 0 | D11: 0 | E11: 0 | F11: 0 | G11: 0 | H11: 0 | I11: =IF(C11>0,I33-(1.5+0.05*(I33-65))*('Start-Einstellung'!$G$8-1),0) -> 0 | J11: 0 | K11: 0 | L11: 0 | M11: 0 | N11: 0 | O11: 0 | P11: 0 | Q11: 0 | R11: 0 | S11: 0 | T11: 0 | U11: 0 | V11: 0 | W11: 0 | X11: 0 | Y11: 0 | Z11: 0 | AA11: 0 | AB11: 0 | AC11: 0 | AD11: 0 | AE11: 0 | AF11: 0 | AG11: 0 | AH11: 0 | AI11: 0 | AJ11: 0 | AK11: =IF(C11=0,0,IF(C33="GF",(1.7286+0.8857*'Start-Einstellung'!$G$8),IF(C33="KF",(2.2357+1.2429*'Start-Einstellung'!$G$8),IF(C33="SF",(1.9607+0.9643*'Start-Einstellung'!$G$8),0)))) -> 0 | AL11: 0 | AM11: 0 | AN11: 0 | AO11: 0 | AP11: 0 | AQ11: 0 | AR11: 0 | AS11: 0 | AT11: 0 | AU11: =IFERROR(IF(C11=0,0,IF(C11>0,(((AT11/(F33/1000)+0.9*('Start-Einstellung'!$G$8-1))/'Start-Einstellung'!$G$8*(F33/1000))))),0) -> 0 | AV11: 0 | AW11: 0 | AX11: 0 | AY11: 0 | AZ11: 0 | BA11: 0 | BB11: 0 | BC11: 0 | BD11: 0 | BE11: 0 | BF11: 0 | BG11: 0 | BH11: 0 | BI11: =IF(C11=0,0,IF('Start-Einstellung'!$G$8<3.4,150,IF(-11+(47.1*'Start-Einstellung'!$G$8)>180,180,(-11+(47.1*'Start-Einstellung'!$G$8))))) -> 0 | BJ11: 0
A12: 0 | D12: 0 | E12: 0 | F12: 0 | G12: 0 | H12: 0 | I12: =IF(C12>0,I34-(1.5+0.05*(I34-65))*('Start-Einstellung'!$G$8-1),0) -> 0 | J12: 0 | K12: 0 | L12: 0 | M12: 0 | N12: 0 | O12: 0 | P12: 0 | Q12: 0 | R12: 0 | S12: 0 | T12: 0 | U12: 0 | V12: 0 | W12: 0 | X12: 0 | Y12: 0 | Z12: 0 | AA12: 0 | AB12: 0 | AC12: 0 | AD12: 0 | AE12: 0 | AF12: 0 | AG12: 0 | AH12: 0 | AI12: 0 | AJ12: 0 | AK12: =IF(C12=0,0,IF(C34="GF",(1.7286+0.8857*'Start-Einstellung'!$G$8),IF(C34="KF",(2.2357+1.2429*'Start-Einstellung'!$G$8),IF(C34="SF",(1.9607+0.9643*'Start-Einstellung'!$G$8),0)))) -> 0 | AL12: 0 | AM12: 0 | AN12: 0 | AO12: 0 | AP12: 0 | AQ12: 0 | AR12: 0 | AS12: 0 | AT12: 0 | AU12: =IFERROR(IF(C12=0,0,IF(C12>0,(((AT12/(F34/1000)+0.9*('Start-Einstellung'!$G$8-1))/'Start-Einstellung'!$G$8*(F34/1000))))),0) -> 0 | AV12: 0 | AW12: 0 | AX12: 0 | AY12: 0 | AZ12: 0 | BA12: 0 | BB12: 0 | BC12: 0 | BD12: 0 | BE12: 0 | BF12: 0 | BG12: 0 | BH12: 0 | BI12: =IF(C12=0,0,IF('Start-Einstellung'!$G$8<3.4,150,IF(-11+(47.1*'Start-Einstellung'!$G$8)>180,180,(-11+(47.1*'Start-Einstellung'!$G$8))))) -> 0 | BJ12: 0
A13: 0 | D13: 0 | E13: 0 | F13: 0 | G13: 0 | H13: 0 | I13: =IF(C13>0,I35-(1.5+0.05*(I35-65))*('Start-Einstellung'!$G$8-1),0) -> 0 | J13: 0 | K13: 0 | L13: 0 | M13: 0 | N13: 0 | O13: 0 | P13: 0 | Q13: 0 | R13: 0 | S13: 0 | T13: 0 | U13: 0 | V13: 0 | W13: 0 | X13: 0 | Y13: 0 | Z13: 0 | AA13: 0 | AB13: 0 | AC13: 0 | AD13: 0 | AE13: 0 | AF13: 0 | AG13: 0 | AH13: 0 | AI13: 0 | AJ13: 0 | AK13: =IF(C13=0,0,IF(C35="GF",(1.7286+0.8857*'Start-Einstellung'!$G$8),IF(C35="KF",(2.2357+1.2429*'Start-Einstellung'!$G$8),IF(C35="SF",(1.9607+0.9643*'Start-Einstellung'!$G$8),0)))) -> 0 | AL13: 0 | AM13: 0 | AN13: 0 | AO13: 0 | AP13: 0 | AQ13: 0 | AR13: 0 | AS13: 0 | AT13: 0 | AU13: =IFERROR(IF(C13=0,0,IF(C13>0,(((AT13/(F35/1000)+0.9*('Start-Einstellung'!$G$8-1))/'Start-Einstellung'!$G$8*(F35/1000))))),0) -> 0 | AV13: 0 | AW13: 0 | AX13: 0 | AY13: 0 | AZ13: 0 | BA13: 0 | BB13: 0 | BC13: 0 | BD13: 0 | BE13: 0 | BF13: 0 | BG13: 0 | BH13: 0 | BI13: =IF(C13=0,0,IF('Start-Einstellung'!$G$8<3.4,150,IF(-11+(47.1*'Start-Einstellung'!$G$8)>180,180,(-11+(47.1*'Start-Einstellung'!$G$8))))) -> 0 | BJ13: 0
A14: 0 | D14: 0 | E14: 0 | F14: 0 | G14: 0 | H14: 0 | I14: =IF(C14>0,I36-(1.5+0.05*(I36-65))*('Start-Einstellung'!$G$8-1),0) -> 0 | J14: 0 | K14: 0 | L14: 0 | M14: 0 | N14: 0 | O14: 0 | P14: 0 | Q14: 0 | R14: 0 | S14: 0 | T14: 0 | U14: 0 | V14: 0 | W14: 0 | X14: 0 | Y14: 0 | Z14: 0 | AA14: 0 | AB14: 0 | AC14: 0 | AD14: 0 | AE14: 0 | AF14: 0 | AG14: 0 | AH14: 0 | AI14: 0 | AJ14: 0 | AK14: =IF(C14=0,0,IF(C36="GF",(1.7286+0.8857*'Start-Einstellung'!$G$8),IF(C36="KF",(2.2357+1.2429*'Start-Einstellung'!$G$8),IF(C36="SF",(1.9607+0.9643*'Start-Einstellung'!$G$8),0)))) -> 0 | AL14: 0 | AM14: 0 | AN14: 0 | AO14: 0 | AP14: 0 | AQ14: 0 | AR14: 0 | AS14: 0 | AT14: 0 | AU14: =IFERROR(IF(C14=0,0,IF(C14>0,(((AT14/(F36/1000)+0.9*('Start-Einstellung'!$G$8-1))/'Start-Einstellung'!$G$8*(F36/1000))))),0) -> 0 | AV14: 0 | AW14: 0 | AX14: 0 | AY14: 0 | AZ14: 0 | BA14: 0 | BB14: 0 | BC14: 0 | BD14: 0 | BE14: 0 | BF14: 0 | BG14: 0 | BH14: 0 | BI14: =IF(C14=0,0,IF('Start-Einstellung'!$G$8<3.4,150,IF(-11+(47.1*'Start-Einstellung'!$G$8)>180,180,(-11+(47.1*'Start-Einstellung'!$G$8))))) -> 0 | BJ14: 0
B15: Summe | C15: =SUM(C3:C14) -> 0 | D15: =SUM(D3:D14) -> 0 | E15: 0 | F15: 0 | G15: 0 | H15: 0 | J15: =SUM(J3:J14) -> 0 | K15: =SUM(K3:K14) -> 0 | L15: =SUM(L3:L14) -> 0 | M15: =SUM(M3:M14) -> 0 | N15: =SUM(N3:N14) -> 0 | O15: =SUM(O3:O14) -> 0 | P15: =SUM(P3:P14) -> 0 | Q15: =SUM(Q3:Q14) -> 0 | R15: =SUM(R3:R14) -> 0 | S15: =SUM(S3:S14) -> 0 | T15: 0 | U15: 0 | V15: 0 | W15: 0 | X15: 0 | Y15: 0 | Z15: =SUM(Z3:Z14) -> 0 | AA15: =SUM(AA3:AA14) -> 0 | AB15: =SUM(AB3:AB14) -> 0 | AC15: 0 | AD15: 0 | AE15: =IFERROR(SUM(AE3:AE14),0) -> 0 | AF15: =SUM(AF3:AF14) -> 0 | AG15: 0 | AI15: =SUM(AI3:AI14) -> 0 | AJ15: 0 | AL15: 0 | AQ15: =SUM(AQ3:AQ14) -> 0 | AR15: =IFERROR(SUM(AR3:AR14),0) -> 0 | AS15: =SUM(AS3:AS14) -> 0
B16: Milcherzeugungswert / Kennzahlen | K16: =IF(K15>0,K15/'Start-Einstellung'!E24,0) -> 0 | L16: =IF(D15>0,L15/D15,0) -> 0 | M16: =IF(M15>0,M15/'Start-Einstellung'!D17,0) -> 0 | N16: =IF(D15>0,N15/D15,0) -> 0 | S16: =IF(S15>0,S15/'Start-Einstellung'!F24,0) -> 0 | U16: =IF(U15>0,U15/'Start-Einstellung'!G24,0) -> 0
B24: Futtermittel aus Gruber Tabelle | C24: Art | D24: TM | E24: CA | F24: OM | G24: aNDFom | H24: ADFom | I24: OMDFAN1 | J24: GE | K24: MEFAN1 | L24: CP | M24: sidP FAN1 | N24: CL | O24: ST | P24: bST | Q24: ZU | R24: RMDFAN1 | S24: Ca | T24: P | U24: Na | V24: Mg | W24: K | X24: Cl | Y24: S | Z24: DCAB | AA24: Fe | AB24: Cu | AC24: Zn | AD24: Mn | AE24: Co | AF24: J | AG24: Se | AH24: siDUDP | AI24: Lysin | AJ24: Methionin | AL24: sidPUDP | AM24: a | AN24: b | AO24: c | AP24: lag h | AQ24: sidUDP FAN1 | AR24: pabKH | AS24: Preis / €
B25: =IFERROR(VLOOKUP(A25,'Gruber Tabelle'!$A$3:$AR$386,2,0),"") ->  | C25: =IFERROR(VLOOKUP(A25,'Gruber Tabelle'!$A$3:$AR$386,28,0),"") ->  | D25: =IFERROR(VLOOKUP(A25,'Gruber Tabelle'!$A$3:$AR$386,3,0),"") ->  | E25: =IFERROR(VLOOKUP(A25,'Gruber Tabelle'!$A$3:$AR$386,4,0),"") ->  | F25: =IFERROR(VLOOKUP(A25,'Gruber Tabelle'!$A$3:$AR$386,5,0),"") ->  | G25: =IFERROR(VLOOKUP(A25,'Gruber Tabelle'!$A$3:$AR$386,6,0),"") ->  | H25: =IFERROR(VLOOKUP(A25,'Gruber Tabelle'!$A$3:$AR$386,7,0),"") ->  | I25: =IFERROR(VLOOKUP(A25,'Gruber Tabelle'!$A$3:$AR$386,8,0),"") ->  | J25: =IFERROR(VLOOKUP(A25,'Gruber Tabelle'!$A$3:$AR$386,13,0),"") ->  | K25: =IFERROR(VLOOKUP(A25,'Gruber Tabelle'!$A$3:$AR$386,18,0),"") ->  | L25: =IFERROR(VLOOKUP(A25,'Gruber Tabelle'!$A$3:$AR$386,9,0),"") ->  | M25: =IFERROR(VLOOKUP(A25,'Gruber Tabelle'!$A$3:$AR$386,14,0),"") ->  | N25: =IFERROR(VLOOKUP(A25,'Gruber Tabelle'!$A$3:$AR$386,10,0),"") ->  | O25: =IFERROR(VLOOKUP(A25,'Gruber Tabelle'!$A$3:$AR$386,11,0),"") ->  | P25: =IFERROR(VLOOKUP(A25,'Gruber Tabelle'!$A$3:$AR$386,43,0),"") ->  | Q25: =IFERROR(VLOOKUP(A25,'Gruber Tabelle'!$A$3:$AR$386,12,0),"") ->  | R25: =IFERROR(VLOOKUP(A25,'Gruber Tabelle'!$A$3:$AR$386,17,0),"") ->  | S25: =IFERROR(VLOOKUP(A25,'Gruber Tabelle'!$A$3:$AR$386,20,0),"") ->  | T25: =IFERROR(VLOOKUP(A25,'Gruber Tabelle'!$A$3:$AR$386,21,0),"") ->  | U25: =IFERROR(VLOOKUP(A25,'Gruber Tabelle'!$A$3:$AR$386,23,0),"") ->  | V25: =IFERROR(VLOOKUP(A25,'Gruber Tabelle'!$A$3:$AR$386,22,0),"") ->  | W25: =IFERROR(VLOOKUP(A25,'Gruber Tabelle'!$A$3:$AR$386,24,0),"") ->  | X25: =IFERROR(VLOOKUP(A25,'Gruber Tabelle'!$A$3:$AR$386,25,0),"") ->  | Y25: =IFERROR(VLOOKUP(A25,'Gruber Tabelle'!$A$3:$AR$386,26,0),"") ->  | Z25: =IFERROR(VLOOKUP(A25,'Gruber Tabelle'!$A$3:$AR$386,27,0),"") ->  | AA25: =IFERROR(VLOOKUP(A25,'Gruber Tabelle'!$A$3:$AR$386,29,0),"") ->  | AB25: =IFERROR(VLOOKUP(A25,'Gruber Tabelle'!$A$3:$AR$386,30,0),"") ->  | AC25: =IFERROR(VLOOKUP(A25,'Gruber Tabelle'!$A$3:$AR$386,31,0),"") ->  | AD25: =IFERROR(VLOOKUP(A25,'Gruber Tabelle'!$A$3:$AR$386,32,0),"") ->  | AE25: =IFERROR(VLOOKUP(A25,'Gruber Tabelle'!$A$3:$AR$386,33,0),"") ->  | AF25: =IFERROR(VLOOKUP(A25,'Gruber Tabelle'!$A$3:$AR$386,34,0),"") ->  | AG25: =IFERROR(VLOOKUP(A25,'Gruber Tabelle'!$A$3:$AR$386,35,0),"") ->  | AH25: =IFERROR(VLOOKUP(A25,'Gruber Tabelle'!$A$3:$AR$386,16,0),"") ->  | AI25: =IFERROR(VLOOKUP(A25,'Gruber Tabelle'!$A$3:$AR$386,41,0),"") ->  | AJ25: =IFERROR(VLOOKUP(A25,'Gruber Tabelle'!$A$3:$AR$386,42,0),"") ->  | AK25: =IF(C25="GF",4.4,IF(C25="KF",6,IF(C25="SF",6,""))) ->  | AL25: =IFERROR(VLOOKUP(A25,'Gruber Tabelle'!$A$3:$AR$386,15,0),"") ->  | AM25: =IFERROR(VLOOKUP(A25,'Gruber Tabelle'!$A$3:$AR$386,37,0),"") ->  | AN25: =IFERROR(VLOOKUP(A25,'Gruber Tabelle'!$A$3:$AR$386,38,0),"") ->  | AO25: =IFERROR(VLOOKUP(A25,'Gruber Tabelle'!$A$3:$AR$386,39,0),"") ->  | AP25: =IFERROR(VLOOKUP(A25,'Gruber Tabelle'!$A$3:$AR$386,40,0),"") ->  | AQ25: =IFERROR(VLOOKUP(A25,'Gruber Tabelle'!$A$3:$AR$386,15,0),"") ->  | AR25: =IFERROR(VLOOKUP(A25,'Gruber Tabelle'!$A$3:$AR$386,19,0),"") ->  | AS25: =IFERROR(VLOOKUP(A25,'Gruber Tabelle'!$A$3:$AR$386,36,0),"") -> 
B26: =IFERROR(VLOOKUP(A26,'Gruber Tabelle'!$A$3:$AR$386,2,0),"") ->  | C26: =IFERROR(VLOOKUP(A26,'Gruber Tabelle'!$A$3:$AR$386,28,0),"") ->  | D26: =IFERROR(VLOOKUP(A26,'Gruber Tabelle'!$A$3:$AR$386,3,0),"") ->  | E26: =IFERROR(VLOOKUP(A26,'Gruber Tabelle'!$A$3:$AR$386,4,0),"") ->  | F26: =IFERROR(VLOOKUP(A26,'Gruber Tabelle'!$A$3:$AR$386,5,0),"") ->  | G26: =IFERROR(VLOOKUP(A26,'Gruber Tabelle'!$A$3:$AR$386,6,0),"") ->  | H26: =IFERROR(VLOOKUP(A26,'Gruber Tabelle'!$A$3:$AR$386,7,0),"") ->  | I26: =IFERROR(VLOOKUP(A26,'Gruber Tabelle'!$A$3:$AR$386,8,0),"") ->  | J26: =IFERROR(VLOOKUP(A26,'Gruber Tabelle'!$A$3:$AR$386,13,0),"") ->  | K26: =IFERROR(VLOOKUP(A26,'Gruber Tabelle'!$A$3:$AR$386,18,0),"") ->  | L26: =IFERROR(VLOOKUP(A26,'Gruber Tabelle'!$A$3:$AR$386,9,0),"") ->  | M26: =IFERROR(VLOOKUP(A26,'Gruber Tabelle'!$A$3:$AR$386,14,0),"") ->  | N26: =IFERROR(VLOOKUP(A26,'Gruber Tabelle'!$A$3:$AR$386,10,0),"") ->  | O26: =IFERROR(VLOOKUP(A26,'Gruber Tabelle'!$A$3:$AR$386,11,0),"") ->  | P26: =IFERROR(VLOOKUP(A26,'Gruber Tabelle'!$A$3:$AR$386,43,0),"") ->  | Q26: =IFERROR(VLOOKUP(A26,'Gruber Tabelle'!$A$3:$AR$386,12,0),"") ->  | R26: =IFERROR(VLOOKUP(A26,'Gruber Tabelle'!$A$3:$AR$386,17,0),"") ->  | S26: =IFERROR(VLOOKUP(A26,'Gruber Tabelle'!$A$3:$AR$386,20,0),"") ->  | T26: =IFERROR(VLOOKUP(A26,'Gruber Tabelle'!$A$3:$AR$386,21,0),"") ->  | U26: =IFERROR(VLOOKUP(A26,'Gruber Tabelle'!$A$3:$AR$386,23,0),"") ->  | V26: =IFERROR(VLOOKUP(A26,'Gruber Tabelle'!$A$3:$AR$386,22,0),"") ->  | W26: =IFERROR(VLOOKUP(A26,'Gruber Tabelle'!$A$3:$AR$386,24,0),"") ->  | X26: =IFERROR(VLOOKUP(A26,'Gruber Tabelle'!$A$3:$AR$386,25,0),"") ->  | Y26: =IFERROR(VLOOKUP(A26,'Gruber Tabelle'!$A$3:$AR$386,26,0),"") ->  | Z26: =IFERROR(VLOOKUP(A26,'Gruber Tabelle'!$A$3:$AR$386,27,0),"") ->  | AA26: =IFERROR(VLOOKUP(A26,'Gruber Tabelle'!$A$3:$AR$386,29,0),"") ->  | AB26: =IFERROR(VLOOKUP(A26,'Gruber Tabelle'!$A$3:$AR$386,30,0),"") ->  | AC26: =IFERROR(VLOOKUP(A26,'Gruber Tabelle'!$A$3:$AR$386,31,0),"") ->  | AD26: =IFERROR(VLOOKUP(A26,'Gruber Tabelle'!$A$3:$AR$386,32,0),"") ->  | AE26: =IFERROR(VLOOKUP(A26,'Gruber Tabelle'!$A$3:$AR$386,33,0),"") ->  | AF26: =IFERROR(VLOOKUP(A26,'Gruber Tabelle'!$A$3:$AR$386,34,0),"") ->  | AG26: =IFERROR(VLOOKUP(A26,'Gruber Tabelle'!$A$3:$AR$386,35,0),"") ->  | AH26: =IFERROR(VLOOKUP(A26,'Gruber Tabelle'!$A$3:$AR$386,16,0),"") ->  | AI26: =IFERROR(VLOOKUP(A26,'Gruber Tabelle'!$A$3:$AR$386,41,0),"") ->  | AJ26: =IFERROR(VLOOKUP(A26,'Gruber Tabelle'!$A$3:$AR$386,42,0),"") ->  | AK26: =IF(C26="GF",4.4,IF(C26="KF",6,IF(C26="SF",6,""))) ->  | AL26: =IFERROR(VLOOKUP(A26,'Gruber Tabelle'!$A$3:$AR$386,15,0),"") ->  | AM26: =IFERROR(VLOOKUP(A26,'Gruber Tabelle'!$A$3:$AR$386,37,0),"") ->  | AN26: =IFERROR(VLOOKUP(A26,'Gruber Tabelle'!$A$3:$AR$386,38,0),"") ->  | AO26: =IFERROR(VLOOKUP(A26,'Gruber Tabelle'!$A$3:$AR$386,39,0),"") ->  | AP26: =IFERROR(VLOOKUP(A26,'Gruber Tabelle'!$A$3:$AR$386,40,0),"") ->  | AQ26: =IFERROR(VLOOKUP(A26,'Gruber Tabelle'!$A$3:$AR$386,15,0),"") ->  | AR26: =IFERROR(VLOOKUP(A26,'Gruber Tabelle'!$A$3:$AR$386,19,0),"") ->  | AS26: =IFERROR(VLOOKUP(A26,'Gruber Tabelle'!$A$3:$AR$386,36,0),"") -> 
B27: =IFERROR(VLOOKUP(A27,'Gruber Tabelle'!$A$3:$AR$386,2,0),"") ->  | C27: =IFERROR(VLOOKUP(A27,'Gruber Tabelle'!$A$3:$AR$386,28,0),"") ->  | D27: =IFERROR(VLOOKUP(A27,'Gruber Tabelle'!$A$3:$AR$386,3,0),"") ->  | E27: =IFERROR(VLOOKUP(A27,'Gruber Tabelle'!$A$3:$AR$386,4,0),"") ->  | F27: =IFERROR(VLOOKUP(A27,'Gruber Tabelle'!$A$3:$AR$386,5,0),"") ->  | G27: =IFERROR(VLOOKUP(A27,'Gruber Tabelle'!$A$3:$AR$386,6,0),"") ->  | H27: =IFERROR(VLOOKUP(A27,'Gruber Tabelle'!$A$3:$AR$386,7,0),"") ->  | I27: =IFERROR(VLOOKUP(A27,'Gruber Tabelle'!$A$3:$AR$386,8,0),"") ->  | J27: =IFERROR(VLOOKUP(A27,'Gruber Tabelle'!$A$3:$AR$386,13,0),"") ->  | K27: =IFERROR(VLOOKUP(A27,'Gruber Tabelle'!$A$3:$AR$386,18,0),"") ->  | L27: =IFERROR(VLOOKUP(A27,'Gruber Tabelle'!$A$3:$AR$386,9,0),"") ->  | M27: =IFERROR(VLOOKUP(A27,'Gruber Tabelle'!$A$3:$AR$386,14,0),"") ->  | N27: =IFERROR(VLOOKUP(A27,'Gruber Tabelle'!$A$3:$AR$386,10,0),"") ->  | O27: =IFERROR(VLOOKUP(A27,'Gruber Tabelle'!$A$3:$AR$386,11,0),"") ->  | P27: =IFERROR(VLOOKUP(A27,'Gruber Tabelle'!$A$3:$AR$386,43,0),"") ->  | Q27: =IFERROR(VLOOKUP(A27,'Gruber Tabelle'!$A$3:$AR$386,12,0),"") ->  | R27: =IFERROR(VLOOKUP(A27,'Gruber Tabelle'!$A$3:$AR$386,17,0),"") ->  | S27: =IFERROR(VLOOKUP(A27,'Gruber Tabelle'!$A$3:$AR$386,20,0),"") ->  | T27: =IFERROR(VLOOKUP(A27,'Gruber Tabelle'!$A$3:$AR$386,21,0),"") ->  | U27: =IFERROR(VLOOKUP(A27,'Gruber Tabelle'!$A$3:$AR$386,23,0),"") ->  | V27: =IFERROR(VLOOKUP(A27,'Gruber Tabelle'!$A$3:$AR$386,22,0),"") ->  | W27: =IFERROR(VLOOKUP(A27,'Gruber Tabelle'!$A$3:$AR$386,24,0),"") ->  | X27: =IFERROR(VLOOKUP(A27,'Gruber Tabelle'!$A$3:$AR$386,25,0),"") ->  | Y27: =IFERROR(VLOOKUP(A27,'Gruber Tabelle'!$A$3:$AR$386,26,0),"") ->  | Z27: =IFERROR(VLOOKUP(A27,'Gruber Tabelle'!$A$3:$AR$386,27,0),"") ->  | AA27: =IFERROR(VLOOKUP(A27,'Gruber Tabelle'!$A$3:$AR$386,29,0),"") ->  | AB27: =IFERROR(VLOOKUP(A27,'Gruber Tabelle'!$A$3:$AR$386,30,0),"") ->  | AC27: =IFERROR(VLOOKUP(A27,'Gruber Tabelle'!$A$3:$AR$386,31,0),"") ->  | AD27: =IFERROR(VLOOKUP(A27,'Gruber Tabelle'!$A$3:$AR$386,32,0),"") ->  | AE27: =IFERROR(VLOOKUP(A27,'Gruber Tabelle'!$A$3:$AR$386,33,0),"") ->  | AF27: =IFERROR(VLOOKUP(A27,'Gruber Tabelle'!$A$3:$AR$386,34,0),"") ->  | AG27: =IFERROR(VLOOKUP(A27,'Gruber Tabelle'!$A$3:$AR$386,35,0),"") ->  | AH27: =IFERROR(VLOOKUP(A27,'Gruber Tabelle'!$A$3:$AR$386,16,0),"") ->  | AI27: =IFERROR(VLOOKUP(A27,'Gruber Tabelle'!$A$3:$AR$386,41,0),"") ->  | AJ27: =IFERROR(VLOOKUP(A27,'Gruber Tabelle'!$A$3:$AR$386,42,0),"") ->  | AL27: =IFERROR(VLOOKUP(A27,'Gruber Tabelle'!$A$3:$AR$386,15,0),"") ->  | AM27: =IFERROR(VLOOKUP(A27,'Gruber Tabelle'!$A$3:$AR$386,37,0),"") ->  | AN27: =IFERROR(VLOOKUP(A27,'Gruber Tabelle'!$A$3:$AR$386,38,0),"") ->  | AO27: =IFERROR(VLOOKUP(A27,'Gruber Tabelle'!$A$3:$AR$386,39,0),"") ->  | AP27: =IFERROR(VLOOKUP(A27,'Gruber Tabelle'!$A$3:$AR$386,40,0),"") ->  | AQ27: =IFERROR(VLOOKUP(A27,'Gruber Tabelle'!$A$3:$AR$386,15,0),"") ->  | AR27: =IFERROR(VLOOKUP(A27,'Gruber Tabelle'!$A$3:$AR$386,19,0),"") ->  | AS27: =IFERROR(VLOOKUP(A27,'Gruber Tabelle'!$A$3:$AR$386,36,0),"") -> 
B28: =IFERROR(VLOOKUP(A28,'Gruber Tabelle'!$A$3:$AR$386,2,0),"") ->  | C28: =IFERROR(VLOOKUP(A28,'Gruber Tabelle'!$A$3:$AR$386,28,0),"") ->  | D28: =IFERROR(VLOOKUP(A28,'Gruber Tabelle'!$A$3:$AR$386,3,0),"") ->  | E28: =IFERROR(VLOOKUP(A28,'Gruber Tabelle'!$A$3:$AR$386,4,0),"") ->  | F28: =IFERROR(VLOOKUP(A28,'Gruber Tabelle'!$A$3:$AR$386,5,0),"") ->  | G28: =IFERROR(VLOOKUP(A28,'Gruber Tabelle'!$A$3:$AR$386,6,0),"") ->  | H28: =IFERROR(VLOOKUP(A28,'Gruber Tabelle'!$A$3:$AR$386,7,0),"") ->  | I28: =IFERROR(VLOOKUP(A28,'Gruber Tabelle'!$A$3:$AR$386,8,0),"") ->  | J28: =IFERROR(VLOOKUP(A28,'Gruber Tabelle'!$A$3:$AR$386,13,0),"") ->  | K28: =IFERROR(VLOOKUP(A28,'Gruber Tabelle'!$A$3:$AR$386,18,0),"") ->  | L28: =IFERROR(VLOOKUP(A28,'Gruber Tabelle'!$A$3:$AR$386,9,0),"") ->  | M28: =IFERROR(VLOOKUP(A28,'Gruber Tabelle'!$A$3:$AR$386,14,0),"") ->  | N28: =IFERROR(VLOOKUP(A28,'Gruber Tabelle'!$A$3:$AR$386,10,0),"") ->  | O28: =IFERROR(VLOOKUP(A28,'Gruber Tabelle'!$A$3:$AR$386,11,0),"") ->  | P28: =IFERROR(VLOOKUP(A28,'Gruber Tabelle'!$A$3:$AR$386,43,0),"") ->  | Q28: =IFERROR(VLOOKUP(A28,'Gruber Tabelle'!$A$3:$AR$386,12,0),"") ->  | R28: =IFERROR(VLOOKUP(A28,'Gruber Tabelle'!$A$3:$AR$386,17,0),"") ->  | S28: =IFERROR(VLOOKUP(A28,'Gruber Tabelle'!$A$3:$AR$386,20,0),"") ->  | T28: =IFERROR(VLOOKUP(A28,'Gruber Tabelle'!$A$3:$AR$386,21,0),"") ->  | U28: =IFERROR(VLOOKUP(A28,'Gruber Tabelle'!$A$3:$AR$386,23,0),"") ->  | V28: =IFERROR(VLOOKUP(A28,'Gruber Tabelle'!$A$3:$AR$386,22,0),"") ->  | W28: =IFERROR(VLOOKUP(A28,'Gruber Tabelle'!$A$3:$AR$386,24,0),"") ->  | X28: =IFERROR(VLOOKUP(A28,'Gruber Tabelle'!$A$3:$AR$386,25,0),"") ->  | Y28: =IFERROR(VLOOKUP(A28,'Gruber Tabelle'!$A$3:$AR$386,26,0),"") ->  | Z28: =IFERROR(VLOOKUP(A28,'Gruber Tabelle'!$A$3:$AR$386,27,0),"") ->  | AA28: =IFERROR(VLOOKUP(A28,'Gruber Tabelle'!$A$3:$AR$386,29,0),"") ->  | AB28: =IFERROR(VLOOKUP(A28,'Gruber Tabelle'!$A$3:$AR$386,30,0),"") ->  | AC28: =IFERROR(VLOOKUP(A28,'Gruber Tabelle'!$A$3:$AR$386,31,0),"") ->  | AD28: =IFERROR(VLOOKUP(A28,'Gruber Tabelle'!$A$3:$AR$386,32,0),"") ->  | AE28: =IFERROR(VLOOKUP(A28,'Gruber Tabelle'!$A$3:$AR$386,33,0),"") ->  | AF28: =IFERROR(VLOOKUP(A28,'Gruber Tabelle'!$A$3:$AR$386,34,0),"") ->  | AG28: =IFERROR(VLOOKUP(A28,'Gruber Tabelle'!$A$3:$AR$386,35,0),"") ->  | AH28: =IFERROR(VLOOKUP(A28,'Gruber Tabelle'!$A$3:$AR$386,16,0),"") ->  | AI28: =IFERROR(VLOOKUP(A28,'Gruber Tabelle'!$A$3:$AR$386,41,0),"") ->  | AJ28: =IFERROR(VLOOKUP(A28,'Gruber Tabelle'!$A$3:$AR$386,42,0),"") ->  | AL28: =IFERROR(VLOOKUP(A28,'Gruber Tabelle'!$A$3:$AR$386,15,0),"") ->  | AM28: =IFERROR(VLOOKUP(A28,'Gruber Tabelle'!$A$3:$AR$386,37,0),"") ->  | AN28: =IFERROR(VLOOKUP(A28,'Gruber Tabelle'!$A$3:$AR$386,38,0),"") ->  | AO28: =IFERROR(VLOOKUP(A28,'Gruber Tabelle'!$A$3:$AR$386,39,0),"") ->  | AP28: =IFERROR(VLOOKUP(A28,'Gruber Tabelle'!$A$3:$AR$386,40,0),"") ->  | AQ28: =IFERROR(VLOOKUP(A28,'Gruber Tabelle'!$A$3:$AR$386,15,0),"") ->  | AR28: =IFERROR(VLOOKUP(A28,'Gruber Tabelle'!$A$3:$AR$386,19,0),"") ->  | AS28: =IFERROR(VLOOKUP(A28,'Gruber Tabelle'!$A$3:$AR$386,36,0),"") -> 
B29: =IFERROR(VLOOKUP(A29,'Gruber Tabelle'!$A$3:$AR$386,2,0),"") ->  | C29: =IFERROR(VLOOKUP(A29,'Gruber Tabelle'!$A$3:$AR$386,28,0),"") ->  | D29: =IFERROR(VLOOKUP(A29,'Gruber Tabelle'!$A$3:$AR$386,3,0),"") ->  | E29: =IFERROR(VLOOKUP(A29,'Gruber Tabelle'!$A$3:$AR$386,4,0),"") ->  | F29: =IFERROR(VLOOKUP(A29,'Gruber Tabelle'!$A$3:$AR$386,5,0),"") ->  | G29: =IFERROR(VLOOKUP(A29,'Gruber Tabelle'!$A$3:$AR$386,6,0),"") ->  | H29: =IFERROR(VLOOKUP(A29,'Gruber Tabelle'!$A$3:$AR$386,7,0),"") ->  | I29: =IFERROR(VLOOKUP(A29,'Gruber Tabelle'!$A$3:$AR$386,8,0),"") ->  | J29: =IFERROR(VLOOKUP(A29,'Gruber Tabelle'!$A$3:$AR$386,13,0),"") ->  | K29: =IFERROR(VLOOKUP(A29,'Gruber Tabelle'!$A$3:$AR$386,18,0),"") ->  | L29: =IFERROR(VLOOKUP(A29,'Gruber Tabelle'!$A$3:$AR$386,9,0),"") ->  | M29: =IFERROR(VLOOKUP(A29,'Gruber Tabelle'!$A$3:$AR$386,14,0),"") ->  | N29: =IFERROR(VLOOKUP(A29,'Gruber Tabelle'!$A$3:$AR$386,10,0),"") ->  | O29: =IFERROR(VLOOKUP(A29,'Gruber Tabelle'!$A$3:$AR$386,11,0),"") ->  | P29: =IFERROR(VLOOKUP(A29,'Gruber Tabelle'!$A$3:$AR$386,43,0),"") ->  | Q29: =IFERROR(VLOOKUP(A29,'Gruber Tabelle'!$A$3:$AR$386,12,0),"") ->  | R29: =IFERROR(VLOOKUP(A29,'Gruber Tabelle'!$A$3:$AR$386,17,0),"") ->  | S29: =IFERROR(VLOOKUP(A29,'Gruber Tabelle'!$A$3:$AR$386,20,0),"") ->  | T29: =IFERROR(VLOOKUP(A29,'Gruber Tabelle'!$A$3:$AR$386,21,0),"") ->  | U29: =IFERROR(VLOOKUP(A29,'Gruber Tabelle'!$A$3:$AR$386,23,0),"") ->  | V29: =IFERROR(VLOOKUP(A29,'Gruber Tabelle'!$A$3:$AR$386,22,0),"") ->  | W29: =IFERROR(VLOOKUP(A29,'Gruber Tabelle'!$A$3:$AR$386,24,0),"") ->  | X29: =IFERROR(VLOOKUP(A29,'Gruber Tabelle'!$A$3:$AR$386,25,0),"") ->  | Y29: =IFERROR(VLOOKUP(A29,'Gruber Tabelle'!$A$3:$AR$386,26,0),"") ->  | Z29: =IFERROR(VLOOKUP(A29,'Gruber Tabelle'!$A$3:$AR$386,27,0),"") ->  | AA29: =IFERROR(VLOOKUP(A29,'Gruber Tabelle'!$A$3:$AR$386,29,0),"") ->  | AB29: =IFERROR(VLOOKUP(A29,'Gruber Tabelle'!$A$3:$AR$386,30,0),"") ->  | AC29: =IFERROR(VLOOKUP(A29,'Gruber Tabelle'!$A$3:$AR$386,31,0),"") ->  | AD29: =IFERROR(VLOOKUP(A29,'Gruber Tabelle'!$A$3:$AR$386,32,0),"") ->  | AE29: =IFERROR(VLOOKUP(A29,'Gruber Tabelle'!$A$3:$AR$386,33,0),"") ->  | AF29: =IFERROR(VLOOKUP(A29,'Gruber Tabelle'!$A$3:$AR$386,34,0),"") ->  | AG29: =IFERROR(VLOOKUP(A29,'Gruber Tabelle'!$A$3:$AR$386,35,0),"") ->  | AH29: =IFERROR(VLOOKUP(A29,'Gruber Tabelle'!$A$3:$AR$386,16,0),"") ->  | AI29: =IFERROR(VLOOKUP(A29,'Gruber Tabelle'!$A$3:$AR$386,41,0),"") ->  | AJ29: =IFERROR(VLOOKUP(A29,'Gruber Tabelle'!$A$3:$AR$386,42,0),"") ->  | AL29: =IFERROR(VLOOKUP(A29,'Gruber Tabelle'!$A$3:$AR$386,15,0),"") ->  | AM29: =IFERROR(VLOOKUP(A29,'Gruber Tabelle'!$A$3:$AR$386,37,0),"") ->  | AN29: =IFERROR(VLOOKUP(A29,'Gruber Tabelle'!$A$3:$AR$386,38,0),"") ->  | AO29: =IFERROR(VLOOKUP(A29,'Gruber Tabelle'!$A$3:$AR$386,39,0),"") ->  | AP29: =IFERROR(VLOOKUP(A29,'Gruber Tabelle'!$A$3:$AR$386,40,0),"") ->  | AQ29: =IFERROR(VLOOKUP(A29,'Gruber Tabelle'!$A$3:$AR$386,15,0),"") ->  | AR29: =IFERROR(VLOOKUP(A29,'Gruber Tabelle'!$A$3:$AR$386,19,0),"") ->  | AS29: =IFERROR(VLOOKUP(A29,'Gruber Tabelle'!$A$3:$AR$386,36,0),"") -> 
B30: =IFERROR(VLOOKUP(A30,'Gruber Tabelle'!$A$3:$AR$386,2,0),"") ->  | C30: =IFERROR(VLOOKUP(A30,'Gruber Tabelle'!$A$3:$AR$386,28,0),"") ->  | D30: =IFERROR(VLOOKUP(A30,'Gruber Tabelle'!$A$3:$AR$386,3,0),"") ->  | E30: =IFERROR(VLOOKUP(A30,'Gruber Tabelle'!$A$3:$AR$386,4,0),"") ->  | F30: =IFERROR(VLOOKUP(A30,'Gruber Tabelle'!$A$3:$AR$386,5,0),"") ->  | G30: =IFERROR(VLOOKUP(A30,'Gruber Tabelle'!$A$3:$AR$386,6,0),"") ->  | H30: =IFERROR(VLOOKUP(A30,'Gruber Tabelle'!$A$3:$AR$386,7,0),"") ->  | I30: =IFERROR(VLOOKUP(A30,'Gruber Tabelle'!$A$3:$AR$386,8,0),"") ->  | J30: =IFERROR(VLOOKUP(A30,'Gruber Tabelle'!$A$3:$AR$386,13,0),"") ->  | K30: =IFERROR(VLOOKUP(A30,'Gruber Tabelle'!$A$3:$AR$386,18,0),"") ->  | L30: =IFERROR(VLOOKUP(A30,'Gruber Tabelle'!$A$3:$AR$386,9,0),"") ->  | M30: =IFERROR(VLOOKUP(A30,'Gruber Tabelle'!$A$3:$AR$386,14,0),"") ->  | N30: =IFERROR(VLOOKUP(A30,'Gruber Tabelle'!$A$3:$AR$386,10,0),"") ->  | O30: =IFERROR(VLOOKUP(A30,'Gruber Tabelle'!$A$3:$AR$386,11,0),"") ->  | P30: =IFERROR(VLOOKUP(A30,'Gruber Tabelle'!$A$3:$AR$386,43,0),"") ->  | Q30: =IFERROR(VLOOKUP(A30,'Gruber Tabelle'!$A$3:$AR$386,12,0),"") ->  | R30: =IFERROR(VLOOKUP(A30,'Gruber Tabelle'!$A$3:$AR$386,17,0),"") ->  | S30: =IFERROR(VLOOKUP(A30,'Gruber Tabelle'!$A$3:$AR$386,20,0),"") ->  | T30: =IFERROR(VLOOKUP(A30,'Gruber Tabelle'!$A$3:$AR$386,21,0),"") ->  | U30: =IFERROR(VLOOKUP(A30,'Gruber Tabelle'!$A$3:$AR$386,23,0),"") ->  | V30: =IFERROR(VLOOKUP(A30,'Gruber Tabelle'!$A$3:$AR$386,22,0),"") ->  | W30: =IFERROR(VLOOKUP(A30,'Gruber Tabelle'!$A$3:$AR$386,24,0),"") ->  | X30: =IFERROR(VLOOKUP(A30,'Gruber Tabelle'!$A$3:$AR$386,25,0),"") ->  | Y30: =IFERROR(VLOOKUP(A30,'Gruber Tabelle'!$A$3:$AR$386,26,0),"") ->  | Z30: =IFERROR(VLOOKUP(A30,'Gruber Tabelle'!$A$3:$AR$386,27,0),"") ->  | AA30: =IFERROR(VLOOKUP(A30,'Gruber Tabelle'!$A$3:$AR$386,29,0),"") ->  | AB30: =IFERROR(VLOOKUP(A30,'Gruber Tabelle'!$A$3:$AR$386,30,0),"") ->  | AC30: =IFERROR(VLOOKUP(A30,'Gruber Tabelle'!$A$3:$AR$386,31,0),"") ->  | AD30: =IFERROR(VLOOKUP(A30,'Gruber Tabelle'!$A$3:$AR$386,32,0),"") ->  | AE30: =IFERROR(VLOOKUP(A30,'Gruber Tabelle'!$A$3:$AR$386,33,0),"") ->  | AF30: =IFERROR(VLOOKUP(A30,'Gruber Tabelle'!$A$3:$AR$386,34,0),"") ->  | AG30: =IFERROR(VLOOKUP(A30,'Gruber Tabelle'!$A$3:$AR$386,35,0),"") ->  | AH30: =IFERROR(VLOOKUP(A30,'Gruber Tabelle'!$A$3:$AR$386,16,0),"") ->  | AI30: =IFERROR(VLOOKUP(A30,'Gruber Tabelle'!$A$3:$AR$386,41,0),"") ->  | AJ30: =IFERROR(VLOOKUP(A30,'Gruber Tabelle'!$A$3:$AR$386,42,0),"") ->  | AL30: =IFERROR(VLOOKUP(A30,'Gruber Tabelle'!$A$3:$AR$386,15,0),"") ->  | AM30: =IFERROR(VLOOKUP(A30,'Gruber Tabelle'!$A$3:$AR$386,37,0),"") ->  | AN30: =IFERROR(VLOOKUP(A30,'Gruber Tabelle'!$A$3:$AR$386,38,0),"") ->  | AO30: =IFERROR(VLOOKUP(A30,'Gruber Tabelle'!$A$3:$AR$386,39,0),"") ->  | AP30: =IFERROR(VLOOKUP(A30,'Gruber Tabelle'!$A$3:$AR$386,40,0),"") ->  | AQ30: =IFERROR(VLOOKUP(A30,'Gruber Tabelle'!$A$3:$AR$386,15,0),"") ->  | AR30: =IFERROR(VLOOKUP(A30,'Gruber Tabelle'!$A$3:$AR$386,19,0),"") ->  | AS30: =IFERROR(VLOOKUP(A30,'Gruber Tabelle'!$A$3:$AR$386,36,0),"") -> 
B31: =IFERROR(VLOOKUP(A31,'Gruber Tabelle'!$A$3:$AR$386,2,0),"") ->  | C31: =IFERROR(VLOOKUP(A31,'Gruber Tabelle'!$A$3:$AR$386,28,0),"") ->  | D31: =IFERROR(VLOOKUP(A31,'Gruber Tabelle'!$A$3:$AR$386,3,0),"") ->  | E31: =IFERROR(VLOOKUP(A31,'Gruber Tabelle'!$A$3:$AR$386,4,0),"") ->  | F31: =IFERROR(VLOOKUP(A31,'Gruber Tabelle'!$A$3:$AR$386,5,0),"") ->  | G31: =IFERROR(VLOOKUP(A31,'Gruber Tabelle'!$A$3:$AR$386,6,0),"") ->  | H31: =IFERROR(VLOOKUP(A31,'Gruber Tabelle'!$A$3:$AR$386,7,0),"") ->  | I31: =IFERROR(VLOOKUP(A31,'Gruber Tabelle'!$A$3:$AR$386,8,0),"") ->  | J31: =IFERROR(VLOOKUP(A31,'Gruber Tabelle'!$A$3:$AR$386,13,0),"") ->  | K31: =IFERROR(VLOOKUP(A31,'Gruber Tabelle'!$A$3:$AR$386,18,0),"") ->  | L31: =IFERROR(VLOOKUP(A31,'Gruber Tabelle'!$A$3:$AR$386,9,0),"") ->  | M31: =IFERROR(VLOOKUP(A31,'Gruber Tabelle'!$A$3:$AR$386,14,0),"") ->  | N31: =IFERROR(VLOOKUP(A31,'Gruber Tabelle'!$A$3:$AR$386,10,0),"") ->  | O31: =IFERROR(VLOOKUP(A31,'Gruber Tabelle'!$A$3:$AR$386,11,0),"") ->  | P31: =IFERROR(VLOOKUP(A31,'Gruber Tabelle'!$A$3:$AR$386,43,0),"") ->  | Q31: =IFERROR(VLOOKUP(A31,'Gruber Tabelle'!$A$3:$AR$386,12,0),"") ->  | R31: =IFERROR(VLOOKUP(A31,'Gruber Tabelle'!$A$3:$AR$386,17,0),"") ->  | S31: =IFERROR(VLOOKUP(A31,'Gruber Tabelle'!$A$3:$AR$386,20,0),"") ->  | T31: =IFERROR(VLOOKUP(A31,'Gruber Tabelle'!$A$3:$AR$386,21,0),"") ->  | U31: =IFERROR(VLOOKUP(A31,'Gruber Tabelle'!$A$3:$AR$386,23,0),"") ->  | V31: =IFERROR(VLOOKUP(A31,'Gruber Tabelle'!$A$3:$AR$386,22,0),"") ->  | W31: =IFERROR(VLOOKUP(A31,'Gruber Tabelle'!$A$3:$AR$386,24,0),"") ->  | X31: =IFERROR(VLOOKUP(A31,'Gruber Tabelle'!$A$3:$AR$386,25,0),"") ->  | Y31: =IFERROR(VLOOKUP(A31,'Gruber Tabelle'!$A$3:$AR$386,26,0),"") ->  | Z31: =IFERROR(VLOOKUP(A31,'Gruber Tabelle'!$A$3:$AR$386,27,0),"") ->  | AA31: =IFERROR(VLOOKUP(A31,'Gruber Tabelle'!$A$3:$AR$386,29,0),"") ->  | AB31: =IFERROR(VLOOKUP(A31,'Gruber Tabelle'!$A$3:$AR$386,30,0),"") ->  | AC31: =IFERROR(VLOOKUP(A31,'Gruber Tabelle'!$A$3:$AR$386,31,0),"") ->  | AD31: =IFERROR(VLOOKUP(A31,'Gruber Tabelle'!$A$3:$AR$386,32,0),"") ->  | AE31: =IFERROR(VLOOKUP(A31,'Gruber Tabelle'!$A$3:$AR$386,33,0),"") ->  | AF31: =IFERROR(VLOOKUP(A31,'Gruber Tabelle'!$A$3:$AR$386,34,0),"") ->  | AG31: =IFERROR(VLOOKUP(A31,'Gruber Tabelle'!$A$3:$AR$386,35,0),"") ->  | AH31: =IFERROR(VLOOKUP(A31,'Gruber Tabelle'!$A$3:$AR$386,16,0),"") ->  | AI31: =IFERROR(VLOOKUP(A31,'Gruber Tabelle'!$A$3:$AR$386,41,0),"") ->  | AJ31: =IFERROR(VLOOKUP(A31,'Gruber Tabelle'!$A$3:$AR$386,42,0),"") ->  | AL31: =IFERROR(VLOOKUP(A31,'Gruber Tabelle'!$A$3:$AR$386,15,0),"") ->  | AM31: =IFERROR(VLOOKUP(A31,'Gruber Tabelle'!$A$3:$AR$386,37,0),"") ->  | AN31: =IFERROR(VLOOKUP(A31,'Gruber Tabelle'!$A$3:$AR$386,38,0),"") ->  | AO31: =IFERROR(VLOOKUP(A31,'Gruber Tabelle'!$A$3:$AR$386,39,0),"") ->  | AP31: =IFERROR(VLOOKUP(A31,'Gruber Tabelle'!$A$3:$AR$386,40,0),"") ->  | AQ31: =IFERROR(VLOOKUP(A31,'Gruber Tabelle'!$A$3:$AR$386,15,0),"") ->  | AR31: =IFERROR(VLOOKUP(A31,'Gruber Tabelle'!$A$3:$AR$386,19,0),"") ->  | AS31: =IFERROR(VLOOKUP(A31,'Gruber Tabelle'!$A$3:$AR$386,36,0),"") -> 
B32: =IFERROR(VLOOKUP(A32,'Gruber Tabelle'!$A$3:$AR$386,2,0),"") ->  | C32: =IFERROR(VLOOKUP(A32,'Gruber Tabelle'!$A$3:$AR$386,28,0),"") ->  | D32: =IFERROR(VLOOKUP(A32,'Gruber Tabelle'!$A$3:$AR$386,3,0),"") ->  | E32: =IFERROR(VLOOKUP(A32,'Gruber Tabelle'!$A$3:$AR$386,4,0),"") ->  | F32: =IFERROR(VLOOKUP(A32,'Gruber Tabelle'!$A$3:$AR$386,5,0),"") ->  | G32: =IFERROR(VLOOKUP(A32,'Gruber Tabelle'!$A$3:$AR$386,6,0),"") ->  | H32: =IFERROR(VLOOKUP(A32,'Gruber Tabelle'!$A$3:$AR$386,7,0),"") ->  | I32: =IFERROR(VLOOKUP(A32,'Gruber Tabelle'!$A$3:$AR$386,8,0),"") ->  | J32: =IFERROR(VLOOKUP(A32,'Gruber Tabelle'!$A$3:$AR$386,13,0),"") ->  | K32: =IFERROR(VLOOKUP(A32,'Gruber Tabelle'!$A$3:$AR$386,18,0),"") ->  | L32: =IFERROR(VLOOKUP(A32,'Gruber Tabelle'!$A$3:$AR$386,9,0),"") ->  | M32: =IFERROR(VLOOKUP(A32,'Gruber Tabelle'!$A$3:$AR$386,14,0),"") ->  | N32: =IFERROR(VLOOKUP(A32,'Gruber Tabelle'!$A$3:$AR$386,10,0),"") ->  | O32: =IFERROR(VLOOKUP(A32,'Gruber Tabelle'!$A$3:$AR$386,11,0),"") ->  | P32: =IFERROR(VLOOKUP(A32,'Gruber Tabelle'!$A$3:$AR$386,43,0),"") ->  | Q32: =IFERROR(VLOOKUP(A32,'Gruber Tabelle'!$A$3:$AR$386,12,0),"") ->  | R32: =IFERROR(VLOOKUP(A32,'Gruber Tabelle'!$A$3:$AR$386,17,0),"") ->  | S32: =IFERROR(VLOOKUP(A32,'Gruber Tabelle'!$A$3:$AR$386,20,0),"") ->  | T32: =IFERROR(VLOOKUP(A32,'Gruber Tabelle'!$A$3:$AR$386,21,0),"") ->  | U32: =IFERROR(VLOOKUP(A32,'Gruber Tabelle'!$A$3:$AR$386,23,0),"") ->  | V32: =IFERROR(VLOOKUP(A32,'Gruber Tabelle'!$A$3:$AR$386,22,0),"") ->  | W32: =IFERROR(VLOOKUP(A32,'Gruber Tabelle'!$A$3:$AR$386,24,0),"") ->  | X32: =IFERROR(VLOOKUP(A32,'Gruber Tabelle'!$A$3:$AR$386,25,0),"") ->  | Y32: =IFERROR(VLOOKUP(A32,'Gruber Tabelle'!$A$3:$AR$386,26,0),"") ->  | Z32: =IFERROR(VLOOKUP(A32,'Gruber Tabelle'!$A$3:$AR$386,27,0),"") ->  | AA32: =IFERROR(VLOOKUP(A32,'Gruber Tabelle'!$A$3:$AR$386,29,0),"") ->  | AB32: =IFERROR(VLOOKUP(A32,'Gruber Tabelle'!$A$3:$AR$386,30,0),"") ->  | AC32: =IFERROR(VLOOKUP(A32,'Gruber Tabelle'!$A$3:$AR$386,31,0),"") ->  | AD32: =IFERROR(VLOOKUP(A32,'Gruber Tabelle'!$A$3:$AR$386,32,0),"") ->  | AE32: =IFERROR(VLOOKUP(A32,'Gruber Tabelle'!$A$3:$AR$386,33,0),"") ->  | AF32: =IFERROR(VLOOKUP(A32,'Gruber Tabelle'!$A$3:$AR$386,34,0),"") ->  | AG32: =IFERROR(VLOOKUP(A32,'Gruber Tabelle'!$A$3:$AR$386,35,0),"") ->  | AH32: =IFERROR(VLOOKUP(A32,'Gruber Tabelle'!$A$3:$AR$386,16,0),"") ->  | AI32: =IFERROR(VLOOKUP(A32,'Gruber Tabelle'!$A$3:$AR$386,41,0),"") ->  | AJ32: =IFERROR(VLOOKUP(A32,'Gruber Tabelle'!$A$3:$AR$386,42,0),"") ->  | AL32: =IFERROR(VLOOKUP(A32,'Gruber Tabelle'!$A$3:$AR$386,15,0),"") ->  | AM32: =IFERROR(VLOOKUP(A32,'Gruber Tabelle'!$A$3:$AR$386,37,0),"") ->  | AN32: =IFERROR(VLOOKUP(A32,'Gruber Tabelle'!$A$3:$AR$386,38,0),"") ->  | AO32: =IFERROR(VLOOKUP(A32,'Gruber Tabelle'!$A$3:$AR$386,39,0),"") ->  | AP32: =IFERROR(VLOOKUP(A32,'Gruber Tabelle'!$A$3:$AR$386,40,0),"") ->  | AQ32: =IFERROR(VLOOKUP(A32,'Gruber Tabelle'!$A$3:$AR$386,15,0),"") ->  | AR32: =IFERROR(VLOOKUP(A32,'Gruber Tabelle'!$A$3:$AR$386,19,0),"") ->  | AS32: =IFERROR(VLOOKUP(A32,'Gruber Tabelle'!$A$3:$AR$386,36,0),"") -> 
B33: =IFERROR(VLOOKUP(A33,'Gruber Tabelle'!$A$3:$AR$386,2,0),"") ->  | C33: =IFERROR(VLOOKUP(A33,'Gruber Tabelle'!$A$3:$AR$386,28,0),"") ->  | D33: =IFERROR(VLOOKUP(A33,'Gruber Tabelle'!$A$3:$AR$386,3,0),"") ->  | E33: =IFERROR(VLOOKUP(A33,'Gruber Tabelle'!$A$3:$AR$386,4,0),"") ->  | F33: =IFERROR(VLOOKUP(A33,'Gruber Tabelle'!$A$3:$AR$386,5,0),"") ->  | G33: =IFERROR(VLOOKUP(A33,'Gruber Tabelle'!$A$3:$AR$386,6,0),"") ->  | H33: =IFERROR(VLOOKUP(A33,'Gruber Tabelle'!$A$3:$AR$386,7,0),"") ->  | I33: =IFERROR(VLOOKUP(A33,'Gruber Tabelle'!$A$3:$AR$386,8,0),"") ->  | J33: =IFERROR(VLOOKUP(A33,'Gruber Tabelle'!$A$3:$AR$386,13,0),"") ->  | K33: =IFERROR(VLOOKUP(A33,'Gruber Tabelle'!$A$3:$AR$386,18,0),"") ->  | L33: =IFERROR(VLOOKUP(A33,'Gruber Tabelle'!$A$3:$AR$386,9,0),"") ->  | M33: =IFERROR(VLOOKUP(A33,'Gruber Tabelle'!$A$3:$AR$386,14,0),"") ->  | N33: =IFERROR(VLOOKUP(A33,'Gruber Tabelle'!$A$3:$AR$386,10,0),"") ->  | O33: =IFERROR(VLOOKUP(A33,'Gruber Tabelle'!$A$3:$AR$386,11,0),"") ->  | P33: =IFERROR(VLOOKUP(A33,'Gruber Tabelle'!$A$3:$AR$386,43,0),"") ->  | Q33: =IFERROR(VLOOKUP(A33,'Gruber Tabelle'!$A$3:$AR$386,12,0),"") ->  | R33: =IFERROR(VLOOKUP(A33,'Gruber Tabelle'!$A$3:$AR$386,17,0),"") ->  | S33: =IFERROR(VLOOKUP(A33,'Gruber Tabelle'!$A$3:$AR$386,20,0),"") ->  | T33: =IFERROR(VLOOKUP(A33,'Gruber Tabelle'!$A$3:$AR$386,21,0),"") ->  | U33: =IFERROR(VLOOKUP(A33,'Gruber Tabelle'!$A$3:$AR$386,23,0),"") ->  | V33: =IFERROR(VLOOKUP(A33,'Gruber Tabelle'!$A$3:$AR$386,22,0),"") ->  | W33: =IFERROR(VLOOKUP(A33,'Gruber Tabelle'!$A$3:$AR$386,24,0),"") ->  | X33: =IFERROR(VLOOKUP(A33,'Gruber Tabelle'!$A$3:$AR$386,25,0),"") ->  | Y33: =IFERROR(VLOOKUP(A33,'Gruber Tabelle'!$A$3:$AR$386,26,0),"") ->  | Z33: =IFERROR(VLOOKUP(A33,'Gruber Tabelle'!$A$3:$AR$386,27,0),"") ->  | AA33: =IFERROR(VLOOKUP(A33,'Gruber Tabelle'!$A$3:$AR$386,29,0),"") ->  | AB33: =IFERROR(VLOOKUP(A33,'Gruber Tabelle'!$A$3:$AR$386,30,0),"") ->  | AC33: =IFERROR(VLOOKUP(A33,'Gruber Tabelle'!$A$3:$AR$386,31,0),"") ->  | AD33: =IFERROR(VLOOKUP(A33,'Gruber Tabelle'!$A$3:$AR$386,32,0),"") ->  | AE33: =IFERROR(VLOOKUP(A33,'Gruber Tabelle'!$A$3:$AR$386,33,0),"") ->  | AF33: =IFERROR(VLOOKUP(A33,'Gruber Tabelle'!$A$3:$AR$386,34,0),"") ->  | AG33: =IFERROR(VLOOKUP(A33,'Gruber Tabelle'!$A$3:$AR$386,35,0),"") ->  | AH33: =IFERROR(VLOOKUP(A33,'Gruber Tabelle'!$A$3:$AR$386,16,0),"") ->  | AI33: =IFERROR(VLOOKUP(A33,'Gruber Tabelle'!$A$3:$AR$386,41,0),"") ->  | AJ33: =IFERROR(VLOOKUP(A33,'Gruber Tabelle'!$A$3:$AR$386,42,0),"") ->  | AL33: =IFERROR(VLOOKUP(A33,'Gruber Tabelle'!$A$3:$AR$386,15,0),"") ->  | AM33: =IFERROR(VLOOKUP(A33,'Gruber Tabelle'!$A$3:$AR$386,37,0),"") ->  | AN33: =IFERROR(VLOOKUP(A33,'Gruber Tabelle'!$A$3:$AR$386,38,0),"") ->  | AO33: =IFERROR(VLOOKUP(A33,'Gruber Tabelle'!$A$3:$AR$386,39,0),"") ->  | AP33: =IFERROR(VLOOKUP(A33,'Gruber Tabelle'!$A$3:$AR$386,40,0),"") ->  | AQ33: =IFERROR(VLOOKUP(A33,'Gruber Tabelle'!$A$3:$AR$386,15,0),"") ->  | AR33: =IFERROR(VLOOKUP(A33,'Gruber Tabelle'!$A$3:$AR$386,19,0),"") ->  | AS33: =IFERROR(VLOOKUP(A33,'Gruber Tabelle'!$A$3:$AR$386,36,0),"") -> 
B34: =IFERROR(VLOOKUP(A34,'Gruber Tabelle'!$A$3:$AR$386,2,0),"") ->  | C34: =IFERROR(VLOOKUP(A34,'Gruber Tabelle'!$A$3:$AR$386,28,0),"") ->  | D34: =IFERROR(VLOOKUP(A34,'Gruber Tabelle'!$A$3:$AR$386,3,0),"") ->  | E34: =IFERROR(VLOOKUP(A34,'Gruber Tabelle'!$A$3:$AR$386,4,0),"") ->  | F34: =IFERROR(VLOOKUP(A34,'Gruber Tabelle'!$A$3:$AR$386,5,0),"") ->  | G34: =IFERROR(VLOOKUP(A34,'Gruber Tabelle'!$A$3:$AR$386,6,0),"") ->  | H34: =IFERROR(VLOOKUP(A34,'Gruber Tabelle'!$A$3:$AR$386,7,0),"") ->  | I34: =IFERROR(VLOOKUP(A34,'Gruber Tabelle'!$A$3:$AR$386,8,0),"") ->  | J34: =IFERROR(VLOOKUP(A34,'Gruber Tabelle'!$A$3:$AR$386,13,0),"") ->  | K34: =IFERROR(VLOOKUP(A34,'Gruber Tabelle'!$A$3:$AR$386,18,0),"") ->  | L34: =IFERROR(VLOOKUP(A34,'Gruber Tabelle'!$A$3:$AR$386,9,0),"") ->  | M34: =IFERROR(VLOOKUP(A34,'Gruber Tabelle'!$A$3:$AR$386,14,0),"") ->  | N34: =IFERROR(VLOOKUP(A34,'Gruber Tabelle'!$A$3:$AR$386,10,0),"") ->  | O34: =IFERROR(VLOOKUP(A34,'Gruber Tabelle'!$A$3:$AR$386,11,0),"") ->  | P34: =IFERROR(VLOOKUP(A34,'Gruber Tabelle'!$A$3:$AR$386,43,0),"") ->  | Q34: =IFERROR(VLOOKUP(A34,'Gruber Tabelle'!$A$3:$AR$386,12,0),"") ->  | R34: =IFERROR(VLOOKUP(A34,'Gruber Tabelle'!$A$3:$AR$386,17,0),"") ->  | S34: =IFERROR(VLOOKUP(A34,'Gruber Tabelle'!$A$3:$AR$386,20,0),"") ->  | T34: =IFERROR(VLOOKUP(A34,'Gruber Tabelle'!$A$3:$AR$386,21,0),"") ->  | U34: =IFERROR(VLOOKUP(A34,'Gruber Tabelle'!$A$3:$AR$386,23,0),"") ->  | V34: =IFERROR(VLOOKUP(A34,'Gruber Tabelle'!$A$3:$AR$386,22,0),"") ->  | W34: =IFERROR(VLOOKUP(A34,'Gruber Tabelle'!$A$3:$AR$386,24,0),"") ->  | X34: =IFERROR(VLOOKUP(A34,'Gruber Tabelle'!$A$3:$AR$386,25,0),"") ->  | Y34: =IFERROR(VLOOKUP(A34,'Gruber Tabelle'!$A$3:$AR$386,26,0),"") ->  | Z34: =IFERROR(VLOOKUP(A34,'Gruber Tabelle'!$A$3:$AR$386,27,0),"") ->  | AA34: =IFERROR(VLOOKUP(A34,'Gruber Tabelle'!$A$3:$AR$386,29,0),"") ->  | AB34: =IFERROR(VLOOKUP(A34,'Gruber Tabelle'!$A$3:$AR$386,30,0),"") ->  | AC34: =IFERROR(VLOOKUP(A34,'Gruber Tabelle'!$A$3:$AR$386,31,0),"") ->  | AD34: =IFERROR(VLOOKUP(A34,'Gruber Tabelle'!$A$3:$AR$386,32,0),"") ->  | AE34: =IFERROR(VLOOKUP(A34,'Gruber Tabelle'!$A$3:$AR$386,33,0),"") ->  | AF34: =IFERROR(VLOOKUP(A34,'Gruber Tabelle'!$A$3:$AR$386,34,0),"") ->  | AG34: =IFERROR(VLOOKUP(A34,'Gruber Tabelle'!$A$3:$AR$386,35,0),"") ->  | AH34: =IFERROR(VLOOKUP(A34,'Gruber Tabelle'!$A$3:$AR$386,16,0),"") ->  | AI34: =IFERROR(VLOOKUP(A34,'Gruber Tabelle'!$A$3:$AR$386,41,0),"") ->  | AJ34: =IFERROR(VLOOKUP(A34,'Gruber Tabelle'!$A$3:$AR$386,42,0),"") ->  | AL34: =IFERROR(VLOOKUP(A34,'Gruber Tabelle'!$A$3:$AR$386,15,0),"") ->  | AM34: =IFERROR(VLOOKUP(A34,'Gruber Tabelle'!$A$3:$AR$386,37,0),"") ->  | AN34: =IFERROR(VLOOKUP(A34,'Gruber Tabelle'!$A$3:$AR$386,38,0),"") ->  | AO34: =IFERROR(VLOOKUP(A34,'Gruber Tabelle'!$A$3:$AR$386,39,0),"") ->  | AP34: =IFERROR(VLOOKUP(A34,'Gruber Tabelle'!$A$3:$AR$386,40,0),"") ->  | AQ34: =IFERROR(VLOOKUP(A34,'Gruber Tabelle'!$A$3:$AR$386,15,0),"") ->  | AR34: =IFERROR(VLOOKUP(A34,'Gruber Tabelle'!$A$3:$AR$386,19,0),"") ->  | AS34: =IFERROR(VLOOKUP(A34,'Gruber Tabelle'!$A$3:$AR$386,36,0),"") -> 
B35: =IFERROR(VLOOKUP(A35,'Gruber Tabelle'!$A$3:$AR$386,2,0),"") ->  | C35: =IFERROR(VLOOKUP(A35,'Gruber Tabelle'!$A$3:$AR$386,28,0),"") ->  | D35: =IFERROR(VLOOKUP(A35,'Gruber Tabelle'!$A$3:$AR$386,3,0),"") ->  | E35: =IFERROR(VLOOKUP(A35,'Gruber Tabelle'!$A$3:$AR$386,4,0),"") ->  | F35: =IFERROR(VLOOKUP(A35,'Gruber Tabelle'!$A$3:$AR$386,5,0),"") ->  | G35: =IFERROR(VLOOKUP(A35,'Gruber Tabelle'!$A$3:$AR$386,6,0),"") ->  | H35: =IFERROR(VLOOKUP(A35,'Gruber Tabelle'!$A$3:$AR$386,7,0),"") ->  | I35: =IFERROR(VLOOKUP(A35,'Gruber Tabelle'!$A$3:$AR$386,8,0),"") ->  | J35: =IFERROR(VLOOKUP(A35,'Gruber Tabelle'!$A$3:$AR$386,13,0),"") ->  | K35: =IFERROR(VLOOKUP(A35,'Gruber Tabelle'!$A$3:$AR$386,18,0),"") ->  | L35: =IFERROR(VLOOKUP(A35,'Gruber Tabelle'!$A$3:$AR$386,9,0),"") ->  | M35: =IFERROR(VLOOKUP(A35,'Gruber Tabelle'!$A$3:$AR$386,14,0),"") ->  | N35: =IFERROR(VLOOKUP(A35,'Gruber Tabelle'!$A$3:$AR$386,10,0),"") ->  | O35: =IFERROR(VLOOKUP(A35,'Gruber Tabelle'!$A$3:$AR$386,11,0),"") ->  | P35: =IFERROR(VLOOKUP(A35,'Gruber Tabelle'!$A$3:$AR$386,43,0),"") ->  | Q35: =IFERROR(VLOOKUP(A35,'Gruber Tabelle'!$A$3:$AR$386,12,0),"") ->  | R35: =IFERROR(VLOOKUP(A35,'Gruber Tabelle'!$A$3:$AR$386,17,0),"") ->  | S35: =IFERROR(VLOOKUP(A35,'Gruber Tabelle'!$A$3:$AR$386,20,0),"") ->  | T35: =IFERROR(VLOOKUP(A35,'Gruber Tabelle'!$A$3:$AR$386,21,0),"") ->  | U35: =IFERROR(VLOOKUP(A35,'Gruber Tabelle'!$A$3:$AR$386,23,0),"") ->  | V35: =IFERROR(VLOOKUP(A35,'Gruber Tabelle'!$A$3:$AR$386,22,0),"") ->  | W35: =IFERROR(VLOOKUP(A35,'Gruber Tabelle'!$A$3:$AR$386,24,0),"") ->  | X35: =IFERROR(VLOOKUP(A35,'Gruber Tabelle'!$A$3:$AR$386,25,0),"") ->  | Y35: =IFERROR(VLOOKUP(A35,'Gruber Tabelle'!$A$3:$AR$386,26,0),"") ->  | Z35: =IFERROR(VLOOKUP(A35,'Gruber Tabelle'!$A$3:$AR$386,27,0),"") ->  | AA35: =IFERROR(VLOOKUP(A35,'Gruber Tabelle'!$A$3:$AR$386,29,0),"") ->  | AB35: =IFERROR(VLOOKUP(A35,'Gruber Tabelle'!$A$3:$AR$386,30,0),"") ->  | AC35: =IFERROR(VLOOKUP(A35,'Gruber Tabelle'!$A$3:$AR$386,31,0),"") ->  | AD35: =IFERROR(VLOOKUP(A35,'Gruber Tabelle'!$A$3:$AR$386,32,0),"") ->  | AE35: =IFERROR(VLOOKUP(A35,'Gruber Tabelle'!$A$3:$AR$386,33,0),"") ->  | AF35: =IFERROR(VLOOKUP(A35,'Gruber Tabelle'!$A$3:$AR$386,34,0),"") ->  | AG35: =IFERROR(VLOOKUP(A35,'Gruber Tabelle'!$A$3:$AR$386,35,0),"") ->  | AH35: =IFERROR(VLOOKUP(A35,'Gruber Tabelle'!$A$3:$AR$386,16,0),"") ->  | AI35: =IFERROR(VLOOKUP(A35,'Gruber Tabelle'!$A$3:$AR$386,41,0),"") ->  | AJ35: =IFERROR(VLOOKUP(A35,'Gruber Tabelle'!$A$3:$AR$386,42,0),"") ->  | AL35: =IFERROR(VLOOKUP(A35,'Gruber Tabelle'!$A$3:$AR$386,15,0),"") ->  | AM35: =IFERROR(VLOOKUP(A35,'Gruber Tabelle'!$A$3:$AR$386,37,0),"") ->  | AN35: =IFERROR(VLOOKUP(A35,'Gruber Tabelle'!$A$3:$AR$386,38,0),"") ->  | AO35: =IFERROR(VLOOKUP(A35,'Gruber Tabelle'!$A$3:$AR$386,39,0),"") ->  | AP35: =IFERROR(VLOOKUP(A35,'Gruber Tabelle'!$A$3:$AR$386,40,0),"") ->  | AQ35: =IFERROR(VLOOKUP(A35,'Gruber Tabelle'!$A$3:$AR$386,15,0),"") ->  | AR35: =IFERROR(VLOOKUP(A35,'Gruber Tabelle'!$A$3:$AR$386,19,0),"") ->  | AS35: =IFERROR(VLOOKUP(A35,'Gruber Tabelle'!$A$3:$AR$386,36,0),"") -> 
B36: =IFERROR(VLOOKUP(A36,'Gruber Tabelle'!$A$3:$AR$386,2,0),"") ->  | C36: =IFERROR(VLOOKUP(A36,'Gruber Tabelle'!$A$3:$AR$386,28,0),"") ->  | D36: =IFERROR(VLOOKUP(A36,'Gruber Tabelle'!$A$3:$AR$386,3,0),"") ->  | E36: =IFERROR(VLOOKUP(A36,'Gruber Tabelle'!$A$3:$AR$386,4,0),"") ->  | F36: =IFERROR(VLOOKUP(A36,'Gruber Tabelle'!$A$3:$AR$386,5,0),"") ->  | G36: =IFERROR(VLOOKUP(A36,'Gruber Tabelle'!$A$3:$AR$386,6,0),"") ->  | H36: =IFERROR(VLOOKUP(A36,'Gruber Tabelle'!$A$3:$AR$386,7,0),"") ->  | I36: =IFERROR(VLOOKUP(A36,'Gruber Tabelle'!$A$3:$AR$386,8,0),"") ->  | J36: =IFERROR(VLOOKUP(A36,'Gruber Tabelle'!$A$3:$AR$386,13,0),"") ->  | K36: =IFERROR(VLOOKUP(A36,'Gruber Tabelle'!$A$3:$AR$386,18,0),"") ->  | L36: =IFERROR(VLOOKUP(A36,'Gruber Tabelle'!$A$3:$AR$386,9,0),"") ->  | M36: =IFERROR(VLOOKUP(A36,'Gruber Tabelle'!$A$3:$AR$386,14,0),"") ->  | N36: =IFERROR(VLOOKUP(A36,'Gruber Tabelle'!$A$3:$AR$386,10,0),"") ->  | O36: =IFERROR(VLOOKUP(A36,'Gruber Tabelle'!$A$3:$AR$386,11,0),"") ->  | P36: =IFERROR(VLOOKUP(A36,'Gruber Tabelle'!$A$3:$AR$386,43,0),"") ->  | Q36: =IFERROR(VLOOKUP(A36,'Gruber Tabelle'!$A$3:$AR$386,12,0),"") ->  | R36: =IFERROR(VLOOKUP(A36,'Gruber Tabelle'!$A$3:$AR$386,17,0),"") ->  | S36: =IFERROR(VLOOKUP(A36,'Gruber Tabelle'!$A$3:$AR$386,20,0),"") ->  | T36: =IFERROR(VLOOKUP(A36,'Gruber Tabelle'!$A$3:$AR$386,21,0),"") ->  | U36: =IFERROR(VLOOKUP(A36,'Gruber Tabelle'!$A$3:$AR$386,23,0),"") ->  | V36: =IFERROR(VLOOKUP(A36,'Gruber Tabelle'!$A$3:$AR$386,22,0),"") ->  | W36: =IFERROR(VLOOKUP(A36,'Gruber Tabelle'!$A$3:$AR$386,24,0),"") ->  | X36: =IFERROR(VLOOKUP(A36,'Gruber Tabelle'!$A$3:$AR$386,25,0),"") ->  | Y36: =IFERROR(VLOOKUP(A36,'Gruber Tabelle'!$A$3:$AR$386,26,0),"") ->  | Z36: =IFERROR(VLOOKUP(A36,'Gruber Tabelle'!$A$3:$AR$386,27,0),"") ->  | AA36: =IFERROR(VLOOKUP(A36,'Gruber Tabelle'!$A$3:$AR$386,29,0),"") ->  | AB36: =IFERROR(VLOOKUP(A36,'Gruber Tabelle'!$A$3:$AR$386,30,0),"") ->  | AC36: =IFERROR(VLOOKUP(A36,'Gruber Tabelle'!$A$3:$AR$386,31,0),"") ->  | AD36: =IFERROR(VLOOKUP(A36,'Gruber Tabelle'!$A$3:$AR$386,32,0),"") ->  | AE36: =IFERROR(VLOOKUP(A36,'Gruber Tabelle'!$A$3:$AR$386,33,0),"") ->  | AF36: =IFERROR(VLOOKUP(A36,'Gruber Tabelle'!$A$3:$AR$386,34,0),"") ->  | AG36: =IFERROR(VLOOKUP(A36,'Gruber Tabelle'!$A$3:$AR$386,35,0),"") ->  | AH36: =IFERROR(VLOOKUP(A36,'Gruber Tabelle'!$A$3:$AR$386,16,0),"") ->  | AI36: =IFERROR(VLOOKUP(A36,'Gruber Tabelle'!$A$3:$AR$386,41,0),"") ->  | AJ36: =IFERROR(VLOOKUP(A36,'Gruber Tabelle'!$A$3:$AR$386,42,0),"") ->  | AL36: =IFERROR(VLOOKUP(A36,'Gruber Tabelle'!$A$3:$AR$386,15,0),"") ->  | AM36: =IFERROR(VLOOKUP(A36,'Gruber Tabelle'!$A$3:$AR$386,37,0),"") ->  | AN36: =IFERROR(VLOOKUP(A36,'Gruber Tabelle'!$A$3:$AR$386,38,0),"") ->  | AO36: =IFERROR(VLOOKUP(A36,'Gruber Tabelle'!$A$3:$AR$386,39,0),"") ->  | AP36: =IFERROR(VLOOKUP(A36,'Gruber Tabelle'!$A$3:$AR$386,40,0),"") ->  | AQ36: =IFERROR(VLOOKUP(A36,'Gruber Tabelle'!$A$3:$AR$386,15,0),"") ->  | AR36: =IFERROR(VLOOKUP(A36,'Gruber Tabelle'!$A$3:$AR$386,19,0),"") ->  | AS36: =IFERROR(VLOOKUP(A36,'Gruber Tabelle'!$A$3:$AR$386,36,0),"") -> 

Sheet Gruber Tabelle
A1: Ration | C1: TM/FM | D1: CA | E1: OM | F1: aNDFom | G1: ADFom | H1: OMD | I1: CP | J1: CL | K1: ST | L1: ZU | M1: GE | N1: sidP | O1: sidP- UDP | P1: siDUDP | Q1: RMD | R1: ME | S1: pabKH | T1: Ca | U1: P | V1: Mg | W1: Na | X1: K | Y1: Cl | Z1: S | AA1: DCAB | AB1: Fu-Art | AC1: Fe | AD1: Cu | AE1: Zn | AF1: Mn | AG1: Co | AH1: J | AI1: Se | AJ1: Kosten € | AK1: a | AL1: b | AM1: c | AN1: lag | AO1: Lysin | AP1: Methionin | AQ1: bST | AR1: Datum
C2: g / kg FM | D2: g / kg TM | E2: g / kg TM | F2: g / kg TM | G2: g / kg TM | H2: % OM | I2: g / kg TM | J2: g / kg TM | K2: g / kg TM | L2: g / kg TM | M2: MJ / kg TM | N2: g / kg TM | O2: g / kg TM | P2: % | R2: MJ/ kg TM | S2: g / kg TM | T2: g / kg TM | U2: g / kg TM | V2: g / kg TM | W2: g / kg TM | X2: g / kg TM | Y2: g / kg TM | Z2: g / kg TM | AA2: meq / kg | AC2: mg / kg TM | AD2: mg / kg TM | AE2: mg / kg TM | AF2: mg / kg TM | AG2: mg / kg TM | AH2: mg / kg TM | AI2: mg / kg TM | AJ2: € / dt | AK2: % | AL2: % | AM2: % / h | AN2: h | AO2: g / kg TM | AP2: g / kg TM | AQ2: g / kg TM
A3: 1013 | B3: Wiesengras, 1.Schnitt, im Blattstadium | C3: 175 | D3: 111 | E3: =1000-D3 -> 889 | F3: 433 | G3: 209 | H3: 88.26 | I3: 228 | J3: 33 | K3: 0 | L3: 137 | M3: 18.17 | N3: 121.47 | O3: 43.44 | P3: 86 | Q3: 9.57 | R3: 12.87 | S3: 137 | T3: 6.9 | U3: 3.8 | V3: 2.4 | W3: 0.9 | X3: 31.5 | Y3: 7.1 | Z3: 2.8 | AA3: =(42.5 *W3 + 25.6 * X3) - (28.2 * Y3 + 62.3 *Z3) -> 469.99 | AB3: GF | AC3: 100 | AD3: 8 | AE3: 35 | AF3: 59.1 | AG3: 0.12 | AH3: 0.4 | AI3: 0.03 | AJ3: 0 | AK3: 13.6 | AL3: 77.9 | AM3: 15.2 | AN3: 1.3 | AO3: 9.41 | AP3: 3.22 | AQ3: 0 | AR3: 2024-02-11
A4: 1014 | B4: Wiesengras, 1.Schnitt, im Schossen | C4: 180 | D4: 103 | E4: =1000-D4 -> 897 | F4: 439 | G4: 222 | H4: 83.39 | I4: 192 | J4: 32 | K4: 0 | L4: 137 | M4: 18.13 | N4: 110.97 | O4: 36.58 | P4: 86 | Q4: 5.96 | R4: 12.13 | S4: 137 | T4: 6.7 | U4: 3.6 | V4: 2.4 | W4: 0.84 | X4: 31.1 | Y4: 7 | Z4: 2.7 | AA4: =(42.5 *W4 + 25.6 * X4) - (28.2 * Y4 + 62.3 *Z4) -> 466.25 | AB4: GF | AC4: 100 | AD4: 7.9 | AE4: 34.7 | AF4: 61.5 | AG4: 0.12 | AH4: 0.4 | AI4: 0.03 | AJ4: 0 | AK4: 13.6 | AL4: 77.9 | AM4: 15.2 | AN4: 1.3 | AO4: 7.56 | AP4: 2.58 | AQ4: 0 | AR4: 2024-02-11
A5: 1015 | B5: Wiesengras, 1.Schnitt | C5: 185 | D5: 95 | E5: 905 | F5: 457 | G5: 241 | H5: 79.08 | I5: 167 | J5: 30 | K5: 0 | L5: 137 | M5: 18.12 | N5: 102.99 | O5: 31.82 | P5: 86 | Q5: 3.62 | R5: 11.48 | S5: 137 | T5: 6.5 | U5: 3.4 | V5: 2.2 | W5: 0.66 | X5: 29.6 | Y5: 6.7 | Z5: 2.5 | AA5: =(42.5 *W5 + 25.6 * X5) - (28.2 * Y5 + 62.3 *Z5) -> 441.12 | AB5: GF | AC5: 100 | AD5: 7.7 | AE5: 33 | AF5: 65 | AG5: 0.12 | AH5: 0.4 | AI5: 0.03 | AJ5: 0 | AK5: 13.6 | AL5: 77.9 | AM5: 15.2 | AN5: 1.3 | AO5: 6.87 | AP5: 2.34 | AQ5: 0 | AR5: 2024-02-11
A6: 1016 | B6: Wiesengras, 1.Schnitt, Beginn Blüte | C6: 190 | D6: 88 | E6: 912 | F6: 486 | G6: 260 | H6: 74.69 | I6: 146 | J6: 28 | K6: 0 | L6: 137 | M6: 18.11 | N6: 95.55 | O6: 27.81 | P6: 86 | Q6: 1.84 | R6: 10.8 | S6: 137 | T6: 6.4 | U6: 3.3 | V6: 2.1 | W6: 0.54 | X6: 28.8 | Y6: 6.6 | Z6: 2.3 | AA6: 430.82 | AB6: GF | AC6: 100 | AD6: 7.5 | AE6: 32.4 | AF6: 69.8 | AG6: 0.12 | AH6: 0.4 | AI6: 0.03 | AJ6: 0 | AK6: 13.6 | AL6: 77.9 | AM6: 15.2 | AN6: 1.3 | AO6: 11.26 | AP6: 3.86 | AQ6: 0 | AR6: 2024-02-11
A7: 1017 | B7: Wiesengras, 1.Schnitt, Ende Blüte | C7: 200 | D7: 78 | E7: 922 | F7: 515 | G7: 281 | H7: 69.28 | I7: 120 | J7: 25 | K7: 0 | L7: 137 | M7: 18.11 | N7: 86.38 | O7: 22.86 | P7: 86 | Q7: -0.38 | R7: 9.97 | S7: 137 | T7: 6 | U7: 3.1 | V7: 2 | W7: 0.46 | X7: 27.6 | Y7: 6.6 | Z7: 2.1 | AA7: 409.16 | AB7: GF | AC7: 100 | AD7: 7.3 | AE7: 30.2 | AF7: 72 | AG7: 0.12 | AH7: 0.4 | AI7: 0.03 | AJ7: 0 | AK7: 13.6 | AL7: 77.9 | AM7: 15.2 | AN7: 1.3 | AO7: 8.72 | AP7: 2.98 | AQ7: 0 | AR7: 2024-02-11
A8: 1023 | B8: Wiesengras, 2.und FolgeSchnitte, im Blattstadium | C8: 200 | D8: 99 | E8: 901 | F8: 488 | G8: 270 | H8: 78.73 | I8: 179 | J8: 40 | K8: 0 | L8: 63 | M8: 18.52 | N8: 104.65 | O8: 34.1 | P8: 86 | Q8: 5.27 | R8: 11.68 | S8: 63 | T8: 7.6 | U8: 3.7 | V8: 2.8 | W8: 0.89 | X8: 29 | Y8: 8.3 | Z8: 3.2 | AA8: 346.805 | AB8: GF | AC8: 100 | AD8: 8.2 | AE8: 37.6 | AF8: 54.8 | AG8: 0.12 | AH8: 0.4 | AI8: 0.03 | AJ8: 0 | AK8: 13.6 | AL8: 77.9 | AM8: 15.2 | AN8: 1.3 | AO8: 8.35 | AP8: 2.85 | AQ8: 0 | AR8: 2024-02-11
A9: 1024 | B9: Wiesengras, 2.und FolgeSchnitte, im Schossen | C9: 200 | D9: 97 | E9: 903 | F9: 491 | G9: 275 | H9: 75.92 | I9: 159 | J9: 37 | K9: 0 | L9: 63 | M9: 18.4 | N9: 98.47 | O9: 30.29 | P9: 86 | Q9: 3.35 | R9: 11.18 | S9: 63 | T9: 7.6 | U9: 3.5 | V9: 2.8 | W9: 0.79 | X9: 28 | Y9: 8.1 | Z9: 3.2 | AA9: 322.595 | AB9: GF | AC9: 100 | AD9: 8.1 | AE9: 35.2 | AF9: 69.2 | AG9: 0.12 | AH9: 0.4 | AI9: 0.03 | AJ9: 0 | AK9: 13.6 | AL9: 77.9 | AM9: 15.2 | AN9: 1.3 | AO9: 7.33 | AP9: 2.5 | AQ9: 0 | AR9: 2024-02-11
A10: 1025 | B10: Wiesengras. 2.Schnitt | C10: 200 | D10: 94 | E10: 906 | F10: 510 | G10: 285 | H10: 72.2 | I10: 144 | J10: 35 | K10: 0 | L10: 63 | M10: 18.35 | N10: 92.48 | O10: 27.43 | P10: 86 | Q10: 2.24 | R10: 10.56 | S10: 63 | T10: 7.3 | U10: 3.4 | V10: 2.6 | W10: 0.62 | X10: 27.4 | Y10: 8 | Z10: 2.7 | AA10: 333.98 | AB10: GF | AC10: 100 | AD10: 8 | AE10: 33.1 | AF10: 71.1 | AG10: 0.12 | AH10: 0.4 | AI10: 0.03 | AJ10: 0 | AK10: 13.6 | AL10: 77.9 | AM10: 15.2 | AN10: 1.3 | AO10: 8.49 | AP10: 2.9 | AQ10: 0 | AR10: 2024-02-11
A11: 1026 | B11: Wiesengras, 2.und FolgeSchnitte, Beginn Blüte | C11: 200 | D11: 91 | E11: 909 | F11: 537 | G11: 304 | H11: 68.67 | I11: 124 | J11: 31 | K11: 0 | L11: 63 | M11: 18.23 | N11: 85.7 | O11: 23.62 | P11: 86 | Q11: 0.46 | R11: 9.95 | S11: 63 | T11: 6.9 | U11: 3.2 | V11: 2.4 | W11: 0.55 | X11: 25.6 | Y11: 7.7 | Z11: 2.5 | AA11: 305.845 | AB11: GF | AC11: 100 | AD11: 7.6 | AE11: 31.8 | AF11: 80.7 | AG11: 0.12 | AH11: 0.4 | AI11: 0.03 | AJ11: 0 | AK11: 13.6 | AL11: 77.9 | AM11: 15.2 | AN11: 1.3 | AO11: 9.18 | AP11: 3.14 | AQ11: 0 | AR11: 2024-02-11
A12: 1028 | B12: Wiesengras, 3. Schnitt | C12: 200 | D12: 100 | E12: 900 | F12: 480 | G12: 266 | H12: 74.15 | I12: 168 | J12: 31 | K12: 0 | L12: 72 | M12: 18.24 | N12: 98.38 | O12: 32.01 | P12: 86 | Q12: 4.91 | R12: 10.74 | S12: 72 | T12: 8.2 | U12: 3.4 | V12: 2.9 | W12: 0.78 | X12: 24.3 | Y12: 7.6 | Z12: 2.7 | AA12: 272.7 | AB12: GF | AC12: 250 | AD12: 8.1 | AE12: 32.5 | AF12: 72 | AG12: 0.12 | AH12: 0.4 | AI12: 0.03 | AJ12: 0 | AK12: 13.6 | AL12: 77.9 | AM12: 15.2 | AN12: 1.3 | AO12: 9.41 | AP12: 3.22 | AQ12: 0 | AR12: 2024-02-11
A13: 1029 | B13: Wiesengras, ab 4. Schnitt | C13: 180 | D13: 110 | E13: 890 | F13: 470 | G13: 260 | H13: 78.98 | I13: 202 | J13: 33 | K13: 0 | L13: 86 | M13: 18.21 | N13: 108.4 | O13: 38.49 | P13: 86 | Q13: 8.29 | R13: 11.43 | S13: 86 | T13: 8.5 | U13: 3.7 | V13: 3 | W13: 1 | X13: 26.8 | Y13: 7.8 | Z13: 3.2 | AA13: 309.26 | AB13: GF | AC13: 300 | AD13: 8.4 | AE13: 33 | AF13: 74.1 | AG13: 0.12 | AH13: 0.4 | AI13: 0.03 | AJ13: 0 | AK13: 13.6 | AL13: 77.9 | AM13: 15.2 | AN13: 1.3 | AO13: 8.72 | AP13: 2.98 | AQ13: 0 | AR13: 2024-02-11
A14: 1055 | B14: Weidegras, 1. Aufwuchs | C14: 190 | D14: 90 | E14: 910 | F14: 400 | G14: 210 | H14: 86.08 | I14: 196 | J14: 35 | K14: 0 | L14: 121 | M14: 18.5 | N14: 115.24 | O14: 37.34 | P14: 86 | Q14: 5.61 | R14: 12.86 | S14: 121 | T14: 7 | U14: 3.7 | V14: 2.4 | W14: 0.7 | X14: 30 | Y14: 7 | Z14: 3 | AA14: 413.45 | AB14: GF | AC14: 150 | AD14: 7.9 | AE14: 42 | AF14: 40 | AG14: 0.12 | AH14: 0.4 | AI14: 0.03 | AJ14: 0 | AK14: 13.6 | AL14: 77.9 | AM14: 15.2 | AN14: 1.3 | AO14: 8.49 | AP14: 2.9 | AQ14: 0 | AR14: 2024-02-11
A15: 1065 | B15: Weidegras, ab 2.Aufwuchs | C15: 200 | D15: 100 | E15: 900 | F15: 430 | G15: 230 | H15: 81 | I15: 192 | J15: 35 | K15: 0 | L15: 94 | M15: 18.37 | N15: 109.08 | O15: 36.58 | P15: 86 | Q15: 6.42 | R15: 11.91 | S15: 94 | T15: 7.6 | U15: 4.2 | V15: 3 | W15: 0.8 | X15: 25 | Y15: 8.3 | Z15: 3 | AA15: 253.04 | AB15: GF | AC15: 250 | AD15: 8.4 | AE15: 42 | AF15: 50 | AG15: 0.12 | AH15: 0.4 | AI15: 0.03 | AJ15: 0 | AK15: 13.6 | AL15: 77.9 | AM15: 15.2 | AN15: 1.3 | AO15: 8.35 | AP15: 2.85 | AQ15: 0 | AR15: 2024-02-11
A16: 1075 | B16: Gras, angewelkt, 1.Schnitt | C16: 350 | D16: 90 | E16: 910 | F16: 430 | G16: 260 | H16: 80.25 | I16: 160 | J16: 35 | K16: 0 | L16: 135 | M16: 18.29 | N16: 103.11 | O16: 30.48 | P16: 86 | Q16: 2.4 | R16: 11.82 | S16: 135 | T16: 6.5 | U16: 3.5 | V16: 2.2 | W16: 0.79 | X16: 28.9 | Y16: 6.6 | Z16: 2.4 | AA16: 437.775 | AB16: GF | AC16: 200 | AD16: 7.7 | AE16: 33 | AF16: 50 | AG16: 0.12 | AH16: 0.4 | AI16: 0.03 | AJ16: 0 | AK16: 13.6 | AL16: 77.9 | AM16: 15.2 | AN16: 1.3 | AO16: 4.87 | AP16: 2.3 | AQ16: 0 | AR16: 2024-02-11
A17: 1085 | B17: Gras, angewelkt, ab 2.Schnitt | C17: 350 | D17: 100 | E17: 900 | F17: 480 | G17: 270 | H17: 74.96 | I17: 165 | J17: 35 | K17: 0 | L17: 90 | M17: 18.26 | N17: 98.52 | O17: 31.43 | P17: 86 | Q17: 4.36 | R17: 10.9 | S17: 90 | T17: 7.8 | U17: 3.6 | V17: 2.8 | W17: 1.02 | X17: 28.1 | Y17: 7.8 | Z17: 2.8 | AA17: 368.31 | AB17: GF | AC17: 300 | AD17: 8 | AE17: 38.8 | AF17: 47.7 | AG17: 0.12 | AH17: 0.4 | AI17: 0.03 | AJ17: 0 | AK17: 13.6 | AL17: 77.9 | AM17: 15.2 | AN17: 1.3 | AO17: 5.73 | AP17: 2.26 | AQ17: 0 | AR17: 2024-02-11
A18: 1125 | B18: GrünGerste | C18: 290 | D18: 60 | E18: 940 | F18: 580 | G18: 320 | H18: 69.5 | I18: 108 | J18: 25 | K18: 0 | L18: 90 | M18: 18.54 | N18: 86.27 | O18: 21.3 | P18: 89 | Q18: -2.23 | R18: 10.3 | S18: 90 | T18: 4.8 | U18: 2.6 | V18: 1.5 | W18: 0.29 | X18: 23.8 | Y18: 1.8 | Z18: 1.8 | AA18: 458.705 | AB18: GF | AC18: 100 | AD18: 5.1 | AE18: 29.9 | AF18: 45.4 | AG18: 0.12 | AH18: 0.35 | AI18: 0.02 | AJ18: 0 | AK18: 13.6 | AL18: 77.9 | AM18: 15.2 | AN18: 1.3 | AO18: 5.08 | AP18: 2.34 | AQ18: 0 | AR18: 2024-02-11
A19: 1145 | B19: GrünHafer | C19: 290 | D19: 78 | E19: 922 | F19: 530 | G19: 340 | H19: 69.5 | I19: 111 | J19: 32 | K19: 0 | L19: 104 | M19: 18.31 | N19: 85.62 | O19: 21.89 | P19: 89 | Q19: -1.55 | R19: 10.17 | S19: 104 | T19: 5.7 | U19: 3.4 | V19: 2.2 | W19: 0.71 | X19: 27 | Y19: 3.9 | Z19: 1.8 | AA19: 499.255 | AB19: GF | AC19: 191.6 | AD19: 7.3 | AE19: 27.6 | AF19: 50.3 | AG19: 0.12 | AH19: 0.35 | AI19: 0.02 | AJ19: 0 | AK19: 13.6 | AL19: 77.9 | AM19: 15.2 | AN19: 1.3 | AO19: 2.26 | AP19: 1.3 | AQ19: 0 | AR19: 2024-02-11
A20: 1165 | B20: GrünRoggen | C20: 260 | D20: 80 | E20: 920 | F20: 520 | G20: 330 | H20: 69.5 | I20: 115 | J20: 32 | K20: 0 | L20: 93 | M20: 18.33 | N20: 86.27 | O20: 22.68 | P20: 89 | Q20: -1.02 | R20: 10.17 | S20: 93 | T20: 4.3 | U20: 3.7 | V20: 1.6 | W20: 0.33 | X20: 30.2 | Y20: 5 | Z20: 1.8 | AA20: 534.005 | AB20: GF | AC20: 202.5 | AD20: 6.5 | AE20: 27.4 | AF20: 43.3 | AG20: 0.12 | AH20: 0.35 | AI20: 0.02 | AJ20: 0 | AK20: 13.6 | AL20: 77.9 | AM20: 15.2 | AN20: 1.3 | AO20: 2.24 | AP20: 1.28 | AQ20: 0 | AR20: 2024-02-11
A21: 1203 | B21: GrünMais, in der Kolbenbildung | C21: 200 | D21: 46 | E21: 954 | F21: 501 | G21: 284 | H21: 70.35 | I21: 82 | J21: 17 | K21: 86 | L21: 140 | M21: 18.23 | N21: 82.37 | O21: 15.63 | P21: 86 | Q21: -5.89 | R21: 10.31 | S21: 206.22 | T21: 3 | U21: 2.2 | V21: 1.7 | W21: 0.2 | X21: 12.1 | Y21: 1.5 | Z21: 1.1 | AA21: 207.43 | AB21: GF | AC21: 120 | AD21: 7.7 | AE21: 30 | AF21: 26.5 | AG21: 0.1 | AH21: 0.3 | AI21: 0.01 | AJ21: 0 | AK21: 13.6 | AL21: 77.9 | AM21: 15.2 | AN21: 1.3 | AO21: 2.21 | AP21: 1.26 | AQ21: 19.78 | AR21: 2024-02-11
A22: 1204 | B22: GrünMais, in der Milchreife | C22: 225 | D22: 43 | E22: 957 | F22: 475 | G22: 266 | H22: 71.75 | I22: 76 | J22: 20 | K22: 137 | L22: 120 | M22: 18.3 | N22: 82.77 | O22: 14.48 | P22: 86 | Q22: -7.01 | R22: 10.61 | S22: 225.49 | T22: 2.9 | U22: 2.2 | V22: 1.7 | W22: 0.2 | X22: 12.1 | Y22: 1.5 | Z22: 1.1 | AA22: 207.43 | AB22: GF | AC22: 110 | AD22: 7.7 | AE22: 30 | AF22: 26.5 | AG22: 0.08 | AH22: 0.3 | AI22: 0.01 | AJ22: 0 | AK22: 13.6 | AL22: 77.9 | AM22: 15.2 | AN22: 1.3 | AO22: 1.93 | AP22: 1.11 | AQ22: 31.51 | AR22: 2024-02-11
A23: 1205 | B23: GrünMais | C23: 240 | D23: 41 | E23: 959 | F23: 430 | G23: 245 | H23: 73.41 | I23: 74 | J23: 24 | K23: 203 | L23: 100 | M23: 18.36 | N23: 84.11 | O23: 14.1 | P23: 86 | Q23: -7.68 | R23: 10.94 | S23: 256.31 | T23: 2.8 | U23: 2.2 | V23: 1.7 | W23: 0.2 | X23: 12.1 | Y23: 1.5 | Z23: 1.1 | AA23: 207.43 | AB23: GF | AC23: 100 | AD23: 7.7 | AE23: 30 | AF23: 26.5 | AG23: 0.07 | AH23: 0.3 | AI23: 0.01 | AJ23: 0 | AK23: 13.6 | AL23: 77.9 | AM23: 15.2 | AN23: 1.3 | AO23: 2.26 | AP23: 1.3 | AQ23: 46.69 | AR23: 2024-02-11
A24: 1265 | B24: Mais, Restpflanze, grün | C24: 350 | D24: 56 | E24: 944 | F24: 553 | G24: 330 | H24: 45.7 | I24: 42 | J24: 15 | K24: 40 | L24: 57 | M24: 18.12 | N24: 49.24 | O24: 6.34 | P24: 62 | Q24: -5.27 | R24: 6.26 | S24: 87.8 | T24: 3.2 | U24: 2.5 | V24: 0.9 | W24: 0.02 | X24: 10.9 | Y24: 2.2 | Z24: 1.1 | AA24: 149.32 | AB24: GF | AC24: 45.5 | AD24: 4.4 | AE24: 16.2 | AF24: 13.7 | AG24: 0.08 | AH24: 0.3 | AI24: 0.01 | AJ24: 0 | AK24: 58 | AL24: 31 | AM24: 3.8 | AN24: 1.5 | AO24: 11.31 | AP24: 3.48 | AQ24: 9.2 | AR24: 2024-02-11
A25: 1275 | B25: GrünMais, zum Silieren | C25: 340 | D25: 40 | E25: 960 | F25: 400 | G25: 225 | H25: 75.31 | I25: 76 | J25: 30 | K25: 320 | L25: 90 | M25: 18.36 | N25: 86.38 | O25: 14.48 | P25: 86 | Q25: -7.89 | R25: 11.26 | S25: 362 | T25: 2 | U25: 2.3 | V25: 1.5 | W25: 0.26 | X25: 12 | Y25: 1.1 | Z25: 1 | AA25: 224.93 | AB25: GF | AC25: 100 | AD25: 5 | AE25: 34 | AF25: 35 | AG25: 0.07 | AH25: 0.3 | AI25: 0.01 | AJ25: 0 | AK25: 13.6 | AL25: 77.9 | AM25: 15.2 | AN25: 1.3 | AO25: 13.26 | AP25: 3.6 | AQ25: 48 | AR25: 2024-02-11
A26: 1305 | B26: Ackerbohnen, grün | C26: 200 | D26: 82 | E26: 918 | F26: 506 | G26: 386 | H26: 74 | I26: 150 | J26: 20 | K26: 0 | L26: 47 | M26: 18.34 | N26: 79.88 | O26: 12.32 | P26: 71 | Q26: 4.92 | R26: 10.82 | S26: 47 | T26: 15.5 | U26: 3.5 | V26: 3.3 | W26: 2 | X26: 23 | Y26: 2 | Z26: 2 | AA26: 492.8 | AB26: GF | AC26: 200 | AD26: 9 | AE26: 50 | AF26: 60 | AG26: 0.12 | AH26: 0.35 | AI26: 0.02 | AJ26: 0 | AK26: 57 | AL26: 36 | AM26: 18 | AN26: 0 | AO26: 11.38 | AP26: 3.5 | AQ26: 0 | AR26: 2024-02-11
A27: 1306 | B27: Sojabohnen, grün | C27: 300 | D27: 108 | E27: 892 | F27: 453 | G27: 349 | H27: 75 | I27: 186 | J27: 22 | K27: 0 | L27: 44 | M27: 18.07 | N27: 81.8 | O27: 15.27 | P27: 71 | Q27: 10.26 | R27: 10.71 | S27: 44 | T27: 15.8 | U27: 3.9 | V27: 4.3 | W27: 0.4 | X27: 27.1 | Y27: 1.5 | Z27: 2.4 | AA27: 518.94 | AB27: GF | AC27: 600 | AD27: 10.5 | AE27: 41 | AF27: 64 | AG27: 0.12 | AH27: 0.35 | AI27: 0.02 | AJ27: 0 | AK27: 57 | AL27: 36 | AM27: 18 | AN27: 0 | AO27: 13 | AP27: 4 | AQ27: 0 | AR27: 2024-07-20
A28: 1315 | B28: Hülsenfrucht Gemenge | C28: 200 | D28: 64 | E28: 936 | F28: 607 | G28: 330 | H28: 75 | I28: 120 | J28: 22 | K28: 0 | L28: 101 | M28: 18.42 | N28: 79.66 | O28: 9.85 | P28: 71 | Q28: 0.13 | R28: 11.13 | S28: 101 | T28: 7 | U28: 4 | V28: 1.8 | W28: 0.4 | X28: 30 | Y28: 2 | Z28: 3 | AA28: 541.7 | AB28: GF | AC28: 200 | AD28: 9 | AE28: 50 | AF28: 60 | AG28: 0.12 | AH28: 0.35 | AI28: 0.02 | AJ28: 0 | AK28: 57 | AL28: 36 | AM28: 18 | AN28: 0 | AO28: 10.4 | AP28: 3.2 | AQ28: 0 | AR28: 2024-02-11
A29: 1335 | B29: Erbs- Wick- Gemenge | C29: 180 | D29: 88 | E29: 912 | F29: 571 | G29: 342 | H29: 78 | I29: 169 | J29: 28 | K29: 0 | L29: 52 | M29: 18.47 | N29: 84.62 | O29: 13.88 | P29: 71 | Q29: 6.84 | R29: 11.54 | S29: 52 | T29: 7.7 | U29: 4.8 | V29: 2 | W29: 0.29 | X29: 28.5 | Y29: 5.1 | Z29: 3.1 | AA29: 404.975 | AB29: GF | AC29: 378.4 | AD29: 4.8 | AE29: 31.2 | AF29: 36.1 | AG29: 0.12 | AH29: 0.35 | AI29: 0.02 | AJ29: 0 | AK29: 57 | AL29: 36 | AM29: 18 | AN29: 0 | AO29: 9.56 | AP29: 2.94 | AQ29: 0 | AR29: 2024-02-11
A30: 1345 | B30: Grünerbsen (Ganzpflanze) | C30: 170 | D30: 90 | E30: 910 | F30: 453 | G30: 336 | H30: 77 | I30: 197 | J30: 27 | K30: 0 | L30: 58 | M30: 18.52 | N30: 85.85 | O30: 16.17 | P30: 71 | Q30: 11.06 | R30: 11.3 | S30: 58 | T30: 11 | U30: 5 | V30: 2.5 | W30: 0.5 | X30: 30 | Y30: 2 | Z30: 2 | AA30: 608.25 | AB30: GF | AC30: 200 | AD30: 9 | AE30: 50 | AF30: 60 | AG30: 0.12 | AH30: 0.35 | AI30: 0.02 | AJ30: 0 | AK30: 57 | AL30: 36 | AM30: 18 | AN30: 0 | AO30: 10.5 | AP30: 3.78 | AQ30: 0 | AR30: 2024-02-11
A31: 1355 | B31: Hülsenfrüchte- Sonnenblumen- Gemenge | C31: 240 | D31: 107 | E31: 893 | F31: 575 | G31: 461 | H31: 74 | I31: 130 | J31: 22 | K31: 0 | L31: 59 | M31: 17.78 | N31: 76.4 | O31: 10.68 | P31: 71 | Q31: 2.53 | R31: 10.54 | S31: 59 | T31: 0 | U31: 0 | V31: 0 | W31: 0 | X31: 0 | Y31: 0 | Z31: 0 | AA31: 0 | AB31: GF | AC31: 0 | AD31: 0 | AE31: 0 | AF31: 0 | AG31: 0.12 | AH31: 0.35 | AI31: 0.01 | AJ31: 0 | AK31: 57 | AL31: 36 | AM31: 18 | AN31: 0 | AO31: 9.5 | AP31: 3.42 | AQ31: 0 | AR31: 2024-02-11
A32: 1375 | B32: Wick- Roggen | C32: 200 | D32: 70 | E32: 930 | F32: 620 | G32: 350 | H32: 78 | I32: 120 | J32: 21 | K32: 0 | L32: 80 | M32: 18.35 | N32: 95 | O32: 22.86 | P32: 86 | Q32: -2.46 | R32: 11.6 | S32: 80 | T32: 5 | U32: 4 | V32: 1.9 | W32: 0.1 | X32: 30 | Y32: 2 | Z32: 2 | AA32: 591.25 | AB32: GF | AC32: 200 | AD32: 9 | AE32: 50 | AF32: 60 | AG32: 0.12 | AH32: 0.35 | AI32: 0.02 | AJ32: 0 | AK32: 13.6 | AL32: 77.9 | AM32: 15.2 | AN32: 1.3 | AO32: 10.8 | AP32: 3.89 | AQ32: 0 | AR32: 2024-02-11
A33: 1424 | B33: Raps, grün, jung, blattreich | C33: 120 | D33: 140 | E33: 860 | F33: 367 | G33: 209 | H33: 81 | I33: 180 | J33: 41 | K33: 0 | L33: 133 | M33: 17.57 | N33: 87.19 | O33: 17.91 | P33: 86 | Q33: 8.75 | R33: 11.41 | S33: 133 | T33: 17 | U33: 4.5 | V33: 2.6 | W33: 1.3 | X33: 32 | Y33: 11 | Z33: 7 | AA33: 128.15 | AB33: GF | AC33: 200 | AD33: 7 | AE33: 22 | AF33: 95 | AG33: 0.12 | AH33: 0.35 | AI33: 0.03 | AJ33: 0 | AK33: 57 | AL33: 36 | AM33: 18 | AN33: 0 | AO33: 9 | AP33: 3.24 | AQ33: 0 | AR33: 2024-02-11
A34: 1425 | B34: Raps, grün | C34: 180 | D34: 156 | E34: 844 | F34: 435 | G34: 283 | H34: 81 | I34: 150 | J34: 37 | K34: 0 | L34: 76 | M34: 17.21 | N34: 82.91 | O34: 14.92 | P34: 86 | Q34: 4.82 | R34: 11.27 | S34: 76 | T34: 19 | U34: 5 | V34: 2.6 | W34: 1.4 | X34: 32 | Y34: 11 | Z34: 7 | AA34: 132.4 | AB34: GF | AC34: 200 | AD34: 7 | AE34: 22 | AF34: 95 | AG34: 0.12 | AH34: 0.35 | AI34: 0.03 | AJ34: 0 | AK34: 57 | AL34: 36 | AM34: 18 | AN34: 0 | AO34: 9.45 | AP34: 3.4 | AQ34: 0 | AR34: 2024-02-11
A35: 1435 | B35: Perko, grün | C35: 100 | D35: 205 | E35: 795 | F35: 320 | G35: 190 | H35: 81 | I35: 216 | J35: 38 | K35: 0 | L35: 110 | M35: 16.52 | N35: 85.52 | O35: 21.48 | P35: 86 | Q35: 15.11 | R35: 10.58 | S35: 110 | T35: 13 | U35: 6 | V35: 1.2 | W35: 1.1 | X35: 30 | Y35: 9 | Z35: 4 | AA35: 311.75 | AB35: GF | AC35: 200 | AD35: 8 | AE35: 50 | AF35: 60 | AG35: 0.12 | AH35: 0.35 | AI35: 0.1 | AJ35: 0 | AK35: 57 | AL35: 36 | AM35: 18 | AN35: 0 | AO35: 6.75 | AP35: 2.43 | AQ35: 0 | AR35: 2019-03-10
A36: 1444 | B36: Rübsen, jung, blattreich | C36: 110 | D36: 179 | E36: 821 | F36: 290 | G36: 170 | H36: 81 | I36: 180 | J36: 42 | K36: 0 | L36: 90 | M36: 16.98 | N36: 84.05 | O36: 17.91 | P36: 86 | Q36: 9.51 | R36: 11.02 | S36: 90 | T36: 16 | U36: 3.6 | V36: 2.4 | W36: 0.9 | X36: 30 | Y36: 9 | Z36: 4 | AA36: 303.25 | AB36: GF | AC36: 200 | AD36: 8 | AE36: 50 | AF36: 60 | AG36: 0.12 | AH36: 0.35 | AI36: 0.1 | AJ36: 0 | AK36: 57 | AL36: 36 | AM36: 18 | AN36: 0 | AO36: 10.32 | AP36: 2.15 | AQ36: 0 | AR36: 2019-03-10
A37: 1445 | B37: Rübsen, grün | C37: 120 | D37: 175 | E37: 825 | F37: 350 | G37: 205 | H37: 81 | I37: 189 | J37: 37 | K37: 0 | L37: 70 | M37: 17.05 | N37: 85.26 | O37: 18.8 | P37: 86 | Q37: 10.7 | R37: 11.04 | S37: 70 | T37: 16 | U37: 4.6 | V37: 2.7 | W37: 1.4 | X37: 30 | Y37: 9 | Z37: 4 | AA37: 324.5 | AB37: GF | AC37: 200 | AD37: 8 | AE37: 50 | AF37: 60 | AG37: 0.12 | AH37: 0.35 | AI37: 0.1 | AJ37: 0 | AK37: 57 | AL37: 36 | AM37: 18 | AN37: 0 | AO37: 7.83 | AP37: 4.27 | AQ37: 0 | AR37: 2019-03-10
A38: 1455 | B38: Sonnenblumen, grün | C38: 190 | D38: 130 | E38: 870 | F38: 430 | G38: 290 | H38: 72 | I38: 120 | J38: 50 | K38: 0 | L38: 110 | M38: 17.73 | N38: 72.15 | O38: 9.85 | P38: 71 | Q38: 1.95 | R38: 10.25 | S38: 110 | T38: 0 | U38: 0 | V38: 0 | W38: 0 | X38: 0 | Y38: 0 | Z38: 0 | AA38: 0 | AB38: GF | AC38: 0 | AD38: 0 | AE38: 0 | AF38: 0 | AG38: 0.12 | AH38: 0.35 | AI38: 0.01 | AJ38: 0 | AK38: 57 | AL38: 36 | AM38: 18 | AN38: 0 | AO38: 8.8 | AP38: 3.36 | AQ38: 0 | AR38: 2024-02-11
A39: 1465 | B39: Senf, grün | C39: 140 | D39: 160 | E39: 840 | F39: 430 | G39: 250 | H39: 81 | I39: 215 | J39: 26 | K39: 0 | L39: 110 | M39: 17.11 | N39: 89.06 | O39: 21.39 | P39: 86 | Q39: 14.09 | R39: 10.96 | S39: 110 | T39: 15.5 | U39: 4 | V39: 3.4 | W39: 0 | X39: 25 | Y39: 9 | Z39: 4 | AA39: 137 | AB39: GF | AC39: 200 | AD39: 8 | AE39: 50 | AF39: 60 | AG39: 0.12 | AH39: 0.35 | AI39: 0.1 | AJ39: 0 | AK39: 57 | AL39: 36 | AM39: 18 | AN39: 0 | AO39: 7.59 | AP39: 2.9 | AQ39: 0 | AR39: 2019-03-10
A40: 1485 | B40: Markstammkohl | C40: 115 | D40: 132 | E40: 868 | F40: 345 | G40: 205 | H40: 81 | I40: 178 | J40: 30 | K40: 0 | L40: 50 | M40: 17.72 | N40: 87.63 | O40: 17.71 | P40: 86 | Q40: 8.31 | R40: 11.52 | S40: 50 | T40: 19.7 | U40: 3.5 | V40: 2 | W40: 1.7 | X40: 29 | Y40: 11.4 | Z40: 6.1 | AA40: 113.14 | AB40: GF | AC40: 200 | AD40: 6.3 | AE40: 35 | AF40: 27 | AG40: 0.12 | AH40: 0.35 | AI40: 0.1 | AJ40: 0 | AK40: 57 | AL40: 36 | AM40: 18 | AN40: 0 | AO40: 10.1 | AP40: 3.46 | AQ40: 0 | AR40: 2019-03-10
A41: 1505 | B41: Zuckerrübenblatt, sauber | C41: 160 | D41: 165 | E41: 835 | F41: 295 | G41: 175 | H41: 82 | I41: 160 | J41: 21 | K41: 0 | L41: 220 | M41: 16.33 | N41: 98.21 | O41: 30.12 | P41: 85 | Q41: 3.5 | R41: 10.72 | S41: 220 | T41: 12.4 | U41: 2.5 | V41: 4.8 | W41: 9.5 | X41: 35 | Y41: 15 | Z41: 5.2 | AA41: 552.79 | AB41: GF | AC41: 250 | AD41: 11.5 | AE41: 72 | AF41: 179 | AG41: 0.37 | AH41: 0.83 | AI41: 0.1 | AJ41: 0 | AK41: 13.6 | AL41: 77.9 | AM41: 15.2 | AN41: 1.3 | AO41: 8.72 | AP41: 2.98 | AQ41: 0 | AR41: 2019-03-10
A42: 1555 | B42: Futterrübenblatt, sauber | C42: 120 | D42: 186 | E42: 814 | F42: 300 | G42: 180 | H42: 76 | I42: 138 | J42: 22 | K42: 0 | L42: 100 | M42: 16.2 | N42: 87.5 | O42: 25.98 | P42: 85 | Q42: 2.34 | R42: 9.83 | S42: 100 | T42: 20 | U42: 2.5 | V42: 6.1 | W42: 6.1 | X42: 45 | Y42: 13.3 | Z42: 6.2 | AA42: 649.93 | AB42: GF | AC42: 250 | AD42: 8.3 | AE42: 50 | AF42: 130 | AG42: 0.3 | AH42: 0.8 | AI42: 0.1 | AJ42: 0 | AK42: 13.6 | AL42: 77.9 | AM42: 15.2 | AN42: 1.3 | AO42: 7.79 | AP42: 2.66 | AQ42: 0 | AR42: 2019-03-10
A43: 1614 | B43: Rotklee, 1.Schnitt, vor der Knospe | C43: 140 | D43: 130 | E43: 870 | F43: 355 | G43: 275 | H43: 74 | I43: 261 | J43: 34 | K43: 0 | L43: 80 | M43: 18.15 | N43: 81.78 | O43: 17.75 | P43: 85 | Q43: 22.97 | R43: 10.36 | S43: 80 | T43: 10 | U43: 3.7 | V43: 2.5 | W43: 0.5 | X43: 32 | Y43: 3 | Z43: 2.3 | AA43: 612.56 | AB43: GF | AC43: 150 | AD43: 7.7 | AE43: 30 | AF43: 40 | AG43: 0.12 | AH43: 0.35 | AI43: 0.03 | AJ43: 0 | AK43: 66 | AL43: 30 | AM43: 17 | AN43: 0 | AO43: 10.52 | AP43: 3.6 | AQ43: 0 | AR43: 2024-02-11
A44: 1615 | B44: Rotklee, 1.Schnitt | C44: 155 | D44: 115 | E44: 885 | F44: 385 | G44: 305 | H44: 71.34 | I44: 219 | J44: 28 | K44: 0 | L44: 80 | M44: 18.11 | N44: 77.68 | O44: 14.89 | P44: 85 | Q44: 17.08 | R44: 10.01 | S44: 80 | T44: 10 | U44: 3.7 | V44: 2.5 | W44: 0.5 | X44: 32 | Y44: 3 | Z44: 2.3 | AA44: 612.56 | AB44: GF | AC44: 150 | AD44: 7.7 | AE44: 30 | AF44: 40 | AG44: 0.12 | AH44: 0.35 | AI44: 0.03 | AJ44: 0 | AK44: 66 | AL44: 30 | AM44: 17 | AN44: 0 | AO44: 9.18 | AP44: 3.14 | AQ44: 0 | AR44: 2024-02-11
A45: 1616 | B45: Rotklee, 1.Schnitt, Beginn Blüte | C45: 160 | D45: 100 | E45: 900 | F45: 425 | G45: 345 | H45: 67.83 | I45: 166 | J45: 24 | K45: 0 | L45: 80 | M45: 18.06 | N45: 72 | O45: 11.29 | P45: 85 | Q45: 9.78 | R45: 9.56 | S45: 80 | T45: 10 | U45: 3.7 | V45: 2.5 | W45: 0.5 | X45: 32 | Y45: 3 | Z45: 2.3 | AA45: 612.56 | AB45: GF | AC45: 150 | AD45: 7.7 | AE45: 30 | AF45: 40 | AG45: 0.12 | AH45: 0.35 | AI45: 0.03 | AJ45: 0 | AK45: 66 | AL45: 30 | AM45: 17 | AN45: 0 | AO45: 8.02 | AP45: 2.74 | AQ45: 0 | AR45: 2024-02-11
A46: 1624 | B46: Rotklee, 2.und FolgeSchnitte, vor der Knospe | C46: 170 | D46: 118 | E46: 882 | F46: 370 | G46: 290 | H46: 69.13 | I46: 235 | J46: 29 | K46: 0 | L46: 60 | M46: 18.21 | N46: 76.62 | O46: 15.98 | P46: 85 | Q46: 19.96 | R46: 9.65 | S46: 60 | T46: 14 | U46: 3.9 | V46: 3 | W46: 0.5 | X46: 35 | Y46: 4.4 | Z46: 2.5 | AA46: 637.42 | AB46: GF | AC46: 150 | AD46: 8.8 | AE46: 35 | AF46: 45 | AG46: 0.12 | AH46: 0.35 | AI46: 0.03 | AJ46: 0 | AK46: 66 | AL46: 30 | AM46: 17 | AN46: 0 | AO46: 11.03 | AP46: 3.78 | AQ46: 0 | AR46: 2024-02-11
A47: 1625 | B47: Rotklee, ab 2.Schnitt | C47: 190 | D47: 109 | E47: 891 | F47: 410 | G47: 330 | H47: 65.69 | I47: 211 | J47: 27 | K47: 0 | L47: 60 | M47: 18.22 | N47: 72.56 | O47: 14.35 | P47: 85 | Q47: 17.01 | R47: 9.14 | S47: 60 | T47: 14 | U47: 3.9 | V47: 3 | W47: 0.5 | X47: 35 | Y47: 4.4 | Z47: 2.5 | AA47: 637.42 | AB47: GF | AC47: 150 | AD47: 8.8 | AE47: 35 | AF47: 45 | AG47: 0.12 | AH47: 0.35 | AI47: 0.03 | AJ47: 0 | AK47: 66 | AL47: 30 | AM47: 17 | AN47: 0 | AO47: 10.33 | AP47: 3.54 | AQ47: 0 | AR47: 2024-02-11
A48: 1626 | B48: Rotklee, 2.und FolgeSchnitte, Beginn Blüte | C48: 210 | D48: 104 | E48: 896 | F48: 450 | G48: 370 | H48: 61.92 | I48: 164 | J48: 25 | K48: 0 | L48: 60 | M48: 18.05 | N48: 66.32 | O48: 11.15 | P48: 85 | Q48: 10.83 | R48: 8.57 | S48: 60 | T48: 14 | U48: 3.9 | V48: 3 | W48: 0.5 | X48: 35 | Y48: 4.4 | Z48: 2.5 | AA48: 637.42 | AB48: GF | AC48: 150 | AD48: 8.8 | AE48: 35 | AF48: 45 | AG48: 0.12 | AH48: 0.35 | AI48: 0.03 | AJ48: 0 | AK48: 66 | AL48: 30 | AM48: 17 | AN48: 0 | AO48: 8.72 | AP48: 2.98 | AQ48: 0 | AR48: 2024-02-11
A49: 1633 | B49: KleeGras, 1.Schnitt, vor der Knospe | C49: 150 | D49: 110 | E49: 890 | F49: 380 | G49: 220 | H49: 79.79 | I49: 200 | J49: 29 | K49: 0 | L49: 80 | M49: 18.14 | N49: 84.22 | O49: 13.6 | P49: 85 | Q49: 12.4 | R49: 11.52 | S49: 80 | T49: 8.3 | U49: 3.9 | V49: 2.7 | W49: 0.6 | X49: 35.1 | Y49: 4.5 | Z49: 2.5 | AA49: 641.41 | AB49: GF | AC49: 150 | AD49: 8.4 | AE49: 32 | AF49: 39 | AG49: 0.12 | AH49: 0.35 | AI49: 0.03 | AJ49: 0 | AK49: 66 | AL49: 30 | AM49: 17 | AN49: 0 | AO49: 8.25 | AP49: 2.82 | AQ49: 0 | AR49: 2024-02-11
A50: 1634 | B50: KleeGras, 1.Schnitt, in der Knospe | C50: 160 | D50: 105 | E50: 895 | F50: 410 | G50: 250 | H50: 76.9 | I50: 180 | J50: 28 | K50: 0 | L50: 80 | M50: 18.11 | N50: 80.69 | O50: 12.24 | P50: 85 | Q50: 9.98 | R50: 11.07 | S50: 80 | T50: 8.3 | U50: 3.8 | V50: 2.2 | W50: 0.6 | X50: 33 | Y50: 4.5 | Z50: 2.2 | AA50: 606.34 | AB50: GF | AC50: 150 | AD50: 7 | AE50: 30 | AF50: 39 | AG50: 0.12 | AH50: 0.35 | AI50: 0.03 | AJ50: 0 | AK50: 66 | AL50: 30 | AM50: 17 | AN50: 0 | AO50: 10.33 | AP50: 3.54 | AQ50: 0 | AR50: 2024-02-11
A51: 1635 | B51: KleeGras, 1.Schnitt | C51: 175 | D51: 100 | E51: 900 | F51: 440 | G51: 280 | H51: 74.03 | I51: 160 | J51: 27 | K51: 0 | L51: 80 | M51: 18.09 | N51: 77.14 | O51: 10.88 | P51: 85 | Q51: 7.56 | R51: 10.64 | S51: 80 | T51: 8.3 | U51: 3.5 | V51: 2.1 | W51: 0.6 | X51: 32 | Y51: 4.5 | Z51: 2 | AA51: 593.2 | AB51: GF | AC51: 150 | AD51: 6.6 | AE51: 27 | AF51: 39 | AG51: 0.12 | AH51: 0.35 | AI51: 0.03 | AJ51: 0 | AK51: 66 | AL51: 30 | AM51: 17 | AN51: 0 | AO51: 9.87 | AP51: 3.38 | AQ51: 0 | AR51: 2024-02-11
A52: 1636 | B52: KleeGras, 1.Schnitt, in der Blüte | C52: 200 | D52: 95 | E52: 905 | F52: 470 | G52: 310 | H52: 71.2 | I52: 140 | J52: 23 | K52: 0 | L52: 80 | M52: 18.01 | N52: 73.6 | O52: 9.52 | P52: 85 | Q52: 5.14 | R52: 10.18 | S52: 80 | T52: 8.3 | U52: 3.3 | V52: 1.9 | W52: 0.6 | X52: 29 | Y52: 4 | Z52: 1.7 | AA52: 549.19 | AB52: GF | AC52: 150 | AD52: 6.2 | AE52: 25.1 | AF52: 39 | AG52: 0.12 | AH52: 0.35 | AI52: 0.03 | AJ52: 0 | AK52: 66 | AL52: 30 | AM52: 17 | AN52: 0 | AO52: 8.25 | AP52: 2.82 | AQ52: 0 | AR52: 2024-02-11
A53: 1644 | B53: KleeGras, 2.und FolgeSchnitte, vor der Knospe | C53: 150 | D53: 115 | E53: 885 | F53: 430 | G53: 283 | H53: 70.06 | I53: 220 | J53: 29 | K53: 0 | L53: 53 | M53: 18.21 | N53: 76.62 | O53: 14.96 | P53: 85 | Q53: 17.5 | R53: 9.86 | S53: 53 | T53: 9.4 | U53: 3.9 | V53: 2.8 | W53: 0.39 | X53: 36.4 | Y53: 5.7 | Z53: 2.8 | AA53: 613.235 | AB53: GF | AC53: 175 | AD53: 8.9 | AE53: 33.5 | AF53: 40.7 | AG53: 0.12 | AH53: 0.35 | AI53: 0.03 | AJ53: 0 | AK53: 66 | AL53: 30 | AM53: 17 | AN53: 0 | AO53: 9.64 | AP53: 3.3 | AQ53: 0 | AR53: 2024-02-11
A54: 1645 | B54: KleeGras, 2. Schnitt | C54: 175 | D54: 105 | E54: 895 | F54: 466 | G54: 306 | H54: 68.66 | I54: 180 | J54: 28 | K54: 0 | L54: 61 | M54: 18.17 | N54: 73.35 | O54: 12.24 | P54: 85 | Q54: 11.75 | R54: 9.72 | S54: 61 | T54: 9.4 | U54: 3.9 | V54: 2.7 | W54: 0.38 | X54: 32.4 | Y54: 5.7 | Z54: 2.6 | AA54: 522.87 | AB54: GF | AC54: 175 | AD54: 8.4 | AE54: 33.5 | AF54: 40.7 | AG54: 0.12 | AH54: 0.35 | AI54: 0.03 | AJ54: 0 | AK54: 66 | AL54: 30 | AM54: 17 | AN54: 0 | AO54: 10.33 | AP54: 3.54 | AQ54: 0 | AR54: 2024-02-11
A55: 1646 | B55: KleeGras, 2.und FolgeSchnitte, Beginn Blüte | C55: 190 | D55: 95 | E55: 905 | F55: 509 | G55: 328 | H55: 68.03 | I55: 150 | J55: 25 | K55: 0 | L55: 73 | M55: 18.12 | N55: 71.43 | O55: 10.2 | P55: 85 | Q55: 7.3 | R55: 9.68 | S55: 73 | T55: 9.4 | U55: 3.9 | V55: 2.3 | W55: 0.43 | X55: 31 | Y55: 5.7 | Z55: 2.1 | AA55: 520.305 | AB55: GF | AC55: 175 | AD55: 6.8 | AE55: 33.5 | AF55: 40.7 | AG55: 0.12 | AH55: 0.35 | AI55: 0.03 | AJ55: 0 | AK55: 66 | AL55: 30 | AM55: 17 | AN55: 0 | AO55: 8.95 | AP55: 3.06 | AQ55: 0 | AR55: 2024-02-11
A56: 1648 | B56: KleeGras, 3.Schnitt | C56: 190 | D56: 104 | E56: 896 | F56: 440 | G56: 295 | H56: 68.87 | I56: 189 | J56: 27 | K56: 0 | L56: 56 | M56: 18.22 | N56: 74.22 | O56: 12.85 | P56: 85 | Q56: 13.01 | R56: 9.76 | S56: 56 | T56: 12.2 | U56: 3.7 | V56: 2.9 | W56: 0.41 | X56: 29.8 | Y56: 5.7 | Z56: 2.5 | AA56: 463.815 | AB56: GF | AC56: 82.6 | AD56: 8.9 | AE56: 30.6 | AF56: 40.3 | AG56: 0.12 | AH56: 0.35 | AI56: 0.03 | AJ56: 0 | AK56: 66 | AL56: 30 | AM56: 17 | AN56: 0 | AO56: 9.64 | AP56: 3.3 | AQ56: 0 | AR56: 2024-02-11
A57: 1649 | B57: KleeGras, ab 4.Schnitt | C57: 170 | D57: 113 | E57: 887 | F57: 427 | G57: 255 | H57: 72.66 | I57: 211 | J57: 31 | K57: 0 | L57: 57 | M57: 18.24 | N57: 78.44 | O57: 14.35 | P57: 85 | Q57: 15.59 | R57: 10.35 | S57: 57 | T57: 10.6 | U57: 4.3 | V57: 2.7 | W57: 0.66 | X57: 31.8 | Y57: 7 | Z57: 3 | AA57: 457.83 | AB57: GF | AC57: 111.3 | AD57: 9 | AE57: 31.8 | AF57: 41.2 | AG57: 0.12 | AH57: 0.35 | AI57: 0.03 | AJ57: 0 | AK57: 66 | AL57: 30 | AM57: 17 | AN57: 0 | AO57: 9.78 | AP57: 3.35 | AQ57: 0 | AR57: 2024-02-11
A58: 1655 | B58: Juraklee- Gras | C58: 170 | D58: 105 | E58: 895 | F58: 500 | G58: 290 | H58: 72.41 | I58: 185 | J58: 30 | K58: 0 | L58: 50 | M58: 18.27 | N58: 77.03 | O58: 12.58 | P58: 85 | Q58: 11.68 | R58: 10.41 | S58: 50 | T58: 10 | U58: 3.7 | V58: 1.9 | W58: 0.8 | X58: 35 | Y58: 6 | Z58: 2 | AA58: 636.2 | AB58: GF | AC58: 200 | AD58: 9 | AE58: 50 | AF58: 60 | AG58: 0.12 | AH58: 0.35 | AI58: 0.1 | AJ58: 0 | AK58: 66 | AL58: 30 | AM58: 17 | AN58: 0 | AO58: 10.41 | AP58: 2.89 | AQ58: 0 | AR58: 2019-03-10
A59: 1665 | B59: Alexandrinerklee | C59: 125 | D59: 136 | E59: 864 | F59: 485 | G59: 285 | H59: 71.85 | I59: 200 | J59: 43 | K59: 0 | L59: 80 | M59: 17.94 | N59: 75.34 | O59: 13.6 | P59: 85 | Q59: 14.54 | R59: 10.08 | S59: 80 | T59: 16 | U59: 3.9 | V59: 3.2 | W59: 1.3 | X59: 33 | Y59: 6 | Z59: 2 | AA59: 606.25 | AB59: GF | AC59: 150 | AD59: 9 | AE59: 55 | AF59: 60 | AG59: 0.12 | AH59: 0.35 | AI59: 0.1 | AJ59: 0 | AK59: 66 | AL59: 30 | AM59: 17 | AN59: 0 | AO59: 9.06 | AP59: 2.52 | AQ59: 0 | AR59: 2019-03-10
A60: 1685 | B60: Perserklee | C60: 118 | D60: 138 | E60: 862 | F60: 455 | G60: 265 | H60: 73.79 | I60: 203 | J60: 24 | K60: 0 | L60: 80 | M60: 17.52 | N60: 77.06 | O60: 13.8 | P60: 85 | Q60: 14.62 | R60: 10.1 | S60: 80 | T60: 16 | U60: 3.5 | V60: 2 | W60: 1.35 | X60: 28 | Y60: 6 | Z60: 2 | AA60: 480.375 | AB60: GF | AC60: 150 | AD60: 9 | AE60: 50 | AF60: 60 | AG60: 0.12 | AH60: 0.35 | AI60: 0.1 | AJ60: 0 | AK60: 66 | AL60: 30 | AM60: 17 | AN60: 0 | AO60: 8.15 | AP60: 2.26 | AQ60: 0 | AR60: 2019-03-10
A61: 1714 | B61: Luzerne, 1.Schnitt, in der Knospe | C61: 150 | D61: 115 | E61: 885 | F61: 368 | G61: 310 | H61: 70.64 | I61: 236 | J61: 26 | K61: 0 | L61: 50 | M61: 18.23 | N61: 93.85 | O61: 31.68 | P61: 89 | Q61: 17.06 | R61: 9.91 | S61: 50 | T61: 16 | U61: 3.8 | V61: 3.1 | W61: 0.5 | X61: 32 | Y61: 2.8 | Z61: 2.5 | AA61: 605.74 | AB61: GF | AC61: 150 | AD61: 7.2 | AE61: 29 | AF61: 29 | AG61: 0.15 | AH61: 0.3 | AI61: 0.03 | AJ61: 0 | AK61: 48 | AL61: 42 | AM61: 19 | AN61: 0 | AO61: 10.7 | AP61: 2.97 | AQ61: 0 | AR61: 2024-02-11
A62: 1715 | B62: Luzerne, 1.Schnitt | C62: 180 | D62: 105 | E62: 895 | F62: 400 | G62: 320 | H62: 69.85 | I62: 203 | J62: 23 | K62: 0 | L62: 50 | M62: 18.21 | N62: 89.41 | O62: 27.24 | P62: 89 | Q62: 12.58 | R62: 9.87 | S62: 50 | T62: 14.5 | U62: 3.5 | V62: 2.8 | W62: 0.5 | X62: 31 | Y62: 2.8 | Z62: 2.5 | AA62: 580.14 | AB62: GF | AC62: 150 | AD62: 7.2 | AE62: 29 | AF62: 29 | AG62: 0.15 | AH62: 0.3 | AI62: 0.03 | AJ62: 0 | AK62: 48 | AL62: 42 | AM62: 19 | AN62: 0 | AO62: 9.54 | AP62: 2.65 | AQ62: 0 | AR62: 2024-02-11
A63: 1716 | B63: Luzerne, 1.Schnitt, Ende Blüte | C63: 210 | D63: 95 | E63: 905 | F63: 465 | G63: 350 | H63: 67.19 | I63: 160 | J63: 22 | K63: 0 | L63: 50 | M63: 18.17 | N63: 81.95 | O63: 21.48 | P63: 89 | Q63: 7.15 | R63: 9.53 | S63: 50 | T63: 13 | U63: 3 | V63: 2.5 | W63: 0.5 | X63: 30 | Y63: 2.8 | Z63: 2.5 | AA63: 554.54 | AB63: GF | AC63: 150 | AD63: 7.2 | AE63: 29 | AF63: 29 | AG63: 0.15 | AH63: 0.3 | AI63: 0.03 | AJ63: 0 | AK63: 48 | AL63: 42 | AM63: 19 | AN63: 0 | AO63: 9.11 | AP63: 2.53 | AQ63: 0 | AR63: 2024-02-11
A64: 1724 | B64: Luzerne, 2.und FolgeSchnitte, in der Knospe | C64: 180 | D64: 115 | E64: 885 | F64: 357 | G64: 264 | H64: 71.25 | I64: 244 | J64: 27 | K64: 0 | L64: 55 | M64: 18.28 | N64: 95.46 | O64: 32.75 | P64: 89 | Q64: 18.02 | R64: 10.02 | S64: 55 | T64: 16 | U64: 4.1 | V64: 3.2 | W64: 0.5 | X64: 31 | Y64: 3 | Z64: 2.9 | AA64: 549.58 | AB64: GF | AC64: 150 | AD64: 8 | AE64: 27 | AF64: 31 | AG64: 0.15 | AH64: 0.3 | AI64: 0.03 | AJ64: 0 | AK64: 48 | AL64: 42 | AM64: 19 | AN64: 0 | AO64: 9.88 | AP64: 2.75 | AQ64: 0 | AR64: 2024-02-11
A65: 1725 | B65: Luzerne ab 2.Schnitt | C65: 195 | D65: 110 | E65: 890 | F65: 421 | G65: 331 | H65: 64.93 | I65: 208 | J65: 24 | K65: 0 | L65: 55 | M65: 18.14 | N65: 85.39 | O65: 27.92 | P65: 89 | Q65: 14.39 | R65: 8.98 | S65: 55 | T65: 15 | U65: 3.7 | V65: 2.8 | W65: 0.5 | X65: 30 | Y65: 3 | Z65: 2.9 | AA65: 523.98 | AB65: GF | AC65: 150 | AD65: 8 | AE65: 27 | AF65: 31 | AG65: 0.15 | AH65: 0.3 | AI65: 0.03 | AJ65: 0 | AK65: 48 | AL65: 42 | AM65: 19 | AN65: 0 | AO65: 8.68 | AP65: 2.41 | AQ65: 0 | AR65: 2024-02-11
A66: 1726 | B66: Luzerne 2.und FolgeSchnitte, Ende Blüte | C66: 210 | D66: 100 | E66: 900 | F66: 473 | G66: 379 | H66: 60.61 | I66: 177 | J66: 22 | K66: 0 | L66: 55 | M66: 18.14 | N66: 78 | O66: 23.75 | P66: 89 | Q66: 10.96 | R66: 8.35 | S66: 55 | T66: 14 | U66: 3.4 | V66: 2.2 | W66: 0.5 | X66: 29 | Y66: 3 | Z66: 2.9 | AA66: 498.38 | AB66: GF | AC66: 150 | AD66: 8 | AE66: 27 | AF66: 31 | AG66: 0.15 | AH66: 0.3 | AI66: 0.03 | AJ66: 0 | AK66: 48 | AL66: 42 | AM66: 19 | AN66: 0 | AO66: 7.71 | AP66: 2.14 | AQ66: 0 | AR66: 2024-02-11
A67: 1734 | B67: LuzerneGras, 1.Schnitt, vor der Knospe | C67: 160 | D67: 105 | E67: 895 | F67: 385 | G67: 238 | H67: 78.37 | I67: 195 | J67: 25 | K67: 0 | L67: 75 | M67: 18.14 | N67: 95.93 | O67: 26.17 | P67: 89 | Q67: 9.66 | R67: 11.29 | S67: 75 | T67: 10.4 | U67: 3.9 | V67: 2.2 | W67: 0.58 | X67: 32.9 | Y67: 2.6 | Z67: 2.4 | AA67: 644.05 | AB67: GF | AC67: 100 | AD67: 7.8 | AE67: 36.4 | AF67: 44.7 | AG67: 0.12 | AH67: 0.35 | AI67: 0.03 | AJ67: 0 | AK67: 48 | AL67: 42 | AM67: 19 | AN67: 0 | AO67: 10.36 | AP67: 2.88 | AQ67: 0 | AR67: 2024-02-11
A68: 1735 | B68: LuzerneGras, 1.Schnitt | C68: 170 | D68: 101 | E68: =1000-D68 -> 899 | F68: 432 | G68: 288 | H68: 73.35 | I68: 183 | J68: 25 | K68: 0 | L68: 61 | M68: 18.2 | N68: 90.14 | O68: 24.56 | P68: 89 | Q68: 9.04 | R68: 10.52 | S68: 61 | T68: 8.9 | U68: 3.6 | V68: 2.2 | W68: 0.26 | X68: 32 | Y68: 2.6 | Z68: 2.4 | AA68: 607.41 | AB68: GF | AC68: 100 | AD68: 7.8 | AE68: 31.3 | AF68: 38.9 | AG68: 0.12 | AH68: 0.35 | AI68: 0.03 | AJ68: 0 | AK68: 48 | AL68: 42 | AM68: 19 | AN68: 0 | AO68: 9.4 | AP68: 2.61 | AQ68: 0 | AR68: 2024-02-11
A69: 1736 | B69: LuzerneGras, 1.Schnitt, in der Blüte | C69: 180 | D69: 99 | E69: 901 | F69: 503 | G69: 346 | H69: 67.55 | I69: 161 | J69: 24 | K69: 0 | L69: 47 | M69: 18.15 | N69: 82.14 | O69: 21.61 | P69: 89 | Q69: 7.27 | R69: 9.58 | S69: 47 | T69: 8.7 | U69: 3.5 | V69: 2.2 | W69: 0.13 | X69: 28.3 | Y69: 2.6 | Z69: 2.4 | AA69: =(42.5 *W69 + 25.6 * X69) - (28.2 * Y69 + 62.3 *Z69) -> 507.165 | AB69: GF | AC69: 100 | AD69: 7.8 | AE69: 30.1 | AF69: 30 | AG69: 0.12 | AH69: 0.35 | AI69: 0.03 | AJ69: 0 | AK69: 48 | AL69: 42 | AM69: 19 | AN69: 0 | AO69: 8.68 | AP69: 2.41 | AQ69: 0 | AR69: 2024-02-11
A70: 1744 | B70: LuzerneGras, 2.und FolgeSchnitte, in der Knospe | C70: 190 | D70: 113 | E70: 887 | F70: 381 | G70: 256 | H70: 72.25 | I70: 229 | J70: 29 | K70: 0 | L70: 46 | M70: 18.31 | N70: 94.46 | O70: 30.73 | P70: 89 | Q70: 15.73 | R70: 10.26 | S70: 46 | T70: 14.5 | U70: 4.2 | V70: 3.1 | W70: 0.43 | X70: 33.1 | Y70: 4.2 | Z70: 3.3 | AA70: 541.605 | AB70: GF | AC70: 100 | AD70: 9.3 | AE70: 30 | AF70: 45.1 | AG70: 0.12 | AH70: 0.35 | AI70: 0.03 | AJ70: 0 | AK70: 48 | AL70: 42 | AM70: 19 | AN70: 0 | AO70: 0 | AP70: 0 | AQ70: 0 | AR70: 2024-02-11
A71: 1745 | B71: LuzerneGras, ab 2.Schnitt | C71: 195 | D71: 108 | E71: 892 | F71: 431 | G71: 307 | H71: 67.88 | I71: 196 | J71: 27 | K71: 0 | L71: 40 | M71: 18.23 | N71: 86.53 | O71: 26.31 | P71: 89 | Q71: 12.1 | R71: 9.58 | S71: 40 | T71: 14.5 | U71: 3.6 | V71: 2.8 | W71: 0.4 | X71: 31.1 | Y71: 3.4 | Z71: 2.9 | AA71: 536.61 | AB71: GF | AC71: 100 | AD71: 8.1 | AE71: 30 | AF71: 36.6 | AG71: 0.12 | AH71: 0.35 | AI71: 0.03 | AJ71: 0 | AK71: 48 | AL71: 42 | AM71: 19 | AN71: 0 | AO71: 9.41 | AP71: 3.22 | AQ71: 0 | AR71: 2024-02-11
A72: 1746 | B72: LuzerneGras, 2.und FolgeSchnitte, in der Blüte | C72: 200 | D72: 102 | E72: 898 | F72: 485 | G72: 367 | H72: 61.86 | I72: 177 | J72: 24 | K72: 0 | L72: 28 | M72: 18.22 | N72: 78.99 | O72: 23.75 | P72: 89 | Q72: 10.72 | R72: 8.61 | S72: 28 | T72: 14.5 | U72: 3.3 | V72: 2.6 | W72: 0.4 | X72: 29 | Y72: 1.7 | Z72: 2.7 | AA72: 543.25 | AB72: GF | AC72: 100 | AD72: 7.6 | AE72: 30 | AF72: 29.6 | AG72: 0.12 | AH72: 0.35 | AI72: 0.03 | AJ72: 0 | AK72: 48 | AL72: 42 | AM72: 19 | AN72: 0 | AO72: 8.02 | AP72: 2.74 | AQ72: 0 | AR72: 2024-02-11
A73: 1814 | B73: Weidelgras, 1.Schnitt, im Schossen | C73: 170 | D73: 95 | E73: 905 | F73: 420 | G73: 200 | H73: 83.7 | I73: 171 | J73: 31 | K73: 0 | L73: 180 | M73: 18.03 | N73: 108.29 | O73: 32.96 | P73: 87 | Q73: 3.12 | R73: 12.17 | S73: 180 | T73: 5.5 | U73: 3.8 | V73: 1.8 | W73: 0.4 | X73: 36.7 | Y73: 6 | Z73: 2 | AA73: 662.72 | AB73: GF | AC73: 200 | AD73: 6 | AE73: 31 | AF73: 50 | AG73: 0.12 | AH73: 0.35 | AI73: 0.03 | AJ73: 0 | AK73: 13.6 | AL73: 77.9 | AM73: 15.2 | AN73: 1.3 | AO73: 6.18 | AP73: 2.1 | AQ73: 0 | AR73: 2024-02-11
A74: 1815 | B74: Weidelgras, 1.Schnitt | C74: 180 | D74: 95 | E74: 905 | F74: 480 | G74: 260 | H74: 76.71 | I74: 145 | J74: 27 | K74: 0 | L74: 150 | M74: 17.92 | N74: 96.98 | O74: 27.94 | P74: 87 | Q74: 1.4 | R74: 11.01 | S74: 150 | T74: 5.5 | U74: 3.3 | V74: 1.8 | W74: 0.39 | X74: 33 | Y74: 6 | Z74: 2 | AA74: 567.575 | AB74: GF | AC74: 200 | AD74: 6 | AE74: 31 | AF74: 50 | AG74: 0.12 | AH74: 0.35 | AI74: 0.03 | AJ74: 0 | AK74: 13.6 | AL74: 77.9 | AM74: 15.2 | AN74: 1.3 | AO74: 9.41 | AP74: 3.22 | AQ74: 0 | AR74: 2024-02-11
A75: 1816 | B75: Weidelgras, 1.Schnitt, Beginn Blüte | C75: 190 | D75: 95 | E75: 905 | F75: 530 | G75: 310 | H75: 68.77 | I75: 110 | J75: 24 | K75: 0 | L75: 105 | M75: 17.82 | N75: 83.09 | O75: 21.2 | P75: 87 | Q75: -1.24 | R75: 9.75 | S75: 105 | T75: 5.5 | U75: 3.2 | V75: 1.8 | W75: 0.37 | X75: 32.2 | Y75: 6 | Z75: 2 | AA75: 546.245 | AB75: GF | AC75: 200 | AD75: 6 | AE75: 31 | AF75: 50 | AG75: 0.12 | AH75: 0.35 | AI75: 0.03 | AJ75: 0 | AK75: 13.6 | AL75: 77.9 | AM75: 15.2 | AN75: 1.3 | AO75: 8.49 | AP75: 2.9 | AQ75: 0 | AR75: 2024-02-11
A76: 1824 | B76: Weidelgras, 2.und FolgeSchnitte, im Schossen | C76: 180 | D76: 100 | E76: 900 | F76: 447 | G76: 218 | H76: 84.3 | I76: 195 | J76: 43 | K76: 0 | L76: 120 | M76: 18.48 | N76: 113.03 | O76: 37.58 | P76: 87 | Q76: 6.08 | R76: 12.56 | S76: 120 | T76: 5.5 | U76: 3.8 | V76: 1.8 | W76: 0.4 | X76: 36.7 | Y76: 6 | Z76: 2 | AA76: 662.72 | AB76: GF | AC76: 200 | AD76: 6 | AE76: 31 | AF76: 50 | AG76: 0.12 | AH76: 0.35 | AI76: 0.03 | AJ76: 0 | AK76: 13.6 | AL76: 77.9 | AM76: 15.2 | AN76: 1.3 | AO76: 6.87 | AP76: 2.34 | AQ76: 0 | AR76: 2024-02-11
A77: 1825 | B77: Weidelgras, ab 2.Schnitt | C77: 190 | D77: 100 | E77: 900 | F77: 496 | G77: 251 | H77: 77.36 | I77: 175 | J77: 38 | K77: 0 | L77: 90 | M77: 18.37 | N77: 102.97 | O77: 33.73 | P77: 87 | Q77: 5.09 | R77: 11.35 | S77: 90 | T77: 5.5 | U77: 3.3 | V77: 1.8 | W77: 0.4 | X77: 33 | Y77: 6 | Z77: 2 | AA77: 568 | AB77: GF | AC77: 200 | AD77: 6 | AE77: 31 | AF77: 50 | AG77: 0.12 | AH77: 0.35 | AI77: 0.03 | AJ77: 0 | AK77: 13.6 | AL77: 77.9 | AM77: 15.2 | AN77: 1.3 | AO77: 9.36 | AP77: 3.2 | AQ77: 0 | AR77: 2024-02-11
A78: 1826 | B78: Weidelgras, 2.und FolgeSchnitte, Beginn Blüte | C78: 200 | D78: 100 | E78: 900 | F78: 538 | G78: 311 | H78: 71.31 | I78: 160 | J78: 32 | K78: 0 | L78: 60 | M78: 18.26 | N78: 94.66 | O78: 30.83 | P78: 87 | Q78: 4.53 | R78: 10.3 | S78: 60 | T78: 5.5 | U78: 3.2 | V78: 1.8 | W78: 0.4 | X78: 32.2 | Y78: 6 | Z78: 2 | AA78: 547.52 | AB78: GF | AC78: 200 | AD78: 6 | AE78: 31 | AF78: 50 | AG78: 0.12 | AH78: 0.35 | AI78: 0.03 | AJ78: 0 | AK78: 13.6 | AL78: 77.9 | AM78: 15.2 | AN78: 1.3 | AO78: 7.84 | AP78: 2.68 | AQ78: 0 | AR78: 2024-02-11
A79: 1865 | B79: Landsberger Gemenge | C79: 190 | D79: 107 | E79: 893 | F79: 442 | G79: 254 | H79: 77 | I79: 190 | J79: 26 | K79: 0 | L79: 105 | M79: 18.01 | N79: 87.27 | O79: 18.89 | P79: 86 | Q79: 10.38 | R79: 10.98 | S79: 105 | T79: 7.3 | U79: 3 | V79: 1.7 | W79: 0.45 | X79: 26 | Y79: 5 | Z79: 2 | AA79: 419.125 | AB79: GF | AC79: 150 | AD79: 8 | AE79: 45 | AF79: 70 | AG79: 0.12 | AH79: 0.35 | AI79: 0.02 | AJ79: 0 | AK79: 57 | AL79: 36 | AM79: 18 | AN79: 0 | AO79: 4.1 | AP79: 1.38 | AQ79: 0 | AR79: 2024-02-11
A80: 1875 | B80: Zuckerhirse | C80: 230 | D80: 55 | E80: 945 | F80: 658 | G80: 392 | H80: 76 | I80: 92 | J80: 20 | K80: 0 | L80: 99 | M80: 18.42 | N80: 82.05 | O80: 10.63 | P80: 56 | Q80: -5.55 | R80: 11.38 | S80: 99 | T80: 5.2 | U80: 2.3 | V80: 2 | W80: 0.24 | X80: 16.1 | Y80: 3.8 | Z80: 1.4 | AA80: 227.98 | AB80: GF | AC80: 150 | AD80: 7.3 | AE80: 30.9 | AF80: 33.8 | AG80: 0.12 | AH80: 0.4 | AI80: 0.01 | AJ80: 0 | AK80: 24 | AL80: 68 | AM80: 12.6 | AN80: 0.65 | AO80: 5.25 | AP80: 1.78 | AQ80: 0 | AR80: 2024-02-11
A81: 1885 | B81: SudanGras | C81: 230 | D81: 56 | E81: 944 | F81: 681 | G81: 408 | H81: 75 | I81: 81 | J81: 18 | K81: 0 | L81: 29 | M81: 18.51 | N81: 79.77 | O81: 9.36 | P81: 56 | Q81: -6.71 | R81: 11.32 | S81: 29 | T81: 5.2 | U81: 2.3 | V81: 2 | W81: 0.21 | X81: 16.1 | Y81: 3.8 | Z81: 1.4 | AA81: 226.705 | AB81: GF | AC81: 150 | AD81: 7.3 | AE81: 30.9 | AF81: 33.8 | AG81: 0.12 | AH81: 0.4 | AI81: 0.01 | AJ81: 0 | AK81: 24 | AL81: 68 | AM81: 12.6 | AN81: 0.65 | AO81: 7.68 | AP81: 2.8 | AQ81: 0 | AR81: 2024-02-11
A82: 2010 | B82: GrasSilage | C82: 350 | D82: 108 | E82: 892 | F82: 515 | G82: 281 | H82: 72.69 | I82: 165 | J82: 38 | K82: 0 | L82: 15 | M82: 18.39 | N82: 86.29 | O82: 21.81 | P82: 90 | Q82: 6.96 | R82: 10.62 | S82: 15 | T82: 6.3 | U82: 3.8 | V82: 2.3 | W82: 0.8 | X82: 30 | Y82: 7 | Z82: 2.2 | AA82: 467.54 | AB82: GF | AC82: 200 | AD82: 8.5 | AE82: 50 | AF82: 85 | AG82: 0.12 | AH82: 0.4 | AI82: 0.03 | AJ82: 0 | AK82: 57 | AL82: 34.7 | AM82: 11.6 | AN82: 0 | AO82: 6.95 | AP82: 2.54 | AQ82: 0 | AR82: 2026-03-10
A83: 2013 | B83: GrasSilage, angew., 1.Schnitt, im Schossen | C83: 350 | D83: 99 | E83: 901 | F83: 488 | G83: 270 | H83: 78.73 | I83: 179 | J83: 40 | K83: 0 | L83: 63 | M83: 18.52 | N83: 94.2 | O83: 23.65 | P83: 90 | Q83: 7.41 | R83: 11.68 | S83: 63 | T83: 6.8 | U83: 3.7 | V83: 2.4 | W83: 0.89 | X83: 31.1 | Y83: 7 | Z83: 2.7 | AA83: 468.375 | AB83: GF | AC83: 350 | AD83: 7.9 | AE83: 34.7 | AF83: 61.5 | AG83: 0.12 | AH83: 0.4 | AI83: 0.03 | AJ83: 0 | AK83: 57 | AL83: 34.7 | AM83: 11.6 | AN83: 0 | AO83: 5.99 | AP83: 2.19 | AQ83: 0 | AR83: 2026-03-10
A84: 2014 | B84: GrasSilage, angew., 1.Schnitt, RispenSchieben | C84: 350 | D84: 97 | E84: 903 | F84: 491 | G84: 275 | H84: 75.92 | I84: 159 | J84: 37 | K84: 0 | L84: 63 | M84: 18.4 | N84: 89.19 | O84: 21.01 | P84: 90 | Q84: 5.25 | R84: 11.18 | S84: 63 | T84: 6.7 | U84: 3.5 | V84: 2.3 | W84: 0.71 | X84: 29.6 | Y84: 6.7 | Z84: 2.5 | AA84: 443.245 | AB84: GF | AC84: 350 | AD84: 7.7 | AE84: 33 | AF84: 65 | AG84: 0.12 | AH84: 0.4 | AI84: 0.03 | AJ84: 0 | AK84: 57 | AL84: 34.7 | AM84: 11.6 | AN84: 0 | AO84: 8.06 | AP84: 2.93 | AQ84: 0 | AR84: 2026-03-10
A85: 2015 | B85: GrasSilage, angewelkt, 1.Schnitt | C85: 350 | D85: 94 | E85: 906 | F85: 510 | G85: 285 | H85: 72.2 | I85: 144 | J85: 35 | K85: 0 | L85: 63 | M85: 18.35 | N85: 84.08 | O85: 19.03 | P85: 90 | Q85: 3.96 | R85: 10.56 | S85: 63 | T85: 6.5 | U85: 3.4 | V85: 2.2 | W85: 0.59 | X85: 28.8 | Y85: 6.6 | Z85: 2.3 | AA85: 432.945 | AB85: GF | AC85: 350 | AD85: 7.5 | AE85: 32.4 | AF85: 69.8 | AG85: 0.12 | AH85: 0.4 | AI85: 0.03 | AJ85: 0 | AK85: 57 | AL85: 34.7 | AM85: 11.6 | AN85: 0 | AO85: 7.39 | AP85: 2.69 | AQ85: 0 | AR85: 2026-03-10
A86: 2016 | B86: GrasSilage, angew., 1.Schnitt, Mitte Blüte | C86: 350 | D86: 91 | E86: 909 | F86: 537 | G86: 304 | H86: 68.67 | I86: 124 | J86: 31 | K86: 0 | L86: 63 | M86: 18.23 | N86: 78.47 | O86: 16.39 | P86: 90 | Q86: 1.95 | R86: 9.95 | S86: 63 | T86: 6.1 | U86: 3.2 | V86: 2 | W86: 0.51 | X86: 27.6 | Y86: 6.6 | Z86: 2.1 | AA86: 411.285 | AB86: GF | AC86: 350 | AD86: 7.3 | AE86: 30.2 | AF86: 72 | AG86: 0.12 | AH86: 0.4 | AI86: 0.03 | AJ86: 0 | AK86: 57 | AL86: 34.7 | AM86: 11.6 | AN86: 0 | AO86: 6.71 | AP86: 2.45 | AQ86: 0 | AR86: 2026-03-10
A87: 2024 | B87: GrasSilage, angew., 2.und FolgeSchnitte, Schossen | C87: 350 | D87: 105 | E87: 895 | F87: 495 | G87: 270 | H87: 74.65 | I87: 169 | J87: 40 | K87: 0 | L87: 50 | M87: 18.4 | N87: 88.77 | O87: 22.33 | P87: 90 | Q87: 7.04 | R87: 10.94 | S87: 50 | T87: 7.6 | U87: 3.6 | V87: 2.7 | W87: 0.85 | X87: 28.7 | Y87: 8.1 | Z87: 2.9 | AA87: 361.755 | AB87: GF | AC87: 380 | AD87: 8.2 | AE87: 34.5 | AF87: 68.2 | AG87: 0.12 | AH87: 0.4 | AI87: 0.03 | AJ87: 0 | AK87: 57 | AL87: 34.7 | AM87: 11.6 | AN87: 0 | AO87: 7.19 | AP87: 2.62 | AQ87: 0 | AR87: 2026-03-10
A88: 2025 | B88: GrasSilage, angewelkt, 2.Schnitt | C88: 350 | D88: 103 | E88: 897 | F88: 510 | G88: 285 | H88: 70.51 | I88: 148 | J88: 37 | K88: 0 | L88: 50 | M88: 18.28 | N88: 82.46 | O88: 19.56 | P88: 90 | Q88: 5.02 | R88: 10.23 | S88: 50 | T88: 7.4 | U88: 3.5 | V88: 2.6 | W88: 0.75 | X88: 27.4 | Y88: 8 | Z88: 2.7 | AA88: 339.505 | AB88: GF | AC88: 380 | AD88: 8 | AE88: 33.1 | AF88: 71.1 | AG88: 0.12 | AH88: 0.4 | AI88: 0.03 | AJ88: 0 | AK88: 57 | AL88: 34.7 | AM88: 11.6 | AN88: 0 | AO88: 7.92 | AP88: 2.88 | AQ88: 0 | AR88: 2026-03-10
A89: 2026 | B89: GrasSil, angew., 2.und FolgeSchnitte, RispenSpreiz | C89: 350 | D89: 99 | E89: 901 | F89: 535 | G89: 305 | H89: 67.05 | I89: 128 | J89: 33 | K89: 0 | L89: 50 | M89: 18.18 | N89: 76.99 | O89: 16.91 | P89: 90 | Q89: 2.97 | R89: 9.64 | S89: 50 | T89: 7 | U89: 3.3 | V89: 2.5 | W89: 0.6 | X89: 25.6 | Y89: 7.7 | Z89: 2.5 | AA89: 307.97 | AB89: GF | AC89: 380 | AD89: 7.6 | AE89: 31.8 | AF89: 80.7 | AG89: 0.12 | AH89: 0.4 | AI89: 0.03 | AJ89: 0 | AK89: 57 | AL89: 34.7 | AM89: 11.6 | AN89: 0 | AO89: 4 | AP89: 1.5 | AQ89: 0 | AR89: 2026-03-10
A90: 2028 | B90: GrasSilage, angewelkt, 3.Schnitt | C90: 350 | D90: 110 | E90: 890 | F90: 488 | G90: 272 | H90: 72.45 | I90: 165 | J90: 38 | K90: 0 | L90: 46 | M90: 18.26 | N90: 85.94 | O90: 21.81 | P90: 90 | Q90: 7.05 | R90: 10.49 | S90: 46 | T90: 8.3 | U90: 3.5 | V90: 3 | W90: 0.9 | X90: 26.1 | Y90: 7.7 | Z90: 2.8 | AA90: 314.83 | AB90: GF | AC90: 400 | AD90: 8.2 | AE90: 33 | AF90: 75 | AG90: 0.12 | AH90: 0.4 | AI90: 0.03 | AJ90: 0 | AK90: 57 | AL90: 34.7 | AM90: 11.6 | AN90: 0 | AO90: 3.92 | AP90: 1.5 | AQ90: 0 | AR90: 2026-03-10
A91: 2029 | B91: GrasSilage, angewelkt, ab 4.Schnitt | C91: 335 | D91: 120 | E91: 880 | F91: 476 | G91: 267 | H91: 75.43 | I91: 180 | J91: 41 | K91: 0 | L91: 39 | M91: 18.22 | N91: 89.8 | O91: 23.79 | P91: 90 | Q91: 8.64 | R91: 10.93 | S91: 39 | T91: 8.6 | U91: 3.8 | V91: 3.1 | W91: 1.1 | X91: 28 | Y91: 7.8 | Z91: 3.3 | AA91: 338 | AB91: GF | AC91: 500 | AD91: 8.5 | AE91: 33.3 | AF91: 76.6 | AG91: 0.12 | AH91: 0.4 | AI91: 0.03 | AJ91: 0 | AK91: 57 | AL91: 34.7 | AM91: 11.6 | AN91: 0 | AO91: 4 | AP91: 1.47 | AQ91: 0 | AR91: 2026-03-10
A92: 2034 | B92: GrasSilage, naß, 1.Schnitt, RispenSchieben | C92: 250 | D92: 125 | E92: 875 | F92: 465 | G92: 260 | H92: 77.29 | I92: 180 | J92: 40 | K92: 0 | L92: 25 | M92: 18.15 | N92: 91.05 | O92: 23.79 | P92: 90 | Q92: 8.34 | R92: 11.2 | S92: 25 | T92: 6.5 | U92: 4 | V92: 2.35 | W92: 0.7 | X92: 31 | Y92: 7 | Z92: 2.2 | AA92: 488.89 | AB92: GF | AC92: 200 | AD92: 9 | AE92: 45 | AF92: 80 | AG92: 0.12 | AH92: 0.4 | AI92: 0.03 | AJ92: 0 | AK92: 57 | AL92: 34.7 | AM92: 11.6 | AN92: 0 | AO92: 4.48 | AP92: 1.5 | AQ92: 0 | AR92: 2026-03-10
A93: 2035 | B93: GrasSilage, naß, 1.Schnitt | C93: 250 | D93: 120 | E93: 880 | F93: 515 | G93: 280 | H93: 72.03 | I93: 165 | J93: 38 | K93: 0 | L93: 15 | M93: 18.16 | N93: 84.85 | O93: 21.81 | P93: 90 | Q93: 7.31 | R93: 10.37 | S93: 15 | T93: 6.3 | U93: 3.8 | V93: 2.3 | W93: 0.8 | X93: 30 | Y93: 7 | Z93: 2.2 | AA93: 467.54 | AB93: GF | AC93: 200 | AD93: 8.5 | AE93: 50 | AF93: 85 | AG93: 0.12 | AH93: 0.4 | AI93: 0.03 | AJ93: 0 | AK93: 57 | AL93: 34.7 | AM93: 11.6 | AN93: 0 | AO93: 4.2 | AP93: 1.68 | AQ93: 0 | AR93: 2026-03-10
A94: 2036 | B94: GrasSilage, naß, 1.Schnitt, Mitte Blüte | C94: 250 | D94: 110 | E94: 890 | F94: 570 | G94: 308 | H94: 66.34 | I94: 145 | J94: 36 | K94: 0 | L94: 10 | M94: 18.23 | N94: 77.88 | O94: 19.16 | P94: 90 | Q94: 5.62 | R94: 9.51 | S94: 10 | T94: 5.8 | U94: 3.7 | V94: 2.15 | W94: 0.8 | X94: 29 | Y94: 8 | Z94: 2.2 | AA94: 413.74 | AB94: GF | AC94: 200 | AD94: 8 | AE94: 50 | AF94: 90 | AG94: 0.12 | AH94: 0.4 | AI94: 0.03 | AJ94: 0 | AK94: 57 | AL94: 34.7 | AM94: 11.6 | AN94: 0 | AO94: 4 | AP94: 1.58 | AQ94: 0 | AR94: 2026-03-10
A95: 2044 | B95: GrasSilage, naß, 2.und FolgeSchnitte, im Schossen | C95: 250 | D95: 145 | E95: 855 | F95: 405 | G95: 252 | H95: 80.08 | I95: 188 | J95: 42 | K95: 0 | L95: 20 | M95: 17.86 | N95: 92.93 | O95: 24.84 | P95: 90 | Q95: 9.23 | R95: 11.46 | S95: 20 | T95: 9 | U95: 3.8 | V95: 3.2 | W95: 1 | X95: 27 | Y95: 6 | Z95: 2.2 | AA95: 427.44 | AB95: GF | AC95: 200 | AD95: 9 | AE95: 50 | AF95: 100 | AG95: 0.12 | AH95: 0.4 | AI95: 0.04 | AJ95: 0 | AK95: 57 | AL95: 34.7 | AM95: 11.6 | AN95: 0 | AO95: 6 | AP95: 1.5 | AQ95: 0 | AR95: 2026-03-10
A96: 2045 | B96: GrasSilage, naß, ab 2.Schnitt | C96: 250 | D96: 125 | E96: 875 | F96: 460 | G96: 272 | H96: 74.46 | I96: 174 | J96: 40 | K96: 0 | L96: 20 | M96: 18.13 | N96: 87.79 | O96: 23 | P96: 90 | Q96: 8.12 | R96: 10.73 | S96: 20 | T96: 8.5 | U96: 3.7 | V96: 3.1 | W96: 1 | X96: 25 | Y96: 7 | Z96: 2.4 | AA96: 335.58 | AB96: GF | AC96: 200 | AD96: 9 | AE96: 50 | AF96: 100 | AG96: 0.12 | AH96: 0.4 | AI96: 0.04 | AJ96: 0 | AK96: 57 | AL96: 34.7 | AM96: 11.6 | AN96: 0 | AO96: 5.6 | AP96: 2.25 | AQ96: 0 | AR96: 2026-03-10
A97: 2046 | B97: GrasSilage, naß, 2.und FolgeSchnitte, RispenSpreiz | C97: 250 | D97: 120 | E97: 880 | F97: 510 | G97: 303 | H97: 69.56 | I97: 160 | J97: 37 | K97: 0 | L97: 15 | M97: 18.11 | N97: 82.02 | O97: 21.14 | P97: 90 | Q97: 7.15 | R97: 9.93 | S97: 15 | T97: 7.5 | U97: 3.6 | V97: 2.7 | W97: 1 | X97: 25 | Y97: 7 | Z97: 2.3 | AA97: 341.81 | AB97: GF | AC97: 200 | AD97: 8.5 | AE97: 50 | AF97: 100 | AG97: 0.12 | AH97: 0.4 | AI97: 0.04 | AJ97: 0 | AK97: 57 | AL97: 34.7 | AM97: 11.6 | AN97: 0 | AO97: 4.8 | AP97: 2.1 | AQ97: 0 | AR97: 2026-03-10
A98: 2125 | B98: GrünGersten- Silage | C98: 350 | D98: 56 | E98: 944 | F98: 580 | G98: 320 | H98: 71 | I98: 102 | J98: 21 | K98: 0 | L98: 40 | M98: 18.64 | N98: 79.77 | O98: 13.11 | P98: 89 | Q98: -2.12 | R98: 10.64 | S98: 40 | T98: 4.8 | U98: 3.2 | V98: 1.6 | W98: 0.71 | X98: 28.8 | Y98: 5.8 | Z98: 2.2 | AA98: 466.835 | AB98: GF | AC98: 567.6 | AD98: 6.3 | AE98: 33.4 | AF98: 45.4 | AG98: 0.12 | AH98: 0.35 | AI98: 0.02 | AJ98: 0 | AK98: 57 | AL98: 35 | AM98: 11.6 | AN98: 0 | AO98: 3.6 | AP98: 1.8 | AQ98: 0 | AR98: 2024-02-11
A99: 2134 | B99: GPS Gerste KornArm | C99: 340 | D99: 69 | E99: 931 | F99: 630 | G99: 347 | H99: 66.4 | I99: 91 | J99: 22 | K99: 150 | L99: 60 | M99: 18.07 | N99: 81.12 | O99: 19.64 | P99: 89 | Q99: -3.81 | R99: 9.55 | S99: 195 | T99: 4.5 | U99: 2.6 | V99: 1.3 | W99: 0.3 | X99: 17.7 | Y99: 3.4 | Z99: 1.6 | AA99: 270.31 | AB99: GF | AC99: 158.6 | AD99: 6.8 | AE99: 28.3 | AF99: 43.3 | AG99: 0.12 | AH99: 0.35 | AI99: 0.02 | AJ99: 0 | AK99: 54.14 | AL99: 39.47 | AM99: 3.25 | AN99: 0.47 | AO99: 3.8 | AP99: 1.35 | AQ99: 15 | AR99: 2024-02-11
A100: 2135 | B100: GPS Gerste | C100: 360 | D100: 55 | E100: 945 | F100: 590 | G100: 315 | H100: 66.4 | I100: 87 | J100: 23 | K100: 220 | L100: 50 | M100: 18.25 | N100: 81.18 | O100: 18.78 | P100: 89 | Q100: -4.52 | R100: 9.65 | S100: 248 | T100: 4.3 | U100: 2.6 | V100: 1.3 | W100: 0.3 | X100: 17.7 | Y100: 3.4 | Z100: 1.6 | AA100: 270.31 | AB100: GF | AC100: 158.6 | AD100: 6.8 | AE100: 28.3 | AF100: 43.3 | AG100: 0.12 | AH100: 0.35 | AI100: 0.02 | AJ100: 0 | AK100: 54.14 | AL100: 39.47 | AM100: 3.25 | AN100: 0.47 | AO100: 2.26 | AP100: 1.43 | AQ100: 22 | AR100: 2024-02-11
A101: 2136 | B101: GPS Gerste KornReich | C101: 380 | D101: 47 | E101: 953 | F101: 550 | G101: 294 | H101: 66.4 | I101: 81 | J101: 24 | K101: 290 | L101: 40 | M101: 18.31 | N101: 80.41 | O101: 17.48 | P101: 89 | Q101: -5.37 | R101: 9.7 | S101: 301 | T101: 4.1 | U101: 2.6 | V101: 1.3 | W101: 0.3 | X101: 17.7 | Y101: 3.4 | Z101: 1.6 | AA101: 270.31 | AB101: GF | AC101: 158.6 | AD101: 6.8 | AE101: 28.3 | AF101: 43.3 | AG101: 0.12 | AH101: 0.35 | AI101: 0.02 | AJ101: 0 | AK101: 54.14 | AL101: 39.47 | AM101: 3.25 | AN101: 0.47 | AO101: 2.76 | AP101: 1.58 | AQ101: 29 | AR101: 2024-02-11
A102: 2144 | B102: Grnhafersilage Rispenschieben | C102: 325 | D102: 91 | E102: 909 | F102: 485 | G102: 302 | H102: 75 | I102: 118 | J102: 36 | K102: 0 | L102: 51 | M102: 18.34 | N102: 82.97 | O102: 15.17 | P102: 89 | Q102: -0.21 | R102: 11.12 | S102: 51 | T102: 5.7 | U102: 3.4 | V102: 2.2 | W102: 0.71 | X102: 27 | Y102: 3.9 | Z102: 1.8 | AA102: 499.255 | AB102: GF | AC102: 191.6 | AD102: 7.3 | AE102: 27.6 | AF102: 50.3 | AG102: 0.12 | AH102: 0.35 | AI102: 0.02 | AJ102: 0 | AK102: 57 | AL102: 35 | AM102: 11.6 | AN102: 0 | AO102: 2.48 | AP102: 1.42 | AQ102: 0 | AR102: 2024-02-11
A103: 2145 | B103: GrünHafer- Silage | C103: 325 | D103: 77 | E103: 923 | F103: 529 | G103: 338 | H103: 79 | I103: 105 | J103: 32 | K103: 0 | L103: 45 | M103: 18.48 | N103: 86.01 | O103: 13.49 | P103: 89 | Q103: -3.13 | R103: 11.93 | S103: 45 | T103: 5.7 | U103: 3.4 | V103: 2.2 | W103: 0.71 | X103: 27 | Y103: 3.9 | Z103: 1.8 | AA103: 499.255 | AB103: GF | AC103: 191.6 | AD103: 7.3 | AE103: 27.6 | AF103: 50.3 | AG103: 0.12 | AH103: 0.35 | AI103: 0.02 | AJ103: 0 | AK103: 57 | AL103: 35 | AM103: 11.6 | AN103: 0 | AO103: 2.32 | AP103: 1.33 | AQ103: 0 | AR103: 2024-02-11
A104: 2146 | B104: Grünhafersilage abgeblht | C104: 325 | D104: 74 | E104: 926 | F104: 583 | G104: 370 | H104: 64 | I104: 101 | J104: 29 | K104: 0 | L104: 36 | M104: 18.48 | N104: 71.92 | O104: 12.98 | P104: 89 | Q104: -0.4 | R104: 9.37 | S104: 36 | T104: 5.7 | U104: 3.4 | V104: 2.2 | W104: 0.71 | X104: 27 | Y104: 3.9 | Z104: 1.8 | AA104: 499.255 | AB104: GF | AC104: 191.6 | AD104: 7.3 | AE104: 27.6 | AF104: 50.3 | AG104: 0.12 | AH104: 0.35 | AI104: 0.02 | AJ104: 0 | AK104: 57 | AL104: 35 | AM104: 11.6 | AN104: 0 | AO104: 2.26 | AP104: 1.3 | AQ104: 0 | AR104: 2024-02-11
A105: 2164 | B105: Grnroggensilage hrenschieben | C105: 270 | D105: 93 | E105: 907 | F105: 481 | G105: 295 | H105: 70 | I105: 130 | J105: 35 | K105: 0 | L105: 41 | M105: 18.37 | N105: 79.85 | O105: 16.71 | P105: 89 | Q105: 2.56 | R105: 10.25 | S105: 41 | T105: 4.3 | U105: 3.7 | V105: 1.6 | W105: 0.33 | X105: 30.2 | Y105: 5 | Z105: 1.8 | AA105: 534.005 | AB105: GF | AC105: 202.5 | AD105: 6.5 | AE105: 27.4 | AF105: 43.3 | AG105: 0.12 | AH105: 0.35 | AI105: 0.02 | AJ105: 0 | AK105: 57 | AL105: 35 | AM105: 11.6 | AN105: 0 | AO105: 2.32 | AP105: 1.33 | AQ105: 0 | AR105: 2024-02-11
A106: 2165 | B106: GrünRoggen- Silage | C106: 270 | D106: 81 | E106: 919 | F106: 541 | G106: 337 | H106: 75 | I106: 110 | J106: 33 | K106: 0 | L106: 30 | M106: 18.49 | N106: 82.68 | O106: 14.13 | P106: 89 | Q106: -1.48 | R106: 11.24 | S106: 30 | T106: 4.3 | U106: 3.7 | V106: 1.6 | W106: 0.33 | X106: 30.2 | Y106: 5 | Z106: 1.8 | AA106: 534.005 | AB106: GF | AC106: 202.5 | AD106: 6.5 | AE106: 27.4 | AF106: 43.3 | AG106: 0.12 | AH106: 0.35 | AI106: 0.02 | AJ106: 0 | AK106: 57 | AL106: 35 | AM106: 11.6 | AN106: 0 | AO106: 2.32 | AP106: 1.33 | AQ106: 0 | AR106: 2024-02-11
A107: 2166 | B107: Grnroggensilage abgeblht | C107: 270 | D107: 73 | E107: 927 | F107: 596 | G107: 378 | H107: 64 | I107: 98 | J107: 30 | K107: 0 | L107: 23 | M107: 18.54 | N107: 71.59 | O107: 12.59 | P107: 89 | Q107: -0.82 | R107: 9.41 | S107: 23 | T107: 4.3 | U107: 3.7 | V107: 1.6 | W107: 0.33 | X107: 30.2 | Y107: 5 | Z107: 1.8 | AA107: 534.005 | AB107: GF | AC107: 202.5 | AD107: 6.5 | AE107: 27.4 | AF107: 43.3 | AG107: 0.12 | AH107: 0.35 | AI107: 0.02 | AJ107: 0 | AK107: 57 | AL107: 35 | AM107: 11.6 | AN107: 0 | AO107: 2.26 | AP107: 1.3 | AQ107: 0 | AR107: 2024-02-11
A108: 2175 | B108: GPS Roggen u. Tritcale | C108: 350 | D108: 61 | E108: 939 | F108: 600 | G108: 329 | H108: 66.1 | I108: 78 | J108: 22 | K108: 180 | L108: 64 | M108: 18.1 | N108: 78.56 | O108: 16.83 | P108: 89 | Q108: -5.44 | R108: 9.55 | S108: 226 | T108: 3.8 | U108: 2.7 | V108: 1.3 | W108: 0.26 | X108: 15.8 | Y108: 3 | Z108: 1.4 | AA108: 243.71 | AB108: GF | AC108: 100.7 | AD108: 6.8 | AE108: 31.3 | AF108: 45.3 | AG108: 0.12 | AH108: 0.35 | AI108: 0.02 | AJ108: 0 | AK108: 54.14 | AL108: 39.47 | AM108: 3.25 | AN108: 0.47 | AO108: 2.26 | AP108: 1.3 | AQ108: 18 | AR108: 2024-02-11
A109: 2185 | B109: GPS Weizen | C109: 400 | D109: 55 | E109: 945 | F109: 580 | G109: 312 | H109: 66.7 | I109: 81 | J109: 22 | K109: 240 | L109: 100 | M109: 18.03 | N109: 80.17 | O109: 17.48 | P109: 89 | Q109: -5.31 | R109: 9.59 | S109: 316 | T109: 3.3 | U109: 2.7 | V109: 1.5 | W109: 0.27 | X109: 14 | Y109: 2.1 | Z109: 1.6 | AA109: 210.975 | AB109: GF | AC109: 100 | AD109: 6.4 | AE109: 27.3 | AF109: 43.2 | AG109: 0.12 | AH109: 0.35 | AI109: 0.02 | AJ109: 0 | AK109: 54.14 | AL109: 39.47 | AM109: 3.25 | AN109: 0.47 | AO109: 2.62 | AP109: 1.5 | AQ109: 24 | AR109: 2024-02-11
A110: 2206 | B110: MaisSilage, in Wachsreife, 35% TM | C110: 350 | D110: 35 | E110: 965 | F110: 398 | G110: 234 | H110: 74.34 | I110: 76 | J110: 30 | K110: 324 | L110: 35 | M110: 18.6 | N110: 82.81 | O110: 11.47 | P110: 62 | Q110: -8.02 | R110: 11.25 | S110: 310.4 | T110: 2.7 | U110: 2.3 | V110: 1.5 | W110: 0.23 | X110: 12 | Y110: 1.5 | Z110: 1.1 | AA110: 206.145 | AB110: GF | AC110: 87.8 | AD110: 7.8 | AE110: 29.8 | AF110: 25.7 | AG110: 0.08 | AH110: 0.3 | AI110: 0.01 | AJ110: 0 | AK110: 58 | AL110: 31 | AM110: 3.8 | AN110: 1.5 | AO110: 2.32 | AP110: 1.33 | AQ110: 48.6 | AR110: 2024-02-11
A111: 2216 | B111: MaisSilage, in Wachsreife, körnerarm, 34% TM | C111: 350 | D111: 38 | E111: 962 | F111: 430 | G111: 253 | H111: 72.95 | I111: 77 | J111: 27 | K111: 277 | L111: 38 | M111: 18.55 | N111: 81.41 | O111: 11.62 | P111: 62 | Q111: -7.52 | R111: 10.98 | S111: 273.45 | T111: 2.8 | U111: 2.2 | V111: 1.6 | W111: 0.23 | X111: 13.2 | Y111: 1.7 | Z111: 1.2 | AA111: 224.995 | AB111: GF | AC111: 92.5 | AD111: 7.5 | AE111: 30.9 | AF111: 28.9 | AG111: 0.08 | AH111: 0.3 | AI111: 0.01 | AJ111: 0 | AK111: 58 | AL111: 31 | AM111: 3.8 | AN111: 1.5 | AO111: 2.29 | AP111: 1.31 | AQ111: 41.55 | AR111: 2024-02-11
A112: 2226 | B112: MaisSilage, in Wachsreife, körnerreich, 36% TM | C112: 350 | D112: 33 | E112: 967 | F112: 369 | G112: 216 | H112: 75.67 | I112: 75 | J112: 31 | K112: 367 | L112: 36 | M112: 18.59 | N112: 84.09 | O112: 11.32 | P112: 62 | Q112: -8.48 | R112: 11.47 | S112: 347.95 | T112: 2.7 | U112: 2.2 | V112: 1.5 | W112: 0.23 | X112: 11.2 | Y112: 1.4 | Z112: 1.1 | AA112: 188.485 | AB112: GF | AC112: 84.6 | AD112: 7.8 | AE112: 29.6 | AF112: 25.1 | AG112: 0.08 | AH112: 0.3 | AI112: 0.01 | AJ112: 0 | AK112: 58 | AL112: 31 | AM112: 3.8 | AN112: 1.5 | AO112: 9 | AP112: 2.7 | AQ112: 55.05 | AR112: 2024-02-11
A113: 2245 | B113: MaisSilage, Pflückhäcksel 24 | C113: 400 | D113: 35 | E113: 965 | F113: 365 | G113: 215 | H113: 75.7 | I113: 80 | J113: 33 | K113: 360 | L113: 36 | M113: 18.62 | N113: 84.72 | O113: 12.07 | P113: 62 | Q113: -7.85 | R113: 11.49 | S113: 342 | T113: 2.7 | U113: 2.4 | V113: 1.4 | W113: 0.2 | X113: 9.7 | Y113: 1.2 | Z113: 1.1 | AA113: 154.45 | AB113: GF | AC113: 85 | AD113: 7.5 | AE113: 30 | AF113: 18 | AG113: 0.08 | AH113: 0.3 | AI113: 0.01 | AJ113: 0 | AK113: 58 | AL113: 31 | AM113: 3.8 | AN113: 1.5 | AO113: 8.25 | AP113: 2.48 | AQ113: 54 | AR113: 2024-02-11
A114: 2246 | B114: MaisSilage, Pflückhäcksel 22 | C114: 410 | D114: 30 | E114: 970 | F114: 313 | G114: 175 | H114: 78.57 | I114: 78 | J114: 34 | K114: 439 | L114: 38 | M114: 18.6 | N114: 87.56 | O114: 11.77 | P114: 62 | Q114: -8.85 | R114: 11.97 | S114: 411.15 | T114: 2.6 | U114: 2.4 | V114: 1.3 | W114: 0.2 | X114: 8.5 | Y114: 0.9 | Z114: 1.1 | AA114: 132.19 | AB114: GF | AC114: 85 | AD114: 7.2 | AE114: 30 | AF114: 18 | AG114: 0.08 | AH114: 0.3 | AI114: 0.01 | AJ114: 0 | AK114: 58 | AL114: 31 | AM114: 3.8 | AN114: 1.5 | AO114: 7.8 | AP114: 2.93 | AQ114: 65.85 | AR114: 2024-02-11
A115: 2305 | B115: GPS Ackerbohne | C115: 310 | D115: 122 | E115: 878 | F115: 373 | G115: 315 | H115: 68 | I115: 163 | J115: 28 | K115: 0 | L115: 32 | M115: 17.85 | N115: 78.27 | O115: 18.89 | P115: 95 | Q115: 8.57 | R115: 9.5 | S115: 32 | T115: 15.8 | U115: 3.9 | V115: 4.3 | W115: 0.41 | X115: 27.1 | Y115: 1.5 | Z115: 2.4 | AA115: 519.365 | AB115: GF | AC115: 683.1 | AD115: 10.5 | AE115: 41 | AF115: 64 | AG115: 0.12 | AH115: 0.35 | AI115: 0.01 | AJ115: 0 | AK115: 58 | AL115: 35 | AM115: 15 | AN115: 0 | AO115: 7.4 | AP115: 2.78 | AQ115: 0 | AR115: 2024-02-11
A116: 2315 | B116: GPS Hülsenfrüchte | C116: 310 | D116: 76 | E116: 924 | F116: 490 | G116: 334 | H116: 70 | I116: 116 | J116: 27 | K116: 0 | L116: 44 | M116: 18.45 | N116: 77.76 | O116: 13.44 | P116: 95 | Q116: 0.77 | R116: 10.32 | S116: 44 | T116: 9.1 | U116: 3.5 | V116: 1.9 | W116: 0.43 | X116: 19.4 | Y116: 3.1 | Z116: 1.7 | AA116: 321.585 | AB116: GF | AC116: 151 | AD116: 6.7 | AE116: 33.8 | AF116: 44.6 | AG116: 0.12 | AH116: 0.35 | AI116: 0.01 | AJ116: 0 | AK116: 58 | AL116: 35 | AM116: 15 | AN116: 0 | AO116: 7.4 | AP116: 2.78 | AQ116: 0 | AR116: 2024-02-11
A117: 2424 | B117: RapsSilage, jung, blattreich, | C117: 170 | D117: 165 | E117: 835 | F117: 283 | G117: 239 | H117: 78 | I117: 165 | J117: 38 | K117: 0 | L117: 13 | M117: 17.31 | N117: 83.88 | O117: 19.11 | P117: 95 | Q117: 7.55 | R117: 10.82 | S117: 13 | T117: 18 | U117: 3.5 | V117: 2.7 | W117: 0.4 | X117: 25 | Y117: 9 | Z117: 5 | AA117: 91.7 | AB117: GF | AC117: 200 | AD117: 5 | AE117: 25 | AF117: 60 | AG117: 0.12 | AH117: 0.35 | AI117: 0.03 | AJ117: 0 | AK117: 58 | AL117: 35 | AM117: 15 | AN117: 0 | AO117: 5.2 | AP117: 1.95 | AQ117: 0 | AR117: 2024-02-11
A118: 2425 | B118: RapsSilage | C118: 200 | D118: 170 | E118: 830 | F118: 373 | G118: 284 | H118: 69 | I118: 150 | J118: 22 | K118: 0 | L118: 13 | M118: 16.81 | N118: 74.34 | O118: 17.38 | P118: 95 | Q118: 7.33 | R118: 9.11 | S118: 13 | T118: 18 | U118: 3.5 | V118: 2.7 | W118: 0.4 | X118: 25 | Y118: 9 | Z118: 5 | AA118: 91.7 | AB118: GF | AC118: 200 | AD118: 5 | AE118: 25 | AF118: 60 | AG118: 0.12 | AH118: 0.35 | AI118: 0.03 | AJ118: 0 | AK118: 58 | AL118: 35 | AM118: 15 | AN118: 0 | AO118: 6.4 | AP118: 2.4 | AQ118: 0 | AR118: 2024-02-11
A119: 2435 | B119: PerkoSilage | C119: 140 | D119: 170 | E119: 830 | F119: 380 | G119: 225 | H119: 69 | I119: 185 | J119: 41 | K119: 0 | L119: 5 | M119: 17.4 | N119: 78.39 | O119: 21.43 | P119: 95 | Q119: 12.25 | R119: 9.36 | S119: 5 | T119: 13 | U119: 6 | V119: 1.2 | W119: 1.1 | X119: 30 | Y119: 9 | Z119: 4 | AA119: 311.75 | AB119: GF | AC119: 200 | AD119: 8 | AE119: 50 | AF119: 60 | AG119: 0.12 | AH119: 0.35 | AI119: 0.1 | AJ119: 0 | AK119: 58 | AL119: 35 | AM119: 15 | AN119: 0 | AO119: 6 | AP119: 2.25 | AQ119: 0 | AR119: 2019-03-10
A120: 2445 | B120: RübsenSilage | C120: 170 | D120: 110 | E120: 890 | F120: 334 | G120: 318 | H120: 69 | I120: 114 | J120: 30 | K120: 0 | L120: 73 | M120: 17.77 | N120: 74.28 | O120: 13.21 | P120: 95 | Q120: 1.28 | R120: 9.77 | S120: 73 | T120: 0 | U120: 0 | V120: 0 | W120: 0 | X120: 0 | Y120: 0 | Z120: 0 | AA120: 0 | AB120: GF | AC120: 0 | AD120: 0 | AE120: 0 | AF120: 0 | AG120: 0.12 | AH120: 0.35 | AI120: 0.03 | AJ120: 0 | AK120: 58 | AL120: 35 | AM120: 15 | AN120: 0 | AO120: 5.6 | AP120: 2.1 | AQ120: 0 | AR120: 2024-02-11
A121: 2485 | B121: Markstammkohl- Silage | C121: 140 | D121: 153 | E121: 847 | F121: 385 | G121: 225 | H121: 65 | I121: 160 | J121: 30 | K121: 0 | L121: 5 | M121: 17.37 | N121: 73.28 | O121: 18.53 | P121: 95 | Q121: 9.27 | R121: 8.76 | S121: 5 | T121: 19.7 | U121: 3.5 | V121: 2 | W121: 1.7 | X121: 29 | Y121: 11.4 | Z121: 6.1 | AA121: 113.14 | AB121: GF | AC121: 200 | AD121: 6.3 | AE121: 35 | AF121: 27 | AG121: 0.12 | AH121: 0.35 | AI121: 0.1 | AJ121: 0 | AK121: 58 | AL121: 35 | AM121: 15 | AN121: 0 | AO121: 5.8 | AP121: 2.17 | AQ121: 0 | AR121: 2019-03-10
A122: 2505 | B122: Zuckerrübenblatt- Silage, sauber | C122: 180 | D122: 185 | E122: 815 | F122: 350 | G122: 205 | H122: 79 | I122: 150 | J122: 32 | K122: 0 | L122: 16 | M122: 16.73 | N122: 84.73 | O122: 20.7 | P122: 94 | Q122: 5.02 | R122: 10.64 | S122: 16 | T122: 10 | U122: 2.4 | V122: 4 | W122: 7 | X122: 27 | Y122: 15 | Z122: 5 | AA122: 254.2 | AB122: GF | AC122: 250 | AD122: 15 | AE122: 59 | AF122: 157 | AG122: 0.35 | AH122: 0.8 | AI122: 0.1 | AJ122: 0 | AK122: 57 | AL122: 34.7 | AM122: 11.6 | AN122: 0 | AO122: 7.19 | AP122: 2.62 | AQ122: 0 | AR122: 2019-03-10
A123: 2506 | B123: Zuckerrübenblatt- Silage, verschmutzt | C123: 180 | D123: 255 | E123: 745 | F123: 325 | G123: 195 | H123: 79 | I123: 140 | J123: 31 | K123: 0 | L123: 10 | M123: 15.36 | N123: 77.85 | O123: 19.32 | P123: 94 | Q123: 4.99 | R123: 9.76 | S123: 10 | T123: 12 | U123: 2 | V123: 4.5 | W123: 9 | X123: 29 | Y123: 15 | Z123: 5 | AA123: 390.4 | AB123: GF | AC123: 250 | AD123: 14.7 | AE123: 59 | AF123: 157 | AG123: 0.35 | AH123: 0.8 | AI123: 0.1 | AJ123: 0 | AK123: 57 | AL123: 34.7 | AM123: 11.6 | AN123: 0 | AO123: 7.44 | AP123: 2.71 | AQ123: 0 | AR123: 2019-03-10
A124: 2555 | B124: Futterrübenblatt- Silage | C124: 180 | D124: 220 | E124: 780 | F124: 335 | G124: 195 | H124: 79 | I124: 145 | J124: 29 | K124: 0 | L124: 20 | M124: 15.97 | N124: 81.29 | O124: 20.01 | P124: 94 | Q124: 5 | R124: 10.14 | S124: 20 | T124: 20 | U124: 2.4 | V124: 5 | W124: 3.5 | X124: 33 | Y124: 13 | Z124: 6 | AA124: 253.15 | AB124: GF | AC124: 250 | AD124: 9 | AE124: 50 | AF124: 130 | AG124: 0.3 | AH124: 0.8 | AI124: 0.1 | AJ124: 0 | AK124: 57 | AL124: 34.7 | AM124: 11.6 | AN124: 0 | AO124: 8.4 | AP124: 3.05 | AQ124: 0 | AR124: 2019-03-10
A125: 2615 | B125: RotkleeSilage, 1.Schnitt | C125: 330 | D125: 105 | E125: 895 | F125: 412 | G125: 305 | H125: 70.86 | I125: 166 | J125: 27 | K125: 0 | L125: 38 | M125: 18.15 | N125: 80.44 | O125: 17.37 | P125: 94 | Q125: 8.38 | R125: 10.13 | S125: 38 | T125: 12 | U125: 3.5 | V125: 2.5 | W125: 0.5 | X125: 30 | Y125: 3 | Z125: 2 | AA125: 580.05 | AB125: GF | AC125: 270 | AD125: 7.7 | AE125: 30 | AF125: 50 | AG125: 0.15 | AH125: 0.35 | AI125: 0.03 | AJ125: 0 | AK125: 49 | AL125: 46 | AM125: 17 | AN125: 0 | AO125: 7.44 | AP125: 2.71 | AQ125: 0 | AR125: 2026-03-10
A126: 2625 | B126: RotkleeSilage, ab 2.Schnitt | C126: 330 | D126: 105 | E126: 895 | F126: 395 | G126: 314 | H126: 66.01 | I126: 177 | J126: 27 | K126: 0 | L126: 35 | M126: 18.21 | N126: 77.27 | O126: 18.52 | P126: 94 | Q126: 10.99 | R126: 9.31 | S126: 35 | T126: 14 | U126: 3.5 | V126: 3 | W126: 0.5 | X126: 30 | Y126: 3 | Z126: 2 | AA126: 580.05 | AB126: GF | AC126: 270 | AD126: 8.5 | AE126: 30 | AF126: 50 | AG126: 0.15 | AH126: 0.35 | AI126: 0.03 | AJ126: 0 | AK126: 49 | AL126: 46 | AM126: 17 | AN126: 0 | AO126: 6.42 | AP126: 2.35 | AQ126: 0 | AR126: 2026-03-10
A127: 2634 | B127: KleeGrasSilage, 1. Schnitt, in der Knospe | C127: 330 | D127: 100 | E127: 900 | F127: 401 | G127: 270 | H127: 75.09 | I127: 184 | J127: 41 | K127: 0 | L127: 50 | M127: 18.59 | N127: 89.42 | O127: 22.21 | P127: 94 | Q127: 9.44 | R127: 11.09 | S127: 50 | T127: 8.1 | U127: 3.7 | V127: 2.6 | W127: 0.6 | X127: 33.9 | Y127: 4.5 | Z127: 2.6 | AA127: 604.46 | AB127: GF | AC127: 260 | AD127: 7.5 | AE127: 31.8 | AF127: 56.9 | AG127: 0.12 | AH127: 0.35 | AI127: 0.03 | AJ127: 0 | AK127: 53 | AL127: 40.4 | AM127: 14.3 | AN127: 0 | AO127: 8.16 | AP127: 2.97 | AQ127: 0 | AR127: 2026-03-10
A128: 2635 | B128: KleeGrasSilage, 1.Schnitt | C128: 330 | D128: 100 | E128: 900 | F128: 422 | G128: 283 | H128: 73.64 | I128: 161 | J128: 37 | K128: 0 | L128: 50 | M128: 18.4 | N128: 85.35 | O128: 19.44 | P128: 94 | Q128: 6.54 | R128: 10.79 | S128: 50 | T128: 8.1 | U128: 3.6 | V128: 2.5 | W128: 0.6 | X128: 31.4 | Y128: 4.5 | Z128: 2.5 | AA128: 546.69 | AB128: GF | AC128: 260 | AD128: 7.2 | AE128: 30.2 | AF128: 59.6 | AG128: 0.12 | AH128: 0.35 | AI128: 0.03 | AJ128: 0 | AK128: 53 | AL128: 40.4 | AM128: 14.3 | AN128: 0 | AO128: 7.68 | AP128: 2.8 | AQ128: 0 | AR128: 2026-03-10
A129: 2636 | B129: KleeGrasSilage, 1.Schnitt, in der Blüte | C129: 330 | D129: 100 | E129: 900 | F129: 449 | G129: 295 | H129: 72.38 | I129: 143 | J129: 35 | K129: 0 | L129: 50 | M129: 18.27 | N129: 82.05 | O129: 17.27 | P129: 94 | Q129: 4.31 | R129: 10.55 | S129: 50 | T129: 8.1 | U129: 3 | V129: 2 | W129: 1 | X129: 31 | Y129: 4 | Z129: 2 | AA129: 598.7 | AB129: GF | AC129: 260 | AD129: 7 | AE129: 29 | AF129: 63 | AG129: 0.12 | AH129: 0.35 | AI129: 0.03 | AJ129: 0 | AK129: 53 | AL129: 40.4 | AM129: 14.3 | AN129: 0 | AO129: 6.71 | AP129: 2.45 | AQ129: 0 | AR129: 2026-03-10
A130: 2644 | B130: KleeGrasSilage, 2.und FolgeSchnitte, vor der Knosp | C130: 340 | D130: 106 | E130: 894 | F130: 422 | G130: 298 | H130: 68.62 | I130: 178 | J130: 37 | K130: 0 | L130: 42 | M130: 18.38 | N130: 82.5 | O130: 21.49 | P130: 94 | Q130: 10.1 | R130: 9.86 | S130: 42 | T130: 10.7 | U130: 3.6 | V130: 2.7 | W130: 0.59 | X130: 32.2 | Y130: 5.3 | Z130: 2.6 | AA130: 537.955 | AB130: GF | AC130: 300 | AD130: 7.9 | AE130: 29.7 | AF130: 53.2 | AG130: 0.12 | AH130: 0.35 | AI130: 0.03 | AJ130: 0 | AK130: 53 | AL130: 40.4 | AM130: 14.3 | AN130: 0 | AO130: 7.44 | AP130: 2.71 | AQ130: 0 | AR130: 2026-03-10
A131: 2645 | B131: KleeGrasSilage, 2.Schnitt | C131: 340 | D131: 99 | E131: 901 | F131: 457 | G131: 316 | H131: 66.93 | I131: 155 | J131: 35 | K131: 0 | L131: 44 | M131: 18.36 | N131: 78.69 | O131: 18.72 | P131: 94 | Q131: 7.14 | R131: 9.63 | S131: 44 | T131: 9.4 | U131: 3.5 | V131: 2.6 | W131: 0.58 | X131: 30.6 | Y131: 5.3 | Z131: 2.4 | AA131: 509.03 | AB131: GF | AC131: 300 | AD131: 7.6 | AE131: 29.7 | AF131: 59 | AG131: 0.12 | AH131: 0.35 | AI131: 0.03 | AJ131: 0 | AK131: 53 | AL131: 40.4 | AM131: 14.3 | AN131: 0 | AO131: 7.87 | AP131: 2.86 | AQ131: 0 | AR131: 2026-03-10
A132: 2646 | B132: KleeGrasSilage, 2.und FolgeSchnitte, Beginn Blüte | C132: 340 | D132: 95 | E132: =1000-D132 -> 905 | F132: 483 | G132: 327 | H132: 65.79 | I132: 130 | J132: 32 | K132: 0 | L132: 50 | M132: 18.24 | N132: 74.91 | O132: 15.7 | P132: 94 | Q132: 3.84 | R132: 9.45 | S132: 50 | T132: 8.9 | U132: 3.3 | V132: 2.4 | W132: 0.62 | X132: 28.2 | Y132: 5.3 | Z132: 2.4 | AA132: 449.29 | AB132: GF | AC132: 300 | AD132: 7 | AE132: 29.7 | AF132: 67.3 | AG132: 0.12 | AH132: 0.35 | AI132: 0.03 | AJ132: 0 | AK132: 53 | AL132: 40.4 | AM132: 14.3 | AN132: 0 | AO132: 8.99 | AP132: 2.57 | AQ132: 0 | AR132: 2026-03-10
A133: 2648 | B133: KleeGrasSilage, 3.Schnitt | C133: 340 | D133: 110 | E133: 890 | F133: 430 | G133: 304 | H133: 67.42 | I133: 174 | J133: 34 | K133: 0 | L133: 50 | M133: 18.2 | N133: 80.68 | O133: 21.01 | P133: 94 | Q133: 9.86 | R133: 9.56 | S133: 50 | T133: 10.4 | U133: 3.4 | V133: 2.8 | W133: 0.6 | X133: 30.4 | Y133: 5.6 | Z133: 2.8 | AA133: =(42.5 *W133 + 25.6 * X133) - (28.2 * Y133 + 62.3 *Z133) -> 471.38 | AB133: GF | AC133: 400 | AD133: 7.8 | AE133: 30 | AF133: 60 | AG133: 0.12 | AH133: 0.35 | AI133: 0.03 | AJ133: 0 | AK133: 53 | AL133: 40.4 | AM133: 14.3 | AN133: 0 | AO133: 8.28 | AP133: 2.36 | AQ133: 0 | AR133: 2026-03-10
A134: 2649 | B134: KleeGrasSilage, ab 4.Schnitt | C134: 330 | D134: 120 | E134: 880 | F134: 393 | G134: 272 | H134: 70.57 | I134: 182 | J134: 36 | K134: 0 | L134: 52 | M134: 18.09 | N134: 83.74 | O134: 21.98 | P134: 94 | Q134: 10.47 | R134: 10.01 | S134: 52 | T134: 10.9 | U134: 3.7 | V134: 3 | W134: 0.6 | X134: 30.9 | Y134: 7.4 | Z134: 3.1 | AA134: 414.73 | AB134: GF | AC134: 600 | AD134: 8.2 | AE134: 30.6 | AF134: 73.2 | AG134: 0.12 | AH134: 0.35 | AI134: 0.03 | AJ134: 0 | AK134: 53 | AL134: 40.4 | AM134: 14.3 | AN134: 0 | AO134: 7.8 | AP134: 2.23 | AQ134: 0 | AR134: 2026-03-10
A135: 2714 | B135: LuzerneSilage, in der Knospe 1.Schnitt | C135: 350 | D135: 105 | E135: 895 | F135: 374 | G135: 319 | H135: 69.41 | I135: 190 | J135: 32 | K135: 0 | L135: 40 | M135: 18.36 | N135: 86.52 | O135: 24.74 | P135: 94 | Q135: 11.28 | R135: 9.94 | S135: 40 | T135: 16 | U135: 3.5 | V135: 2.9 | W135: 0.5 | X135: 31 | Y135: 3.1 | Z135: 2.1 | AA135: 596.6 | AB135: GF | AC135: 400 | AD135: 7.5 | AE135: 26 | AF135: 44 | AG135: 0.15 | AH135: 0.3 | AI135: 0.03 | AJ135: 0 | AK135: 67 | AL135: 23 | AM135: 13 | AN135: 0 | AO135: 8.42 | AP135: 2.4 | AQ135: 0 | AR135: 2026-03-10
A136: 2715 | B136: LuzerneSilage, 1.Schnitt | C136: 350 | D136: 105 | E136: 895 | F136: 406 | G136: 330 | H136: 68.25 | I136: 175 | J136: 29 | K136: 0 | L136: 40 | M136: 18.23 | N136: 83.54 | O136: 22.79 | P136: 94 | Q136: 9.46 | R136: 9.71 | S136: 40 | T136: 14.5 | U136: 3.3 | V136: 2.7 | W136: 0.5 | X136: 30 | Y136: 3.1 | Z136: 2.1 | AA136: 571 | AB136: GF | AC136: 400 | AD136: 7.5 | AE136: 26 | AF136: 44 | AG136: 0.15 | AH136: 0.3 | AI136: 0.03 | AJ136: 0 | AK136: 67 | AL136: 23 | AM136: 13 | AN136: 0 | AO136: 9.08 | AP136: 2.59 | AQ136: 0 | AR136: 2026-03-10
A137: 2716 | B137: LuzerneSilage, Ende Blüte, 1.Schnitt | C137: 350 | D137: 105 | E137: 895 | F137: 456 | G137: 344 | H137: 66.8 | I137: 150 | J137: 28 | K137: 0 | L137: 40 | M137: 18.09 | N137: 78.99 | O137: 19.53 | P137: 94 | Q137: 6.33 | R137: 9.47 | S137: 40 | T137: 13 | U137: 3.2 | V137: 2.5 | W137: 0.5 | X137: 29 | Y137: 3.1 | Z137: 2.1 | AA137: 545.4 | AB137: GF | AC137: 400 | AD137: 7.5 | AE137: 26 | AF137: 44 | AG137: 0.15 | AH137: 0.3 | AI137: 0.03 | AJ137: 0 | AK137: 67 | AL137: 23 | AM137: 13 | AN137: 0 | AO137: 8.28 | AP137: 2.36 | AQ137: 0 | AR137: 2026-03-10
A138: 2725 | B138: LuzerneSilage, ab 2. Schnitt | C138: 350 | D138: 105 | E138: 895 | F138: 420 | G138: 352 | H138: 63 | I138: 176 | J138: 29 | K138: 0 | L138: 45 | M138: 18.22 | N138: 78.99 | O138: 22.92 | P138: 94 | Q138: 10.73 | R138: 8.81 | S138: 45 | T138: 14.7 | U138: 3.2 | V138: 2.5 | W138: 0.5 | X138: 29 | Y138: 3.6 | Z138: 2.5 | AA138: 506.38 | AB138: GF | AC138: 400 | AD138: 8 | AE138: 25.6 | AF138: 44.3 | AG138: 0.15 | AH138: 0.3 | AI138: 0.03 | AJ138: 0 | AK138: 67 | AL138: 23 | AM138: 13 | AN138: 0 | AO138: 7.8 | AP138: 2.23 | AQ138: 0 | AR138: 2026-03-10
A139: 2734 | B139: LuzerneGrasSilage, in der Knospe, 1.Schnitt | C139: 350 | D139: 105 | E139: 895 | F139: 408 | G139: 302 | H139: 71.37 | I139: 186 | J139: 35 | K139: 0 | L139: 48 | M139: 18.38 | N139: 87.73 | O139: 24.21 | P139: 94 | Q139: 10.31 | R139: 10.3 | S139: 48 | T139: 13 | U139: 3.4 | V139: 2.6 | W139: 0.5 | X139: 30.9 | Y139: 4.5 | Z139: 2.4 | AA139: 535.87 | AB139: GF | AC139: 400 | AD139: 7.2 | AE139: 26.7 | AF139: 50.2 | AG139: 0.12 | AH139: 0.35 | AI139: 0.03 | AJ139: 0 | AK139: 67 | AL139: 23 | AM139: 13 | AN139: 0 | AO139: 8.04 | AP139: 2.3 | AQ139: 0 | AR139: 2026-03-10
A140: 2735 | B140: LuzerneGras- Silage, 1.Schnitt | C140: 350 | D140: 105 | E140: 895 | F140: 454 | G140: 329 | H140: 68.77 | I140: 162 | J140: 31 | K140: 0 | L140: 44 | M140: 18.2 | N140: 82.3 | O140: 21.09 | P140: 94 | Q140: 7.56 | R140: 9.83 | S140: 44 | T140: 12 | U140: 3.2 | V140: 2.3 | W140: 0.4 | X140: 29.2 | Y140: 4.5 | Z140: 2.1 | AA140: 506.79 | AB140: GF | AC140: 400 | AD140: 7.2 | AE140: 26.7 | AF140: 50.2 | AG140: 0.12 | AH140: 0.35 | AI140: 0.03 | AJ140: 0 | AK140: 67 | AL140: 23 | AM140: 13 | AN140: 0 | AO140: 7.44 | AP140: 2.71 | AQ140: 0 | AR140: 2026-03-10
A141: 2736 | B141: LuzerneGrasSilage, in der Blüte, 1.Schnitt | C141: 350 | D141: 99 | E141: 901 | F141: 484 | G141: 344 | H141: 67.52 | I141: 138 | J141: 29 | K141: 0 | L141: 42 | M141: 18.16 | N141: 78.46 | O141: 17.96 | P141: 94 | Q141: 4.42 | R141: 9.67 | S141: 42 | T141: 10 | U141: 2.9 | V141: 2.3 | W141: 0.4 | X141: 27.2 | Y141: 4.5 | Z141: 2 | AA141: 461.82 | AB141: GF | AC141: 400 | AD141: 7.2 | AE141: 26.7 | AF141: 50.2 | AG141: 0.12 | AH141: 0.35 | AI141: 0.03 | AJ141: 0 | AK141: 67 | AL141: 23 | AM141: 13 | AN141: 0 | AO141: 6.81 | AP141: 2.49 | AQ141: 0 | AR141: 2026-03-10
A142: 2745 | B142: LuzerneGras- Silage, ab 2. Schnitt | C142: 350 | D142: 107 | E142: 893 | F142: 447 | G142: 334 | H142: 64.06 | I142: 172 | J142: 33 | K142: 0 | L142: 47 | M142: 18.24 | N142: 79.28 | O142: 22.39 | P142: 94 | Q142: 9.98 | R142: 9.02 | S142: 47 | T142: 12.3 | U142: 3.2 | V142: 2.7 | W142: 0.6 | X142: 28.1 | Y142: 5.3 | Z142: 2.5 | AA142: 439.65 | AB142: GF | AC142: 400 | AD142: 7.8 | AE142: 27.3 | AF142: 47.4 | AG142: 0.12 | AH142: 0.35 | AI142: 0.03 | AJ142: 0 | AK142: 67 | AL142: 23 | AM142: 13 | AN142: 0 | AO142: 5.51 | AP142: 2.02 | AQ142: 0 | AR142: 2026-03-10
A143: 2814 | B143: WeidelGrasSilage, im Schossen | C143: 350 | D143: 110 | E143: 890 | F143: 384 | G143: 223 | H143: 85.43 | I143: 170 | J143: 38 | K143: 0 | L143: 102 | M143: 18.12 | N143: 98.07 | O143: 22.46 | P143: 90 | Q143: 4.96 | R143: 12.57 | S143: 102 | T143: 5.8 | U143: 3.8 | V143: 1.8 | W143: 0.49 | X143: 36.7 | Y143: 6 | Z143: 2 | AA143: 666.545 | AB143: GF | AC143: 250 | AD143: 6.2 | AE143: 28 | AF143: 65 | AG143: 0.12 | AH143: 0.35 | AI143: 0.03 | AJ143: 0 | AK143: 57 | AL143: 34.7 | AM143: 11.6 | AN143: 0 | AO143: 6.95 | AP143: 2.54 | AQ143: 0 | AR143: 2026-03-10
A144: 2815 | B144: Weidelgras- Silage | C144: 350 | D144: 110 | E144: 890 | F144: 431 | G144: 262 | H144: 78.53 | I144: 150 | J144: 36 | K144: 0 | L144: 67 | M144: 18.08 | N144: 89.33 | O144: 19.82 | P144: 90 | Q144: 3.7 | R144: 11.45 | S144: 67 | T144: 5.8 | U144: 3.3 | V144: 1.8 | W144: 0.53 | X144: 33.6 | Y144: 6 | Z144: 2 | AA144: 588.885 | AB144: GF | AC144: 250 | AD144: 6.2 | AE144: 28 | AF144: 65 | AG144: 0.12 | AH144: 0.35 | AI144: 0.03 | AJ144: 0 | AK144: 57 | AL144: 34.7 | AM144: 11.6 | AN144: 0 | AO144: 5.51 | AP144: 2.02 | AQ144: 0 | AR144: 2026-03-10
A145: 2816 | B145: WeidelGras- Silage, in der Blüte | C145: 350 | D145: 110 | E145: 890 | F145: 482 | G145: 304 | H145: 70.31 | I145: 125 | J145: 34 | K145: 0 | L145: 41 | M145: 18 | N145: 78.75 | O145: 16.52 | P145: 90 | Q145: 2.05 | R145: 10.1 | S145: 41 | T145: 5.8 | U145: 3.2 | V145: 1.8 | W145: 0.5 | X145: 32.9 | Y145: 6 | Z145: 2 | AA145: 569.69 | AB145: GF | AC145: 250 | AD145: 6.2 | AE145: 28 | AF145: 65 | AG145: 0.12 | AH145: 0.35 | AI145: 0.03 | AJ145: 0 | AK145: 57 | AL145: 34.7 | AM145: 11.6 | AN145: 0 | AO145: 3.82 | AP145: 1.42 | AQ145: 0 | AR145: 2026-03-10
A146: 2865 | B146: Landsberger Gemenge- Silage | C146: 320 | D146: 105 | E146: 895 | F146: 427 | G146: 278 | H146: 73.9 | I146: 143 | J146: 34 | K146: 0 | L146: 44 | M146: 18.17 | N146: 83.05 | O146: 17.27 | P146: 94 | Q146: 4.07 | R146: 10.75 | S146: 44 | T146: 6.2 | U146: 3.9 | V146: 1.9 | W146: 0.42 | X146: 32.9 | Y146: 6.6 | Z146: 2 | AA146: 549.37 | AB146: GF | AC146: 186.7 | AD146: 6.9 | AE146: 29.8 | AF146: 80.7 | AG146: 0.12 | AH146: 0.35 | AI146: 0.02 | AJ146: 0 | AK146: 53 | AL146: 40.4 | AM146: 14.3 | AN146: 0 | AO146: 5.13 | AP146: 1.74 | AQ146: 0 | AR146: 2024-02-11
A147: 2885 | B147: SudanGras- Silage | C147: 300 | D147: 55 | E147: 945 | F147: 614 | G147: 380 | H147: 64 | I147: 73 | J147: 20 | K147: 0 | L147: 20 | M147: 18.56 | N147: 70.73 | O147: 10.58 | P147: 62 | Q147: -5.56 | R147: 9.49 | S147: 20 | T147: 5.2 | U147: 2.3 | V147: 2 | W147: 0.23 | X147: 16.1 | Y147: 3.8 | Z147: 1.4 | AA147: 227.555 | AB147: GF | AC147: 150 | AD147: 7.3 | AE147: 30.9 | AF147: 33.8 | AG147: 0.12 | AH147: 0.4 | AI147: 0.01 | AJ147: 0 | AK147: 41.7 | AL147: 41.4 | AM147: 18.9 | AN147: 1.54 | AO147: 4.36 | AP147: 1.48 | AQ147: 0 | AR147: 2024-02-11
A148: 3014 | B148: Heu Wiese, 1.Schnitt, RispenSchieben | C148: 860 | D148: 80 | E148: 920 | F148: 537 | G148: 304 | H148: 69.39 | I148: 127 | J148: 25 | K148: 0 | L148: 120 | M148: 18.16 | N148: 84.13 | O148: 20.64 | P148: 80 | Q148: 0.87 | R148: 9.99 | S148: 120 | T148: 6.1 | U148: 3 | V148: 2 | W148: 0.4 | X148: 26.6 | Y148: 6.9 | Z148: 1.9 | AA148: 385.01 | AB148: GF | AC148: 150 | AD148: 7.3 | AE148: 32 | AF148: 68 | AG148: 0.12 | AH148: 0.4 | AI148: 0.02 | AJ148: 0 | AK148: 34.5 | AL148: 57 | AM148: 10 | AN148: 0 | AO148: 3.663 | AP148: 1.24 | AQ148: 0 | AR148: 2024-02-11
A149: 3015 | B149: Heu Wiese, 1.Schnitt | C149: 860 | D149: 71 | E149: 929 | F149: 594 | G149: 346 | H149: 60.61 | I149: 97 | J149: 18 | K149: 0 | L149: 118 | M149: 18.05 | N149: 71.76 | O149: 15.76 | P149: 80 | Q149: -1.15 | R149: 8.55 | S149: 118 | T149: 5.8 | U149: 2.7 | V149: 2 | W149: 0.4 | X149: 22.5 | Y149: 5.6 | Z149: 1.8 | AA149: 322.94 | AB149: GF | AC149: 150 | AD149: 7.2 | AE149: 30.5 | AF149: 68 | AG149: 0.12 | AH149: 0.4 | AI149: 0.02 | AJ149: 0 | AK149: 34.5 | AL149: 57 | AM149: 10 | AN149: 0 | AO149: 6.95 | AP149: 2.34 | AQ149: 0 | AR149: 2024-02-11
A150: 3016 | B150: Heu Wiese, 1.Schnitt, in der Blüte | C150: 860 | D150: 62 | E150: 938 | F150: 624 | G150: 380 | H150: 55.4 | I150: 82 | J150: 16 | K150: 0 | L150: 116 | M150: 18.11 | N150: 65.01 | O150: 13.33 | P150: 80 | Q150: -2.02 | R150: 7.75 | S150: 116 | T150: 5.5 | U150: 2.2 | V150: 2 | W150: 0.4 | X150: 20.7 | Y150: 5.1 | Z150: 1.6 | AA150: 303.42 | AB150: GF | AC150: 150 | AD150: 6.6 | AE150: 29 | AF150: 68 | AG150: 0.12 | AH150: 0.4 | AI150: 0.02 | AJ150: 0 | AK150: 34.5 | AL150: 57 | AM150: 10 | AN150: 0 | AO150: 6.27 | AP150: 2.11 | AQ150: 0 | AR150: 2024-02-11
A151: 3017 | B151: Heu Wiese, 1.Schnitt, abgeblüht | C151: 860 | D151: 56 | E151: 944 | F151: 636 | G151: 391 | H151: 52.51 | I151: 64 | J151: 14 | K151: 0 | L151: 114 | M151: 18.1 | N151: 59.7 | O151: 10.4 | P151: 80 | Q151: -3.74 | R151: 7.32 | S151: 114 | T151: 5.2 | U151: 2.2 | V151: 2 | W151: 0.4 | X151: 18.4 | Y151: 4.4 | Z151: 1.5 | AA151: 270.51 | AB151: GF | AC151: 150 | AD151: 6.5 | AE151: 27.5 | AF151: 68 | AG151: 0.12 | AH151: 0.4 | AI151: 0.02 | AJ151: 0 | AK151: 34.5 | AL151: 57 | AM151: 10 | AN151: 0 | AO151: 5.36 | AP151: 1.81 | AQ151: 0 | AR151: 2024-02-11
A152: 3024 | B152: Heu Wiese, 2.und FolgeSchnitte, im Schossen | C152: 860 | D152: 89 | E152: 911 | F152: 485 | G152: 272 | H152: 73.56 | I152: 145 | J152: 30 | K152: 0 | L152: 120 | M152: 18.18 | N152: 90.2 | O152: 23.56 | P152: 80 | Q152: 2.4 | R152: 10.66 | S152: 120 | T152: 8 | U152: 3.4 | V152: 2.9 | W152: 0.5 | X152: 26.4 | Y152: 6.5 | Z152: 2.4 | AA152: 364.27 | AB152: GF | AC152: 220 | AD152: 7.5 | AE152: 30 | AF152: 65 | AG152: 0.12 | AH152: 0.4 | AI152: 0.02 | AJ152: 0 | AK152: 34.5 | AL152: 57 | AM152: 10 | AN152: 0 | AO152: 6.27 | AP152: 2.11 | AQ152: 0 | AR152: 2024-02-11
A153: 3025 | B153: Heu Wiese, 2.Schnitt | C153: 860 | D153: 86 | E153: 914 | F153: 527 | G153: 304 | H153: 68.76 | I153: 131 | J153: 26 | K153: 0 | L153: 106 | M153: 18.13 | N153: 83.79 | O153: 21.29 | P153: 80 | Q153: 1.62 | R153: 9.86 | S153: 106 | T153: 7.8 | U153: 3.3 | V153: 2.8 | W153: 0.5 | X153: 24.6 | Y153: 6.5 | Z153: 2.2 | AA153: 330.65 | AB153: GF | AC153: 220 | AD153: 7.4 | AE153: 30 | AF153: 65 | AG153: 0.12 | AH153: 0.4 | AI153: 0.02 | AJ153: 0 | AK153: 34.5 | AL153: 57 | AM153: 10 | AN153: 0 | AO153: 6.27 | AP153: 2.11 | AQ153: 0 | AR153: 2024-02-11
A154: 3026 | B154: Heu Wiese, 2.und FolgeSchnitte, Beginn Blüte | C154: 860 | D154: 80 | E154: 920 | F154: 581 | G154: 340 | H154: 62.93 | I154: 113 | J154: 22 | K154: 0 | L154: 96 | M154: 18.1 | N154: 75.94 | O154: 18.36 | P154: 80 | Q154: 0.51 | R154: 8.92 | S154: 96 | T154: 6.4 | U154: 3.1 | V154: 2.4 | W154: 0.5 | X154: 23 | Y154: 6.5 | Z154: 2.1 | AA154: 295.92 | AB154: GF | AC154: 220 | AD154: 7.2 | AE154: 30 | AF154: 65 | AG154: 0.12 | AH154: 0.4 | AI154: 0.02 | AJ154: 0 | AK154: 34.5 | AL154: 57 | AM154: 10 | AN154: 0 | AO154: 6.04 | AP154: 2.04 | AQ154: 0 | AR154: 2024-02-11
A155: 3028 | B155: Heu Wiese 3. Schnitt | C155: 860 | D155: 91 | E155: 909 | F155: 515 | G155: 292 | H155: 71.64 | I155: 147 | J155: 26 | K155: 0 | L155: 120 | M155: 18.07 | N155: 88.65 | O155: 23.89 | P155: 80 | Q155: 3.11 | R155: 10.26 | S155: 120 | T155: 7 | U155: 3.5 | V155: 2.7 | W155: 0.6 | X155: 26.2 | Y155: 7.2 | Z155: 2.9 | AA155: 312.51 | AB155: GF | AC155: 250 | AD155: 7.9 | AE155: 30 | AF155: 65 | AG155: 0.12 | AH155: 0.4 | AI155: 0.02 | AJ155: 0 | AK155: 34.5 | AL155: 57 | AM155: 10 | AN155: 0 | AO155: 5.36 | AP155: 1.81 | AQ155: 0 | AR155: 2024-02-11
A156: 3029 | B156: Heu Wiese ab 4.Schnitt | C156: 860 | D156: 99 | E156: 901 | F156: 462 | G156: 254 | H156: 79.13 | I156: 180 | J156: 32 | K156: 0 | L156: 97 | M156: 18.26 | N156: 100.15 | O156: 29.25 | P156: 80 | Q156: 5.84 | R156: 11.55 | S156: 97 | T156: 7.8 | U156: 4.3 | V156: 3.4 | W156: 0.6 | X156: 27.1 | Y156: 8 | Z156: 3.1 | AA156: 300.53 | AB156: GF | AC156: 350 | AD156: 8.5 | AE156: 35 | AF156: 65 | AG156: 0.12 | AH156: 0.4 | AI156: 0.02 | AJ156: 0 | AK156: 34.5 | AL156: 57 | AM156: 10 | AN156: 0 | AO156: 4.45 | AP156: 1.51 | AQ156: 0 | AR156: 2024-02-11
A157: 3034 | B157: Heu Unter DachTrocknung, 1.Schnitt, RispenSchieben | C157: 870 | D157: 85 | E157: 915 | F157: 498 | G157: 281 | H157: 74.15 | I157: 142 | J157: 27 | K157: 0 | L157: 142 | M157: 18.11 | N157: 90.54 | O157: 23.07 | P157: 80 | Q157: 1.82 | R157: 10.72 | S157: 142 | T157: 6.6 | U157: 3.2 | V157: 2.1 | W157: 0.5 | X157: 28.2 | Y157: 5.4 | Z157: 2 | AA157: 466.29 | AB157: GF | AC157: 150 | AD157: 7.3 | AE157: 33.1 | AF157: 68 | AG157: 0.12 | AH157: 0.4 | AI157: 0.02 | AJ157: 0 | AK157: 34.5 | AL157: 57 | AM157: 10 | AN157: 0 | AO157: 7.18 | AP157: 2.42 | AQ157: 0 | AR157: 2024-02-11
A158: 3035 | B158: Heu Unter Dach Trocknung, 1.Schnitt | C158: 870 | D158: 77 | E158: 923 | F158: 541 | G158: 307 | H158: 68.63 | I158: 111 | J158: 24 | K158: 0 | L158: 140 | M158: 18.06 | N158: 81.04 | O158: 18.04 | P158: 80 | Q158: -1.05 | R158: 9.85 | S158: 140 | T158: 6.2 | U158: 2.9 | V158: 2.1 | W158: 0.5 | X158: 23.9 | Y158: 5.4 | Z158: 1.9 | AA158: 362.44 | AB158: GF | AC158: 150 | AD158: 7.1 | AE158: 32.5 | AF158: 68 | AG158: 0.12 | AH158: 0.4 | AI158: 0.02 | AJ158: 0 | AK158: 34.5 | AL158: 57 | AM158: 10 | AN158: 0 | AO158: 6.73 | AP158: 2.26 | AQ158: 0 | AR158: 2024-02-11
A159: 3036 | B159: Heu Unter Dach Trocknung, 1.Schnitt, in der Blüte | C159: 870 | D159: 70 | E159: 930 | F159: 582 | G159: 350 | H159: 62.25 | I159: 91 | J159: 19 | K159: 0 | L159: 138 | M159: 18 | N159: 72.36 | O159: 14.79 | P159: 80 | Q159: -2.29 | R159: 8.81 | S159: 138 | T159: 5.8 | U159: 2.4 | V159: 2.1 | W159: 0.5 | X159: 23.1 | Y159: 5.4 | Z159: 1.8 | AA159: 348.19 | AB159: GF | AC159: 150 | AD159: 6.7 | AE159: 28.1 | AF159: 68 | AG159: 0.12 | AH159: 0.4 | AI159: 0.02 | AJ159: 0 | AK159: 34.5 | AL159: 57 | AM159: 10 | AN159: 0 | AO159: 6.5 | AP159: 2.19 | AQ159: 0 | AR159: 2024-02-11
A160: 3044 | B160: Heu UnterDach Trocknung, 2.u. FolgeSchn., Schossen | C160: 870 | D160: 99 | E160: 901 | F160: 461 | G160: 260 | H160: 77.8 | I160: 172 | J160: 28 | K160: 0 | L160: 112 | M160: 18.1 | N160: 97.66 | O160: 27.95 | P160: 80 | Q160: 5.11 | R160: 11.24 | S160: 112 | T160: 8.4 | U160: 3.8 | V160: 3 | W160: 0.6 | X160: 29.5 | Y160: 7.8 | Z160: 2.7 | AA160: 392.53 | AB160: GF | AC160: 220 | AD160: 7.9 | AE160: 38.1 | AF160: 65 | AG160: 0.12 | AH160: 0.4 | AI160: 0.02 | AJ160: 0 | AK160: 34.5 | AL160: 57 | AM160: 10 | AN160: 0 | AO160: 8.32 | AP160: 2.79 | AQ160: 0 | AR160: 2024-02-11
A161: 3045 | B161: Heu Unter Dach Trocknung, ab 2.Schnitt | C161: 870 | D161: 95 | E161: 905 | F161: 514 | G161: 287 | H161: 71.85 | I161: 148 | J161: 27 | K161: 0 | L161: 110 | M161: 18.05 | N161: 88.72 | O161: 24.05 | P161: 80 | Q161: 3.26 | R161: 10.28 | S161: 110 | T161: 7.4 | U161: 3.7 | V161: 2.8 | W161: 0.6 | X161: 28.5 | Y161: 7.8 | Z161: 2.6 | AA161: 373.16 | AB161: GF | AC161: 220 | AD161: 7.8 | AE161: 33 | AF161: 65 | AG161: 0.12 | AH161: 0.4 | AI161: 0.02 | AJ161: 0 | AK161: 34.5 | AL161: 57 | AM161: 10 | AN161: 0 | AO161: 7.86 | AP161: 2.64 | AQ161: 0 | AR161: 2024-02-11
A162: 3046 | B162: Heu Unt. DachTrocknung, 2.u. FolgSch, Beginn Blüte | C162: 870 | D162: 87 | E162: 913 | F162: 553 | G162: 312 | H162: 67.44 | I162: 137 | J162: 25 | K162: 0 | L162: 108 | M162: 18.11 | N162: 83.49 | O162: 22.26 | P162: 80 | Q162: 2.69 | R162: 9.61 | S162: 108 | T162: 7.4 | U162: 3.6 | V162: 2.6 | W162: 0.6 | X162: 26.3 | Y162: 7.8 | Z162: 2.5 | AA162: 323.07 | AB162: GF | AC162: 220 | AD162: 7.7 | AE162: 27.7 | AF162: 65 | AG162: 0.12 | AH162: 0.4 | AI162: 0.02 | AJ162: 0 | AK162: 34.5 | AL162: 57 | AM162: 10 | AN162: 0 | AO162: 8.64 | AP162: 2.9 | AQ162: 0 | AR162: 2024-02-11
A163: 3074 | B163: GrasCobs, 1.Schnitt, im Blattstadium | C163: 900 | D163: 95 | E163: 905 | F163: 425 | G163: 208 | H163: 82.63 | I163: 174 | J163: 30 | K163: 0 | L163: 154 | M163: 18.1 | N163: 107.49 | O163: 33.12 | P163: 80 | Q163: 3.27 | R163: 12.03 | S163: 154 | T163: 6.9 | U163: 3.9 | V163: 2.9 | W163: 1.1 | X163: 26 | Y163: 6.3 | Z163: 2.2 | AA163: 397.63 | AB163: GF | AC163: 400 | AD163: 7.7 | AE163: 33 | AF163: 80 | AG163: 0.15 | AH163: 0.4 | AI163: 0.03 | AJ163: 0 | AK163: 34 | AL163: 56 | AM163: 8 | AN163: 0 | AO163: 8.32 | AP163: 2.79 | AQ163: 0 | AR163: 2024-02-11
A164: 3075 | B164: GrasCobs, 1.Schnitt | C164: 900 | D164: 95 | E164: 905 | F164: 464 | G164: 253 | H164: 77.17 | I164: 152 | J164: 30 | K164: 0 | L164: 135 | M164: 18.05 | N164: 98.39 | O164: 28.94 | P164: 80 | Q164: 1.77 | R164: 11.16 | S164: 135 | T164: 6.9 | U164: 3.9 | V164: 2.9 | W164: 1.1 | X164: 26 | Y164: 6.3 | Z164: 2.2 | AA164: 397.63 | AB164: GF | AC164: 400 | AD164: 7.7 | AE164: 33 | AF164: 80 | AG164: 0.15 | AH164: 0.4 | AI164: 0.03 | AJ164: 0 | AK164: 34 | AL164: 56 | AM164: 8 | AN164: 0 | AO164: 7.18 | AP164: 2.42 | AQ164: 0 | AR164: 2024-02-11
A165: 3076 | B165: GrasCobs, 1.Schnitt, RispenSchieben | C165: 900 | D165: 95 | E165: 905 | F165: 499 | G165: 274 | H165: 72.03 | I165: 131 | J165: 30 | K165: 0 | L165: 120 | M165: 18 | N165: 89.77 | O165: 24.94 | P165: 80 | Q165: 0.33 | R165: 10.34 | S165: 120 | T165: 6.7 | U165: 3.6 | V165: 2.9 | W165: 1.1 | X165: 26 | Y165: 6.3 | Z165: 2.2 | AA165: 397.63 | AB165: GF | AC165: 400 | AD165: 7.7 | AE165: 33 | AF165: 80 | AG165: 0.15 | AH165: 0.4 | AI165: 0.03 | AJ165: 0 | AK165: 34 | AL165: 56 | AM165: 8 | AN165: 0 | AO165: 8.55 | AP165: 2.87 | AQ165: 0 | AR165: 2024-02-11
A166: 3084 | B166: GrasCobs, 2.und FolgeSchnitte, im Blattstadium | C166: 900 | D166: 100 | E166: 900 | F166: 393 | G166: 220 | H166: 83.19 | I166: 183 | J166: 37 | K166: 0 | L166: 111 | M166: 18.32 | N166: 109.29 | O166: 34.83 | P166: 80 | Q166: 4.34 | R166: 12.28 | S166: 111 | T166: 9.8 | U166: 3.7 | V166: 3.4 | W166: 1 | X166: 24 | Y166: 7.5 | Z166: 2.7 | AA166: 277.19 | AB166: GF | AC166: 600 | AD166: 8.6 | AE166: 32 | AF166: 111 | AG166: 0.15 | AH166: 0.4 | AI166: 0.03 | AJ166: 0 | AK166: 34 | AL166: 56 | AM166: 8 | AN166: 0 | AO166: 7.86 | AP166: 2.64 | AQ166: 0 | AR166: 2024-02-11
A167: 3085 | B167: GrasCobs, ab 2.Schnitt | C167: 900 | D167: 100 | E167: 900 | F167: 448 | G167: 252 | H167: 78.63 | I167: 173 | J167: 34 | K167: 0 | L167: 95 | M167: 18.26 | N167: 103.31 | O167: 32.93 | P167: 80 | Q167: 4.11 | R167: 11.49 | S167: 95 | T167: 9.8 | U167: 3.7 | V167: 3.4 | W167: 1 | X167: 24 | Y167: 7.5 | Z167: 2.7 | AA167: 277.19 | AB167: GF | AC167: 600 | AD167: 8.6 | AE167: 32 | AF167: 111 | AG167: 0.15 | AH167: 0.4 | AI167: 0.03 | AJ167: 0 | AK167: 34 | AL167: 56 | AM167: 8 | AN167: 0 | AO167: 7.41 | AP167: 2.49 | AQ167: 0 | AR167: 2024-02-11
A168: 3086 | B168: GrasCobs, 2.und FolgeSchnitte, RispenSchieben | C168: 900 | D168: 100 | E168: 900 | F168: 479 | G168: 271 | H168: 75.26 | I168: 162 | J168: 32 | K168: 0 | L168: 89 | M168: 18.18 | N168: 98.19 | O168: 30.83 | P168: 80 | Q168: 3.5 | R168: 10.9 | S168: 89 | T168: 9.8 | U168: 3.7 | V168: 3.4 | W168: 1 | X168: 24 | Y168: 7.5 | Z168: 2.7 | AA168: 277.19 | AB168: GF | AC168: 600 | AD168: 8.6 | AE168: 32 | AF168: 111 | AG168: 0.15 | AH168: 0.4 | AI168: 0.03 | AJ168: 0 | AK168: 34 | AL168: 56 | AM168: 8 | AN168: 0 | AO168: 0.9 | AP168: 0.22 | AQ168: 0 | AR168: 2024-02-11
A169: 3125 | B169: Stroh Gerste | C169: 880 | D169: 56 | E169: 944 | F169: 847 | G169: 542 | H169: 50 | I169: 30 | J169: 15 | K169: 0 | L169: 12 | M169: 18.26 | N169: 48.52 | O169: 1.58 | P169: 26 | Q169: -7.5 | R169: 7.09 | S169: 12 | T169: 4.4 | U169: 1 | V169: 1.1 | W169: 0.37 | X169: 15.2 | Y169: 2.8 | Z169: 0.9 | AA169: 269.815 | AB169: GF | AC169: 79.7 | AD169: 4.1 | AE169: 11.2 | AF169: 15.1 | AG169: 0.1 | AH169: 0.35 | AI169: 0.01 | AJ169: 0 | AK169: 34.5 | AL169: 57 | AM169: 10 | AN169: 0 | AO169: 0 | AP169: 0 | AQ169: 0 | AR169: 2024-02-11
A170: 3134 | B170: Stroh Gerste, NaOH aufgeschlossen | C170: 880 | D170: 97 | E170: 903 | F170: 761 | G170: 489 | H170: 68 | I170: 27 | J170: 15 | K170: 0 | L170: 3 | M170: 17.5 | N170: 62.08 | O170: 1.01 | P170: 26 | Q170: -11.04 | R170: 9.73 | S170: 3 | T170: 4.4 | U170: 1 | V170: 1.1 | W170: 5.18 | X170: 15.2 | Y170: 2.8 | Z170: 0.9 | AA170: 474.24 | AB170: GF | AC170: 79.7 | AD170: 4.1 | AE170: 11.2 | AF170: 15.1 | AG170: 0.1 | AH170: 0.35 | AI170: 0.01 | AJ170: 0 | AK170: 57 | AL170: 35 | AM170: 11.6 | AN170: 0 | AO170: 0 | AP170: 0 | AQ170: 0 | AR170: 2024-02-11
A171: 3135 | B171: Stroh Gerste, NH3 aufgeschlossen | C171: 880 | D171: 56 | E171: 944 | F171: 847 | G171: 542 | H171: 65 | I171: 59 | J171: 15 | K171: 0 | L171: 3 | M171: 18.42 | N171: 63.24 | O171: 2.22 | P171: 26 | Q171: -6.65 | R171: 9.63 | S171: 3 | T171: 4.4 | U171: 1 | V171: 1.1 | W171: 0.37 | X171: 15.2 | Y171: 2.8 | Z171: 0.9 | AA171: 269.815 | AB171: GF | AC171: 79.7 | AD171: 4.1 | AE171: 11.2 | AF171: 15.1 | AG171: 0.1 | AH171: 0.35 | AI171: 0.01 | AJ171: 0 | AK171: 57 | AL171: 35 | AM171: 11.6 | AN171: 0 | AO171: 0.72 | AP171: 0.18 | AQ171: 0 | AR171: 2024-02-11
A172: 3145 | B172: Stroh Hafer | C172: 880 | D172: 64 | E172: 936 | F172: 790 | G172: 516 | H172: 50 | I172: 36 | J172: 19 | K172: 0 | L172: 49 | M172: 18.11 | N172: 48.44 | O172: 1.9 | P172: 26 | Q172: -6.64 | R172: 7.01 | S172: 49 | T172: 4 | U172: 1.4 | V172: 1 | W172: 2 | X172: 21 | Y172: 8 | Z172: 2 | AA172: 272.4 | AB172: GF | AC172: 200 | AD172: 7 | AE172: 40 | AF172: 80 | AG172: 0.06 | AH172: 0.35 | AI172: 0.01 | AJ172: 0 | AK172: 34.5 | AL172: 57 | AM172: 10 | AN172: 0 | AO172: 0 | AP172: 0 | AQ172: 0 | AR172: 2024-02-11
A173: 3155 | B173: Stroh Hafer, NH3 aufgeschlossen | C173: 880 | D173: 67 | E173: 933 | F173: 790 | G173: 516 | H173: 65 | I173: 82 | J173: 17 | K173: 0 | L173: 7 | M173: 18.35 | N173: 63.39 | O173: 3.08 | P173: 26 | Q173: -3.33 | R173: 9.52 | S173: 7 | T173: 4 | U173: 1.4 | V173: 1 | W173: 2 | X173: 21 | Y173: 8 | Z173: 2 | AA173: 272.4 | AB173: GF | AC173: 200 | AD173: 7 | AE173: 40 | AF173: 80 | AG173: 0.06 | AH173: 0.35 | AI173: 0.01 | AJ173: 0 | AK173: 57 | AL173: 35 | AM173: 11.6 | AN173: 0 | AO173: 0.74 | AP173: 0.19 | AQ173: 0 | AR173: 2024-02-11
A174: 3165 | B174: Stroh Roggen | C174: 880 | D174: 58 | E174: 942 | F174: 850 | G174: 550 | H174: 50 | I174: 37 | J174: 13 | K174: 0 | L174: 10 | M174: 18.22 | N174: 48.8 | O174: 1.96 | P174: 26 | Q174: -6.59 | R174: 7.05 | S174: 10 | T174: 3 | U174: 1 | V174: 1 | W174: 0.4 | X174: 10 | Y174: 3 | Z174: 0.7 | AA174: 144.79 | AB174: GF | AC174: 80 | AD174: 4 | AE174: 10 | AF174: 20 | AG174: 0.05 | AH174: 0.35 | AI174: 0.01 | AJ174: 0 | AK174: 34.5 | AL174: 57 | AM174: 10 | AN174: 0 | AO174: 0.8 | AP174: 0.2 | AQ174: 0 | AR174: 2024-02-11
A175: 3185 | B175: Stroh Weizen | C175: 880 | D175: 57 | E175: 943 | F175: 835 | G175: 527 | H175: 50 | I175: 40 | J175: 13 | K175: 0 | L175: 17 | M175: 18.23 | N175: 49 | O175: 2.11 | P175: 26 | Q175: -6.22 | R175: 7.05 | S175: 17 | T175: 3.6 | U175: 1.1 | V175: 0.9 | W175: 0.25 | X175: 10 | Y175: 2.2 | Z175: 0.7 | AA175: 160.975 | AB175: GF | AC175: 67.2 | AD175: 5.3 | AE175: 9.3 | AF175: 26.9 | AG175: 0.06 | AH175: 0.35 | AI175: 0.01 | AJ175: 0 | AK175: 34.5 | AL175: 57 | AM175: 10 | AN175: 0 | AO175: 0 | AP175: 0 | AQ175: 0 | AR175: 2024-02-11
A176: 3194 | B176: Stroh Weizen, NaOH aufgeschlossen | C176: 880 | D176: 82 | E176: 918 | F176: 825 | G176: 521 | H176: 56 | I176: 37 | J176: 14 | K176: 0 | L176: 4 | M176: 17.81 | N176: 52.52 | O176: 1.39 | P176: 26 | Q176: -7.27 | R176: 7.89 | S176: 4 | T176: 3.6 | U176: 1.1 | V176: 0.9 | W176: 4.67 | X176: 10 | Y176: 2.2 | Z176: 0.7 | AA176: 348.825 | AB176: GF | AC176: 67.2 | AD176: 5.3 | AE176: 9.3 | AF176: 26.9 | AG176: 0.06 | AH176: 0.35 | AI176: 0.01 | AJ176: 0 | AK176: 57 | AL176: 35 | AM176: 11.6 | AN176: 0 | AO176: 0 | AP176: 0 | AQ176: 0 | AR176: 2024-02-11
A177: 3195 | B177: Stroh Weizen, NH3 aufgeschlossen | C177: 880 | D177: 56 | E177: 944 | F177: 835 | G177: 527 | H177: 54 | I177: 94 | J177: 12 | K177: 0 | L177: 4 | M177: 18.52 | N177: 54.23 | O177: 3.53 | P177: 26 | Q177: 0.63 | R177: 7.67 | S177: 4 | T177: 3.6 | U177: 1.1 | V177: 0.9 | W177: 0.25 | X177: 10 | Y177: 2.2 | Z177: 0.7 | AA177: 160.975 | AB177: GF | AC177: 67.2 | AD177: 5.3 | AE177: 9.3 | AF177: 26.9 | AG177: 0.06 | AH177: 0.35 | AI177: 0.01 | AJ177: 0 | AK177: 57 | AL177: 35 | AM177: 11.6 | AN177: 0 | AO177: 2.35 | AP177: 1.34 | AQ177: 0 | AR177: 2024-02-11
A178: 3205 | B178: MaisCobs, Ganzpflanze | C178: 890 | D178: 37 | E178: 963 | F178: 432 | G178: 219 | H178: 75.24 | I178: 75 | J178: 28 | K178: 276 | L178: 80 | M178: 18.46 | N178: 86.33 | O178: 14.27 | P178: 80 | Q178: -8.24 | R178: 11.31 | S178: 240.08 | T178: 3.1 | U178: 2.5 | V178: 2.1 | W178: 0.23 | X178: 10.7 | Y178: 1 | Z178: 1 | AA178: 193.195 | AB178: GF | AC178: 241.7 | AD178: 7.1 | AE178: 30.1 | AF178: 34.7 | AG178: 0.09 | AH178: 0.3 | AI178: 0.01 | AJ178: 0 | AK178: 34 | AL178: 56 | AM178: 8 | AN178: 0 | AO178: 6.54 | AP178: 2.2 | AQ178: 115.92 | AR178: 2024-02-11
A179: 3615 | B179: RotkleeHeu, 1. Schnitt | C179: 860 | D179: 100 | E179: 900 | F179: 463 | G179: 344 | H179: 67.6 | I179: 154 | J179: 21 | K179: 0 | L179: 66 | M179: 17.98 | N179: 77.59 | O179: 17.08 | P179: 80 | Q179: 6.62 | R179: 9.51 | S179: 66 | T179: 11 | U179: 3.3 | V179: 3.2 | W179: 0.5 | X179: 30 | Y179: 3 | Z179: 2 | AA179: 580.05 | AB179: GF | AC179: 250 | AD179: 8.5 | AE179: 25 | AF179: 50 | AG179: 0.15 | AH179: 0.35 | AI179: 0.02 | AJ179: 0 | AK179: 59 | AL179: 36 | AM179: 8 | AN179: 0 | AO179: 7.04 | AP179: 2.37 | AQ179: 0 | AR179: 2024-02-11
A180: 3625 | B180: RotkleeHeu, ab 2.Schnitt | C180: 860 | D180: 100 | E180: 900 | F180: 459 | G180: 345 | H180: 65.63 | I180: 171 | J180: 21 | K180: 0 | L180: 66 | M180: 18.06 | N180: 77.71 | O180: 18.97 | P180: 80 | Q180: 9.39 | R180: 9.17 | S180: 66 | T180: 11 | U180: 3.3 | V180: 3.2 | W180: 0.5 | X180: 30 | Y180: 3 | Z180: 2 | AA180: 580.05 | AB180: GF | AC180: 250 | AD180: 8.5 | AE180: 25 | AF180: 50 | AG180: 0.15 | AH180: 0.35 | AI180: 0.02 | AJ180: 0 | AK180: 59 | AL180: 36 | AM180: 8 | AN180: 0 | AO180: 6.73 | AP180: 2.26 | AQ180: 0 | AR180: 2024-02-11
A181: 3635 | B181: KleeGrasHeu, 1. Schnitt | C181: 860 | D181: 90 | E181: 910 | F181: 481 | G181: 320 | H181: 70.39 | I181: 130 | J181: 19 | K181: 0 | L181: 87 | M181: 17.95 | N181: 80.94 | O181: 17.24 | P181: 80 | Q181: 1.98 | R181: 10.03 | S181: 87 | T181: 8.3 | U181: 2.9 | V181: 2.2 | W181: 0.4 | X181: 26.2 | Y181: 7.1 | Z181: 1.8 | AA181: 375.36 | AB181: GF | AC181: 200 | AD181: 7.5 | AE181: 28 | AF181: 54 | AG181: 0.12 | AH181: 0.35 | AI181: 0.02 | AJ181: 0 | AK181: 47 | AL181: 47 | AM181: 9 | AN181: 0 | AO181: 7.64 | AP181: 2.57 | AQ181: 0 | AR181: 2024-02-11
A182: 3645 | B182: KleeGrasHeu, ab 2.Schnitt | C182: 860 | D182: 97 | E182: 903 | F182: 490 | G182: 330 | H182: 66.85 | I182: 160 | J182: 20 | K182: 0 | L182: 74 | M182: 18.02 | N182: 81.25 | O182: 21.22 | P182: 80 | Q182: 6.87 | R182: 9.38 | S182: 74 | T182: 10.6 | U182: 3.2 | V182: 3.3 | W182: 0.4 | X182: 26.7 | Y182: 4.2 | Z182: 2.1 | AA182: 451.25 | AB182: GF | AC182: 200 | AD182: 7.5 | AE182: 28 | AF182: 54 | AG182: 0.12 | AH182: 0.35 | AI182: 0.02 | AJ182: 0 | AK182: 47 | AL182: 47 | AM182: 9 | AN182: 0 | AO182: 8.92 | AP182: 2.48 | AQ182: 0 | AR182: 2024-02-11
A183: 3675 | B183: Rotklee-, KleeGrasCobs | C183: 900 | D183: 110 | E183: 890 | F183: 446 | G183: 299 | H183: 71.52 | I183: 172 | J183: 29 | K183: 0 | L183: 68 | M183: 18.04 | N183: 86.12 | O183: 22.82 | P183: 80 | Q183: 7.68 | R183: 10.16 | S183: 68 | T183: 11 | U183: 3.3 | V183: 3 | W183: 0.6 | X183: 29 | Y183: 4.3 | Z183: 2.5 | AA183: 490.89 | AB183: GF | AC183: 300 | AD183: 8.3 | AE183: 28 | AF183: 50 | AG183: 0.15 | AH183: 0.35 | AI183: 0.03 | AJ183: 0 | AK183: 47 | AL183: 47 | AM183: 9 | AN183: 0 | AO183: 7.47 | AP183: 2.08 | AQ183: 0 | AR183: 2024-02-11
A184: 3714 | B184: LuzerneHeu, 1.Schnitt, Beginn Blüte | C184: 860 | D184: 101 | E184: 899 | F184: 461 | G184: 332 | H184: 68.61 | I184: 174 | J184: 20 | K184: 0 | L184: 65 | M184: 18.04 | N184: 82.54 | O184: 21.2 | P184: 54 | Q184: 6.76 | R184: 9.65 | S184: 65 | T184: 15 | U184: 2.8 | V184: 3 | W184: 0.8 | X184: 28 | Y184: 4 | Z184: 2 | AA184: 513.4 | AB184: GF | AC184: 200 | AD184: 7 | AE184: 20 | AF184: 25 | AG184: 0.15 | AH184: 0.3 | AI184: 0.02 | AJ184: 0 | AK184: 33 | AL184: 55 | AM184: 11 | AN184: 0 | AO184: 7.23 | AP184: 2.01 | AQ184: 0 | AR184: 2024-02-11
A185: 3715 | B185: LuzerneHeu, 1.Schnitt | C185: 860 | D185: 94 | E185: 906 | F185: 515 | G185: 379 | H185: 64.04 | I185: 166 | J185: 19 | K185: 0 | L185: 40 | M185: 18.18 | N185: 77.92 | O185: 20.22 | P185: 54 | Q185: 6.64 | R185: 8.98 | S185: 40 | T185: 15 | U185: 2.8 | V185: 2.7 | W185: 0.6 | X185: 27 | Y185: 4 | Z185: 2 | AA185: 479.3 | AB185: GF | AC185: 200 | AD185: 7 | AE185: 20 | AF185: 25 | AG185: 0.15 | AH185: 0.3 | AI185: 0.02 | AJ185: 0 | AK185: 33 | AL185: 55 | AM185: 11 | AN185: 0 | AO185: 8.58 | AP185: 2.39 | AQ185: 0 | AR185: 2024-02-11
A186: 3716 | B186: LuzerneHeu, 1.Schnitt, abgeblüht | C186: 860 | D186: 93 | E186: 907 | F186: 536 | G186: 406 | H186: 61.41 | I186: 148 | J186: 15 | K186: 0 | L186: 36 | M186: 18.05 | N186: 73.42 | O186: 18.03 | P186: 54 | Q186: 4.97 | R186: 8.53 | S186: 36 | T186: 15 | U186: 2.8 | V186: 2.3 | W186: 0.5 | X186: 26 | Y186: 4 | Z186: 2 | AA186: 449.45 | AB186: GF | AC186: 200 | AD186: 7 | AE186: 20 | AF186: 25 | AG186: 0.15 | AH186: 0.3 | AI186: 0.02 | AJ186: 0 | AK186: 33 | AL186: 55 | AM186: 11 | AN186: 0 | AO186: 6.75 | AP186: 1.88 | AQ186: 0 | AR186: 2024-02-11
A187: 3724 | B187: LuzerneHeu, 2.und FolgeSchnitte, Beginn Blüte | C187: 860 | D187: 103 | E187: 897 | F187: 456 | G187: 318 | H187: 66.73 | I187: 185 | J187: 21 | K187: 0 | L187: 54 | M187: 18.11 | N187: 82.07 | O187: 22.54 | P187: 54 | Q187: 8.56 | R187: 9.34 | S187: 54 | T187: 15 | U187: 3.1 | V187: 2.6 | W187: 0.5 | X187: 30 | Y187: 4 | Z187: 2 | AA187: 551.85 | AB187: GF | AC187: 200 | AD187: 7 | AE187: 20 | AF187: 25 | AG187: 0.15 | AH187: 0.3 | AI187: 0.02 | AJ187: 0 | AK187: 33 | AL187: 55 | AM187: 11 | AN187: 0 | AO187: 6.27 | AP187: 1.74 | AQ187: 0 | AR187: 2024-02-11
A188: 3725 | B188: LuzerneHeu, ab 2.Schnitt | C188: 860 | D188: 100 | E188: 900 | F188: 488 | G188: 362 | H188: 62.62 | I188: 173 | J188: 19 | K188: 0 | L188: 40 | M188: 18.1 | N188: 77.13 | O188: 21.08 | P188: 54 | Q188: 7.91 | R188: 8.68 | S188: 40 | T188: 15 | U188: 3.1 | V188: 2.4 | W188: 0.5 | X188: 29 | Y188: 4 | Z188: 2 | AA188: 526.25 | AB188: GF | AC188: 200 | AD188: 7 | AE188: 20 | AF188: 25 | AG188: 0.15 | AH188: 0.3 | AI188: 0.02 | AJ188: 0 | AK188: 33 | AL188: 55 | AM188: 11 | AN188: 0 | AO188: 6.99 | AP188: 1.94 | AQ188: 0 | AR188: 2024-02-11
A189: 3726 | B189: LuzerneHeu, 2.und FolgeSchnitte, abgeblüht | C189: 860 | D189: 96 | E189: 904 | F189: 522 | G189: 398 | H189: 59.53 | I189: 149 | J189: 16 | K189: 0 | L189: 33 | M189: 18.02 | N189: 71.67 | O189: 18.15 | P189: 54 | Q189: 5.55 | R189: 8.2 | S189: 33 | T189: 15 | U189: 3.1 | V189: 2.2 | W189: 0.4 | X189: 28 | Y189: 4 | Z189: 2 | AA189: 496.4 | AB189: GF | AC189: 200 | AD189: 7 | AE189: 20 | AF189: 25 | AG189: 0.15 | AH189: 0.3 | AI189: 0.02 | AJ189: 0 | AK189: 33 | AL189: 55 | AM189: 11 | AN189: 0 | AO189: 7.71 | AP189: 2.14 | AQ189: 0 | AR189: 2024-02-11
A190: 3735 | B190: LuzerneGrasHeu, 1. Schnitt | C190: 860 | D190: 94 | E190: 906 | F190: 563 | G190: 378 | H190: 64.56 | I190: 141 | J190: 17 | K190: 0 | L190: 78 | M190: 17.92 | N190: 75.35 | O190: 17.18 | P190: 54 | Q190: 3.43 | R190: 9 | S190: 78 | T190: 12.7 | U190: 4.2 | V190: 2.9 | W190: 0.38 | X190: 36.5 | Y190: 8.6 | Z190: 3.1 | AA190: 514.9 | AB190: GF | AC190: 466.6 | AD190: 8.9 | AE190: 31.7 | AF190: 92 | AG190: 0.12 | AH190: 0.35 | AI190: 0.02 | AJ190: 0 | AK190: 33 | AL190: 55 | AM190: 11 | AN190: 0 | AO190: 7.47 | AP190: 2.08 | AQ190: 0 | AR190: 2024-02-11
A191: 3745 | B191: LuzerneGrasHeu, ab 2.Schnitt | C191: 860 | D191: 93 | E191: 907 | F191: 516 | G191: 363 | H191: 62.99 | I191: 155 | J191: 20 | K191: 0 | L191: 52 | M191: 18.14 | N191: 75.7 | O191: 18.88 | P191: 54 | Q191: 5.49 | R191: 8.82 | S191: 52 | T191: 10.1 | U191: 3.2 | V191: 2.2 | W191: 0.46 | X191: 29.5 | Y191: 3.5 | Z191: 2 | AA191: 551.45 | AB191: KF | AC191: 75 | AD191: 7.6 | AE191: 26.1 | AF191: 31.7 | AG191: 0.12 | AH191: 0.35 | AI191: 0.02 | AJ191: 0 | AK191: 33 | AL191: 55 | AM191: 11 | AN191: 0 | AO191: 10.12 | AP191: 2.81 | AQ191: 0 | AR191: 2024-02-11
A192: 3774 | B192: LuzerneCobs,-Grünmehl, vor der Knose | C192: 900 | D192: 120 | E192: 880 | F192: 427 | G192: 301 | H192: 71.05 | I192: 209 | J192: 31 | K192: 0 | L192: 55 | M192: 18.1 | N192: 108.09 | O192: 45.91 | P192: 84 | Q192: 9.69 | R192: 10 | S192: 55 | T192: 15 | U192: 3.7 | V192: 2.9 | W192: 0.6 | X192: 28 | Y192: 3.7 | Z192: 2.5 | AA192: 482.21 | AB192: KF | AC192: 400 | AD192: 8 | AE192: 26 | AF192: 55 | AG192: 0.15 | AH192: 0.3 | AI192: 0.03 | AJ192: 0 | AK192: 32 | AL192: 54 | AM192: 9 | AN192: 0 | AO192: 8.92 | AP192: 2.48 | AQ192: 0 | AR192: 2024-02-11
A193: 3775 | B193: LuzerneCobs, -Grünmehl | C193: 900 | D193: 115 | E193: 885 | F193: 449 | G193: 310 | H193: 70.21 | I193: 184 | J193: 29 | K193: 0 | L193: 55 | M193: 18.04 | N193: 102.22 | O193: 40.43 | P193: 84 | Q193: 6.83 | R193: 9.9 | S193: 55 | T193: 15 | U193: 3.7 | V193: 2.9 | W193: 0.6 | X193: 28 | Y193: 3.7 | Z193: 2.5 | AA193: 482.21 | AB193: KF | AC193: 400 | AD193: 8 | AE193: 26 | AF193: 55 | AG193: 0.15 | AH193: 0.3 | AI193: 0.03 | AJ193: 0 | AK193: 32 | AL193: 54 | AM193: 9 | AN193: 0 | AO193: 8.44 | AP193: 2.35 | AQ193: 0 | AR193: 2024-02-11
A194: 3776 | B194: LuzerneCobs,-Grünmehl, Beginn Blüte | C194: 900 | D194: 110 | E194: 890 | F194: 480 | G194: 338 | H194: 67.65 | I194: 153 | J194: 25 | K194: 0 | L194: 55 | M194: 17.9 | N194: 93.5 | O194: 33.62 | P194: 84 | Q194: 3.63 | R194: 9.49 | S194: 55 | T194: 15 | U194: 3.7 | V194: 2.9 | W194: 0.6 | X194: 28 | Y194: 3.7 | Z194: 2.5 | AA194: 482.21 | AB194: GF | AC194: 400 | AD194: 8 | AE194: 26 | AF194: 55 | AG194: 0.15 | AH194: 0.3 | AI194: 0.03 | AJ194: 0 | AK194: 32 | AL194: 54 | AM194: 9 | AN194: 0 | AO194: 6.04 | AP194: 2.04 | AQ194: 0 | AR194: 2024-02-11
A195: 3815 | B195: Heu WeidelGras | C195: 860 | D195: 96 | E195: 904 | F195: 471 | G195: 238 | H195: 74.89 | I195: 144 | J195: 28 | K195: 0 | L195: 133 | M195: 17.96 | N195: 90.73 | O195: 23.4 | P195: 80 | Q195: 2.11 | R195: 10.74 | S195: 133 | T195: 5.5 | U195: 3.3 | V195: 1.8 | W195: 0.4 | X195: 33 | Y195: 6 | Z195: 2 | AA195: 568 | AB195: GF | AC195: 200 | AD195: 6 | AE195: 31 | AF195: 50 | AG195: 0.12 | AH195: 0.35 | AI195: 0.03 | AJ195: 0 | AK195: 34.5 | AL195: 57 | AM195: 10 | AN195: 0 | AO195: 6.73 | AP195: 2.26 | AQ195: 0 | AR195: 2024-02-11
A196: 3865 | B196: Heu, Landsberger Gemenge | C196: 860 | D196: 100 | E196: =1000-D196 -> 900 | F196: 560 | G196: 325 | H196: 75 | I196: 150 | J196: 21 | K196: 0 | L196: 60 | M196: 17.98 | N196: 85.4 | O196: 18.27 | P196: 54 | Q196: 2.39 | R196: 10.76 | S196: 60 | T196: 8.5 | U196: 3 | V196: 1.8 | W196: 0.45 | X196: 30 | Y196: 5 | Z196: 2 | AA196: 521.525 | AB196: GF | AC196: 150 | AD196: 8 | AE196: 50 | AF196: 80 | AG196: 0.12 | AH196: 0.35 | AI196: 0.1 | AJ196: 0 | AK196: 33 | AL196: 55 | AM196: 11 | AN196: 0 | AO196: 4.46 | AP196: 2.06 | AQ196: 0 | AR196: 2019-03-10
A197: 4025 | B197: Gerste, 2-zeilig | C197: 880 | D197: 25 | E197: 975 | F197: 210 | G197: 125 | H197: 87.1 | I197: 125 | J197: 25 | K197: 602 | L197: 25 | M197: 18.5 | N197: 100 | O197: 14.5 | P197: 90 | Q197: -3.1 | R197: 13.2 | S197: 564.4 | T197: 0.7 | U197: 4 | V197: 1.3 | W197: 0.3 | X197: 5 | Y197: 1 | Z197: 1.5 | AA197: 19 | AB197: KF | AC197: 44 | AD197: 4.5 | AE197: 25 | AF197: 18 | AG197: 0.1 | AH197: 0.3 | AI197: 0.03 | AJ197: 0 | AK197: 25.61 | AL197: 71.57 | AM197: 19.41 | AN197: 0.03 | AO197: 4.46 | AP197: 2.06 | AQ197: 60 | AR197: 2024-02-11
A198: 4026 | B198: Gerste, mehrzeilig | C198: 880 | D198: 24 | E198: 976 | F198: 169 | G198: 79 | H198: 87.1 | I198: 116 | J198: 20 | K198: 600 | L198: 18 | M198: 18.4 | N198: 98.91 | O198: 14.37 | P198: 90 | Q198: -4.4 | R198: 13.12 | S198: 558 | T198: 0.5 | U198: 4.2 | V198: 1.5 | W198: 0.11 | X198: 6.3 | Y198: 1.3 | Z198: 1.5 | AA198: =(42.5 *W198 + 25.6 * X198) - (28.2 * Y198 + 62.3 *Z198) -> 35.845 | AB198: KF | AC198: 54 | AD198: 9.8 | AE198: 39.6 | AF198: 20.2 | AG198: 0.1 | AH198: 0.3 | AI198: 0 | AJ198: 0 | AK198: 25.61 | AL198: 71.57 | AM198: 19.41 | AN198: 0.03 | AO198: 4.46 | AP198: 2.06 | AQ198: 60 | AR198: 2024-02-11
A199: 4065 | B199: Hafer | C199: 880 | D199: 29 | E199: 971 | F199: 300 | G199: 155 | H199: 77.1 | I199: 110 | J199: 40 | K199: 472 | L199: 7 | M199: 18.93 | N199: 83.38 | O199: 8.93 | P199: 59 | Q199: -2.79 | R199: 11.84 | S199: 431.8 | T199: 1.2 | U199: 3.7 | V199: 1.3 | W199: 0.17 | X199: 4.8 | Y199: 0.3 | Z199: 1.6 | AA199: 21.965 | AB199: KF | AC199: 99.1 | AD199: 6.5 | AE199: 33.2 | AF199: 48.4 | AG199: 0.07 | AH199: 0.3 | AI199: 0 | AJ199: 0 | AK199: 25.61 | AL199: 71.57 | AM199: 19.41 | AN199: 0.03 | AO199: 5.03 | AP199: 1.97 | AQ199: 47.2 | AR199: 2024-02-11
A200: 4075 | B200: HaferFlocken | C200: 910 | D200: 18.68 | E200: 981.32 | F200: 155 | G200: 95 | H200: 77.1 | I200: 128.57 | J200: 54.95 | K200: 650.55 | L200: 18.68 | M200: 19.2 | N200: 85.68 | O200: 10.44 | P200: 59 | Q200: -0.42 | R200: 11.95 | S200: 604.17 | T200: 1 | U200: 4.45 | V200: 1.46 | W200: 0.33 | X200: 4.22 | Y200: 3 | Z200: 2 | AA200: -87.143 | AB200: KF | AC200: 73 | AD200: 4.1 | AE200: 26 | AF200: 48 | AG200: 0.03 | AH200: 0.3 | AI200: 0.08 | AJ200: 0 | AK200: 25.61 | AL200: 71.57 | AM200: 19.41 | AN200: 0.03 | AO200: 5.25 | AP200: 2.06 | AQ200: 65.05 | AR200: 2013-03-13
... 190 more rows

Sheet Druck
A2: Betrieb: | B2: ='Start-Einstellung'!J7 -> Tierhaltungsschule | C2: ='Start-Einstellung'!M7 -> Markgrafenstraße 12 | F2: ='Start-Einstellung'!M8 -> 09 216 111 1111 | I2: Betrieb: | J2: =B2 -> Tierhaltungsschule | K2: =C2 -> Markgrafenstraße 12 | N2: =F2 -> 09 216 111 1111
A4: Nr. | B4: Trogration | C4: TM kg | D4: FM kg | E4: sidP | F4: ME | G4: CL | H4: CP | I4: Nr. | J4: Konzentrat - Mischung | K4: % Ant. | L4: FM kg | M4: sidP | N4: ME | O4: CL | P4: CP
A5: =Ration!A3 -> 0 | B5: =Ration!B3 ->  | C5: =Ration!F3 -> 0 | D5: =Ration!E25 -> 0 | E5: =Ration!O3 -> 0 | F5: =Ration!M3 -> 0 | G5: =Ration!P3 -> 0 | H5: =Ration!N3 -> 0 | I5: ='Mischung 1'!A3 -> 0 | J5: ='Mischung 1'!B3 ->  | K5: ='Mischung 1'!C3 -> 0 | L5: ='Mischung 1'!C3 -> 0 | M5: ='Mischung 1'!M3 -> 0 | N5: ='Mischung 1'!K3 -> 0 | O5: ='Mischung 1'!N3 -> 0 | P5: ='Mischung 1'!L3 -> 0
A6: =Ration!A4 -> 0 | B6: =Ration!B4 ->  | C6: =Ration!F4 -> 0 | D6: =Ration!E26 -> 0 | E6: =Ration!O4 -> 0 | F6: =Ration!M4 -> 0 | G6: =Ration!P4 -> 0 | H6: =Ration!N4 -> 0 | I6: ='Mischung 1'!A4 -> 0 | J6: ='Mischung 1'!B4 ->  | K6: ='Mischung 1'!C4 -> 0 | L6: ='Mischung 1'!C4 -> 0 | M6: ='Mischung 1'!M4 -> 0 | N6: ='Mischung 1'!K4 -> 0 | O6: ='Mischung 1'!N4 -> 0 | P6: ='Mischung 1'!L4 -> 0
A7: =Ration!A5 -> 0 | B7: =Ration!B5 ->  | C7: =Ration!F5 -> 0 | D7: =Ration!E27 -> 0 | E7: =Ration!O5 -> 0 | F7: =Ration!M5 -> 0 | G7: =Ration!P5 -> 0 | H7: =Ration!N5 -> 0 | I7: ='Mischung 1'!A5 -> 0 | J7: ='Mischung 1'!B5 ->  | K7: ='Mischung 1'!C5 -> 0 | L7: ='Mischung 1'!C5 -> 0 | M7: ='Mischung 1'!M5 -> 0 | N7: ='Mischung 1'!K5 -> 0 | O7: ='Mischung 1'!N5 -> 0 | P7: ='Mischung 1'!L5 -> 0
A8: =Ration!A6 -> 0 | B8: =Ration!B6 ->  | C8: =Ration!F6 -> 0 | D8: =Ration!E28 -> 0 | E8: =Ration!O6 -> 0 | F8: =Ration!M6 -> 0 | G8: =Ration!P6 -> 0 | H8: =Ration!N6 -> 0 | I8: ='Mischung 1'!A6 -> 0 | J8: ='Mischung 1'!B6 ->  | K8: ='Mischung 1'!C6 -> 0 | L8: ='Mischung 1'!C6 -> 0 | M8: ='Mischung 1'!M6 -> 0 | N8: ='Mischung 1'!K6 -> 0 | O8: ='Mischung 1'!N6 -> 0 | P8: ='Mischung 1'!L6 -> 0
A9: =Ration!A7 -> 0 | B9: =Ration!B7 ->  | C9: =Ration!F7 -> 0 | D9: =Ration!E29 -> 0 | E9: =Ration!O7 -> 0 | F9: =Ration!M7 -> 0 | G9: =Ration!P7 -> 0 | H9: =Ration!N7 -> 0 | I9: ='Mischung 1'!A7 -> 0 | J9: ='Mischung 1'!B7 ->  | K9: ='Mischung 1'!C7 -> 0 | L9: ='Mischung 1'!C7 -> 0 | M9: ='Mischung 1'!M7 -> 0 | N9: ='Mischung 1'!K7 -> 0 | O9: ='Mischung 1'!N7 -> 0 | P9: ='Mischung 1'!L7 -> 0
A10: =Ration!A8 -> 0 | B10: =Ration!B8 ->  | C10: =Ration!F8 -> 0 | D10: =Ration!E30 -> 0 | E10: =Ration!O8 -> 0 | F10: =Ration!M8 -> 0 | G10: =Ration!P8 -> 0 | H10: =Ration!N8 -> 0 | I10: ='Mischung 1'!A8 -> 0 | J10: ='Mischung 1'!B8 ->  | K10: ='Mischung 1'!C8 -> 0 | L10: ='Mischung 1'!C8 -> 0 | M10: ='Mischung 1'!M8 -> 0 | N10: ='Mischung 1'!K8 -> 0 | O10: ='Mischung 1'!N8 -> 0 | P10: ='Mischung 1'!L8 -> 0
A11: =Ration!A9 -> 0 | B11: =Ration!B9 ->  | C11: =Ration!F9 -> 0 | D11: =Ration!E31 -> 0 | E11: =Ration!O9 -> 0 | F11: =Ration!M9 -> 0 | G11: =Ration!P9 -> 0 | H11: =Ration!N9 -> 0 | I11: ='Mischung 1'!A9 -> 0 | J11: ='Mischung 1'!B9 ->  | K11: ='Mischung 1'!C9 -> 0 | L11: ='Mischung 1'!C9 -> 0 | M11: ='Mischung 1'!M9 -> 0 | N11: ='Mischung 1'!K9 -> 0 | O11: ='Mischung 1'!N9 -> 0 | P11: ='Mischung 1'!L9 -> 0
A12: =Ration!A10 -> 0 | B12: =Ration!B10 ->  | C12: =Ration!F10 -> 0 | D12: =Ration!E32 -> 0 | E12: =Ration!O10 -> 0 | F12: =Ration!M10 -> 0 | G12: =Ration!P10 -> 0 | H12: =Ration!N10 -> 0 | I12: ='Mischung 1'!A10 -> 0 | J12: ='Mischung 1'!B10 ->  | K12: ='Mischung 1'!C10 -> 0 | L12: ='Mischung 1'!C10 -> 0 | M12: ='Mischung 1'!M10 -> 0 | N12: ='Mischung 1'!K10 -> 0 | O12: ='Mischung 1'!N10 -> 0 | P12: ='Mischung 1'!L10 -> 0
A13: =Ration!A11 -> 0 | B13: =Ration!B11 ->  | C13: =Ration!F11 -> 0 | D13: =Ration!E33 -> 0 | E13: =Ration!O11 -> 0 | F13: =Ration!M11 -> 0 | G13: =Ration!P11 -> 0 | H13: =Ration!N11 -> 0 | I13: ='Mischung 1'!A11 -> 0 | J13: ='Mischung 1'!B11 ->  | K13: ='Mischung 1'!C11 -> 0 | L13: ='Mischung 1'!C11 -> 0 | M13: ='Mischung 1'!M11 -> 0 | N13: ='Mischung 1'!K11 -> 0 | O13: ='Mischung 1'!N11 -> 0 | P13: ='Mischung 1'!L11 -> 0
A14: =Ration!A12 -> 0 | B14: =Ration!B12 ->  | C14: =Ration!F12 -> 0 | D14: =Ration!E34 -> 0 | E14: =Ration!O12 -> 0 | F14: =Ration!M12 -> 0 | G14: =Ration!P12 -> 0 | H14: =Ration!N12 -> 0 | I14: ='Mischung 1'!A12 -> 0 | J14: ='Mischung 1'!B12 ->  | K14: ='Mischung 1'!C12 -> 0 | L14: ='Mischung 1'!C12 -> 0 | M14: ='Mischung 1'!M12 -> 0 | N14: ='Mischung 1'!K12 -> 0 | O14: ='Mischung 1'!N12 -> 0 | P14: ='Mischung 1'!L12 -> 0
A15: =Ration!A13 -> 0 | B15: =Ration!B13 ->  | C15: =Ration!F13 -> 0 | D15: =Ration!E35 -> 0 | E15: =Ration!O13 -> 0 | F15: =Ration!M13 -> 0 | G15: =Ration!P13 -> 0 | H15: =Ration!N13 -> 0 | I15: ='Mischung 1'!A13 -> 0 | J15: ='Mischung 1'!B13 ->  | K15: ='Mischung 1'!C13 -> 0 | L15: ='Mischung 1'!C13 -> 0 | M15: ='Mischung 1'!M13 -> 0 | N15: ='Mischung 1'!K13 -> 0 | O15: ='Mischung 1'!N13 -> 0 | P15: ='Mischung 1'!L13 -> 0
A16: =Ration!A14 -> 0 | B16: =Ration!B14 ->  | C16: =Ration!F14 -> 0 | D16: =Ration!E36 -> 0 | E16: =Ration!O14 -> 0 | F16: =Ration!M14 -> 0 | G16: =Ration!P14 -> 0 | H16: =Ration!N14 -> 0 | I16: ='Mischung 1'!A14 -> 0 | J16: ='Mischung 1'!B14 ->  | K16: ='Mischung 1'!C14 -> 0 | L16: ='Mischung 1'!C14 -> 0 | M16: ='Mischung 1'!M14 -> 0 | N16: ='Mischung 1'!K14 -> 0 | O16: ='Mischung 1'!N14 -> 0 | P16: ='Mischung 1'!L14 -> 0
B17: Summe | C17: =SUM(C5:C16) -> 0 | D17: =SUM(D5:D16) -> 0 | E17: 0 | F17: 0 | G17: =Ration!P17 -> 0 | H17: =Ration!N17 -> 0 | J17: Summe | K17: =SUM(K5:K16) -> 0 | L17: =SUM(L5:L16) -> 0 | M17: 0 | N17: 0 | O17: ='Mischung 1'!N16 -> 0 | P17: ='Mischung 1'!L16 -> 0
A19: Beladung Futtermischwagen für Anzahl: | C19: 100 | G19: MEW | I19: Futtermischung in kg: | K19: 5000
A21: =A5 -> 0 | B21: =B5 ->  | D21: =D5*$C$19 -> 0 | G21: sidP | H21: =Ration!O18 -> 0 | I21: =I5 -> 0 | J21: ='Mischung 1'!B3 ->  | L21: =$K$19*'Mischung 1'!C3 -> 0
A22: =A6 -> 0 | D22: =D6*$C$19 -> 0 | G22: ME | H22: =Ration!M18 -> 0 | I22: =I6 -> 0 | J22: ='Mischung 1'!B4 ->  | L22: =$K$19*'Mischung 1'!C4 -> 0
A23: 0 | D23: 0 | I23: =I7 -> 0 | J23: ='Mischung 1'!B5 ->  | L23: =$K$19*'Mischung 1'!C5 -> 0
A24: 0 | D24: 0 | G24: Rationswerte | I24: =I8 -> 0 | J24: ='Mischung 1'!B6 ->  | L24: =$K$19*'Mischung 1'!C6 -> 0
A25: 0 | D25: 0 | G25: aNDFom | H25: =Ration!I17 -> 0 | I25: =I9 -> 0 | J25: ='Mischung 1'!B7 ->  | L25: =$K$19*'Mischung 1'!C7 -> 0
A26: 0 | D26: 0 | G26: SI | H26: =Ration!K20 -> 0 | I26: =I10 -> 0 | J26: ='Mischung 1'!B8 ->  | L26: =$K$19*'Mischung 1'!C8 -> 0
A27: 0 | D27: 0 | G27: RMD | H27: =Ration!T17 -> 0 | I27: =I11 -> 0 | J27: ='Mischung 1'!B9 ->  | L27: =$K$19*'Mischung 1'!C9 -> 0
A28: 0 | D28: 0 | G28: GF kg | H28: =Ration!C18 -> 0 | I28: =I12 -> 0 | J28: ='Mischung 1'!B10 ->  | L28: =$K$19*'Mischung 1'!C10 -> 0
A29: 0 | D29: 0 | G29: KF kg | H29: =Ration!D18 -> 0 | I29: =I13 -> 0 | J29: ='Mischung 1'!B11 ->  | L29: =$K$19*'Mischung 1'!C11 -> 0
A30: 0 | D30: 0 | G30: GF % | H30: =Ration!E18 -> 0 | I30: =I14 -> 0 | J30: ='Mischung 1'!B12 ->  | L30: =$K$19*'Mischung 1'!C12 -> 0
A31: 0 | D31: 0 | G31: KF % | H31: =Ration!F18 -> 0 | I31: =I15 -> 0 | J31: ='Mischung 1'!B13 ->  | L31: =$K$19*'Mischung 1'!C13 -> 0
A32: 0 | D32: 0 | G32: Ca | H32: =Ration!U16 -> 0 | I32: =I16 -> 0 | J32: ='Mischung 1'!B14 ->  | L32: =$K$19*'Mischung 1'!C14 -> 0
A33: Mischung | D33: =Ration!E15*Druck!C19 -> 0 | G33: P | H33: =Ration!V16 -> 0 | I33: Gesamt | L33: =SUM(L21:M32) -> 0
A34: Wasser | D34: =Ration!E17*Druck!C19 -> 0 | G34: Na | H34: =Ration!W16 -> 0
A35: Gesamt | D35: =SUM(D21:E34) -> 0 | G35: Mg | H35: =Ration!X16 -> 0
